Workbook

Sheet Input
D1: =CONCATENATE("DAILY PLANT REPORT INPUTS (",TEXT(AU27,"0.00"),")") -> DAILY PLANT REPORT INPUTS (8.01) | O1: =TODAY()+7 -> 2013-04-11 | P1: ESALS | Q1: =OFFSET(BP5,MATCH(K31,BO6:BO60,0),0) -> 100000000 | V1: import | W1: 0 | X1: Bag House | Z1: 1 | AA1: 1 | AD1: =MAX(IF(AF5=Y:Y,IF(AB:AB=1,Z:Z))) -> 0 | AE1: =COUNTIF(Y:Y,AF5) -> 4 | AW1: =OFFSET('Bid Items'!D1,MATCH(Q44,'Bid Items'!F1:F270,0)-1,0) -> English | AZ1: ROUTE
U2: PG Grade | X2: =IF(ISERROR('T203'!$B2),"",IF('T203'!$B2="","",'T203'!$B2)) -> A01002 | Y2: =IF(ISERROR('T203'!$K2),"",IF('T203'!$K2="","",'T203'!$K2)) -> A01002 | Z2: =ROW(Y2) -> 2 | AA2: =IF(ISERROR('T203'!$L2),"",IF('T203'!$L2="","",'T203'!$L2)) -> 15A-15C | AB2: =IF(AND(AA2="",Y2<>Y1),0,1) -> 1 | AD2: Row of Bed | AE2: Num of beds | AF2: Anum | AG2: Bed | AH2: A or B | AI2: Anum | AJ2: Bed | AM2: Address of Beds | AO2: Limestone | AP2: Gravel adjust | AQ2: Crushed | AR2: Friction | AS2: Require validation on bed number cells | AU2: Limstone | AV2: Crushed | AZ2: 1
U3: 52-16 | V3: Techs | W3: Contract Friction | X3: =IF(ISERROR('T203'!$B3),"",IF('T203'!$B3="","",'T203'!$B3)) -> A01008 | Y3: =IF(ISERROR('T203'!$K3),"",IF('T203'!$K3="","",'T203'!$K3)) -> A01002 | Z3: =ROW(Y3) -> 3 | AA3: =IF(ISERROR('T203'!$L3),"",IF('T203'!$L3="","",'T203'!$L3)) -> 14 | AB3: 1 | AC3: Agg1 | AD3: =IF(MIN(IF(AF3=Y:Y,IF(AB:AB=1,Z:Z)))=0,VLOOKUP(AF3,Y:Z,2,FALSE),MIN(IF(AF3=Y:Y,IF(AB:AB=1,Z:Z)))) -> 949 | AE3: =IF(SUMIF(Y:Y,AF3,AB:AB)=0,0,MAX(IF(AF3=Y:Y,IF(AB:AB=1,Z:Z)))-AD3+1) -> 1 | AF3: =IF(B47="","",B47) -> ASD010 | AG3: =IF(AF3="","",IF(AND(B$49=" ",AE3=COUNTIFS(Y:Y,AF3,AA:AA,B$49)),"any",B$49)) -> any | AH3: =IF(AG3="any",IF(ISERROR(VLOOKUP(AF3,'T203'!$K$1:$N$1842,4,FALSE)),"",VLOOKUP(AF3,'T203'!$K$1:$N$1842,4,FALSE)),IF(AS$3=0,IF(ISERROR(DGET('T203'!$K$1:$O$1842,"A or B",AF2:AG3))=FALSE,DGET('T203'!$K$1:$O$1842,"A or B",AF2:AG3),IF(ISERROR(VLOOKUP(AF3,'T203'!$K$1:$N$1842,4,FALSE)),"",VLOOKUP(AF3,'T203'!$K$1:$N$1842,4,FALSE))),IF(ISERROR(DGET('T203'!$K$1:$O$1842,"A or B",AF2:AG3)),"",DGET('T203'!$K$1:$O$1842,"A or B",AF2:AG3)))) -> A | AI3: =AF3 -> ASD010 | AJ3: =IF(AG3="any","",AG3) ->  | AK3: =ADDRESS(AD3,27) -> $AA$949 | AL3: =IF(AE3=0,AK3,ADDRESS(AD3+AE3-1,27)) -> $AA$949 | AM3: =IF(ISERROR(CONCATENATE(AK3,":",AL3)),"$AR$16:$AR$16",CONCATENATE(AK3,":",AL3)) -> $AA$949:$AA$949 | AO3: =IF(ISERROR(DGET('T203'!$K$1:$O$1842,"Limestone",AI2:AJ3)),IF(AS3=0,0,IF(ISERROR(DGET('T203'!$K$1:$O$1842,"Limestone",AI2:AI3)),0,DGET('T203'!$K$1:$O$1842,"Limestone",AI2:AI3))),DGET('T203'!$K$1:$O$1842,"Limestone",AI2:AJ3)) -> 0 | AP3: =IF(ISERROR(SEARCH("5",AI3,4)),0,IF(SEARCH("5",AI3,4)=4,IF(B51="Yes",0,1),0)) -> 0 | AQ3: =IF(B51="No",0,1) -> 1 | AR3: =IF(AG3="any",IF(ISERROR(VLOOKUP(AI3,'T203'!$K$1:$O$1842,5,FALSE)),"",VLOOKUP(AI3,'T203'!$K$1:$O$1842,5,FALSE)),IF(AS$3=0,IF(ISERROR(DGET('T203'!$K$1:$O$1842,"Friction",AH2:AJ3))=FALSE,DGET('T203'!$K$1:$O$1842,"Friction",AH2:AJ3),IF(ISERROR(DGET('T203'!$K$1:$O$1842,"Friction",AH2:AI3)),"",DGET('T203'!$K$1:$O$1842,"Friction",AH2:AI3))),IF(ISERROR(DGET('T203'!$K$1:$O$1842,"Friction",AH2:AJ3)),IF(OR(ISERROR(SUMIFS('T203'!O:O,'T203'!L:L,Input!AG3,'T203'!K:K,Input!AF3)/COUNTIFS('T203'!L:L,Input!AG3,'T203'!K:K,Input!AF3)),SUMIFS('T203'!O:O,'T203'!L:L,Input!AG3,'T203'!K:K,Input!AF3)/COUNTIFS('T203'!L:L,Input!AG3,'T203'!K:K,Input!AF3)>5),"",SUMIFS('T203'!O:O,'T203'!L:L,Input!AG3,'T203'!K:K,Input!AF3)/COUNTIFS('T203'!L:L,Input!AG3,'T203'!K:K,Input!AF3)),DGET('T203'!$K$1:$O$1842,"Friction",AH2:AJ3)))) -> 2 | AS3: =IF(OR(K38="L-5"),0,1) -> 0 | AT3: =D77 -> 14.08918454 | AU3: =SUMIF(AO3:AO17,1,AT3:AT17) -> 42.26755361 | AV3: =SUMIF(AQ3:AQ17,1,AT3:AT17) -> 75.47777431 | AY3: 300000 | AZ3: 1 | BT3: Letting Dates
A4: PROJECT INFORMATION | J4: =CONCATENATE(IF(AND(V19,W19=FALSE),CONCATENATE("Project number is not a Category 4 project number in IM103 and/or Route type is not secondary. ",V18," not applied."),""),IF(AND(V15,W19=FALSE),IF(OR(Q9<>4),"% Gmm must be used on Interstate, Primary, and Secondary projects. Check Project Number and/or Route Type.",""),"")) ->  | Q4: Route Type | S4: L-5 | U4: 52-22 | V4: =D18 -> John | X4: =IF(ISERROR('T203'!$B4),"",IF('T203'!$B4="","",'T203'!$B4)) -> A02002 | Y4: =IF(ISERROR('T203'!$K4),"",IF('T203'!$K4="","",'T203'!$K4)) -> A01008 | Z4: =ROW(Y4) -> 4 | AA4: =IF(ISERROR('T203'!$L4),"",IF('T203'!$L4="","",'T203'!$L4)) -> 20 | AB4: 1 | AD4: Row of Bed | AE4: Num of beds | AF4: Anum | AG4: Bed | AH4: A or B | AI4: Anum | AJ4: =IF(AG4="any","",AG4) -> Bed | AM4: Address of Beds | AO4: Limestone | AP4: Gravel adjust | AW4: Lane Dir Code | AZ4: 2 | BD4: District | BF4: County | BS4: 14 | BT4: 2010-01-20
C5: Today's Date : | D5: 2011-10-22 | I5: Route Type : | P5: Portable | Q5: Interstate | R5: 100000 | S5: L-5 | U5: 52-28 | V5: =IF(D19="","",D19) -> Jim | X5: =IF(ISERROR('T203'!$B5),"",IF('T203'!$B5="","",'T203'!$B5)) -> A02004 | Y5: =IF(ISERROR('T203'!$K5),"",IF('T203'!$K5="","",'T203'!$K5)) -> A01008 | Z5: =ROW(Y5) -> 5 | AA5: =IF(ISERROR('T203'!$L5),"",IF('T203'!$L5="","",'T203'!$L5)) -> 25 | AB5: 1 | AC5: Agg2 | AD5: =IF(MIN(IF(AF5=Y:Y,IF(AB:AB=1,Z:Z)))=0,VLOOKUP(AF5,Y:Z,2,FALSE),MIN(IF(AF5=Y:Y,IF(AB:AB=1,Z:Z)))) -> 686 | AE5: =IF(SUMIF(Y:Y,AF5,AB:AB)=0,0,MAX(IF(AF5=Y:Y,IF(AB:AB=1,Z:Z)))-AD5+1) -> 4 | AF5: =IF(C47="","",C47) -> A78002 | AG5: =IF(AF5="","",IF(AND(C$49=" ",AE5=COUNTIFS(Y:Y,AF5,AA:AA,C$49)),"any",C$49)) -> 25B-25C | AH5: =IF(AG5="any",IF(ISERROR(VLOOKUP(AF5,'T203'!$K$1:$N$1842,4,FALSE)),"",VLOOKUP(AF5,'T203'!$K$1:$N$1842,4,FALSE)),IF(AS$3=0,IF(ISERROR(DGET('T203'!$K$1:$O$1842,"A or B",AF4:AG5))=FALSE,DGET('T203'!$K$1:$O$1842,"A or B",AF4:AG5),IF(ISERROR(VLOOKUP(AF5,'T203'!$K$1:$N$1842,4,FALSE)),"",VLOOKUP(AF5,'T203'!$K$1:$N$1842,4,FALSE))),IF(ISERROR(DGET('T203'!$K$1:$O$1842,"A or B",AF4:AG5)),"",DGET('T203'!$K$1:$O$1842,"A or B",AF4:AG5)))) -> A | AI5: =AF5 -> A78002 | AJ5: 25B-25C | AK5: =ADDRESS(AD5,27) -> $AA$686 | AL5: =IF(AE5=0,AK5,ADDRESS(AD5+AE5-1,27)) -> $AA$689 | AM5: =IF(ISERROR(CONCATENATE(AK5,":",AL5)),"$AR$16:$AR$16",CONCATENATE(AK5,":",AL5)) -> $AA$686:$AA$689 | AO5: =IF(ISERROR(DGET('T203'!$K$1:$O$1842,"Limestone",AI4:AJ5)),IF(AS$3=0,0,IF(ISERROR(DGET('T203'!$K$1:$O$1842,"Limestone",AI4:AI5)),0,DGET('T203'!$K$1:$O$1842,"Limestone",AI4:AI5))),DGET('T203'!$K$1:$O$1842,"Limestone",AI4:AJ5)) -> 1 | AP5: =IF(ISERROR(SEARCH("5",AI5,4)),0,IF(SEARCH("5",AI5,4)=4,IF(C51="Yes",0,1),0)) -> 0 | AQ5: =IF(C51="No",0,1) -> 1 | AR5: =IF(AG5="any",IF(ISERROR(VLOOKUP(AI5,'T203'!$K$1:$O$1842,5,FALSE)),"",VLOOKUP(AI5,'T203'!$K$1:$O$1842,5,FALSE)),IF(AS$3=0,IF(ISERROR(DGET('T203'!$K$1:$O$1842,"Friction",AH4:AJ5))=FALSE,DGET('T203'!$K$1:$O$1842,"Friction",AH4:AJ5),IF(ISERROR(DGET('T203'!$K$1:$O$1842,"Friction",AH4:AI5)),"",DGET('T203'!$K$1:$O$1842,"Friction",AH4:AI5))),IF(ISERROR(DGET('T203'!$K$1:$O$1842,"Friction",AH4:AJ5)),IF(OR(ISERROR(SUMIFS('T203'!O:O,'T203'!L:L,Input!AG5,'T203'!K:K,Input!AF5)/COUNTIFS('T203'!L:L,Input!AG5,'T203'!K:K,Input!AF5)),SUMIFS('T203'!O:O,'T203'!L:L,Input!AG5,'T203'!K:K,Input!AF5)/COUNTIFS('T203'!L:L,Input!AG5,'T203'!K:K,Input!AF5)>5),"",SUMIFS('T203'!O:O,'T203'!L:L,Input!AG5,'T203'!K:K,Input!AF5)/COUNTIFS('T203'!L:L,Input!AG5,'T203'!K:K,Input!AF5)),DGET('T203'!$K$1:$O$1842,"Friction",AH4:AJ5)))) -> 4 | AT5: =D78 -> 42.26755361 | AW5: NB/EB | AY5: =R5 -> 100000 | AZ5: 3 | BD5: 4 | BF5: Adair | BO5: Mix Designations | BT5: 2010-02-16
P6: Stationary | Q6: Primary | R6: 100000 | S6: L-5 | U6: 52-34 | V6: =IF(D19="","",CONCATENATE(LEFT(D18,SEARCH(" ",D18))," and ",LEFT(D19,SEARCH(" ",D18)))) ->  | X6: =IF(ISERROR('T203'!$B6),"",IF('T203'!$B6="","",'T203'!$B6)) -> A03002 | Y6: =IF(ISERROR('T203'!$K6),"",IF('T203'!$K6="","",'T203'!$K6)) -> A02002 | Z6: 6 | AA6: =IF(ISERROR('T203'!$L6),"",IF('T203'!$L6="","",'T203'!$L6)) -> 11-13 | AB6: 1 | AD6: Row of Bed | AE6: Num of beds | AF6: Anum | AG6: Bed | AH6: A or B | AI6: Anum | AJ6: Bed | AM6: Address of Beds | AO6: Limestone | AP6: Gravel adjust | AW6: SB/WB | AY6: =R6 -> 100000 | AZ6: 4 | BD6: 4 | BF6: Adams | BO6: HMA (100K ESAL) Base, INT, Or Surface, 3/8, No Spcl Fric REQ | BP6: 100000 | BR6: HMA Commercial (Includes Asphalt Binder) As Per Plan | BT6: 2010-03-16 | BU6: =Input!#REF! ->  | BZ6: Gradation
C7: Expected Tons Produced Today : | D7: 1500 | I7: Letting Date : | Q7: Secondary | R7: 100000 | S7: L-5 | U7: 58-16 | X7: =IF(ISERROR('T203'!$B7),"",IF('T203'!$B7="","",'T203'!$B7)) -> A03008 | Y7: =IF(ISERROR('T203'!$K7),"",IF('T203'!$K7="","",'T203'!$K7)) -> A02004 | Z7: 7 | AA7: =IF(ISERROR('T203'!$L7),"",IF('T203'!$L7="","",'T203'!$L7)) -> 3-5 | AB7: 1 | AC7: Agg3 | AD7: =IF(MIN(IF(AF7=Y:Y,IF(AB:AB=1,Z:Z)))=0,VLOOKUP(AF7,Y:Z,2,FALSE),MIN(IF(AF7=Y:Y,IF(AB:AB=1,Z:Z)))) -> 949 | AE7: =IF(SUMIF(Y:Y,AF7,AB:AB)=0,0,MAX(IF(AF7=Y:Y,IF(AB:AB=1,Z:Z)))-AD7+1) -> 1 | AF7: =IF(D47="","",D47) -> ASD010 | AG7: =IF(AF7="","",IF(AND(D$49=" ",AE7=COUNTIFS(Y:Y,AF7,AA:AA,D$49)),"any",D$49)) -> any | AH7: =IF(AG7="any",IF(ISERROR(VLOOKUP(AF7,'T203'!$K$1:$N$1842,4,FALSE)),"",VLOOKUP(AF7,'T203'!$K$1:$N$1842,4,FALSE)),IF(AS$3=0,IF(ISERROR(DGET('T203'!$K$1:$O$1842,"A or B",AF6:AG7))=FALSE,DGET('T203'!$K$1:$O$1842,"A or B",AF6:AG7),IF(ISERROR(VLOOKUP(AF7,'T203'!$K$1:$N$1842,4,FALSE)),"",VLOOKUP(AF7,'T203'!$K$1:$N$1842,4,FALSE))),IF(ISERROR(DGET('T203'!$K$1:$O$1842,"A or B",AF6:AG7)),"",DGET('T203'!$K$1:$O$1842,"A or B",AF6:AG7)))) -> A | AI7: ASD010 | AJ7: =IF(AG7="any","",AG7) ->  | AK7: =ADDRESS(AD7,27) -> $AA$949 | AL7: =IF(AE7=0,AK7,ADDRESS(AD7+AE7-1,27)) -> $AA$949 | AM7: =IF(ISERROR(CONCATENATE(AK7,":",AL7)),"$AR$16:$AR$16",CONCATENATE(AK7,":",AL7)) -> $AA$949:$AA$949 | AO7: =IF(ISERROR(DGET('T203'!$K$1:$O$1842,"Limestone",AI6:AJ7)),IF(AS$3=0,0,IF(ISERROR(DGET('T203'!$K$1:$O$1842,"Limestone",AI6:AI7)),0,DGET('T203'!$K$1:$O$1842,"Limestone",AI6:AI7))),DGET('T203'!$K$1:$O$1842,"Limestone",AI6:AJ7)) -> 0 | AP7: =IF(ISERROR(SEARCH("5",AI7,4)),0,IF(SEARCH("5",AI7,4)=4,IF(D51="Yes",0,1),0)) -> 0 | AQ7: =IF(D51="No",0,1) -> 1 | AR7: =IF(AG7="any",IF(ISERROR(VLOOKUP(AI7,'T203'!$K$1:$O$1842,5,FALSE)),"",VLOOKUP(AI7,'T203'!$K$1:$O$1842,5,FALSE)),IF(AS$3=0,IF(ISERROR(DGET('T203'!$K$1:$O$1842,"Friction",AH6:AJ7))=FALSE,DGET('T203'!$K$1:$O$1842,"Friction",AH6:AJ7),IF(ISERROR(DGET('T203'!$K$1:$O$1842,"Friction",AH6:AI7)),"",DGET('T203'!$K$1:$O$1842,"Friction",AH6:AI7))),IF(ISERROR(DGET('T203'!$K$1:$O$1842,"Friction",AH6:AJ7)),IF(OR(ISERROR(SUMIFS('T203'!O:O,'T203'!L:L,Input!AG7,'T203'!K:K,Input!AF7)/COUNTIFS('T203'!L:L,Input!AG7,'T203'!K:K,Input!AF7)),SUMIFS('T203'!O:O,'T203'!L:L,Input!AG7,'T203'!K:K,Input!AF7)/COUNTIFS('T203'!L:L,Input!AG7,'T203'!K:K,Input!AF7)>5),"",SUMIFS('T203'!O:O,'T203'!L:L,Input!AG7,'T203'!K:K,Input!AF7)/COUNTIFS('T203'!L:L,Input!AG7,'T203'!K:K,Input!AF7)),DGET('T203'!$K$1:$O$1842,"Friction",AH6:AJ7)))) -> 2 | AT7: =D79 -> 19.12103616 | AW7: Both | AY7: 100000 | AZ7: 5 | BD7: 2 | BF7: Allamakee | BO7: HMA (100K ESAL) Base, INT, Or Surface, 1/2, No Spcl Fric REQ | BP7: 100000 | BR7: HMA Wedge Leveling Or Strengthening | BT7: 2010-04-20 | BX7: Tolerances
Q8: Other | R8: 300000 | S8: L-5 | U8: 58-22 | X8: =IF(ISERROR('T203'!$B8),"",IF('T203'!$B8="","",'T203'!$B8)) -> A03014 | Y8: =IF(ISERROR('T203'!$K8),"",IF('T203'!$K8="","",'T203'!$K8)) -> A03002 | Z8: 8 | AA8: =IF(ISERROR('T203'!$L8),"",IF('T203'!$L8="","",'T203'!$L8)) -> 1C-6 | AB8: 1 | AD8: Row of Bed | AE8: Num of beds | AF8: Anum | AG8: Bed | AH8: A or B | AI8: Anum | AJ8: Bed | AM8: Address of Beds | AO8: Limestone | AP8: Gravel adjust | AW8: =IF(D12="",1,IF(D12=AW6,2,1)) -> 1 | AY8: 300000 | AZ8: 6 | BD8: 5 | BF8: Appanoose | BO8: HMA (100K ESAL) Base, INT, Or Surface, 3/4, No Spcl Fric REQ | BP8: 100000 | BR8: HMA (100K ESAL) Base, INT, Or Surface, 3/8, No Spcl Fric REQ | BT8: 2010-05-18 | BU8: =Input!CE65 -> 0 | BV8: =IF(BU8<100,(BU8-7),IF(BU9=100,100,IF(BU9>89,100,(BU8-7)))) -> -7 | BW8: =IF(BV8>86,100,BU8+7) -> 7 | BX8: =IF(OR(BU8="",ISNUMBER(BU8)=FALSE),"",IF(BV8=100,100,CONCATENATE(TEXT(BV8,"0"),"-",TEXT(BW8,"0"),"(",TEXT(BU8,"0"),")"))) -> -7-7(0)
C9: Contract ID : | D9: 65-0292-060 | M9: =IF(V15,"Specified Density (%) :","") ->  | Q9: 1 | R9: 300000 | S9: L-5 | U9: 58-28 | V9: Yes | X9: =IF(ISERROR('T203'!$B9),"",IF('T203'!$B9="","",'T203'!$B9)) -> A03022 | Y9: =IF(ISERROR('T203'!$K9),"",IF('T203'!$K9="","",'T203'!$K9)) -> A03002 | Z9: 9 | AA9: =IF(ISERROR('T203'!$L9),"",IF('T203'!$L9="","",'T203'!$L9)) -> 1-8 | AB9: 1 | AC9: Agg4 | AD9: =IF(MIN(IF(AF9=Y:Y,IF(AB:AB=1,Z:Z)))=0,VLOOKUP(AF9,Y:Z,2,FALSE),MIN(IF(AF9=Y:Y,IF(AB:AB=1,Z:Z)))) -> 933 | AE9: =IF(SUMIF(Y:Y,AF9,AB:AB)=0,0,MAX(IF(AF9=Y:Y,IF(AB:AB=1,Z:Z)))-AD9+1) -> 1 | AF9: =IF(E47="","",E47) -> ANE514 | AG9: =IF(AF9="","",IF(AND(E$49=" ",AE9=COUNTIFS(Y:Y,AF9,AA:AA,E$49)),"any",E$49)) -> any | AH9: =IF(AG9="any",IF(ISERROR(VLOOKUP(AF9,'T203'!$K$1:$N$1842,4,FALSE)),"",VLOOKUP(AF9,'T203'!$K$1:$N$1842,4,FALSE)),IF(AS$3=0,IF(ISERROR(DGET('T203'!$K$1:$O$1842,"A or B",AF8:AG9))=FALSE,DGET('T203'!$K$1:$O$1842,"A or B",AF8:AG9),IF(ISERROR(VLOOKUP(AF9,'T203'!$K$1:$N$1842,4,FALSE)),"",VLOOKUP(AF9,'T203'!$K$1:$N$1842,4,FALSE))),IF(ISERROR(DGET('T203'!$K$1:$O$1842,"A or B",AF8:AG9)),"",DGET('T203'!$K$1:$O$1842,"A or B",AF8:AG9)))) -> A | AI9: ANE514 | AK9: =ADDRESS(AD9,27) -> $AA$933 | AL9: =IF(AE9=0,AK9,ADDRESS(AD9+AE9-1,27)) -> $AA$933 | AM9: =IF(ISERROR(CONCATENATE(AK9,":",AL9)),"$AR$16:$AR$16",CONCATENATE(AK9,":",AL9)) -> $AA$933:$AA$933 | AO9: =IF(ISERROR(DGET('T203'!$K$1:$O$1842,"Limestone",AI8:AJ9)),IF(AS$3=0,0,IF(ISERROR(DGET('T203'!$K$1:$O$1842,"Limestone",AI8:AI9)),0,DGET('T203'!$K$1:$O$1842,"Limestone",AI8:AI9))),DGET('T203'!$K$1:$O$1842,"Limestone",AI8:AJ9)) -> 0 | AP9: =IF(ISERROR(SEARCH("5",AI9,4)),0,IF(SEARCH("5",AI9,4)=4,IF(E51="Yes",0,1),0)) -> 1 | AQ9: =IF(E51="No",0,1) -> 0 | AR9: =IF(AG9="any",IF(ISERROR(VLOOKUP(AI9,'T203'!$K$1:$O$1842,5,FALSE)),"",VLOOKUP(AI9,'T203'!$K$1:$O$1842,5,FALSE)),IF(AS$3=0,IF(ISERROR(DGET('T203'!$K$1:$O$1842,"Friction",AH8:AJ9))=FALSE,DGET('T203'!$K$1:$O$1842,"Friction",AH8:AJ9),IF(ISERROR(DGET('T203'!$K$1:$O$1842,"Friction",AH8:AI9)),"",DGET('T203'!$K$1:$O$1842,"Friction",AH8:AI9))),IF(ISERROR(DGET('T203'!$K$1:$O$1842,"Friction",AH8:AJ9)),IF(OR(ISERROR(SUMIFS('T203'!O:O,'T203'!L:L,Input!AG9,'T203'!K:K,Input!AF9)/COUNTIFS('T203'!L:L,Input!AG9,'T203'!K:K,Input!AF9)),SUMIFS('T203'!O:O,'T203'!L:L,Input!AG9,'T203'!K:K,Input!AF9)/COUNTIFS('T203'!L:L,Input!AG9,'T203'!K:K,Input!AF9)>5),"",SUMIFS('T203'!O:O,'T203'!L:L,Input!AG9,'T203'!K:K,Input!AF9)/COUNTIFS('T203'!L:L,Input!AG9,'T203'!K:K,Input!AF9)),DGET('T203'!$K$1:$O$1842,"Friction",AH8:AJ9)))) -> 4 | AT9: =D80 -> 10.06370324 | AY9: 300000 | AZ9: 7 | BD9: 4 | BF9: Audubon | BO9: HMA (300K ESAL), Base, 1/2 | BP9: 300000 | BR9: HMA (100K ESAL) Base, INT, Or Surface, 1/2, No Spcl Fric REQ | BT9: 2010-06-15 | BU9: =Input!L62 -> 100 | BV9: =IF(BU9<100,(BU9-7),IF(BU10=100,100,IF(BU10>90,100,(BU9-7)))) -> 100 | BW9: 100 | BX9: 100
C10: Contractor : | D10: ACME | I10: Plant Type : | J10: Stationary | P10: Secondary PN violation | Q10: =IF(Q9=3,IF(SUM(AQ$30:AQ$114)>0,0,1),0) -> 0 | R10: 300000 | S10: L-5 | U10: 58-34 | V10: No | X10: =IF(ISERROR('T203'!$B10),"",IF('T203'!$B10="","",'T203'!$B10)) -> A03038 | Y10: =IF(ISERROR('T203'!$K10),"",IF('T203'!$K10="","",'T203'!$K10)) -> A03008 | Z10: 10 | AA10: =IF(ISERROR('T203'!$L10),"",IF('T203'!$L10="","",'T203'!$L10)) -> 1-6 | AB10: 1 | AD10: Row of Bed | AE10: Num of beds | AF10: Anum | AG10: Bed | AH10: A or B | AI10: Anum | AJ10: Bed | AM10: Address of Beds | AO10: Limestone | AP10: Gravel adjust | AY10: 300000 | AZ10: 8 | BD10: 6 | BF10: Benton | BO10: HMA (300K ESAL), Base, 3/4 | BP10: 300000 | BR10: HMA (100K ESAL) Base, INT, Or Surface, 3/4, No Spcl Fric REQ | BT10: 2010-07-20 | BU10: =Input!L63 -> 100 | BV10: =IF(BU10<100,(BU10-7),IF(BU11=100,100,IF(BU11>90,100,(BU10-7)))) -> 100 | BW10: 100 | BX10: 100
C11: County : | D11: Mills | I11: Plant Location : | J11: Council Bluffs I-80 | O11: =IF(ISERROR(SEARCH("ESAL",Q44)),K31,Q44) -> 2303-0042500 (HMA (3M ESAL) INTERMEDIATE, 1/2") | P11: Multiple Routes | Q11: TRUE | R11: 300000 | S11: L-5 | U11: 64-16 | X11: =IF(ISERROR('T203'!$B11),"",IF('T203'!$B11="","",'T203'!$B11)) -> A03040 | Y11: =IF(ISERROR('T203'!$K11),"",IF('T203'!$K11="","",'T203'!$K11)) -> A03014 | Z11: 11 | AA11: =IF(ISERROR('T203'!$L11),"",IF('T203'!$L11="","",'T203'!$L11)) -> 2-4C | AB11: 1 | AC11: Agg5 | AD11: =IF(MIN(IF(AF11=Y:Y,IF(AB:AB=1,Z:Z)))=0,VLOOKUP(AF11,Y:Z,2,FALSE),MIN(IF(AF11=Y:Y,IF(AB:AB=1,Z:Z)))) -> 979 | AE11: =IF(SUMIF(Y:Y,AF11,AB:AB)=0,0,MAX(IF(AF11=Y:Y,IF(AB:AB=1,Z:Z)))-AD11+1) -> 14 | AF11: =IF(F47="","",F47) ->  | AG11: =IF(AF11="","",IF(AND(F$49=" ",AE11=COUNTIFS(Y:Y,AF11,AA:AA,F$49)),"any",F$49)) ->  | AH11: =IF(AG11="any",IF(ISERROR(VLOOKUP(AF11,'T203'!$K$1:$N$1842,4,FALSE)),"",VLOOKUP(AF11,'T203'!$K$1:$N$1842,4,FALSE)),IF(AS$3=0,IF(ISERROR(DGET('T203'!$K$1:$O$1842,"A or B",AF10:AG11))=FALSE,DGET('T203'!$K$1:$O$1842,"A or B",AF10:AG11),IF(ISERROR(VLOOKUP(AF11,'T203'!$K$1:$N$1842,4,FALSE)),"",VLOOKUP(AF11,'T203'!$K$1:$N$1842,4,FALSE))),IF(ISERROR(DGET('T203'!$K$1:$O$1842,"A or B",AF10:AG11)),"",DGET('T203'!$K$1:$O$1842,"A or B",AF10:AG11)))) ->  | AK11: =ADDRESS(AD11,27) -> $AA$979 | AL11: =IF(AE11=0,AK11,ADDRESS(AD11+AE11-1,27)) -> $AA$992 | AM11: =IF(ISERROR(CONCATENATE(AK11,":",AL11)),"$AR$16:$AR$16",CONCATENATE(AK11,":",AL11)) -> $AA$979:$AA$992 | AO11: =IF(ISERROR(DGET('T203'!$K$1:$O$1842,"Limestone",AI10:AJ11)),IF(AS$3=0,0,IF(ISERROR(DGET('T203'!$K$1:$O$1842,"Limestone",AI10:AI11)),0,DGET('T203'!$K$1:$O$1842,"Limestone",AI10:AI11))),DGET('T203'!$K$1:$O$1842,"Limestone",AI10:AJ11)) -> 0 | AP11: =IF(ISERROR(SEARCH("5",AI11,4)),0,IF(SEARCH("5",AI11,4)=4,IF(F51="Yes",0,1),0)) -> 0 | AQ11: =IF(F51="No",0,1) -> 0 | AR11: =IF(AG11="any",IF(ISERROR(VLOOKUP(AI11,'T203'!$K$1:$O$1842,5,FALSE)),"",VLOOKUP(AI11,'T203'!$K$1:$O$1842,5,FALSE)),IF(AS$3=0,IF(ISERROR(DGET('T203'!$K$1:$O$1842,"Friction",AH10:AJ11))=FALSE,DGET('T203'!$K$1:$O$1842,"Friction",AH10:AJ11),IF(ISERROR(DGET('T203'!$K$1:$O$1842,"Friction",AH10:AI11)),"",DGET('T203'!$K$1:$O$1842,"Friction",AH10:AI11))),IF(ISERROR(DGET('T203'!$K$1:$O$1842,"Friction",AH10:AJ11)),IF(OR(ISERROR(SUMIFS('T203'!O:O,'T203'!L:L,Input!AG11,'T203'!K:K,Input!AF11)/COUNTIFS('T203'!L:L,Input!AG11,'T203'!K:K,Input!AF11)),SUMIFS('T203'!O:O,'T203'!L:L,Input!AG11,'T203'!K:K,Input!AF11)/COUNTIFS('T203'!L:L,Input!AG11,'T203'!K:K,Input!AF11)>5),"",SUMIFS('T203'!O:O,'T203'!L:L,Input!AG11,'T203'!K:K,Input!AF11)/COUNTIFS('T203'!L:L,Input!AG11,'T203'!K:K,Input!AF11)),DGET('T203'!$K$1:$O$1842,"Friction",AH10:AJ11)))) ->  | AT11: =D81 -> 0 | AY11: 300000 | AZ11: 9 | BD11: 2 | BF11: Black Hawk | BO11: HMA (300K ESAL), INT Or Surface, 3/8, No Spcl Fric REQ | BP11: 300000 | BR11: HMA (300K ESAL), Base, 1/2 | BT11: 2010-08-17 | BU11: =Input!L64 -> 92 | BV11: =IF(BU11<100,(BU11-7),IF(BU12=100,100,IF(BU12>90,100,(BU11-7)))) -> 85 | BW11: 99 | BX11: 85-99(92)
C12: Lane Dir: | D12: NB/EB | I12: Expected Tons from Silo : | J12: 0 | P12: Supplier incorrect | Q12: =IF(ISERROR(MATCH(Q37,Tank!AA$47:AA$115,0)),1,0) -> 0 | R12: 300000 | S12: L-5 | U12: 64-22 | X12: =IF(ISERROR('T203'!$B12),"",IF('T203'!$B12="","",'T203'!$B12)) -> A03042 | Y12: =IF(ISERROR('T203'!$K12),"",IF('T203'!$K12="","",'T203'!$K12)) -> A03022 | Z12: 12 | AA12: =IF(ISERROR('T203'!$L12),"",IF('T203'!$L12="","",'T203'!$L12)) -> 4-7 | AB12: 1 | AD12: Row of Bed | AE12: Num of beds | AF12: Anum | AG12: Bed | AH12: A or B | AI12: Anum | AJ12: Bed | AM12: Address of Beds | AO12: Limestone | AP12: Gravel adjust | AY12: 300000 | AZ12: 10 | BD12: 1 | BF12: Boone | BO12: HMA (300K ESAL), INT Or Surface, 1/2, No Spcl Fric REQ | BP12: 300000 | BR12: HMA (300K ESAL), Base, 3/4 | BT12: 2010-09-21 | BU12: =Input!L65 -> 80 | BV12: =IF(BU12<100,(BU12-7),IF(BU13=100,100,IF(BU13>90,100,(BU12-7)))) -> 73 | BW12: 87 | BX12: 73-87(80)
D13: =IF($Q$9<>3,"Route","") -> Route | E13: Beg MP | F13: =IF(Q9=3,"Prj Len (mi)","End MP") -> End MP | G13: Beg Sta | H13: End Sta | I13: =IF($Q$9<>3,"Route","") -> Route | J13: Beg MP 2 | L13: =IF(Q9=3,"Prj Len 2 (mi)","End MP 2") -> End MP 2 | M13: Beg Sta 2 | N13: End Sta 2 | R13: 1000000 | S13: L-5 | U13: 64-28 | X13: =IF(ISERROR('T203'!$B13),"",IF('T203'!$B13="","",'T203'!$B13)) -> A03048 | Y13: =IF(ISERROR('T203'!$K13),"",IF('T203'!$K13="","",'T203'!$K13)) -> A03022 | Z13: 13 | AA13: =IF(ISERROR('T203'!$L13),"",IF('T203'!$L13="","",'T203'!$L13)) -> 2-7 | AB13: 1 | AC13: Agg6 | AD13: =IF(MIN(IF(AF13=Y:Y,IF(AB:AB=1,Z:Z)))=0,VLOOKUP(AF13,Y:Z,2,FALSE),MIN(IF(AF13=Y:Y,IF(AB:AB=1,Z:Z)))) -> 979 | AE13: =IF(SUMIF(Y:Y,AF13,AB:AB)=0,0,MAX(IF(AF13=Y:Y,IF(AB:AB=1,Z:Z)))-AD13+1) -> 14 | AF13: =IF(G47="","",G47) ->  | AG13: =IF(AF13="","",IF(AND(G$49=" ",AE13=COUNTIFS(Y:Y,AF13,AA:AA,G$49)),"any",G$49)) ->  | AH13: =IF(AG13="any",IF(ISERROR(VLOOKUP(AF13,'T203'!$K$1:$N$1842,4,FALSE)),"",VLOOKUP(AF13,'T203'!$K$1:$N$1842,4,FALSE)),IF(AS$3=0,IF(ISERROR(DGET('T203'!$K$1:$O$1842,"A or B",AF12:AG13))=FALSE,DGET('T203'!$K$1:$O$1842,"A or B",AF12:AG13),IF(ISERROR(VLOOKUP(AF13,'T203'!$K$1:$N$1842,4,FALSE)),"",VLOOKUP(AF13,'T203'!$K$1:$N$1842,4,FALSE))),IF(ISERROR(DGET('T203'!$K$1:$O$1842,"A or B",AF12:AG13)),"",DGET('T203'!$K$1:$O$1842,"A or B",AF12:AG13)))) ->  | AK13: =ADDRESS(AD13,27) -> $AA$979 | AL13: =IF(AE13=0,AK13,ADDRESS(AD13+AE13-1,27)) -> $AA$992 | AM13: =IF(ISERROR(CONCATENATE(AK13,":",AL13)),"$AR$16:$AR$16",CONCATENATE(AK13,":",AL13)) -> $AA$979:$AA$992 | AO13: =IF(ISERROR(DGET('T203'!$K$1:$O$1842,"Limestone",AI12:AJ13)),IF(AS$3=0,0,IF(ISERROR(DGET('T203'!$K$1:$O$1842,"Limestone",AI12:AI13)),0,DGET('T203'!$K$1:$O$1842,"Limestone",AI12:AI13))),DGET('T203'!$K$1:$O$1842,"Limestone",AI12:AJ13)) -> 0 | AP13: =IF(ISERROR(SEARCH("5",AI13,4)),0,IF(SEARCH("5",AI13,4)=4,IF(G51="Yes",0,1),0)) -> 0 | AQ13: =IF(G51="No",0,1) -> 0 | AR13: =IF(AG13="any",IF(ISERROR(VLOOKUP(AI13,'T203'!$K$1:$O$1842,5,FALSE)),"",VLOOKUP(AI13,'T203'!$K$1:$O$1842,5,FALSE)),IF(AS$3=0,IF(ISERROR(DGET('T203'!$K$1:$O$1842,"Friction",AH12:AJ13))=FALSE,DGET('T203'!$K$1:$O$1842,"Friction",AH12:AJ13),IF(ISERROR(DGET('T203'!$K$1:$O$1842,"Friction",AH12:AI13)),"",DGET('T203'!$K$1:$O$1842,"Friction",AH12:AI13))),IF(ISERROR(DGET('T203'!$K$1:$O$1842,"Friction",AH12:AJ13)),IF(OR(ISERROR(SUMIFS('T203'!O:O,'T203'!L:L,Input!AG13,'T203'!K:K,Input!AF13)/COUNTIFS('T203'!L:L,Input!AG13,'T203'!K:K,Input!AF13)),SUMIFS('T203'!O:O,'T203'!L:L,Input!AG13,'T203'!K:K,Input!AF13)/COUNTIFS('T203'!L:L,Input!AG13,'T203'!K:K,Input!AF13)>5),"",SUMIFS('T203'!O:O,'T203'!L:L,Input!AG13,'T203'!K:K,Input!AF13)/COUNTIFS('T203'!L:L,Input!AG13,'T203'!K:K,Input!AF13)),DGET('T203'!$K$1:$O$1842,"Friction",AH12:AJ13)))) ->  | AT13: =D82 -> 0 | AY13: 1000000 | AZ13: 12 | BD13: 2 | BF13: Bremer | BO13: HMA (300K ESAL), INT Or Surface, 3/4, No Spcl Fric REQ | BP13: 300000 | BR13: HMA (300K ESAL), INT Or Surface, 3/8, No Spcl Fric REQ | BT13: 2010-10-19 | BU13: =Input!L66 -> 52 | BV13: =IF(BU13<100,(BU13-7),IF(BU14=100,100,IF(BU14>90,100,(BU13-7)))) -> 45 | BW13: 59 | BX13: 45-59(52)
D14: 29 | E14: 30.9 | F14: 38.9 | G14: 281+73 | H14: 716+00 | I14: 34 | J14: 2 | L14: 10 | M14: 1+00 | N14: 520+00 | P14: Lab Voids Spec? | Q14: =IF(Input!$BS$4<22,"",IF(OR(ISERROR(MATCH(Q43,AJ30:AJ41,0))=FALSE,AND(V19,W19)),IF(AND(Q43=AJ33,Q9=1),"PWL","AAD"),"PWL")) ->  | R14: 1000000 | S14: L-5 | U14: 64-34 | V14: % Gmb? | X14: =IF(ISERROR('T203'!$B14),"",IF('T203'!$B14="","",'T203'!$B14)) -> A03050 | Y14: =IF(ISERROR('T203'!$K14),"",IF('T203'!$K14="","",'T203'!$K14)) -> A03038 | Z14: 14 | AA14: =IF(ISERROR('T203'!$L14),"",IF('T203'!$L14="","",'T203'!$L14)) -> 1-4 | AB14: 1 | AD14: Row of Bed | AE14: Num of beds | AF14: Anum | AG14: Bed | AH14: A or B | AI14: Anum | AJ14: Bed | AM14: Address of Beds | AO14: Limestone | AP14: Gravel adjust | AY14: 1000000 | AZ14: 13 | BD14: 6 | BF14: Buchanan | BO14: HMA (1M ESAL), Base, 1/2 | BP14: 1000000 | BR14: HMA (300K ESAL), INT Or Surface, 1/2, No Spcl Fric REQ | BT14: 2010-12-21 | BU14: =Input!L67 -> 31 | BV14: =IF(BU14<100,(BU14-5),IF(BU15=100,100,IF(BU15>90,100,(BU14-5)))) -> 26 | BW14: =IF(BV14>86,100,BU14+5) -> 36 | BX14: 26-36(31)
C15: Project Location Description : | D15: FROM 1 MILE S. of S. JCT. US 34 N. TO JUST N. OF MILLS REST AREA (NBL) | R15: 1000000 | S15: L-5 | U15: 70-16 | V15: FALSE | X15: =IF(ISERROR('T203'!$B15),"",IF('T203'!$B15="","",'T203'!$B15)) -> A03052 | Y15: =IF(ISERROR('T203'!$K15),"",IF('T203'!$K15="","",'T203'!$K15)) -> A03040 | Z15: 15 | AA15: =IF(ISERROR('T203'!$L15),"",IF('T203'!$L15="","",'T203'!$L15)) -> 5A-5D | AB15: 1 | AC15: Agg7 | AD15: =IF(MIN(IF(AF15=Y:Y,IF(AB:AB=1,Z:Z)))=0,VLOOKUP(AF15,Y:Z,2,FALSE),MIN(IF(AF15=Y:Y,IF(AB:AB=1,Z:Z)))) -> 979 | AE15: =IF(SUMIF(Y:Y,AF15,AB:AB)=0,0,MAX(IF(AF15=Y:Y,IF(AB:AB=1,Z:Z)))-AD15+1) -> 14 | AF15: =IF(H47="","",H47) ->  | AG15: =IF(AF15="","",IF(AND(H$49=" ",AE15=COUNTIFS(Y:Y,AF15,AA:AA,H$49)),"any",H$49)) ->  | AH15: =IF(AG15="any",IF(ISERROR(VLOOKUP(AF15,'T203'!$K$1:$N$1842,4,FALSE)),"",VLOOKUP(AF15,'T203'!$K$1:$N$1842,4,FALSE)),IF(AS$3=0,IF(ISERROR(DGET('T203'!$K$1:$O$1842,"A or B",AF14:AG15))=FALSE,DGET('T203'!$K$1:$O$1842,"A or B",AF14:AG15),IF(ISERROR(VLOOKUP(AF15,'T203'!$K$1:$N$1842,4,FALSE)),"",VLOOKUP(AF15,'T203'!$K$1:$N$1842,4,FALSE))),IF(ISERROR(DGET('T203'!$K$1:$O$1842,"A or B",AF14:AG15)),"",DGET('T203'!$K$1:$O$1842,"A or B",AF14:AG15)))) ->  | AK15: =ADDRESS(AD15,27) -> $AA$979 | AL15: =IF(AE15=0,AK15,ADDRESS(AD15+AE15-1,27)) -> $AA$992 | AM15: =IF(ISERROR(CONCATENATE(AK15,":",AL15)),"$AR$16:$AR$16",CONCATENATE(AK15,":",AL15)) -> $AA$979:$AA$992 | AO15: =IF(ISERROR(DGET('T203'!$K$1:$O$1842,"Limestone",AI14:AJ15)),IF(AS$3=0,0,IF(ISERROR(DGET('T203'!$K$1:$O$1842,"Limestone",AI14:AI15)),0,DGET('T203'!$K$1:$O$1842,"Limestone",AI14:AI15))),DGET('T203'!$K$1:$O$1842,"Limestone",AI14:AJ15)) -> 0 | AP15: =IF(ISERROR(SEARCH("5",AI15,4)),0,IF(SEARCH("5",AI15,4)=4,IF(H51="Yes",0,1),0)) -> 0 | AQ15: =IF(H51="No",0,1) -> 0 | AR15: =IF(AG15="any",IF(ISERROR(VLOOKUP(AI15,'T203'!$K$1:$O$1842,5,FALSE)),"",VLOOKUP(AI15,'T203'!$K$1:$O$1842,5,FALSE)),IF(AS$3=0,IF(ISERROR(DGET('T203'!$K$1:$O$1842,"Friction",AH14:AJ15))=FALSE,DGET('T203'!$K$1:$O$1842,"Friction",AH14:AJ15),IF(ISERROR(DGET('T203'!$K$1:$O$1842,"Friction",AH14:AI15)),"",DGET('T203'!$K$1:$O$1842,"Friction",AH14:AI15))),IF(ISERROR(DGET('T203'!$K$1:$O$1842,"Friction",AH14:AJ15)),IF(OR(ISERROR(SUMIFS('T203'!O:O,'T203'!L:L,Input!AG15,'T203'!K:K,Input!AF15)/COUNTIFS('T203'!L:L,Input!AG15,'T203'!K:K,Input!AF15)),SUMIFS('T203'!O:O,'T203'!L:L,Input!AG15,'T203'!K:K,Input!AF15)/COUNTIFS('T203'!L:L,Input!AG15,'T203'!K:K,Input!AF15)>5),"",SUMIFS('T203'!O:O,'T203'!L:L,Input!AG15,'T203'!K:K,Input!AF15)/COUNTIFS('T203'!L:L,Input!AG15,'T203'!K:K,Input!AF15)),DGET('T203'!$K$1:$O$1842,"Friction",AH14:AJ15)))) ->  | AT15: =D83 -> 0 | AY15: 1000000 | AZ15: 14 | BD15: 3 | BF15: Buena Vista | BO15: HMA (1M ESAL), Base, 3/4 | BP15: 1000000 | BR15: HMA (300K ESAL), INT Or Surface, 3/4, No Spcl Fric REQ | BT15: 2011-01-19 | BU15: =Input!L69 -> 12 | BV15: =IF(BU15<100,(BU15-4),IF(BU16=100,100,IF(BU16>90,100,(BU15-4)))) -> 8 | BW15: =IF(BV15>86,100,BU15+4) -> 16 | BX15: =IF(OR(BU15="",ISNUMBER(BU15)=FALSE),"",IF(BV15=100,100,CONCATENATE(TEXT(BV15,"0"),"-",TEXT(BW15,"0"),"(",TEXT(BU15,"0"),")"))) -> 8-16(12)
A16: =IF(Tank!AB10=0,"",IF(AND(Q9<>3,OR(ISNUMBER(E14)=FALSE,ISNUMBER(F14)=FALSE)),"Invalid mile post entry. ",IF(AND(E14<>"",F14<>"",F14-E14>90),"Abnormally long project. Correct mile post project limits",""))) ->  | Q16: Units | R16: 1000000 | S16: L-5 | U16: 70-22 | V16: Is Bid Item Should or base | X16: =IF(ISERROR('T203'!$B16),"",IF('T203'!$B16="","",'T203'!$B16)) -> A03066 | Y16: =IF(ISERROR('T203'!$K16),"",IF('T203'!$K16="","",'T203'!$K16)) -> A03042 | Z16: 16 | AA16: =IF(ISERROR('T203'!$L16),"",IF('T203'!$L16="","",'T203'!$L16)) -> 1-3 | AB16: 1 | AD16: Row of Bed | AE16: Num of beds | AF16: Anum | AG16: Bed | AH16: A or B | AI16: Anum | AJ16: Bed | AM16: Address of Beds | AO16: Limestone | AP16: Gravel adjust | AY16: 1000000 | AZ16: 15 | BD16: 2 | BF16: Butler | BO16: HMA (1M ESAL), INT, 1/2 | BP16: 1000000 | BR16: HMA (1M ESAL), Base, 1/2 | BT16: 2011-02-15 | BU16: =Input!L72 -> 4.2 | BV16: =IF(BU16<100,(BU16-2),IF(BU17=100,100,IF(BU17>90,100,(BU16-2)))) -> 2.2 | BW16: =IF(BV16>86,100,BU16+2) -> 6.2 | BX16: =IF(OR(BU16="",ISNUMBER(BU16)=FALSE),"",IF(BV16=100,100,CONCATENATE(TEXT(BV16,"0.0"),"-",TEXT(BW16,"0.0"),"(",TEXT(BU16,"0.0"),")"))) -> 2.2-6.2(4.2)
A17: TESTING INFORMATION | Q17: =Tank!AB4 -> 1 | R17: 1000000 | S17: L-5 | U17: 70-28 | V17: =IF(ISERROR(SEARCH("sh",Q44))=FALSE,TRUE,IF(ISERROR(SEARCH("base",Q44))=FALSE,TRUE,FALSE)) -> FALSE | X17: =IF(ISERROR('T203'!$B17),"",IF('T203'!$B17="","",'T203'!$B17)) -> A03072 | Y17: =IF(ISERROR('T203'!$K17),"",IF('T203'!$K17="","",'T203'!$K17)) -> A03042 | Z17: 17 | AA17: =IF(ISERROR('T203'!$L17),"",IF('T203'!$L17="","",'T203'!$L17)) -> 3 | AB17: 1 | AC17: Agg8 | AD17: =IF(MIN(IF(AF17=Y:Y,IF(AB:AB=1,Z:Z)))=0,VLOOKUP(AF17,Y:Z,2,FALSE),MIN(IF(AF17=Y:Y,IF(AB:AB=1,Z:Z)))) -> 979 | AE17: =IF(SUMIF(Y:Y,AF17,AB:AB)=0,0,MAX(IF(AF17=Y:Y,IF(AB:AB=1,Z:Z)))-AD17+1) -> 14 | AF17: =IF(I47="","",I47) ->  | AG17: =IF(AF17="","",IF(AND(I$49=" ",AE17=COUNTIFS(Y:Y,AF17,AA:AA,I$49)),"any",I$49)) ->  | AH17: =IF(AG17="any",IF(ISERROR(VLOOKUP(AF17,'T203'!$K$1:$N$1842,4,FALSE)),"",VLOOKUP(AF17,'T203'!$K$1:$N$1842,4,FALSE)),IF(AS$3=0,IF(ISERROR(DGET('T203'!$K$1:$O$1842,"A or B",AF16:AG17))=FALSE,DGET('T203'!$K$1:$O$1842,"A or B",AF16:AG17),IF(ISERROR(VLOOKUP(AF17,'T203'!$K$1:$N$1842,4,FALSE)),"",VLOOKUP(AF17,'T203'!$K$1:$N$1842,4,FALSE))),IF(ISERROR(DGET('T203'!$K$1:$O$1842,"A or B",AF16:AG17)),"",DGET('T203'!$K$1:$O$1842,"A or B",AF16:AG17)))) ->  | AI17: =AF17 ->  | AJ17: =IF(AG17="any","",AG17) ->  | AK17: =ADDRESS(AD17,27) -> $AA$979 | AL17: =IF(AE17=0,AK17,ADDRESS(AD17+AE17-1,27)) -> $AA$992 | AM17: =IF(ISERROR(CONCATENATE(AK17,":",AL17)),"$AR$16:$AR$16",CONCATENATE(AK17,":",AL17)) -> $AA$979:$AA$992 | AO17: =IF(ISERROR(DGET('T203'!$K$1:$O$1842,"Limestone",AI16:AJ17)),IF(AS$3=0,0,IF(ISERROR(DGET('T203'!$K$1:$O$1842,"Limestone",AI16:AI17)),0,DGET('T203'!$K$1:$O$1842,"Limestone",AI16:AI17))),DGET('T203'!$K$1:$O$1842,"Limestone",AI16:AJ17)) -> 0 | AP17: =IF(ISERROR(SEARCH("5",AI17,4)),0,IF(SEARCH("5",AI17,4)=4,IF(I51="Yes",0,1),0)) -> 0 | AQ17: =IF(I51="No",0,1) -> 1 | AR17: =IF(AG17="any",IF(ISERROR(VLOOKUP(AI17,'T203'!$K$1:$O$1842,5,FALSE)),"",VLOOKUP(AI17,'T203'!$K$1:$O$1842,5,FALSE)),IF(AS$3=0,IF(ISERROR(DGET('T203'!$K$1:$O$1842,"Friction",AH16:AJ17))=FALSE,DGET('T203'!$K$1:$O$1842,"Friction",AH16:AJ17),IF(ISERROR(DGET('T203'!$K$1:$O$1842,"Friction",AH16:AI17)),"",DGET('T203'!$K$1:$O$1842,"Friction",AH16:AI17))),IF(ISERROR(DGET('T203'!$K$1:$O$1842,"Friction",AH16:AJ17)),IF(OR(ISERROR(SUMIFS('T203'!O:O,'T203'!L:L,Input!AG17,'T203'!K:K,Input!AF17)/COUNTIFS('T203'!L:L,Input!AG17,'T203'!K:K,Input!AF17)),SUMIFS('T203'!O:O,'T203'!L:L,Input!AG17,'T203'!K:K,Input!AF17)/COUNTIFS('T203'!L:L,Input!AG17,'T203'!K:K,Input!AF17)>5),"",SUMIFS('T203'!O:O,'T203'!L:L,Input!AG17,'T203'!K:K,Input!AF17)/COUNTIFS('T203'!L:L,Input!AG17,'T203'!K:K,Input!AF17)),DGET('T203'!$K$1:$O$1842,"Friction",AH16:AJ17)))) ->  | AT17: =D84 -> 0 | AY17: 1000000 | AZ17: 16 | BD17: 3 | BF17: Calhoun | BO17: HMA (1M ESAL), INT, 3/4 | BP17: 1000000 | BR17: HMA (1M ESAL), Base, 3/4 | BT17: 2011-03-15 | BX17: % Binder Tolerance
C18: Contractor Certified Technician's Name: | D18: John | I18: Cert No. | J18: EC000 | L18: =IF(J18="","",IF(ISERROR(MATCH(J18,Cert!C:C,0)),"Cert number not registered as of 6/1/2012","")) -> Cert number not registered as of 6/1/2012 | O18: =AND(ISERROR(SEARCH(" ",J18)),LEN(J18)=5,ISNUMBER(VALUE(MID(J18,1,1)))=FALSE,ISNUMBER(VALUE(MID(J18,2,1)))=FALSE,ISNUMBER(VALUE(MID(J18,3,1))),ISNUMBER(VALUE(MID(J18,4,1))),ISNUMBER(VALUE(MID(J18,5,1)))) -> TRUE | Q18: Max RAP | R18: 1000000 | S18: L-4 | U18: 70-34 | V18: DS-12030 | W18: Local PN? | X18: =IF(ISERROR('T203'!$B18),"",IF('T203'!$B18="","",'T203'!$B18)) -> A03502 | Y18: =IF(ISERROR('T203'!$K18),"",IF('T203'!$K18="","",'T203'!$K18)) -> A03048 | Z18: 18 | AA18: =IF(ISERROR('T203'!$L18),"",IF('T203'!$L18="","",'T203'!$L18)) -> 6-8 | AB18: 1 | AD18: Row of Route | AE18: Num of beds | AF18: Route | AG18: Bed | AH18: A or B | AI18: Anum | AJ18: Bed | AM18: Address of Beds | AO18: Milepost | AY18: 1000000 | AZ18: 17 | BD18: 3 | BF18: Carroll | BO18: HMA (1M ESAL), Surface, 3/8, No Sl Friction REQ | BP18: 1000000 | BR18: HMA (1M ESAL), INT, 1/2 | BT18: 2011-04-19 | BV18: =C38-0.3 -> 4.5 | BW18: =C38+0.3 -> 5.1 | BX18: =IF(Input!C38="","",CONCATENATE(TEXT(BV18,"0.00"),"-",TEXT(BW18,"0.00"))) -> 4.50-5.10
C19: Contractor Certified Technician's Name: | D19: Jim | I19: Cert No. | J19: EC999 | L19: =IF(J19="","",IF(ISERROR(MATCH(J19,Cert!C:C,0)),"Cert number not registered as of 6/1/2012","")) -> Cert number not registered as of 6/1/2012 | O19: =AND(ISERROR(SEARCH(" ",J19)),LEN(J19)=5,ISNUMBER(VALUE(MID(J19,1,1)))=FALSE,ISNUMBER(VALUE(MID(J19,2,1)))=FALSE,ISNUMBER(VALUE(MID(J19,3,1))),ISNUMBER(VALUE(MID(J19,4,1))),ISNUMBER(VALUE(MID(J19,5,1)))) -> TRUE | P19: Classified | Q19: =SUMIFS(RAM!D$31:H$31,RAM!D$39:H$39,Input!P19)*Report!D50 -> 15.60717376 | R19: 1000000 | S19: L-5 | U19: 76-16 | V19: FALSE | W19: =AND(Q9=3,SUM(AN$30:AN$77)>0) -> FALSE | X19: =IF(ISERROR('T203'!$B19),"",IF('T203'!$B19="","",'T203'!$B19)) -> A03506 | Y19: =IF(ISERROR('T203'!$K19),"",IF('T203'!$K19="","",'T203'!$K19)) -> A03048 | Z19: 19 | AA19: =IF(ISERROR('T203'!$L19),"",IF('T203'!$L19="","",'T203'!$L19)) -> 2-5 | AB19: 1 | AC19: BPOST | AD19: =IF(MIN(IF(AF19='MP Lookup'!D:D,IF('MP Lookup'!E:E=Input!$AW$8,'MP Lookup'!L:L)))=0,VLOOKUP(AF19,'MP Lookup'!D:L,8,FALSE),MIN(IF(AF19='MP Lookup'!D:D,IF('MP Lookup'!E:E=Input!AW8,'MP Lookup'!L:L)))) -> 1610 | AE19: =IF(SUMIF('MP Lookup'!D:D,AF19,'MP Lookup'!E:E)=0,0,MAX(IF(AF19='MP Lookup'!D:D,'MP Lookup'!L:L))-AD19+1) -> 149 | AF19: 35 | AK19: =ADDRESS(AD19,9) -> $I$1610 | AL19: =IF(AE19=0,AK19,ADDRESS(AD19+AE19-1,9)) -> $I$1758 | AM19: =IF(ISERROR(CONCATENATE(AK19,":",AL19)),"$AR$16:$AR$16",CONCATENATE(AK19,":",AL19)) -> $I$1610:$I$1758 | AY19: 1000000 | AZ19: 18 | BD19: 4 | BF19: Cass | BO19: HMA (1M ESAL), Surface, 3/8, FRICL-2 | BP19: 1000000 | BR19: HMA (1M ESAL), INT, 3/4 | BT19: 2011-05-17 | BW19: VMA Tolerance
C20: Cold Feed Sampled By: | D20: 2 | P20: Certified A | Q20: =IF(BS4>=35,SUMIFS(RAM!D$31:H$31,RAM!D$39:H$39,Input!P21,RAM!D$41:H$41,CONCATENATE("<=",Settings!$B$81))*Report!$D$50,0) -> 0 | R20: 1000000 | S20: L-4 | U20: 76-22 | X20: =IF(ISERROR('T203'!$B20),"",IF('T203'!$B20="","",'T203'!$B20)) -> A03512 | Y20: =IF(ISERROR('T203'!$K20),"",IF('T203'!$K20="","",'T203'!$K20)) -> A03050 | Z20: 20 | AA20: =IF(ISERROR('T203'!$L20),"",IF('T203'!$L20="","",'T203'!$L20)) -> 2-3A | AB20: 1 | AD20: Row of Bed | AE20: Num of beds | AF20: Route | AG20: Bed | AH20: A or B | AI20: Anum | AJ20: Bed | AM20: Address of Beds | AO20: Milepost | AY20: 1000000 | AZ20: 20 | BD20: 6 | BF20: Cedar | BO20: HMA (1M ESAL), Surface, 3/8, FRICL-3 | BP20: 1000000 | BR20: HMA (1M ESAL), Surface, 3/8, No Sl Friction REQ | BT20: 2011-06-21 | BU20: =C34-1 -> 13.3 | BV20: =C34+1 -> 15.3 | BW20: =IF(BR20="","",CONCATENATE(TEXT(BU20,"0.0"),"-",TEXT(BV20,"0.0"))) -> 13.3-15.3
C21: Cold Feed Tested By: | D21: 2 | P21: Certified | Q21: =IF(BS4>=36,IF(SUMIFS(RAM!D$31:H$31,RAM!D$39:H$39,Input!P21)*Report!$D$50=Q20,0,SUMIFS(RAM!D$31:H$31,RAM!D$39:H$39,Input!P21)*Report!$D$50),SUMIFS(RAM!D$31:H$31,RAM!D$39:H$39,Input!P21)*Report!D50) -> 0 | R21: 3000000 | S21: L-5 | U21: 76-22 | X21: =IF(ISERROR('T203'!$B21),"",IF('T203'!$B21="","",'T203'!$B21)) -> A03518 | Y21: =IF(ISERROR('T203'!$K21),"",IF('T203'!$K21="","",'T203'!$K21)) -> A03052 | Z21: 21 | AA21: =IF(ISERROR('T203'!$L21),"",IF('T203'!$L21="","",'T203'!$L21)) -> 1-5 | AB21: 1 | AC21: EPOST | AD21: =AD19 -> 1610 | AE21: =AE19 -> 149 | AF21: 35 | AK21: =ADDRESS(AD21,10) -> $J$1610 | AL21: =IF(AE21=0,AK21,ADDRESS(AD21+AE21-1,10)) -> $J$1758 | AM21: =IF(ISERROR(CONCATENATE(AK21,":",AL21)),"$AR$16:$AR$16",CONCATENATE(AK21,":",AL21)) -> $J$1610:$J$1758 | AY21: 3000000 | AZ21: 21 | BD21: 2 | BF21: Cerro Gordo | BO21: HMA (1M ESAL), Surface, 3/8, FRICL-4 | BP21: 1000000 | BR21: HMA (1M ESAL), Surface, 3/8, FRICL-4 | BT21: 2011-07-19
C22: Cold Feed Sampling Location: | D22: Streamflow | P22: Unclassified | Q22: =SUMIFS(RAM!D$31:H$31,RAM!D$39:H$39,Input!P22)*Report!D50 -> 0 | R22: 3000000 | S22: L-5 | U22: 76-28 | X22: =IF(ISERROR('T203'!$B22),"",IF('T203'!$B22="","",'T203'!$B22)) -> A04016 | Y22: =IF(ISERROR('T203'!$K22),"",IF('T203'!$K22="","",'T203'!$K22)) -> A03066 | Z22: 22 | AA22: =IF(ISERROR('T203'!$L22),"",IF('T203'!$L22="","",'T203'!$L22)) -> 2 | AB22: 1 | AE22: Plan Quantity | AY22: 3000000 | AZ22: 22 | BD22: 3 | BF22: Cherokee | BO22: HMA (1M ESAL), Surface, 1/2, No Sl Friction REQ | BP22: 3000000 | BR22: HMA (1M ESAL), Surface, 1/2, No Sl Friction REQ | BT22: 2011-08-16
C23: Gyratory Compactor Serial Number: | D23: 1 | P23: Max Class | Q23: =Settings!B76 -> 100 | R23: 3000000 | S23: L-5 | T23: Quantity Type | U23: 76-34 | V23: Compaction | X23: =IF(ISERROR('T203'!$B23),"",IF('T203'!$B23="","",'T203'!$B23)) -> A04018 | Y23: =IF(ISERROR('T203'!$K23),"",IF('T203'!$K23="","",'T203'!$K23)) -> A03072 | Z23: 23 | AA23: =IF(ISERROR('T203'!$L23),"",IF('T203'!$L23="","",'T203'!$L23)) -> 1-8 | AB23: 1 | AE23: =IF(OR(Input!T26=1,Input!T26=3),Input!Q45,IF(Tank!$AB$4=1,145*Input!Q47/12*Input!Q45*9/2000,0.9071847*Input!Q45*Input!AE24*145*Input!Q47*Input!AE25/2000)) -> 310.3 | AY23: 3000000 | AZ23: 23 | BD23: 2 | BF23: Chickasaw | BO23: HMA (1M ESAL), Surface, 1/2, FRICL-2 | BP23: 3000000 | BR23: HMA (1M ESAL), Surface, 1/2, FRICL-4 | BT23: 2011-09-20
A24: Number of Sublots for Lab Voids based on Expected Tonnage : | E24: ←Leave blank for standard sampling or Enter number of sublots (6 max) for alternate sampling pre-approved at pre-con meeting | P24: Max Cert A | Q24: =IF(BS4>=36,Q23,Q25) -> 20 | R24: 3000000 | S24: L-5 | T24: Tons | V24: Class I | X24: =IF(ISERROR('T203'!$B24),"",IF('T203'!$B24="","",'T203'!$B24)) -> A05506 | Y24: =IF(ISERROR('T203'!$K24),"",IF('T203'!$K24="","",'T203'!$K24)) -> A03502 | Z24: 24 | AA24: =IF(ISERROR('T203'!$L24),"",IF('T203'!$L24="","",'T203'!$L24)) ->  | AB24: 1 | AE24: =10.76391 -> 10.76391 | AF24: sf/sm | AY24: 3000000 | AZ24: 24 | BD24: 5 | BF24: Clarke | BO24: HMA (1M ESAL), Surface, 1/2, FRICL-3 | BP24: 3000000 | BR24: HMA (3M ESAL), Base, 1/2 | BT24: 2011-10-18
P25: Max Cert B | Q25: =IF(AND(Input!Q43=Input!AE30,OR(Input!Q1=100000,Input!Q1=300000)),Settings!B78,IF(Input!Q43=AE30,Settings!D78,Settings!E78)) -> 20 | R25: 3000000 | S25: L-5 | T25: Square Yards | V25: Class II | X25: =IF(ISERROR('T203'!$B25),"",IF('T203'!$B25="","",'T203'!$B25)) -> A06006 | Y25: =IF(ISERROR('T203'!$K25),"",IF('T203'!$K25="","",'T203'!$K25)) -> A03506 | Z25: 25 | AA25: =IF(ISERROR('T203'!$L25),"",IF('T203'!$L25="","",'T203'!$L25)) ->  | AB25: 1 | AE25: =0.00328083 -> 0.00328083 | AF25: mm/ft | AY25: 3000000 | AZ25: 25 | BD25: 3 | BF25: Clay | BO25: HMA (1M ESAL), Surface, 1/2, FRICL-4 | BP25: 3000000 | BR25: HMA (3M ESAL), Base, 3/4 | BT25: 2011-11-15
P26: Max Unclassified | Q26: =IF(Input!Q43=Input!AE30,Settings!B79,Settings!C79) -> 10 | R26: 3000000 | S26: L-5 | T26: =Tank!AB3 -> 1 | U26: WMA Technologies | V26: =Tank!AB5 -> 1 | X26: =IF(ISERROR('T203'!$B26),"",IF('T203'!$B26="","",'T203'!$B26)) -> A06012 | Y26: =IF(ISERROR('T203'!$K26),"",IF('T203'!$K26="","",'T203'!$K26)) -> A03512 | Z26: 26 | AA26: =IF(ISERROR('T203'!$L26),"",IF('T203'!$L26="","",'T203'!$L26)) ->  | AB26: 1 | AY26: 3000000 | AZ26: 26 | BD26: 2 | BF26: Clayton | BO26: HMA (3M ESAL), Base, 1/2 | BP26: 3000000 | BR26: HMA (3M ESAL), INT, 3/8 | BT26: 2011-12-20
A27: Number of Cores per Day for Alternate Sampling Plan : | E27: =CONCATENATE("←Leave blank for standard sampling or Enter number of cores (12 max) for alternate sampling pre-approved at pre-con meeting. ", IF(Q52>0,"If the Engineer reduces the # of cores, then enter the agreed upon number of cores.","")) -> ←Leave blank for standard sampling or Enter number of cores (12 max) for alternate sampling pre-approved at pre-con meeting. | Q27: =IF(COUNTIF(Q19:Q22,">0")>1,"Varies",IF(Q19>0,Q23,IF(Q20>0,Q24,IF(Q21>0,Q25,Q26)))) -> 100 | R27: 3000000 | S27: L-5 | U27: 3E LT/Ecoflex | V27: =IF(OFFSET(Tank!$K$36,Tank!$AB$1,0)="Class I (Non-PWL)","1a","1") -> 1 | X27: =IF(ISERROR('T203'!$B27),"",IF('T203'!$B27="","",'T203'!$B27)) -> A06014 | Y27: =IF(ISERROR('T203'!$K27),"",IF('T203'!$K27="","",'T203'!$K27)) -> A03518 | Z27: 27 | AA27: =IF(ISERROR('T203'!$L27),"",IF('T203'!$L27="","",'T203'!$L27)) ->  | AB27: 1 | AT27: Version | AU27: 8.01 | AY27: 3000000 | AZ27: 27 | BD27: 6 | BF27: Clinton | BO27: HMA (3M ESAL), Base, 3/4 | BP27: 3000000 | BR27: HMA (3M ESAL), INT, 1/2 | BT27: 2012-01-18
P28: Comply | Q28: =IF(OR(ROUND(Q19,1)>Q23,ROUND(Q21,1)>Q25,ROUND(Q22,1)>Q26),"No","Yes") -> Yes | R28: 3000000 | S28: L-2 | U28: Advera | X28: =IF(ISERROR('T203'!$B28),"",IF('T203'!$B28="","",'T203'!$B28)) -> A06502 | Y28: =IF(ISERROR('T203'!$K28),"",IF('T203'!$K28="","",'T203'!$K28)) -> A04016 | Z28: 28 | AA28: =IF(ISERROR('T203'!$L28),"",IF('T203'!$L28="","",'T203'!$L28)) -> 1-3 | AB28: 1 | AT28: HISTORY | AY28: 3000000 | AZ28: 28 | BD28: 3 | BF28: Crawford | BO28: HMA (3M ESAL), INT, 3/8 | BP28: 3000000 | BR28: HMA (3M ESAL), INT, 3/4 | BT28: 2012-02-21
A29: =IF(AND(Tank!AB10>0,OR(E14="",F14="",G14="",H14="",'Placement Record'!D71="")),"Missing project location and/or mileage summary.","") ->  | D29: =IF(AND(SUM(D7)<>0,Q52>0),"Based on expected production and placement, core sampling may be waived/modified per Engineer approval. Final approval will be based on actual production and placement","") ->  | P29: Alternate Lab Voids Sampling | Q29: =IF(IF(J12>0,1+Sublots!S8,D24)="","",IF(J12>0,1+Sublots!S8,D24)) ->  | R29: 3000000 | S29: L-3 | U29: Asphaltan-B | X29: =IF(ISERROR('T203'!$B29),"",IF('T203'!$B29="","",'T203'!$B29)) -> A06504 | Y29: =IF(ISERROR('T203'!$K29),"",IF('T203'!$K29="","",'T203'!$K29)) -> A04016 | Z29: 29 | AA29: =IF(ISERROR('T203'!$L29),"",IF('T203'!$L29="","",'T203'!$L29)) -> 6 | AB29: 1 | AE29: Placement Options | AF29: Class II Compaction | AG29: Class I Compaction (Non-PWL) | AI29: Class I Compaction | AJ29: Lab Voids Moving AAD | AK29: Lab Voids Irregular | AO29: Non Fed PNs | AP29: Local PN | AY29: 3000000 | AZ29: 29 | BD29: 4 | BF29: Dallas | BO29: HMA (3M ESAL), INT, 1/2 | BP29: 3000000 | BR29: HMA (3M ESAL), Surface, 3/8, No Sl Friction REQ | BT29: 2012-03-20
A30: MIXTURE INFORMATION | R30: 3000000 | S30: L-4 | T30: Size | U30: Aspha-min | X30: =IF(ISERROR('T203'!$B30),"",IF('T203'!$B30="","",'T203'!$B30)) -> A06506 | Y30: =IF(ISERROR('T203'!$K30),"",IF('T203'!$K30="","",'T203'!$K30)) -> A04018 | Z30: 30 | AA30: =IF(ISERROR('T203'!$L30),"",IF('T203'!$L30="","",'T203'!$L30)) -> 4 | AB30: 1 | AE30: Surface (Travel Lane) | AF30: =AE37 -> Leveling | AG30: =AE51 -> Widening (Travel lane) | AI30: =AE30 -> Surface (Travel Lane) | AJ30: =AE51 -> Widening (Travel lane) | AK30: =AE49 -> Turning Lane | AN30: =IF(ISERROR(SEARCH(AO30,Q$41)),0,SEARCH(AO30,Q$41)) -> 0 | AO30: ADA | AP30: ADA | AQ30: =IF(ISERROR(SEARCH(AP30,Q$41)),0,SEARCH(AP30,Q$41)) -> 0 | AY30: 3000000 | AZ30: 30 | BD30: 5 | BF30: Davis | BO30: HMA (3M ESAL), INT, 3/4 | BP30: 3000000 | BR30: HMA (3M ESAL), Surface, 1/2, No Sl Friction REQ | BT30: 2012-04-17
B31: Mix Design No : | C31: 4BD11-18 | F31: Mix Type : | J31: Mix Being Produced : | K31: HMA (30M ESAL), Surface, 1/2, FRICL-2 | R31: 3000000 | S31: L-5 | T31: 1 | U31: ECOMAC | X31: =IF(ISERROR('T203'!$B31),"",IF('T203'!$B31="","",'T203'!$B31)) -> A07004 | Y31: =IF(ISERROR('T203'!$K31),"",IF('T203'!$K31="","",'T203'!$K31)) -> A05506 | Z31: 31 | AA31: =IF(ISERROR('T203'!$L31),"",IF('T203'!$L31="","",'T203'!$L31)) ->  | AB31: 1 | AE31: Intermediate (Travel Lane) | AF31: =AE33 -> Shoulder | AG31: =AE43 -> Ramps (Non-high speed) | AI31: =AE31 -> Intermediate (Travel Lane) | AJ31: =AE52 -> Widening (Non-travel lane) | AK31: =AE35 -> Gore/Fillet | AN31: 0 | AO31: ADPM | AP31: ADPM | AQ31: 0 | AY31: 3000000 | AZ31: 31 | BD31: 5 | BF31: Decatur | BO31: HMA (3M ESAL), Surface, 3/8, No Sl Friction REQ | BP31: 3000000 | BR31: HMA (3M ESAL), Surface, 1/2, FRICL-2 | BT31: 2012-05-15
B32: Target Lab Voids (%): | C32: 4 | J32: =IF(Input!$T$39=2,IF(Tank!$AB$4=2,"WMA Target Compaction Temp. From SHADES, °C :","WMA Target Compaction Temp. From SHADES, °F :"),"") ->  | P32: =IF(J32="",0,1) -> 0 | Q32: =IF(AND(P32=1,K32=""),1,IF(AND(P32=1,K32<>""),2)) -> FALSE | R32: 10000000 | S32: L-5 | T32: 3/4 | U32: Evotherm 3G | X32: =IF(ISERROR('T203'!$B32),"",IF('T203'!$B32="","",'T203'!$B32)) -> A07008 | Y32: =IF(ISERROR('T203'!$K32),"",IF('T203'!$K32="","",'T203'!$K32)) -> A06006 | Z32: 32 | AA32: =IF(ISERROR('T203'!$L32),"",IF('T203'!$L32="","",'T203'!$L32)) -> 6-16 | AB32: 1 | AE32: Base (Travel Lane) | AF32: =AE40 -> On-site Detour | AG32: =AE34 -> Bridge Approach | AI32: =AE32 -> Base (Travel Lane) | AJ32: =AE43 -> Ramps (Non-high speed) | AK32: =AE40 -> On-site Detour | AN32: 0 | AO32: AIP | AP32: AIP | AQ32: 0 | AY32: 10000000 | AZ32: 32 | BB32: =IF(AND($T$39=2,K32<>""),1,0) -> 0 | BC32: =IF(Tank!$AB$4=2,Settings!D60,Settings!C60) -> 215 | BD32: 6 | BF32: Delaware | BO32: HMA (3M ESAL), Surface, 1/2, No Sl Friction REQ | BP32: 3000000 | BR32: HMA (3M ESAL), Surface, 1/2, FRICL-3 | BT32: 2012-06-19
B33: =IF(Tank!$AB$4=1,"Mix Size (in):","Mix Size (mm):") -> Mix Size (in): | C33: 1/2 | J33: =IF(Input!$T$39=2,IF(Tank!$AB$4=2,"WMA Target Plant Temp. From SHADES, °C :","WMA Target Plant Temp. From SHADES, °F :"),"") ->  | P33: =IF(J33="",0,1) -> 0 | Q33: =IF(AND(P33=1,K33=""),1,IF(AND(P33=1,K33<>""),2)) -> FALSE | R33: 10000000 | S33: L-5 | T33: 1/2 | U33: LEA | X33: =IF(ISERROR('T203'!$B33),"",IF('T203'!$B33="","",'T203'!$B33)) -> A07018 | Y33: =IF(ISERROR('T203'!$K33),"",IF('T203'!$K33="","",'T203'!$K33)) -> A06012 | Z33: 33 | AA33: =IF(ISERROR('T203'!$L33),"",IF('T203'!$L33="","",'T203'!$L33)) -> 6-11 | AB33: 1 | AE33: Shoulder | AF33: =AE47 -> Temporary Cross-over | AG33: =AE38 -> Institutional roadway | AI33: =AE42 -> Ramps (High speed) | AJ33: =AF31 -> Shoulder | AK33: =AE48 -> Temporary Pavement | AN33: 0 | AO33: BG | AP33: BG | AQ33: 0 | AY33: 10000000 | AZ33: 34 | BB33: =IF(AND($T$39=2,K33<>""),1,0) -> 0 | BC33: =BC32 -> 215 | BD33: 5 | BF33: Des Moines | BO33: HMA (3M ESAL), Surface, 1/2, FRICL-2 | BP33: 10000000 | BR33: HMA (3M ESAL), Surface, 1/2, FRICL-4 | BT33: 2012-07-17
B34: VMA (from 956): | C34: 14.3 | J34: =IF(Input!$T$39=2,"Warm Mix Technology :","") ->  | P34: =IF(J34="",0,1) -> 0 | Q34: =IF(AND(P34=1,K34=""),1,IF(AND(P34=1,K34<>""),2)) -> FALSE | R34: 10000000 | S34: L-5 | T34: 3/8 | U34: LEAB | X34: =IF(ISERROR('T203'!$B34),"",IF('T203'!$B34="","",'T203'!$B34)) -> A07020 | Y34: =IF(ISERROR('T203'!$K34),"",IF('T203'!$K34="","",'T203'!$K34)) -> A06012 | Z34: 34 | AA34: =IF(ISERROR('T203'!$L34),"",IF('T203'!$L34="","",'T203'!$L34)) -> 12 | AB34: 1 | AE34: Bridge Approach | AF34: =AE52 -> Widening (Non-travel lane) | AG34: =AE44 -> Recreational Trail | AJ34: =AE44 -> Recreational Trail | AK34: =AE43 -> Ramps (Non-high speed) | AN34: 0 | AO34: BRFN | AP34: BHM | AQ34: 0 | AY34: 10000000 | AZ34: 35 | BB34: 0 | BC34: =IF(MONTH(D5)>=10,IF(Tank!$AB$4=2,Settings!F63,Settings!E63),IF(Tank!$AB$4=2,Settings!D63,Settings!C63)) -> 330 | BD34: 3 | BF34: Dickinson | BO34: HMA (3M ESAL), Surface, 1/2, FRICL-3 | BP34: 10000000 | BR34: HMA (3M ESAL), Surface, 3/4, No Sl Friction REQ | BT34: 2012-08-21
B35: Design Gyrations: | C35: 109 | J35: =IF(Input!$T$39=2,"Warm Mix Technology Dosage Rate (with units) :","") ->  | P35: =IF(J35="",0,1) -> 0 | Q35: =IF(AND(P35=1,K35=""),1,IF(AND(P35=1,K35<>""),2)) -> FALSE | R35: 10000000 | S35: L-5 | U35: Licomont | X35: =IF(ISERROR('T203'!$B35),"",IF('T203'!$B35="","",'T203'!$B35)) -> A07504 | Y35: =IF(ISERROR('T203'!$K35),"",IF('T203'!$K35="","",'T203'!$K35)) -> A06012 | Z35: 35 | AA35: =IF(ISERROR('T203'!$L35),"",IF('T203'!$L35="","",'T203'!$L35)) -> 10-12 | AB35: 1 | AE35: Gore/Fillet | AF35: =AE53 -> Other Non-Travel Lane | AG35: =AE39 -> Irregular Compaction Area | AH35: Eligible for waive cores | AJ35: =AE38 -> Institutional roadway | AK35: =AE36 -> Guard Rail | AN35: 0 | AO35: CS | AP35: BHOS | AQ35: 0 | AY35: 10000000 | AZ35: 37 | BB35: 0 | BD35: 6 | BF35: Dubuque | BO35: HMA (3M ESAL), Surface, 1/2, FRICL-4 | BP35: 10000000 | BR35: HMA (10M ESAL), Base, 3/4 | BT35: 2012-09-18
B36: Gyratory Correction Factor: | J36: =IF(Input!$T$39=2,"Virgin PG Binder Aging Index :","") ->  | P36: =IF(J36="",0,1) -> 0 | Q36: =IF(AND(P36=1,K36=""),1,IF(AND(P36=1,K36<>""),2)) -> FALSE | R36: 10000000 | S36: L-5 | T36: Mix Type | U36: Rediset | X36: =IF(ISERROR('T203'!$B36),"",IF('T203'!$B36="","",'T203'!$B36)) -> A07506 | Y36: =IF(ISERROR('T203'!$K36),"",IF('T203'!$K36="","",'T203'!$K36)) -> A06012 | Z36: 36 | AA36: =IF(ISERROR('T203'!$L36),"",IF('T203'!$L36="","",'T203'!$L36)) -> 13-18 | AB36: 1 | AE36: Guard Rail | AF36: =AE36 -> Guard Rail | AG36: =AE50 -> Wedge | AH36: Eligible for waive cores | AJ36: =AE40 -> On-site Detour | AK36: =AE33 -> Shoulder | AN36: 0 | AO36: CST | AP36: BHS | AQ36: 0 | AY36: 10000000 | AZ36: 38 | BB36: 0 | BD36: 3 | BF36: Emmet | BO36: HMA (3M ESAL), Surface, 3/4, No Sl Friction REQ | BP36: 10000000 | BR36: HMA (10M ESAL), Base, 1 | BT36: 2012-10-16
B37: Intended Added % Binder: | C37: 4.2 | J37: % Limestone : | K37: =IF(SUM(L58)=0,"",F86) -> 41.97645118 | P37: Binder Supplier : | Q37: =Tank!B8 -> Flint Hills Resources, LP (Omaha, NE) | R37: 10000000 | S37: L-2 | T37: HMA | U37: Revix | X37: =IF(ISERROR('T203'!$B37),"",IF('T203'!$B37="","",'T203'!$B37)) -> A07508 | Y37: =IF(ISERROR('T203'!$K37),"",IF('T203'!$K37="","",'T203'!$K37)) -> A06012 | Z37: 37 | AA37: =IF(ISERROR('T203'!$L37),"",IF('T203'!$L37="","",'T203'!$L37)) -> 20-23 | AB37: 1 | AE37: Leveling | AF37: =AE41 -> Patching | AG37: =AE46 -> Strengthening | AH37: Eligible for waive cores | AJ37: =AE47 -> Temporary Cross-over | AN37: 0 | AO37: CS-TSF | AP37: BR | AQ37: 0 | AY37: 10000000 | AZ37: 39 | BD37: 2 | BF37: Fayette | BO37: HMA (10M ESAL), Base, 3/4 | BP37: 10000000 | BR37: HMA (10M ESAL), INT, 1/2 | BT37: 2012-11-20
B38: Intended Total % Binder: | C38: 4.8 | J38: Required Friction : | K38: =IF(O11="","",IF(ISERROR(SEARCH("L-2",O11))=FALSE,"L-2",IF(ISERROR(SEARCH("L-3",O11))=FALSE,"L-3",IF(ISERROR(SEARCH("L-4",O11))=FALSE,"L-4","L-5")))) -> L-5 | P38: Contract Binder Price ($/ton) : | Q38: =OFFSET(Tank!G36,Tank!AB1,0) -> 572 | R38: 10000000 | S38: L-3 | T38: WMA | U38: Sasobit | X38: =IF(ISERROR('T203'!$B38),"",IF('T203'!$B38="","",'T203'!$B38)) -> A07512 | Y38: =IF(ISERROR('T203'!$K38),"",IF('T203'!$K38="","",'T203'!$K38)) -> A06014 | Z38: 38 | AA38: =IF(ISERROR('T203'!$L38),"",IF('T203'!$L38="","",'T203'!$L38)) ->  | AB38: 1 | AE38: Institutional roadway | AG38: =AE48 -> Temporary Pavement | AJ38: =AE48 -> Temporary Pavement | AN38: 0 | AO38: DC | AP38: BRFN | AQ38: 0 | AY38: 10000000 | AZ38: 44 | BD38: 2 | BF38: Floyd | BO38: HMA (10M ESAL), Base, 1 | BP38: 10000000 | BR38: HMA (10M ESAL), INT, 3/4 | BT38: 2012-12-18
B39: Binder Grade on Plans (PG): | C39: 70-22 | J39: Minimum Film Thickness Spec, μm: | K39: 8 | O39: RAP | P39: =IF(ISERROR((RAM!K44-RAM!AC79*RAM!I31/100)/SUM(RAM!D31:H31)*100),"",(RAM!K44-RAM!AC79*RAM!I31/100)/SUM(RAM!D31:H31)*100) -> 4.22 | R39: 10000000 | S39: L-4 | T39: 1 | U39: WAM-Foam | X39: =IF(ISERROR('T203'!$B39),"",IF('T203'!$B39="","",'T203'!$B39)) -> A07518 | Y39: =IF(ISERROR('T203'!$K39),"",IF('T203'!$K39="","",'T203'!$K39)) -> A06502 | Z39: 39 | AA39: =IF(ISERROR('T203'!$L39),"",IF('T203'!$L39="","",'T203'!$L39)) ->  | AB39: 1 | AE39: Irregular Compaction Area | AG39: =AE45 -> Rest Area | AJ39: Rest Area | AN39: 0 | AO39: DHS | AP39: BRM | AQ39: 0 | AY39: 10000000 | AZ39: 48 | BD39: 2 | BF39: Franklin | BO39: HMA (10M ESAL), INT, 1/2 | BP39: 10000000 | BR39: HMA (10M ESAL), Surface, 1/2, No Sfric REQ | BT39: 2013-01-16
B40: Binder Grade Used Today (PG): | C40: 70-22 | O40: RAS | P40: =RAM!I44 -> 0 | R40: 10000000 | S40: L-2 | U40: Water Injection | X40: =IF(ISERROR('T203'!$B40),"",IF('T203'!$B40="","",'T203'!$B40)) -> A08504 | Y40: =IF(ISERROR('T203'!$K40),"",IF('T203'!$K40="","",'T203'!$K40)) -> A06504 | Z40: 40 | AA40: =IF(ISERROR('T203'!$L40),"",IF('T203'!$L40="","",'T203'!$L40)) ->  | AB40: 1 | AE40: On-site Detour | AG40: =AE35 -> Gore/Fillet | AJ40: =AE36 -> Guard Rail | AN40: 0 | AO40: FM | AP40: BROS | AQ40: 0 | AY40: 10000000 | AZ40: 51 | BD40: 4 | BF40: Fremont | BO40: HMA (10M ESAL), INT, 3/4 | BP40: 10000000 | BR40: HMA (10M ESAL), Surface, 1/2, FRICL-2 | BT40: 2013-02-19
B41: Pba/Agg Absorption Ratio: | P41: Project Number : | Q41: =Report!C2 -> IMX-029-2(60)32--02-65 | R41: 10000000 | S41: L-3 | T41: Specification Type | U41: Other (Chem. Addtv.) | X41: =IF(ISERROR('T203'!$B41),"",IF('T203'!$B41="","",'T203'!$B41)) -> A08526 | Y41: =IF(ISERROR('T203'!$K41),"",IF('T203'!$K41="","",'T203'!$K41)) -> A06506 | Z41: 41 | AA41: =IF(ISERROR('T203'!$L41),"",IF('T203'!$L41="","",'T203'!$L41)) ->  | AB41: 1 | AE41: Patching | AG41: =AE49 -> Turning Lane | AJ41: =AE53 -> Other Non-Travel Lane | AN41: 0 | AO41: FM-TSF | AP41: BR-RP | AQ41: 0 | AY41: 10000000 | AZ41: 52 | BD41: 1 | BF41: Greene | BO41: HMA (10M ESAL), Surface, 1/2, No Sfric REQ | BP41: 10000000 | BR41: HMA (10M ESAL), Surface, 1/2, FRICL-3 | BT41: 2013-03-19
B42: =CONCATENATE("Agg ",TEXT(COLUMN(A42),"0")) -> Agg 1 | C42: =CONCATENATE("Agg ",TEXT(COLUMN(B42),"0")) -> Agg 2 | D42: Agg 3 | E42: Agg 4 | F42: Agg 5 | G42: Agg 6 | H42: Agg 7 | I42: Agg 8 | J42: RAM | L42: Combined | P42: Plant Report Number : | Q42: =Report!AA2 -> 3 | R42: 10000000 | S42: L-4 | T42: =IF(AND(Input!V15,Input!Q9=4,Input!W19=FALSE),2,1) -> 1 | U42: Other (Org. Addtv.) | X42: =IF(ISERROR('T203'!$B42),"",IF('T203'!$B42="","",'T203'!$B42)) -> A08528 | Y42: =IF(ISERROR('T203'!$K42),"",IF('T203'!$K42="","",'T203'!$K42)) -> A07004 | Z42: 42 | AA42: =IF(ISERROR('T203'!$L42),"",IF('T203'!$L42="","",'T203'!$L42)) -> 25 | AB42: 1 | AE42: Ramps (High speed) | AN42: 0 | AO42: FN | AP42: BRS | AQ42: 0 | AY42: 10000000 | AZ42: 56 | BD42: 1 | BF42: Grundy | BO42: HMA (10M ESAL), Surface, 1/2, FRICL-2 | BP42: 10000000 | BR42: HMA (10M ESAL), Surface, 1/2, FRICL-4 | BT42: 2013-04-16
P43: =IF(Q43="Irregular Area","*Today's Placement :","Today's Placement :") -> Today's Placement : | Q43: =OFFSET(Tank!C36,Tank!AB1,0) -> Ramps (Non-high speed) | R43: 30000000 | S43: L-5 | X43: =IF(ISERROR('T203'!$B43),"",IF('T203'!$B43="","",'T203'!$B43)) -> A09002 | Y43: =IF(ISERROR('T203'!$K43),"",IF('T203'!$K43="","",'T203'!$K43)) -> A07004 | Z43: 43 | AA43: =IF(ISERROR('T203'!$L43),"",IF('T203'!$L43="","",'T203'!$L43)) -> 17-24 | AB43: 1 | AE43: Ramps (Non-high speed) | AN43: 0 | AO43: FRFMX | AP43: CS | AQ43: 0 | AY43: 30000000 | AZ43: 57 | BD43: 4 | BF43: Guthrie | BO43: HMA (10M ESAL), Surface, 1/2, FRICL-3 | BP43: 10000000 | BR43: HMA (10M ESAL), Surface, 3/4, FRICL-2 | BT43: 2013-05-21
J44: %AC | P44: Bid Item Being Produced : | Q44: =OFFSET(Tank!A36,Tank!AB1,0) -> 2303-0042500 (HMA (3M ESAL) INTERMEDIATE, 1/2") | R44: 30000000 | S44: L-5 | X44: =IF(ISERROR('T203'!$B44),"",IF('T203'!$B44="","",'T203'!$B44)) -> A09006 | Y44: =IF(ISERROR('T203'!$K44),"",IF('T203'!$K44="","",'T203'!$K44)) -> A07004 | Z44: 44 | AA44: =IF(ISERROR('T203'!$L44),"",IF('T203'!$L44="","",'T203'!$L44)) -> 32-36 | AB44: 1 | AE44: Recreational Trail | AN44: 0 | AO44: FSSN | AP44: CST | AQ44: 0 | AY44: 30000000 | AZ44: 58 | BD44: 1 | BF44: Hamilton | BO44: HMA (10M ESAL), Surface, 1/2, FRICL-4 | BP44: 30000000 | BR44: HMA (10M ESAL), Surface, 3/4, FRICL-3 | BT44: 2013-06-18
J45: =RAM!K44 -> 4.22 | P45: =IF(Input!T26=1,"Bid Item Plan Quantity (tons) :",CONCATENATE("Estimated Plan Quantity (",IF(Tank!$AB$4=1,"SY)","SM)"))) -> Bid Item Plan Quantity (tons) : | Q45: =OFFSET(Tank!D36,Tank!AB1,0) -> 310.3 | R45: 30000000 | S45: L-5 | X45: =IF(ISERROR('T203'!$B45),"",IF('T203'!$B45="","",'T203'!$B45)) -> A09504 | Y45: =IF(ISERROR('T203'!$K45),"",IF('T203'!$K45="","",'T203'!$K45)) -> A07004 | Z45: 45 | AA45: =IF(ISERROR('T203'!$L45),"",IF('T203'!$L45="","",'T203'!$L45)) -> 5-24 | AB45: 1 | AE45: Rest Area | AN45: 0 | AO45: L | AP45: C-STEP | AQ45: 0 | AY45: 30000000 | AZ45: 59 | BD45: 2 | BF45: Hancock | BO45: HMA (10M ESAL), Surface, 3/4, FRICL-2 | BP45: 30000000 | BR45: HMA (10M ESAL), Surface, 3/4, FRICL-4 | BT45: 2013-07-16
A46: Description : | B46: 3/4 QTZ | C46: 1/2 L/S | D46: QTZ Man Sand | E46: 2A Gravel | J46: =RAM!C5 -> RAP | P46: =IF(Input!T26=1,"Contract Mix Price ($/ton) :","Contract Mix Price ($/sy) :") -> Contract Mix Price ($/ton) : | Q46: =OFFSET(Tank!F36,Tank!AB1,0) -> 41.5 | R46: 30000000 | S46: L-5 | X46: =IF(ISERROR('T203'!$B46),"",IF('T203'!$B46="","",'T203'!$B46)) -> A09508 | Y46: =IF(ISERROR('T203'!$K46),"",IF('T203'!$K46="","",'T203'!$K46)) -> A07008 | Z46: 46 | AA46: =IF(ISERROR('T203'!$L46),"",IF('T203'!$L46="","",'T203'!$L46)) -> 5 | AB46: 1 | AE46: Strengthening | AN46: 0 | AO46: LFM | AP46: CS-TSF | AQ46: 0 | AY46: 30000000 | AZ46: 60 | BD46: 1 | BF46: Hardin | BO46: HMA (10M ESAL), Surface, 3/4, FRICL-3 | BP46: 30000000 | BR46: HMA (30M ESAL), Base, 1/2 | BT46: 2013-08-20
A47: Source (Anumber) : | B47: ASD010 | C47: A78002 | D47: ASD010 | E47: ANE514 | J47: =RAM!H5 -> Fremont Co. | P47: Plan Thickness | Q47: =OFFSET(Tank!E36,Tank!AB1,0) -> 0 | R47: 30000000 | S47: L-5 | X47: =IF(ISERROR('T203'!$B47),"",IF('T203'!$B47="","",'T203'!$B47)) -> A09510 | Y47: =IF(ISERROR('T203'!$K47),"",IF('T203'!$K47="","",'T203'!$K47)) -> A07008 | Z47: 47 | AA47: =IF(ISERROR('T203'!$L47),"",IF('T203'!$L47="","",'T203'!$L47)) -> 1-3 | AB47: 1 | AE47: Temporary Cross-over | AN47: 0 | AO47: L-TSF | AP47: CS-TS-STU-U | AQ47: 0 | AY47: 30000000 | AZ47: 61 | BD47: 4 | BF47: Harrison | BO47: HMA (10M ESAL), Surface, 3/4, FRICL-4 | BP47: 30000000 | BR47: HMA (30M ESAL), Base, 3/4 | BT47: 2013-09-17
A48: Source Location : | B48: =PROPER(IF(ISERROR(CONCATENATE(VLOOKUP(B47,'T203'!$B$2:$D$969,2,FALSE),"/",VLOOKUP(B47,'T203'!$B$2:$D$969,3,FALSE))),"",CONCATENATE(VLOOKUP(B47,'T203'!$B$2:$D$969,2,FALSE),"/",VLOOKUP(B47,'T203'!$B$2:$D$969,3,FALSE)))) -> Dell Rapids W. Minnehaha Co/Lg Everist Inc | C48: =PROPER(IF(ISERROR(CONCATENATE(VLOOKUP(C47,'T203'!$B$2:$D$969,2,FALSE),"/",VLOOKUP(C47,'T203'!$B$2:$D$969,3,FALSE))),"",CONCATENATE(VLOOKUP(C47,'T203'!$B$2:$D$969,2,FALSE),"/",VLOOKUP(C47,'T203'!$B$2:$D$969,3,FALSE)))) -> Crescent/Schildberg Const Co Inc | D48: =PROPER(IF(ISERROR(CONCATENATE(VLOOKUP(D47,'T203'!$B$2:$D$969,2,FALSE),"/",VLOOKUP(D47,'T203'!$B$2:$D$969,3,FALSE))),"",CONCATENATE(VLOOKUP(D47,'T203'!$B$2:$D$969,2,FALSE),"/",VLOOKUP(D47,'T203'!$B$2:$D$969,3,FALSE)))) -> Dell Rapids W. Minnehaha Co/Lg Everist Inc | E48: =PROPER(IF(ISERROR(CONCATENATE(VLOOKUP(E47,'T203'!$B$2:$D$969,2,FALSE),"/",VLOOKUP(E47,'T203'!$B$2:$D$969,3,FALSE))),"",CONCATENATE(VLOOKUP(E47,'T203'!$B$2:$D$969,2,FALSE),"/",VLOOKUP(E47,'T203'!$B$2:$D$969,3,FALSE)))) -> Oreapolis #8, Cass Co/Lyman-Richey S&G | F48: =PROPER(IF(ISERROR(CONCATENATE(VLOOKUP(F47,'T203'!$B$2:$D$969,2,FALSE),"/",VLOOKUP(F47,'T203'!$B$2:$D$969,3,FALSE))),"",CONCATENATE(VLOOKUP(F47,'T203'!$B$2:$D$969,2,FALSE),"/",VLOOKUP(F47,'T203'!$B$2:$D$969,3,FALSE)))) ->  | G48: =PROPER(IF(ISERROR(CONCATENATE(VLOOKUP(G47,'T203'!$B$2:$D$969,2,FALSE),"/",VLOOKUP(G47,'T203'!$B$2:$D$969,3,FALSE))),"",CONCATENATE(VLOOKUP(G47,'T203'!$B$2:$D$969,2,FALSE),"/",VLOOKUP(G47,'T203'!$B$2:$D$969,3,FALSE)))) ->  | H48: =PROPER(IF(ISERROR(CONCATENATE(VLOOKUP(H47,'T203'!$B$2:$D$969,2,FALSE),"/",VLOOKUP(H47,'T203'!$B$2:$D$969,3,FALSE))),"",CONCATENATE(VLOOKUP(H47,'T203'!$B$2:$D$969,2,FALSE),"/",VLOOKUP(H47,'T203'!$B$2:$D$969,3,FALSE)))) ->  | I48: =PROPER(IF(ISERROR(CONCATENATE(VLOOKUP(I47,'T203'!$B$2:$D$969,2,FALSE),"/",VLOOKUP(I47,'T203'!$B$2:$D$969,3,FALSE))),"",CONCATENATE(VLOOKUP(I47,'T203'!$B$2:$D$969,2,FALSE),"/",VLOOKUP(I47,'T203'!$B$2:$D$969,3,FALSE)))) ->  | J48: =RAM!J5 -> 15% ABC1-50 RAP (4.22 % AC) | P48: Mix Designation Placement | Q48: =IF(ISERROR(SEARCH("Surface",K31))=FALSE,"Surface",IF(ISERROR(SEARCH("Intermediate",K31))=FALSE,"Intermediate",IF(ISERROR(SEARCH("Base",K31))=FALSE,"Base",""))) -> Surface | R48: 30000000 | S48: L-2 | X48: =IF(ISERROR('T203'!$B48),"",IF('T203'!$B48="","",'T203'!$B48)) -> A09512 | Y48: =IF(ISERROR('T203'!$K48),"",IF('T203'!$K48="","",'T203'!$K48)) -> A07008 | Z48: 48 | AA48: =IF(ISERROR('T203'!$L48),"",IF('T203'!$L48="","",'T203'!$L48)) -> 4A-4B | AB48: 1 | AE48: Temporary Pavement | AN48: 0 | AO48: MAS | AP48: DC | AQ48: 0 | AY48: 30000000 | AZ48: 62 | BD48: 5 | BF48: Henry | BO48: HMA (30M ESAL), Base, 1/2 | BP48: 30000000 | BR48: HMA (30M ESAL), Base, 1 | BT48: 2013-10-15
A49: Bed : | C49: 25B-25C | P49: Compaction Type | Q49: =Tank!AB5 -> 1 | R49: 30000000 | S49: L-3 | X49: =IF(ISERROR('T203'!$B49),"",IF('T203'!$B49="","",'T203'!$B49)) -> A10002 | Y49: =IF(ISERROR('T203'!$K49),"",IF('T203'!$K49="","",'T203'!$K49)) -> A07018 | Z49: 49 | AA49: =IF(ISERROR('T203'!$L49),"",IF('T203'!$L49="","",'T203'!$L49)) -> 1B-5 | AB49: 1 | AE49: Turning Lane | AN49: 0 | AO49: MB | AP49: DHS | AQ49: 0 | AY49: 30000000 | AZ49: 63 | BD49: 2 | BF49: Howard | BO49: HMA (30M ESAL), Base, 3/4 | BP49: 30000000 | BR49: HMA (30M ESAL), INT, 1/2 | BT49: 2013-11-19
A50: Friction Type : | B50: =IF(AND(AE3>0,B49="",AR3=""),"",IF(AR3=3,AR3+AP3,AR3)) -> 2 | C50: =IF(AND(AE5>0,C49="",AR5=""),"",IF(AR5=3,AR5+AP5,AR5)) -> 4 | D50: =IF(AND(AE7>0,D49="",AR7=""),"",IF(AR7=3,AR7+AP7,AR7)) -> 2 | E50: =IF(AND(AE9>0,E49="",AR9=""),"",IF(AR9=3,AR9+AP9,AR9)) -> 4 | F50: =IF(AND(AE11>0,F49="",AR11=""),"",IF(AR11=3,AR11+AP11,AR11)) ->  | G50: =IF(AND(AE13>0,G49="",AR13=""),"",IF(AR13=3,AR13+AP13,AR13)) ->  | H50: =IF(AND(AE15>0,H49="",AR15=""),"",IF(AR15=3,AR15+AP15,AR15)) ->  | I50: =IF(AND(AE17>0,I49="",AR17=""),"",IF(AR17=3,AR17+AP17,AR17)) ->  | J50: =RAM!F5 -> 2 | P50: Valid Mix Type | Q50: =IF(ISERROR(MATCH(K31,BO6:BO61,0)),1,0) -> 0 | R50: 30000000 | S50: L-2 | X50: =IF(ISERROR('T203'!$B50),"",IF('T203'!$B50="","",'T203'!$B50)) -> A10004 | Y50: =IF(ISERROR('T203'!$K50),"",IF('T203'!$K50="","",'T203'!$K50)) -> A07018 | Z50: 50 | AA50: =IF(ISERROR('T203'!$L50),"",IF('T203'!$L50="","",'T203'!$L50)) -> 6-10 | AB50: 1 | AE50: Wedge | AN50: 0 | AO50: NG | AP50: EDP | AQ50: 0 | AY50: 30000000 | AZ50: 64 | BD50: 2 | BF50: Humboldt | BO50: HMA (30M ESAL), Base, 1 | BP50: 30000000 | BR50: HMA (30M ESAL), INT, 3/4 | BT50: 2013-12-17
A51: Crushed : | B51: Yes | C51: Yes | D51: Yes | E51: No | F51: No | G51: No | H51: No | J51: =IF(C31="","",IF(SUM(J58:K58)=0,0,IF(AND(RAM!K43>0,RAM!K52=""),"Missing",RAM!K52))) -> 85 | L51: =ROUND(E86,1) -> 87.7 | P51: Valid Active Bid Item | Q51: =IF(ISERROR(MATCH(Report!T4,Tank!AK2:AK6,0)),1,0) -> 0 | R51: 30000000 | S51: L-3 | X51: =IF(ISERROR('T203'!$B51),"",IF('T203'!$B51="","",'T203'!$B51)) -> A10008 | Y51: =IF(ISERROR('T203'!$K51),"",IF('T203'!$K51="","",'T203'!$K51)) -> A07018 | Z51: 51 | AA51: =IF(ISERROR('T203'!$L51),"",IF('T203'!$L51="","",'T203'!$L51)) -> 1B-10 | AB51: 1 | AE51: Widening (Travel lane) | AN51: 0 | AO51: RC | AP51: ER | AQ51: 0 | AY51: 30000000 | AZ51: 65 | BD51: 3 | BF51: Ida | BO51: HMA (30M ESAL), INT, 1/2 | BP51: 30000000 | BR51: HMA (30M ESAL), Surface, 1/2, FRICL-2 | BT51: 2014-01-22
A52: Gsb : | B52: 2.641 | C52: 2.587 | D52: 2.639 | E52: 2.61 | J52: =IF(AND(SUM(J58:K58)>0,RAM!K45=""),"Missing",RAM!K45) -> 2.574 | L52: =IF(SUM(B52:K52)=0,"",G86) -> 2.604511274 | P52: Can Cores be waived? | Q52: =IF(V26=2,0,IF(AND(Tank!AB9=0,V27="1a"),1,IF(AND(T42=1,OR(Q43=AG35,Q43=AG36,Q43=AG37,AND(T26=1,Summary!G25<=Settings!C57,Summary!G$25>0),AND(T26=2,Summary!O38<=Settings!B57,Summary!G$25>0))),1,0))) -> 0 | R52: 100000000 | S52: L-5 | X52: =IF(ISERROR('T203'!$B52),"",IF('T203'!$B52="","",'T203'!$B52)) -> A10010 | Y52: =IF(ISERROR('T203'!$K52),"",IF('T203'!$K52="","",'T203'!$K52)) -> A07020 | Z52: 52 | AA52: =IF(ISERROR('T203'!$L52),"",IF('T203'!$L52="","",'T203'!$L52)) -> 1B | AB52: 1 | AE52: Widening (Non-travel lane) | AN52: 0 | AO52: RCX | AP52: ESFM | AQ52: 0 | AY52: 100000000 | AZ52: 67 | BD52: 6 | BF52: Iowa | BO52: HMA (30M ESAL), INT, 3/4 | BP52: 30000000 | BR52: HMA (30M ESAL), Surface, 1/2, FRICL-3 | BT52: 2014-02-18
A53: Absorption (%) : | B53: 0.6 | C53: 1.89 | D53: 0.8 | E53: 0.98 | J53: =IF(AND(SUM(J58:K58)>0,RAM!K46=""),"Missing",RAM!K46) -> 1.38 | L53: =U86 -> 1.335122874 | P53: Valid BRPN/Route | Q53: =IF(AND(Q9<>3,Tank!AB10>0,OR(ISERROR(MATCH(D14,AZ1:AZ142,0)),ISNUMBER(E14)=FALSE,ISNUMBER(F14)=FALSE,E14="",F14="",G14="",H14="")),1,0) -> 0 | R53: 100000000 | S53: L-5 | X53: =IF(ISERROR('T203'!$B53),"",IF('T203'!$B53="","",'T203'!$B53)) -> A10012 | Y53: =IF(ISERROR('T203'!$K53),"",IF('T203'!$K53="","",'T203'!$K53)) -> A07020 | Z53: 53 | AA53: =IF(ISERROR('T203'!$L53),"",IF('T203'!$L53="","",'T203'!$L53)) -> 1A-1B | AB53: 1 | AE53: Other Non-Travel Lane | AN53: 0 | AO53: RCX | AP53: ESFTA | AQ53: 0 | AY53: 100000000 | AZ53: 69 | BD53: 6 | BF53: Jackson | BO53: HMA (30M ESAL), Surface, 1/2, FRICL-2 | BP53: 100000000 | BR53: HMA (30M ESAL), Surface, 3/4, FRICL-2 | BT53: 2014-03-18
A54: FAA : | B54: 46.5 | C54: 45 | D54: 47 | E54: 38 | J54: =IF(AND(SUM(J58:K58)>0,RAM!K47=""),"Missing",RAM!K47) -> 41.7 | L54: =U98 -> 43.98355068 | P54: Valid BRPN/Route 2 | Q54: =IF(Q11=FALSE,0,IF(AND(Q9<>3,Tank!AB10>0,OR(ISERROR(MATCH(I14,AZ1:AZ142,0)),ISNUMBER(J14)=FALSE,ISNUMBER(L14)=FALSE,J14="",L14="",M14="",N14="")),1,0)) -> 0 | R54: 100000000 | S54: L-2 | X54: =IF(ISERROR('T203'!$B54),"",IF('T203'!$B54="","",'T203'!$B54)) -> A10014 | Y54: =IF(ISERROR('T203'!$K54),"",IF('T203'!$K54="","",'T203'!$K54)) -> A07504 | Z54: 54 | AA54: =IF(ISERROR('T203'!$L54),"",IF('T203'!$L54="","",'T203'!$L54)) ->  | AB54: 1 | AN54: 0 | AO54: RFA | AP54: ESIm | AQ54: 0 | AY54: 100000000 | AZ54: 70 | BD54: 1 | BF54: Jasper | BO54: HMA (30M ESAL), Surface, 1/2, FRICL-3 | BP54: 100000000 | BR54: HMA (30M ESAL), Surface, 3/4, FRICL-3 | BT54: 2014-04-15
A55: =IF(Tank!$AB$4=2,"LUW (kg/m3) :","LUW (lb/ft3) :") -> LUW (lb/ft3) : | P55: Valid Active PN | Q55: =IF(ISERROR(MATCH(Report!C2,Report!$AJ$54:$AJ$58,0)),1,0) -> 0 | X55: =IF(ISERROR('T203'!$B55),"",IF('T203'!$B55="","",'T203'!$B55)) -> A10016 | Y55: =IF(ISERROR('T203'!$K55),"",IF('T203'!$K55="","",'T203'!$K55)) -> A07506 | Z55: 55 | AA55: =IF(ISERROR('T203'!$L55),"",IF('T203'!$L55="","",'T203'!$L55)) ->  | AB55: 1 | AN55: 0 | AO55: RFM | AP55: ESIMX | AQ55: 0 | AZ55: 71 | BD55: 5 | BF55: Jefferson | BO55: HMA (30M ESAL), Surface, 3/4, FRICL-2 | BP55: 100000000 | BR55: HMA (100M ESAL), Base, 3/4 | BT55: 2014-05-20
A56: =IF(Tank!$AB$4=2,"RUW (kg/m3) :","RUW (lb/ft3) :") -> RUW (lb/ft3) : | X56: =IF(ISERROR('T203'!$B56),"",IF('T203'!$B56="","",'T203'!$B56)) -> A10022 | Y56: =IF(ISERROR('T203'!$K56),"",IF('T203'!$K56="","",'T203'!$K56)) -> A07508 | Z56: 56 | AA56: =IF(ISERROR('T203'!$L56),"",IF('T203'!$L56="","",'T203'!$L56)) ->  | AB56: 1 | AN56: 0 | AO56: RFMX | AP56: ESL | AQ56: 0 | AZ56: 74 | BD56: 6 | BF56: Johnson | BO56: HMA (30M ESAL), Surface, 3/4, FRICL-3 | BR56: HMA (100M ESAL), INT, 1/2 | BT56: 2014-06-17
B57: =AH3 -> A | C57: =AH5 -> A | D57: =AH7 -> A | E57: =AH9 -> A | F57: =AH11 ->  | G57: =AH13 ->  | H57: =AH15 ->  | I57: =AH17 ->  | J57: RAP | K57: RAS | L57: =IF(AND(K58>0,SUM(RAM!I44)=0),"Missing RAS binder content on RAM sheet","") ->  | X57: =IF(ISERROR('T203'!$B57),"",IF('T203'!$B57="","",'T203'!$B57)) -> A10024 | Y57: =IF(ISERROR('T203'!$K57),"",IF('T203'!$K57="","",'T203'!$K57)) -> A07512 | Z57: 57 | AA57: =IF(ISERROR('T203'!$L57),"",IF('T203'!$L57="","",'T203'!$L57)) ->  | AB57: 1 | AN57: 0 | AO57: RM | AP57: ESP | AQ57: 0 | AZ57: 75 | BD57: 6 | BF57: Jones | BO57: HMA (100M ESAL), Base, 3/4 | BR57: HMA (100M ESAL), Surface, 1/2, FRICL-2 | BT57: 2014-07-15
A58: Percent in mix : | B58: 14 | C58: 42 | D58: 19 | E58: 10 | J58: 15 | K58: 0 | L58: =IF(COUNTIF(B47:I47,X1)>1,NA(),SUM(B58:K58)) -> 100 | M58: =IF(COUNTIF(B47:I47,X1)>1,"Only 1 Bag House Allowed","") ->  | X58: =IF(ISERROR('T203'!$B58),"",IF('T203'!$B58="","",'T203'!$B58)) -> A10026 | Y58: =IF(ISERROR('T203'!$K58),"",IF('T203'!$K58="","",'T203'!$K58)) -> A07518 | Z58: 58 | AA58: =IF(ISERROR('T203'!$L58),"",IF('T203'!$L58="","",'T203'!$L58)) ->  | AB58: 1 | AN58: 0 | AO58: RMX | AP58: ESR | AQ58: 0 | AZ58: 76 | BD58: 5 | BF58: Keokuk | BO58: HMA (100M ESAL), INT, 1/2 | BR58: HMA Paved Shldr, 6 in | BT58: 2014-08-19
A59: =IF(AND(L58<>100,SUM(J58:K58)=0),"",IF(AND(J58=0,SUM(RAM!D31:H31)>0),"Please enter a RAP % or set it to 0% of the RAM blend on the RAM sheet",IF(AND(SUM(RAM!I31)>0,Input!K58=0),"Please enter a RAS % or set it to 0% of the RAM blend on the RAM sheet",IF(AND(SUM(RAM!K43)<>100,SUM(RAM!K43)<>0),"*The recycled material blend does not sum to 100 on the RAM sheet","")))) ->  | X59: =IF(ISERROR('T203'!$B59),"",IF('T203'!$B59="","",'T203'!$B59)) -> A10028 | Y59: =IF(ISERROR('T203'!$K59),"",IF('T203'!$K59="","",'T203'!$K59)) -> A08504 | Z59: 59 | AA59: =IF(ISERROR('T203'!$L59),"",IF('T203'!$L59="","",'T203'!$L59)) ->  | AB59: 1 | AN59: 0 | AO59: RP | AP59: FM | AQ59: 0 | AZ59: 77 | BD59: 2 | BF59: Kossuth | BO59: HMA (100M ESAL), Surface, 1/2, FRICL-2 | BR59: HMA Paved Shldr, 8 in | BT59: 2014-09-16
A60: Sieve | B60: =IF(C31="","Please enter a mix design number above","") ->  | L60: Combined Target | S60: SA Factor | X60: =IF(ISERROR('T203'!$B60),"",IF('T203'!$B60="","",'T203'!$B60)) -> A10030 | Y60: =IF(ISERROR('T203'!$K60),"",IF('T203'!$K60="","",'T203'!$K60)) -> A08526 | Z60: 60 | AA60: =IF(ISERROR('T203'!$L60),"",IF('T203'!$L60="","",'T203'!$L60)) ->  | AB60: 1 | AN60: 0 | AO60: RP-M | AP60: FM-TSF | AQ60: 0 | AZ60: 78 | BD60: 5 | BF60: Lee | BO60: 3/8 HMA Special | BR60: HMA Paved Shldr, 9 in | BT60: 2014-10-21
A61: 1 1/2 in. | B61: 100 | C61: 100 | D61: 100 | E61: 100 | J61: =IF(AND(SUM(J$58:K$58)>0,OFFSET(RAM!$D$61,0,ROW(Input!B61)-61))="","Missing",OFFSET(RAM!$D$61,0,ROW(Input!B61)-61)) -> 100 | L61: 100 | N61: =IF(C$31="","",ROUND((SUM(B61)*SUM(D$77)+SUM(C61)*SUM(D$78)+SUM(D61)*SUM(D$79)+SUM(E61)*SUM(D$80)+SUM(F61)*SUM(D$81)+SUM(G61)*SUM(D$82)+SUM(D$83)*SUM(H61)+SUM(I61)*SUM(D$84)+SUM(J61)*SUM(D$85))/100,0)) -> 100 | O61: =(SUM(B61)*D$77+SUM(C61)*D$78+SUM(D61)*D$79+SUM(E61)*D$80+SUM(F61)*D$81+SUM(G61)*D$82+D$83*SUM(H61)+SUM(I61)*D$84+SUM(J61)*D$85)/100 -> 100 | R61: 1 | X61: =IF(ISERROR('T203'!$B61),"",IF('T203'!$B61="","",'T203'!$B61)) -> A10032 | Y61: =IF(ISERROR('T203'!$K61),"",IF('T203'!$K61="","",'T203'!$K61)) -> A08528 | Z61: 61 | AA61: =IF(ISERROR('T203'!$L61),"",IF('T203'!$L61="","",'T203'!$L61)) ->  | AB61: 1 | AN61: 0 | AO61: RPX | AP61: FN | AQ61: 0 | AZ61: 80 | BD61: 6 | BF61: Linn | BO61: 3/8 HMA Thin Lift | BR61: HMA Paved Shldr, 150 mm | BT61: 2014-11-18
A62: 1 in. | B62: 100 | C62: 100 | D62: 100 | E62: 100 | J62: =IF(AND(SUM(J$58:K$58)>0,OFFSET(RAM!$D$61,0,ROW(Input!B62)-61))="","Missing",OFFSET(RAM!$D$61,0,ROW(Input!B62)-61)) -> 100 | L62: 100 | N62: 100 | O62: =(SUM(B62)*D$77+SUM(C62)*D$78+SUM(D62)*D$79+SUM(E62)*D$80+SUM(F62)*D$81+SUM(G62)*D$82+D$83*SUM(H62)+SUM(I62)*D$84+SUM(J62)*D$85)/100 -> 100 | R62: 2 | V62: IM 510 VMA Requirement | X62: =IF(ISERROR('T203'!$B62),"",IF('T203'!$B62="","",'T203'!$B62)) -> A10504 | Y62: =IF(ISERROR('T203'!$K62),"",IF('T203'!$K62="","",'T203'!$K62)) -> A09002 | Z62: 62 | AA62: =IF(ISERROR('T203'!$L62),"",IF('T203'!$L62="","",'T203'!$L62)) -> 2-8 | AB62: 1 | AN62: 0 | AO62: RT | AP62: FRFMX | AQ62: =IF(ISERROR(SEARCH(AP62,Q$41)),0,SEARCH(AP62,Q$41)) -> 0 | AZ62: 81 | BD62: 5 | BF62: Louisa | BR62: HMA (Partial Depth Patch, Ton) | BT62: 2014-12-16
A63: 3/4 in. | B63: 100 | C63: 100 | D63: 100 | E63: 100 | J63: =IF(AND(SUM(J$58:K$58)>0,OFFSET(RAM!$D$61,0,ROW(Input!B63)-61))="","Missing",OFFSET(RAM!$D$61,0,ROW(Input!B63)-61)) -> 100 | L63: 100 | N63: 100 | O63: 100 | R63: 3 | V63: Size | X63: =IF(ISERROR('T203'!$B63),"",IF('T203'!$B63="","",'T203'!$B63)) -> A10506 | Y63: =IF(ISERROR('T203'!$K63),"",IF('T203'!$K63="","",'T203'!$K63)) -> A09006 | Z63: 63 | AA63: =IF(ISERROR('T203'!$L63),"",IF('T203'!$L63="","",'T203'!$L63)) -> 1-5 | AB63: 1 | AN63: 0 | AO63: SBRC | AP63: FSSN | AQ63: 0 | AZ63: 83 | BD63: 5 | BF63: Lucas | BR63: HMA (Partial Depth Patch, SY) | BT63: 2015-01-21
A64: 1/2 in. | B64: 57 | C64: 99 | D64: 100 | E64: 96 | J64: =IF(AND(SUM(J$58:K$58)>0,OFFSET(RAM!$D$61,0,ROW(Input!B64)-60))="","Missing",OFFSET(RAM!$D$61,0,ROW(Input!B64)-60)) -> 95 | L64: 92 | N64: 92 | O64: 92.39350086 | R64: 4 | V64: 1 | W64: 12 | X64: =IF(ISERROR('T203'!$B64),"",IF('T203'!$B64="","",'T203'!$B64)) -> A10510 | Y64: =IF(ISERROR('T203'!$K64),"",IF('T203'!$K64="","",'T203'!$K64)) -> A09006 | Z64: 64 | AA64: =IF(ISERROR('T203'!$L64),"",IF('T203'!$L64="","",'T203'!$L64)) -> 1-3 | AB64: 1 | AN64: 0 | AO64: SBRFM | AP64: HCBP | AQ64: 0 | AZ64: 85 | BD64: 3 | BF64: Lyon | BR64: HMA (Composite Section) | BT64: 2015-02-17
A65: 3/8 in. | B65: 25 | C65: 84 | D65: 100 | E65: 94 | J65: =IF(AND(SUM(J$58:K$58)>0,OFFSET(RAM!$D$61,0,ROW(Input!B65)-60))="","Missing",OFFSET(RAM!$D$61,0,ROW(Input!B65)-60)) -> 88 | L65: 80 | N65: 80 | O65: 80.33145813 | P65: 1 | Q65: 1 | R65: 5 | V65: 3/4 | W65: 13 | X65: =IF(ISERROR('T203'!$B65),"",IF('T203'!$B65="","",'T203'!$B65)) -> A10514 | Y65: =IF(ISERROR('T203'!$K65),"",IF('T203'!$K65="","",'T203'!$K65)) -> A09504 | Z65: 65 | AA65: =IF(ISERROR('T203'!$L65),"",IF('T203'!$L65="","",'T203'!$L65)) ->  | AB65: 1 | AN65: 0 | AO65: SBRM | AP65: HRRR | AQ65: 0 | AZ65: 86 | BD65: 4 | BF65: Madison | BR65: HMA (Surface Patches) | BT65: 2015-03-17
A66: #4 | B66: 1.5 | C66: 40 | D66: 99 | E66: 65 | J66: =IF(AND(SUM(J$58:K$58)>0,OFFSET(RAM!$D$61,0,ROW(Input!B66)-60))="","Missing",OFFSET(RAM!$D$61,0,ROW(Input!B66)-60)) -> 68 | L66: 52 | N66: 52 | O66: =(SUM(B66)*D$77+SUM(C66)*D$78+SUM(D66)*D$79+SUM(E66)*D$80+SUM(F66)*D$81+SUM(G66)*D$82+D$83*SUM(H66)+SUM(I66)*D$84+SUM(J66)*D$85)/100 -> 52.42138738 | P66: 2 | Q66: 2 | R66: 6 | S66: =ROUND('Film VMA'!G6*Input!L66,2) -> 0.21 | V66: 1/2 | W66: 14 | X66: =IF(ISERROR('T203'!$B66),"",IF('T203'!$B66="","",'T203'!$B66)) -> A10516 | Y66: =IF(ISERROR('T203'!$K66),"",IF('T203'!$K66="","",'T203'!$K66)) -> A09508 | Z66: 66 | AA66: =IF(ISERROR('T203'!$L66),"",IF('T203'!$L66="","",'T203'!$L66)) ->  | AB66: =IF(AND(AA66="",Y66<>Y65),0,1) -> 1 | AN66: 0 | AO66: SCG | AP66: HSIP | AQ66: 0 | AZ66: 92 | BD66: 5 | BF66: Mahaska | BR66: HMA (Base Widening) | BT66: 2015-04-21
A67: #8 | B67: 1.4 | C67: 16 | D67: 75 | E67: 18 | J67: =IF(AND(SUM(J$58:K$58)>0,OFFSET(RAM!$D$61,0,ROW(Input!B67)-60))="","Missing",OFFSET(RAM!$D$61,0,ROW(Input!B67)-60)) -> 52 | L67: 31 | N67: =IF(C$31="","",IF(O67<10,IF((O67-ROUND(O67,0))>0.05,ROUND(O67,1),IF((O67-ROUND(O67,0))<-0.05,ROUND(O67,1),VLOOKUP(ROUND(O67,0),$P$65:$Q$72,2))),ROUND(O67,0))) -> 31 | O67: 30.63073254 | P67: 3 | Q67: 3 | R67: 7 | S67: =ROUND(L67*'Film VMA'!H6,2) -> 0.25 | V67: 3/8 | W67: 15 | X67: =IF(ISERROR('T203'!$B67),"",IF('T203'!$B67="","",'T203'!$B67)) -> A10518 | Y67: =IF(ISERROR('T203'!$K67),"",IF('T203'!$K67="","",'T203'!$K67)) -> A09510 | Z67: 67 | AA67: =IF(ISERROR('T203'!$L67),"",IF('T203'!$L67="","",'T203'!$L67)) ->  | AB67: 1 | AN67: 0 | AO67: SFB | AP67: HSIPX | AQ67: 0 | AZ67: 93 | BD67: 5 | BF67: Marion | BR67: HMA (Driveway) | BT67: 2015-05-19
A68: #16 | B68: 1.3 | C68: 7.6 | D68: 47 | E68: 5 | J68: =IF(AND(SUM(J$58:K$58)>0,OFFSET(RAM!$D$61,0,ROW(Input!B68)-60))="","Missing",OFFSET(RAM!$D$61,0,ROW(Input!B68)-60)) -> 40 | L68: 19 | N68: 19 | O68: 18.66897461 | P68: 4 | Q68: 4 | R68: 8 | S68: =ROUND(L68*'Film VMA'!I6,2) -> 0.31 | V68: Min VMA | W68: =SUMIFS(W64:W67,V64:V67,C33)-IF(Q1>=30000000,0.5,0) -> 13.5 | X68: =IF(ISERROR('T203'!$B68),"",IF('T203'!$B68="","",'T203'!$B68)) -> A10520 | Y68: =IF(ISERROR('T203'!$K68),"",IF('T203'!$K68="","",'T203'!$K68)) -> A09512 | Z68: 68 | AA68: =IF(ISERROR('T203'!$L68),"",IF('T203'!$L68="","",'T203'!$L68)) ->  | AB68: 1 | AN68: 0 | AO68: SMF | AP68: IBRC | AQ68: 0 | AZ68: 96 | BD68: 1 | BF68: Marshall | BR68: HMA (Recreational Trail) | BT68: 2015-06-16
A69: #30 | B69: 1.2 | C69: 5.6 | D69: 28 | E69: 2 | J69: =IF(AND(SUM(J$58:K$58)>0,OFFSET(RAM!$D$61,0,ROW(Input!B69)-60))="","Missing",OFFSET(RAM!$D$61,0,ROW(Input!B69)-60)) -> 30 | L69: 12 | N69: 12 | O69: 12.42877414 | P69: 5 | Q69: 5 | R69: 9 | S69: =ROUND(L69*'Film VMA'!J6,2) -> 0.34 | V69: VMA Waived? | W69: =IF(C34<W68,"Yes","No") -> No | X69: =IF(ISERROR('T203'!$B69),"",IF('T203'!$B69="","",'T203'!$B69)) -> A11512 | Y69: =IF(ISERROR('T203'!$K69),"",IF('T203'!$K69="","",'T203'!$K69)) -> A10002 | Z69: =ROW(Y69) -> 69 | AA69: =IF(ISERROR('T203'!$L69),"",IF('T203'!$L69="","",'T203'!$L69)) -> 1-6 | AB69: 1 | AN69: 0 | AO69: SN | AP69: L | AQ69: 0 | AZ69: 98 | BD69: 4 | BF69: Mills | BR69: HMA (Detour Pavement) | BT69: 2015-07-21
A70: #50 | B70: 1.1 | C70: 5.2 | D70: 12 | E70: 1.6 | J70: =IF(AND(SUM(J$58:K$58)>0,OFFSET(RAM!$D$61,0,ROW(Input!B70)-60))="","Missing",OFFSET(RAM!$D$61,0,ROW(Input!B70)-60)) -> 20 | L70: 7.7 | N70: 7.7 | O70: 7.700141898 | P70: 6 | Q70: 6 | R70: 10 | S70: =ROUND(L70*'Film VMA'!K6,2) -> 0.47 | X70: =IF(ISERROR('T203'!$B70),"",IF('T203'!$B70="","",'T203'!$B70)) -> A11514 | Y70: =IF(ISERROR('T203'!$K70),"",IF('T203'!$K70="","",'T203'!$K70)) -> A10002 | Z70: 70 | AA70: =IF(ISERROR('T203'!$L70),"",IF('T203'!$L70="","",'T203'!$L70)) -> 1-7 | AB70: 1 | AN70: 0 | AO70: SN-TSF | AP70: LFM | AQ70: 0 | AZ70: 100 | BD70: 2 | BF70: Mitchell | BR70: HMA (Temporary Pavement) | BT70: 2015-08-18
A71: #100 | B71: 1 | C71: 5.1 | D71: 2.7 | E71: 1 | J71: =IF(AND(SUM(J$58:K$58)>0,OFFSET(RAM!$D$61,0,ROW(Input!B71)-60))="","Missing",OFFSET(RAM!$D$61,0,ROW(Input!B71)-60)) -> 14 | L71: 4.9 | N71: 4.9 | O71: 4.937635231 | P71: 7 | Q71: 7 | R71: 11 | S71: =ROUND(L71*'Film VMA'!L6,2) -> 0.6 | X71: =IF(ISERROR('T203'!$B71),"",IF('T203'!$B71="","",'T203'!$B71)) -> A11516 | Y71: =IF(ISERROR('T203'!$K71),"",IF('T203'!$K71="","",'T203'!$K71)) -> A10004 | Z71: 71 | AA71: =IF(ISERROR('T203'!$L71),"",IF('T203'!$L71="","",'T203'!$L71)) -> 2-5 | AB71: 1 | AN71: 0 | AO71: SP | AP71: L-TSF | AQ71: 0 | AZ71: 107 | BD71: 3 | BF71: Monona | BT71: 2015-09-15
A72: #200 | B72: 0.9 | C72: 5 | D72: 0.8 | E72: 0.8 | J72: =IF(AND(SUM(J$58:K$58)>0,OFFSET(RAM!$D$61,0,ROW(Input!B72)-60))="","Missing",OFFSET(RAM!$D$61,0,ROW(Input!B72)-60)) -> 11.6 | L72: 4.2 | N72: 4.2 | O72: 4.150846861 | P72: 8 | Q72: 8 | R72: 12 | S72: =ROUND(L72*'Film VMA'!M6,2) -> 1.38 | X72: =IF(ISERROR('T203'!$B72),"",IF('T203'!$B72="","",'T203'!$B72)) -> A11518 | Y72: =IF(ISERROR('T203'!$K72),"",IF('T203'!$K72="","",'T203'!$K72)) -> A10004 | Z72: 72 | AA72: =IF(ISERROR('T203'!$L72),"",IF('T203'!$L72="","",'T203'!$L72)) -> 1-7 | AB72: 1 | AN72: 0 | AO72: STA | AP72: MAS | AQ72: 0 | AZ72: 110 | BD72: 5 | BF72: Monroe | BT72: 2015-10-20
A73: "+4" | B73: =100-B66 -> 98.5 | C73: =100-C66 -> 60 | D73: =100-D66 -> 1 | E73: 35 | F73: 100 | G73: 100 | H73: 100 | I73: 100 | J73: =100-J66 -> 32 | S73: =0.41+SUM(Input!S66:S72) -> 3.97 | X73: =IF(ISERROR('T203'!$B73),"",IF('T203'!$B73="","",'T203'!$B73)) -> A12004 | Y73: =IF(ISERROR('T203'!$K73),"",IF('T203'!$K73="","",'T203'!$K73)) -> A10008 | Z73: 73 | AA73: =IF(ISERROR('T203'!$L73),"",IF('T203'!$L73="","",'T203'!$L73)) -> 4-5 | AB73: 1 | AN73: 0 | AO73: STPN | AP73: MB | AQ73: 0 | AZ73: 116 | BD73: 4 | BF73: Montgomery | BT73: 2015-11-17
A74: Adj Proportion | B74: =D77 -> 14.08918454 | C74: =D78 -> 42.26755361 | D74: =D79 -> 19.12103616 | E74: =D80 -> 10.06370324 | F74: =D81 -> 0 | G74: =D82 -> 0 | H74: =D83 -> 0 | I74: =D84 -> 0 | J74: =D85 -> 14.45852245 | X74: =IF(ISERROR('T203'!$B74),"",IF('T203'!$B74="","",'T203'!$B74)) -> A12008 | Y74: =IF(ISERROR('T203'!$K74),"",IF('T203'!$K74="","",'T203'!$K74)) -> A10008 | Z74: 74 | AA74: =IF(ISERROR('T203'!$L74),"",IF('T203'!$L74="","",'T203'!$L74)) -> 4-6 | AB74: 1 | AN74: 0 | AO74: TJ | AP74: NG | AQ74: 0 | AZ74: 117 | BD74: 5 | BF74: Muscatine | BT74: 2015-12-15
P75: Proportions | X75: =IF(ISERROR('T203'!$B75),"",IF('T203'!$B75="","",'T203'!$B75)) -> A12502 | Y75: =IF(ISERROR('T203'!$K75),"",IF('T203'!$K75="","",'T203'!$K75)) -> A10010 | Z75: 75 | AA75: =IF(ISERROR('T203'!$L75),"",IF('T203'!$L75="","",'T203'!$L75)) -> 4 | AB75: 1 | AN75: 0 | AO75: TR | AP75: NRT | AQ75: 0 | AZ75: 122 | BD75: 3 | BF75: OBrien
C76: % in mix | D76: Adjusted for RAM | E76: % Crushed | F76: %Limestone | G76: Gsb | H76: +4 Type 4 | I76: +4 Type 3 | J76: +4 Type 2 | L76: -4 Type 2 | N76: 4 or better | O76: 3 or better | P76: As Produced | Q76: As produced RAM Adjusted | R76: In Silo (Prorated for entered RAM) | S76: In Silo Adjusted for entered RAM AC content | T76: Gsb Mix Design | U76: Abs | X76: =IF(ISERROR('T203'!$B76),"",IF('T203'!$B76="","",'T203'!$B76)) -> A12508 | Y76: =IF(ISERROR('T203'!$K76),"",IF('T203'!$K76="","",'T203'!$K76)) -> A10012 | Z76: 76 | AA76: =IF(ISERROR('T203'!$L76),"",IF('T203'!$L76="","",'T203'!$L76)) ->  | AB76: 1 | AN76: 0 | AO76: TSF | AP76: RC | AQ76: 0 | AZ76: 127 | BD76: 3 | BF76: Osceola
C77: =B58 -> 14 | D77: =IF(C77="",0,C77*(D$88/C$88)) -> 14.08918454 | E77: =IF(OFFSET($A$51,0,ROW(G77)-ROW(H$76))="Yes",Q77,0) -> 13.99215039 | F77: =AO3*Q77 -> 0 | G77: =IF(ISERROR(Q77/OFFSET($A$52,0,ROW($A77)-ROW($A$76))),"",IF(SUM(Tank!$C$50:$H$50)=0,Input!D77,Q77)/OFFSET($A$52,0,ROW($A77)-ROW($A$76))) -> 5.29805013 | H77: =IF(OFFSET($A$50,0,ROW(G77)-ROW(H$76))=4,OFFSET($A$73,0,ROW(G77)-ROW(H$76))*Q77/100,0) -> 0 | I77: =IF(OFFSET($A$50,0,ROW(G77)-ROW(I$76))=3,OFFSET($A$73,0,ROW(G77)-ROW(H$76))*$Q77/100,0) -> 0 | J77: =IF(OFFSET($A$50,0,ROW(G77)-ROW(H$76))=2,OFFSET($A$73,0,ROW(G77)-ROW(H$76))*Q77/100,0) -> 13.78226814 | L77: =IF(OFFSET($A$50,0,ROW(G77)-ROW(H$76))=2,OFFSET($A$66,0,ROW(G77)-ROW(H$76))*Q77/100,0) -> 0.2098822559 | M77: =IF(D77=0,0,COUNTIF(D$77:D77,">0")) -> 1 | P77: =IF(ISERROR(IF(SUM(Tank!C$50:H$50)+SUM(Tank!$F$46)=0,Input!C77,N89)),C77,IF(SUM(Tank!C$50:H$50)+SUM(Tank!$F$46)=0,Input!C77,N89)) -> 13.89999491 | Q77: =IF(ISERROR(Summary!G$37),D77,IF(P77="",0,P77*(F$93/F$94))) -> 13.99215039 | R77: =IF(SUM(Summary!R$19)+SUM(Summary!R$20)=0,Summary!I14,Summary!I14/G$95*G$94) ->  | S77: =IF(R77="",0,R77*(G$93/G$94)) -> 0 | T77: =IF(ISERROR(D77/OFFSET($A$52,0,ROW($A77)-ROW($A$76))),0,D77/OFFSET($A$52,0,ROW($A77)-ROW($A$76))) -> 5.334791571 | U77: =IF(ISERROR(P77/100*OFFSET($A$53,0,ROW($A77)-ROW($A$76))),0,P77/100*OFFSET($A$53,0,ROW($A77)-ROW($A$76))) -> 0.08339996946 | V77: 4.654401537 | W77: 12.09213519 | X77: =IF(ISERROR('T203'!$B77),"",IF('T203'!$B77="","",'T203'!$B77)) -> A12514 | Y77: =IF(ISERROR('T203'!$K77),"",IF('T203'!$K77="","",'T203'!$K77)) -> A10014 | Z77: 77 | AA77: =IF(ISERROR('T203'!$L77),"",IF('T203'!$L77="","",'T203'!$L77)) -> 1-12 | AB77: 1 | AN77: 0 | AO77: UST | AP77: RCX | AQ77: 0 | AZ77: 128 | BD77: 4 | BF77: Page
C78: =C58 -> 42 | D78: =IF(C78="",0,C78*(D$88/C$88)) -> 42.26755361 | E78: =IF(OFFSET($A$51,0,ROW(G78)-ROW(H$76))="Yes",Q78,0) -> 41.97645118 | F78: =AO5*Q78 -> 41.97645118 | G78: =IF(ISERROR(Q78/OFFSET($A$52,0,ROW($A78)-ROW($A$76))),"",IF(SUM(Tank!$C$50:$H$50)=0,Input!D78,Q78)/OFFSET($A$52,0,ROW($A78)-ROW($A$76))) -> 16.22591851 | H78: =IF(OFFSET($A$50,0,ROW(G78)-ROW(H$76))=4,OFFSET($A$73,0,ROW(G78)-ROW(H$76))*Q78/100,0) -> 25.18587071 | I78: =IF(OFFSET($A$50,0,ROW(G78)-ROW(I$76))=3,OFFSET($A$73,0,ROW(G78)-ROW(H$76))*$Q78/100,0) -> 0 | J78: =IF(OFFSET($A$50,0,ROW(G78)-ROW(H$76))=2,OFFSET($A$73,0,ROW(G78)-ROW(H$76))*Q78/100,0) -> 0 | L78: =IF(OFFSET($A$50,0,ROW(G78)-ROW(H$76))=2,OFFSET($A$66,0,ROW(G78)-ROW(H$76))*Q78/100,0) -> 0 | M78: =IF(D78=0,0,COUNTIF(D$77:D78,">0")) -> 2 | P78: =IF(ISERROR(IF(SUM(Tank!C$50:H$50)+SUM(Tank!$F$46)=0,Input!C78,N90)),C78,IF(SUM(Tank!C$50:H$50)+SUM(Tank!$F$46)=0,Input!C78,N90)) -> 41.69998473 | Q78: =IF(ISERROR(Summary!G$37),D78,IF(P78="",0,P78*(F$93/F$94))) -> 41.97645118 | R78: =IF(SUM(Summary!R$19)+SUM(Summary!R$20)=0,Summary!I15,Summary!I15/G$95*G$94) ->  | S78: 0 | T78: 16.33844361 | U78: =IF(ISERROR(P78/100*OFFSET($A$53,0,ROW($A78)-ROW($A$76))),0,P78/100*OFFSET($A$53,0,ROW($A78)-ROW($A$76))) -> 0.7881297114 | V78: 0 | W78: 0 | X78: =IF(ISERROR('T203'!$B78),"",IF('T203'!$B78="","",'T203'!$B78)) -> A12516 | Y78: =IF(ISERROR('T203'!$K78),"",IF('T203'!$K78="","",'T203'!$K78)) -> A10016 | Z78: 78 | AA78: =IF(ISERROR('T203'!$L78),"",IF('T203'!$L78="","",'T203'!$L78)) -> 13-16 | AB78: 1 | AP78: RFA | AQ78: 0 | AZ78: 129 | BD78: 3 | BF78: Palo Alto
A79: Adjusted RAP | B79: =100*(B83*B85/100)/(C88+B83*B85/100) -> 14.45852245 | C79: =D58 -> 19 | D79: 19.12103616 | E79: 18.98934696 | F79: =AO7*Q79 -> 0 | G79: =IF(ISERROR(Q79/OFFSET($A$52,0,ROW($A79)-ROW($A$76))),"",IF(SUM(Tank!$C$50:$H$50)=0,Input!D79,Q79)/OFFSET($A$52,0,ROW($A79)-ROW($A$76))) -> 7.195660084 | H79: 0 | I79: 0 | J79: 0.1898934696 | L79: 18.79945349 | M79: =IF(D79=0,0,COUNTIF(D$77:D79,">0")) -> 3 | P79: =IF(ISERROR(IF(SUM(Tank!C$50:H$50)+SUM(Tank!$F$46)=0,Input!C79,N91)),C79,IF(SUM(Tank!C$50:H$50)+SUM(Tank!$F$46)=0,Input!C79,N91)) -> 18.86427881 | Q79: =IF(ISERROR(Summary!G$37),D79,IF(P79="",0,P79*(F$93/F$94))) -> 18.98934696 | R79: =IF(SUM(Summary!R$19)+SUM(Summary!R$20)=0,Summary!I16,Summary!I16/G$95*G$94) ->  | S79: 0 | T79: 7.245561258 | U79: 0.1509142305 | V79: 7.602247701 | W79: 20.15355866 | X79: =IF(ISERROR('T203'!$B79),"",IF('T203'!$B79="","",'T203'!$B79)) -> A12518 | Y79: =IF(ISERROR('T203'!$K79),"",IF('T203'!$K79="","",'T203'!$K79)) -> A10022 | Z79: 79 | AA79: =IF(ISERROR('T203'!$L79),"",IF('T203'!$L79="","",'T203'!$L79)) -> 7 | AB79: 1 | AP79: RFM | AQ79: 0 | AZ79: 130 | BD79: 3 | BF79: Plymouth
A80: Adjusted RAS | B80: =100*(B82*B84/100)/(C88+B82*B84/100) -> 0 | C80: =E58 -> 10 | D80: 10.06370324 | E80: 0 | F80: =AO9*Q80 -> 0 | G80: =IF(ISERROR(Q80/OFFSET($A$52,0,ROW($A80)-ROW($A$76))),"",IF(SUM(Tank!$C$50:$H$50)=0,Input!D80,Q80)/OFFSET($A$52,0,ROW($A80)-ROW($A$76))) -> 3.829269402 | H80: 3.498037598 | I80: 0 | J80: 0 | L80: 0 | M80: =IF(D80=0,0,COUNTIF(D$77:D80,">0")) -> 4 | P80: =IF(ISERROR(IF(SUM(Tank!C$50:H$50)+SUM(Tank!$F$46)=0,Input!C80,N92)),C80,IF(SUM(Tank!C$50:H$50)+SUM(Tank!$F$46)=0,Input!C80,N92)) -> 9.928567793 | Q80: =IF(ISERROR(Summary!G$37),D80,IF(P80="",0,P80*(F$93/F$94))) -> 9.994393138 | R80: =IF(SUM(Summary!R$19)+SUM(Summary!R$20)=0,Summary!I17,Summary!I17/G$95*G$94) ->  | S80: 0 | T80: 3.855824997 | U80: 0.09729996437 | V80: 3.383993058 | W80: 9.069101395 | X80: =IF(ISERROR('T203'!$B80),"",IF('T203'!$B80="","",'T203'!$B80)) -> A12520 | Y80: =IF(ISERROR('T203'!$K80),"",IF('T203'!$K80="","",'T203'!$K80)) -> A10022 | Z80: 80 | AA80: =IF(ISERROR('T203'!$L80),"",IF('T203'!$L80="","",'T203'!$L80)) -> 1-6 | AB80: 1 | AP80: RFMX | AQ80: 0 | AZ80: 136 | BD80: 3 | BF80: Pocahontas
A81: two-thirds | B81: =RAM!AC79 -> 0 | C81: =F58 -> 0 | D81: =IF(C81="",0,C81*(D$88/C$88)) -> 0 | E81: 0 | F81: =AO11*Q81 -> 0 | G81: =IF(ISERROR(Q81/OFFSET($A$52,0,ROW($A81)-ROW($A$76))),"",IF(SUM(Tank!$C$50:$H$50)=0,Input!D81,Q81)/OFFSET($A$52,0,ROW($A81)-ROW($A$76))) ->  | H81: 0 | I81: =IF(OFFSET($A$50,0,ROW(G81)-ROW(I$76))=3,OFFSET($A$73,0,ROW(G81)-ROW(H$76))*$Q81/100,0) -> 0 | J81: 0 | L81: 0 | M81: =IF(D81=0,0,COUNTIF(D$77:D81,">0")) -> 0 | P81: =IF(ISERROR(IF(SUM(Tank!C$50:H$50)+SUM(Tank!$F$46)=0,Input!C81,N93)),C81,IF(SUM(Tank!C$50:H$50)+SUM(Tank!$F$46)=0,Input!C81,N93)) -> 0 | Q81: =IF(ISERROR(Summary!G$37),D81,IF(P81="",0,P81*(F$93/F$94))) -> 0 | R81: =IF(SUM(Summary!R$19)+SUM(Summary!R$20)=0,Summary!I18,Summary!I18/G$95*G$94) ->  | S81: 0 | T81: 0 | U81: 0 | V81: 9.85318776 | W81: 26.19962625 | X81: =IF(ISERROR('T203'!$B81),"",IF('T203'!$B81="","",'T203'!$B81)) -> A12522 | Y81: =IF(ISERROR('T203'!$K81),"",IF('T203'!$K81="","",'T203'!$K81)) -> A10024 | Z81: 81 | AA81: =IF(ISERROR('T203'!$L81),"",IF('T203'!$L81="","",'T203'!$L81)) ->  | AB81: 1 | AP81: RM | AQ81: 0 | AZ81: 137 | BD81: 1 | BF81: Polk
A82: %RAS | B82: =K58 -> 0 | C82: =G58 -> 0 | D82: 0 | E82: 0 | F82: =AO13*Q82 -> 0 | G82: =IF(ISERROR(Q82/OFFSET($A$52,0,ROW($A82)-ROW($A$76))),"",IF(SUM(Tank!$C$50:$H$50)=0,Input!D82,Q82)/OFFSET($A$52,0,ROW($A82)-ROW($A$76))) ->  | H82: 0 | I82: 0 | J82: 0 | L82: 0 | M82: =IF(D82=0,0,COUNTIF(D$77:D82,">0")) -> 0 | P82: =IF(ISERROR(IF(SUM(Tank!C$50:H$50)+SUM(Tank!$F$46)=0,Input!C82,N94)),C82,IF(SUM(Tank!C$50:H$50)+SUM(Tank!$F$46)=0,Input!C82,N94)) -> 0 | Q82: =IF(ISERROR(Summary!G$37),D82,IF(P82="",0,P82*(F$93/F$94))) -> 0 | R82: =IF(SUM(Summary!R$19)+SUM(Summary!R$20)=0,Summary!I19,Summary!I19/G$95*G$94) ->  | S82: 0 | T82: 0 | U82: 0 | V82: 5.780179347 | W82: 15.11516899 | X82: =IF(ISERROR('T203'!$B82),"",IF('T203'!$B82="","",'T203'!$B82)) -> A13502 | Y82: =IF(ISERROR('T203'!$K82),"",IF('T203'!$K82="","",'T203'!$K82)) -> A10026 | Z82: 82 | AA82: =IF(ISERROR('T203'!$L82),"",IF('T203'!$L82="","",'T203'!$L82)) ->  | AB82: 1 | AP82: RMX | AQ82: 0 | AZ82: 139 | BD82: 4 | BF82: Pottawattamie
A83: %RAP | B83: =J58 -> 15 | C83: =H58 -> 0 | D83: 0 | E83: 0 | F83: =AO15*Q83 -> 0 | G83: =IF(ISERROR(Q83/OFFSET($A$52,0,ROW($A83)-ROW($A$76))),"",IF(SUM(Tank!$C$50:$H$50)=0,Input!D83,Q83)/OFFSET($A$52,0,ROW($A83)-ROW($A$76))) ->  | H83: 0 | I83: 0 | J83: 0 | L83: 0 | M83: =IF(D83=0,0,COUNTIF(D$77:D83,">0")) -> 0 | P83: =IF(ISERROR(IF(SUM(Tank!C$50:H$50)+SUM(Tank!$F$46)=0,Input!C83,N95)),C83,IF(SUM(Tank!C$50:H$50)+SUM(Tank!$F$46)=0,Input!C83,N95)) -> 0 | Q83: =IF(ISERROR(Summary!G$37),D83,IF(P83="",0,P83*(F$93/F$94))) -> 0 | R83: =IF(SUM(Summary!R$19)+SUM(Summary!R$20)=0,Summary!I20,Summary!I20/G$95*G$94) ->  | S83: 0 | T83: 0 | U83: 0 | W83: 0 | X83: =IF(ISERROR('T203'!$B83),"",IF('T203'!$B83="","",'T203'!$B83)) -> A13504 | Y83: =IF(ISERROR('T203'!$K83),"",IF('T203'!$K83="","",'T203'!$K83)) -> A10028 | Z83: 83 | AA83: =IF(ISERROR('T203'!$L83),"",IF('T203'!$L83="","",'T203'!$L83)) ->  | AB83: 1 | AP83: RP | AQ83: 0 | AZ83: 140 | BD83: 1 | BF83: Poweshiek
A84: %RAS Agg | B84: =RAM!AA79 -> 82.5 | C84: =I58 -> 0 | D84: 0 | E84: 0 | F84: =AO17*Q84 -> 0 | G84: =IF(ISERROR(Q84/OFFSET($A$52,0,ROW($A84)-ROW($A$76))),"",IF(SUM(Tank!$C$50:$H$50)=0,Input!D84,Q84)/OFFSET($A$52,0,ROW($A84)-ROW($A$76))) ->  | H84: 0 | I84: 0 | J84: 0 | L84: 0 | M84: =IF(D84=0,0,COUNTIF(D$77:D84,">0")) -> 0 | P84: =IF(ISERROR(IF(SUM(Tank!C$50:H$50)+SUM(Tank!$F$46)=0,Input!C84,N96)),C84,IF(SUM(Tank!C$50:H$50)+SUM(Tank!$F$46)=0,Input!C84,N96)) -> 0 | Q84: =IF(ISERROR(Summary!G$37),D84,IF(P84="",0,P84*(F$93/F$94))) -> 0 | R84: =IF(SUM(Summary!R$19)+SUM(Summary!R$20)=0,Summary!I21,Summary!I21/G$95*G$94) ->  | S84: 0 | T84: 0 | U84: =IF(ISERROR(P84/100*RAM!I46),0,P84/100*RAM!I46) -> 0 | W84: 0 | X84: =IF(ISERROR('T203'!$B84),"",IF('T203'!$B84="","",'T203'!$B84)) -> A13506 | Y84: =IF(ISERROR('T203'!$K84),"",IF('T203'!$K84="","",'T203'!$K84)) -> A10030 | Z84: 84 | AA84: =IF(ISERROR('T203'!$L84),"",IF('T203'!$L84="","",'T203'!$L84)) -> 1-3 | AB84: 1 | AP84: RP-M | AQ84: 0 | AZ84: 141 | BD84: 4 | BF84: Ringgold
A85: %RAP Agg | B85: =RAM!Z86 -> 95.78 | C85: =J58+K58 -> 15 | D85: =IF(AND(SUM(J58:K58)>0,L58<>"",RAM!K43<>100),error,IF(SUM(P39:P40)=0,C85,B86)) -> 14.45852245 | E85: =J51/100*Q85 -> 12.79050958 | F85: =IF(K38="L - 2",Q85*SUM(RAM!K53)/100,0) -> 0 | G85: =IF(ISERROR(Q85/OFFSET($A$52,0,ROW($A85)-ROW($A$76))),"",IF(SUM(Tank!$C$50:$H$50)=0,Input!D85,Q85)/OFFSET($A$52,0,ROW($A85)-ROW($A$76))) -> 5.846021106 | H85: =IF(Q85=0,0,SUM(RAM!K51)/100*J$73*Q85/100) -> 1.097877151 | I85: =IF(Q85=0,0,SUM(RAM!K50)/100*$J$73*$Q85/100) -> 0 | J85: =IF(Q85=0,0,SUM(RAM!K49)/100*$J$73*$Q85/100) -> 0.2889150399 | L85: =IF(Q85=0,0,SUM(RAM!K48)/100*$J$66*$Q85/100) -> 0 | M85: =IF(D85=0,0,COUNTIF(D$77:D85,">0")) -> 5 | P85: =IF(ISERROR(IF(SUM(Tank!C$50:H$50)+SUM(Tank!$F$46)=0,Input!C85,N97)),C85,IF(SUM(Tank!C$50:H$50)+SUM(Tank!$F$46)=0,Input!C85,N97)) -> 15.60717376 | Q85: =IF(ISERROR(Summary!G37),D85,IF(SUM(Summary!S$19)+SUM(Summary!S$20)=0,F90,IF(AND(SUM(J58:K58)>0,L58<>"",RAM!K43<>100),error,IF(SUM(P39:P40)=0,100-F94,F90)))) -> 15.04765833 | R85: =IF(SUM(Summary!R$19)+SUM(Summary!R$20)=0,SUM(Tank!H32)+SUM(Tank!H33),100-G94) -> 0 | S85: =IF(SUM(Summary!R$19)+SUM(Summary!R$20)=0,R85,IF(AND(SUM(J58:K58)>0,L58<>"",RAM!K43<>100),error,IF(SUM(Tank!H32:H33)=0,100-G94,G90))) -> 0 | T85: =IF(ISERROR(D85/OFFSET($A$52,0,ROW($A85)-ROW($A$76))),0,D85/OFFSET($A$52,0,ROW($A85)-ROW($A$76))) -> 5.617141588 | U85: =IF(ISERROR(P85/100*SUMPRODUCT(RAM!D31:H31,RAM!D46:H46)/100),0,P85/100*SUMPRODUCT(RAM!D31:H31,RAM!D46:H46)/100) -> 0.2153789979 | V85: 6.668103458 | W85: 17.37040951 | X85: =IF(ISERROR('T203'!$B85),"",IF('T203'!$B85="","",'T203'!$B85)) -> A13508 | Y85: =IF(ISERROR('T203'!$K85),"",IF('T203'!$K85="","",'T203'!$K85)) -> A10032 | Z85: 85 | AA85: =IF(ISERROR('T203'!$L85),"",IF('T203'!$L85="","",'T203'!$L85)) ->  | AB85: 1 | AP85: RPX | AQ85: 0 | AZ85: 143 | BD85: 3 | BF85: Sac
A86: SUM | B86: =100*(B82*B84/100+B83*B85/100)/(C88+B83*B85/100+B82*B84/100) -> 14.45852245 | D86: =SUM(D77:D85) -> 100 | E86: =SUM(E77:E85) -> 87.74845811 | F86: =SUM(F77:F85) -> 41.97645118 | G86: =100/SUM(G77:G85) -> 2.604511274 | H86: =SUM(H77:H85) -> 29.78178546 | I86: =SUM(I77:I85) -> 0 | J86: =SUM(J77:J85) -> 14.26107665 | L86: =SUM(L77:L85) -> 19.00933575 | N86: =J86+I86+H86 -> 44.0428621 | O86: =I86+J86 -> 14.26107665 | T86: =100/SUM(T77:T85) -> 2.604725392 | U86: =SUM(U77:U85) -> 1.335122874 | V86: 2.635593868 | X86: =IF(ISERROR('T203'!$B86),"",IF('T203'!$B86="","",'T203'!$B86)) -> A14510 | Y86: =IF(ISERROR('T203'!$K86),"",IF('T203'!$K86="","",'T203'!$K86)) -> A10504 | Z86: 86 | AA86: =IF(ISERROR('T203'!$L86),"",IF('T203'!$L86="","",'T203'!$L86)) ->  | AB86: 1 | AP86: RT | AQ86: 0 | AZ86: 144 | BD86: 6 | BF86: Scott
A87: =ROUND(SUM(L66*0.0041,L67*0.0082,L68*0.0164,L69*0.0287,L70*0.0614,L71*0.1229,L72*0.3277)+0.41,2) -> 3.98 | C87: %virgin | F87: Produced Aggregate | G87: From Silo | X87: =IF(ISERROR('T203'!$B87),"",IF('T203'!$B87="","",'T203'!$B87)) -> A14514 | Y87: =IF(ISERROR('T203'!$K87),"",IF('T203'!$K87="","",'T203'!$K87)) -> A10506 | Z87: 87 | AA87: =IF(ISERROR('T203'!$L87),"",IF('T203'!$L87="","",'T203'!$L87)) ->  | AB87: 1 | AP87: SB-IA | AQ87: 0 | AZ87: 146 | BD87: 4 | BF87: Shelby
C88: =IF(SUM(P39:P40)=0,100,100-C85) -> 85 | D88: =IF(SUM(P39:P40)=0,100,100-D85) -> 85.54147755 | E88: Adj RAS | F88: =100*(SUM(Report!D51)*B84)/(F91*100+SUM(Report!D51)*B84+SUM(Report!D50)*B85) -> 0 | G88: =100*(SUM(Tank!$H$33)*Summary!AC11)/(G91*100+SUM(Tank!$H$33)*Summary!AC11+SUM(Tank!$H$32)*G96/100) -> 0 | N88: As produced w/BHF | P88: #4 | Q88: #8 | R88: #16 | S88: #30 | T88: #50 | X88: =IF(ISERROR('T203'!$B88),"",IF('T203'!$B88="","",'T203'!$B88)) -> A14516 | Y88: =IF(ISERROR('T203'!$K88),"",IF('T203'!$K88="","",'T203'!$K88)) -> A10510 | Z88: 88 | AA88: =IF(ISERROR('T203'!$L88),"",IF('T203'!$L88="","",'T203'!$L88)) ->  | AB88: 1 | AP88: SBRC | AQ88: 0 | AZ88: 148 | BD88: 3 | BF88: Sioux
C89: order | E89: Adj RAP | F89: =100*(SUM(Report!D50)*B85)/(F92*100+SUM(Report!D50)*B85+SUM(Report!D51)*B84) -> 15.04765833 | G89: =100*(SUM(Tank!$H$32)*G96/100)/(G91*100+SUM(Tank!$H$33)*Summary!AC11+SUM(Tank!$H$32)*G96/100) -> 0 | L89: =OFFSET(A$47,0,ROW(K89)-ROW(K$88)) -> ASD010 | M89: Agg 1 | N89: =IF(ISERROR(IF(SUM(Tank!C$50:H$50)+SUM(Tank!$F$46)=0,Input!C77,C77/F$99*G$99)),C77,IF(SUM(Tank!C$50:H$50)+SUM(Tank!$F$46)=0,Input!C77,IF(L89=X$1,G$98,C77/F$99*G$99))) -> 13.89999491 | P89: =((OFFSET($A$65,MATCH(P$88,$A$66:$A$70,0),$A90)-OFFSET($A$65,MATCH(Q$88,$A$66:$A$70,0),$A90))*($Q77/100)) -> 0.01399215039 | Q89: =((OFFSET($A$65,MATCH(Q$88,$A$66:$A$70,0),$A90)-OFFSET($A$65,MATCH(R$88,$A$66:$A$70,0),$A90))*($Q77/100)) -> 0.01399215039 | R89: 0.01399215039 | S89: 0.01399215039 | T89: =SUM(P89:S89)/SUM(P$98:S$98) -> 0.001250867565 | U89: =IF(ISERROR(T89/OFFSET($A$54,0,$A90)*100),0,T89/OFFSET($A$54,0,$A90)*100) -> 0.002690037774 | X89: =IF(ISERROR('T203'!$B89),"",IF('T203'!$B89="","",'T203'!$B89)) -> A14518 | Y89: =IF(ISERROR('T203'!$K89),"",IF('T203'!$K89="","",'T203'!$K89)) -> A10514 | Z89: 89 | AA89: =IF(ISERROR('T203'!$L89),"",IF('T203'!$L89="","",'T203'!$L89)) ->  | AB89: 1 | AP89: SBRFM | AQ89: 0 | AZ89: 149 | BD89: 1 | BF89: Story
A90: 1 | B90: =IF(ISERROR(MATCH(A90,M$77:M$85)),"",MATCH(A90,M$77:M$85,0)) -> 1 | C90: =IF(ISERROR(B90),0,IF(COUNTIF(B$90:B90,B90)>1,0,B90)) -> 1 | E90: Adj RAM | F90: =F89+F88 -> 15.04765833 | G90: =G89+G88 -> 0 | L90: =OFFSET(A$47,0,ROW(K90)-ROW(K$88)) -> A78002 | M90: Agg 2 | N90: =IF(ISERROR(IF(SUM(Tank!C$50:H$50)+SUM(Tank!$F$46)=0,Input!C78,C78/F$99*G$99)),C78,IF(SUM(Tank!C$50:H$50)+SUM(Tank!$F$46)=0,Input!C78,IF(L90=X$1,G$98,C78/F$99*G$99))) -> 41.69998473 | P90: =((OFFSET($A$65,MATCH(P$88,$A$66:$A$70,0),$A91)-OFFSET($A$65,MATCH(Q$88,$A$66:$A$70,0),$A91))*($Q78/100)) -> 10.07434828 | Q90: =((OFFSET($A$65,MATCH(Q$88,$A$66:$A$70,0),$A91)-OFFSET($A$65,MATCH(R$88,$A$66:$A$70,0),$A91))*($Q78/100)) -> 3.526021899 | R90: =((OFFSET($A$65,MATCH(R$88,$A$66:$A$70,0),$A91)-OFFSET($A$65,MATCH(S$88,$A$66:$A$70,0),$A91))*($Q78/100)) -> 0.8395290236 | S90: =((OFFSET($A$65,MATCH(S$88,$A$66:$A$70,0),$A91)-OFFSET($A$65,MATCH(T$88,$A$66:$A$70,0),$A91))*($Q78/100)) -> 0.1679058047 | T90: =SUM(P90:S90)/SUM(P$98:S$98) -> 0.3264764345 | U90: =IF(ISERROR(T90/OFFSET($A$54,0,$A91)*100),0,T90/OFFSET($A$54,0,$A91)*100) -> 0.7255031877 | X90: =IF(ISERROR('T203'!$B90),"",IF('T203'!$B90="","",'T203'!$B90)) -> A15008 | Y90: =IF(ISERROR('T203'!$K90),"",IF('T203'!$K90="","",'T203'!$K90)) -> A10516 | Z90: 90 | AA90: =IF(ISERROR('T203'!$L90),"",IF('T203'!$L90="","",'T203'!$L90)) ->  | AB90: 1 | AP90: SBRM | AQ90: 0 | AZ90: 150 | BD90: 1 | BF90: Tama
A91: 2 | B91: =IF(ISERROR(MATCH(A91,M$77:M$85)),"",MATCH(A91,M$77:M$85,0)) -> 2 | C91: =IF(ISERROR(B91),0,IF(COUNTIF(B$90:B91,B91)>1,0,B91)) -> 2 | E91: 100-RAM | F91: =1-SUM(Report!D51)-SUM(Report!D50) -> 0.8439282624 | G91: =1-SUM(Tank!H33/100)-SUM(Tank!H32/100) -> 1 | L91: ASD010 | M91: Agg 3 | N91: =IF(ISERROR(IF(SUM(Tank!C$50:H$50)+SUM(Tank!$F$46)=0,Input!C79,C79/F$99*G$99)),C79,IF(SUM(Tank!C$50:H$50)+SUM(Tank!$F$46)=0,Input!C79,IF(L91=X$1,G$98,C79/F$99*G$99))) -> 18.86427881 | P91: 4.557443271 | Q91: 5.317017149 | R91: 3.607975923 | S91: 3.038295514 | T91: 0.3692293009 | U91: 0.7855942572 | X91: =IF(ISERROR('T203'!$B91),"",IF('T203'!$B91="","",'T203'!$B91)) -> A16004 | Y91: =IF(ISERROR('T203'!$K91),"",IF('T203'!$K91="","",'T203'!$K91)) -> A10518 | Z91: 91 | AA91: =IF(ISERROR('T203'!$L91),"",IF('T203'!$L91="","",'T203'!$L91)) ->  | AB91: 1 | AP91: SCG | AQ91: 0 | AZ91: 151 | BD91: 4 | BF91: Taylor
A92: 3 | B92: 3 | C92: =IF(ISERROR(B92),0,IF(COUNTIF(B$90:B92,B92)>1,0,B92)) -> 3 | F92: =1-SUM(Report!D50)-SUM(Report!D51) -> 0.8439282624 | G92: =1-SUM(Tank!H32/100)-SUM(Tank!H33/100) -> 1 | L92: ANE514 | M92: Agg 4 | N92: =IF(ISERROR(IF(SUM(Tank!C$50:H$50)+SUM(Tank!$F$46)=0,Input!C80,C80/F$99*G$99)),C80,IF(SUM(Tank!C$50:H$50)+SUM(Tank!$F$46)=0,Input!C80,IF(L92=X$1,G$98,C80/F$99*G$99))) -> 9.928567793 | P92: 4.697364775 | Q92: 1.299271108 | R92: 0.2998317941 | S92: 0.03997757255 | T92: 0.1416160779 | U92: 0.3726738892 | X92: =IF(ISERROR('T203'!$B92),"",IF('T203'!$B92="","",'T203'!$B92)) -> A16006 | Y92: =IF(ISERROR('T203'!$K92),"",IF('T203'!$K92="","",'T203'!$K92)) -> A10520 | Z92: 92 | AA92: =IF(ISERROR('T203'!$L92),"",IF('T203'!$L92="","",'T203'!$L92)) ->  | AB92: 1 | AP92: SFB | AQ92: 0 | AZ92: 152 | BD92: 4 | BF92: Union
A93: 4 | B93: 4 | C93: =IF(ISERROR(B93),0,IF(COUNTIF(B$90:B93,B93)>1,0,B93)) -> 4 | E93: Virgin Rock | F93: =100-F90 -> 84.95234167 | G93: =100-G90 -> 100 | L93: 0 | M93: Agg 5 | N93: =IF(ISERROR(IF(SUM(Tank!C$50:H$50)+SUM(Tank!$F$46)=0,Input!C81,C81/F$99*G$99)),C81,IF(SUM(Tank!C$50:H$50)+SUM(Tank!$F$46)=0,Input!C81,IF(L93=X$1,G$98,C81/F$99*G$99))) -> 0 | P93: 0 | Q93: 0 | R93: 0 | S93: 0 | T93: 0 | U93: 0 | X93: =IF(ISERROR('T203'!$B93),"",IF('T203'!$B93="","",'T203'!$B93)) -> A16010 | Y93: =IF(ISERROR('T203'!$K93),"",IF('T203'!$K93="","",'T203'!$K93)) -> A11512 | Z93: 93 | AA93: =IF(ISERROR('T203'!$L93),"",IF('T203'!$L93="","",'T203'!$L93)) ->  | AB93: 1 | AP93: SMF | AQ93: 0 | AZ93: 160 | BD93: 5 | BF93: Van Buren
A94: 5 | B94: 9 | C94: =IF(ISERROR(B94),0,IF(COUNTIF(B$90:B94,B94)>1,0,B94)) -> 9 | E94: Virgin Produced | F94: =100*(1-SUM(Report!D51)-SUM(Report!D50)) -> 84.39282624 | G94: =100*(1-SUM(Tank!H33/100)-SUM(Tank!H32/100)) -> 100 | L94: 0 | M94: Agg 6 | N94: =IF(ISERROR(IF(SUM(Tank!C$50:H$50)+SUM(Tank!$F$46)=0,Input!C82,C82/F$99*G$99)),C82,IF(SUM(Tank!C$50:H$50)+SUM(Tank!$F$46)=0,Input!C82,IF(L94=X$1,G$98,C82/F$99*G$99))) -> 0 | P94: 0 | Q94: 0 | R94: 0 | S94: 0 | T94: 0 | U94: 0 | X94: =IF(ISERROR('T203'!$B94),"",IF('T203'!$B94="","",'T203'!$B94)) -> A16012 | Y94: =IF(ISERROR('T203'!$K94),"",IF('T203'!$K94="","",'T203'!$K94)) -> A11514 | Z94: 94 | AA94: =IF(ISERROR('T203'!$L94),"",IF('T203'!$L94="","",'T203'!$L94)) ->  | AB94: 1 | AP94: SN | AQ94: =IF(ISERROR(SEARCH(AP94,Q$41)),0,SEARCH(AP94,Q$41)) -> 0 | AZ94: 162 | BD94: 5 | BF94: Wapello
A95: 6 | C95: =IF(ISERROR(B95),0,IF(COUNTIF(B$90:B95,B95)>1,0,B95)) -> 0 | G95: =C88 -> 85 | L95: 0 | M95: Agg 7 | N95: =IF(ISERROR(IF(SUM(Tank!C$50:H$50)+SUM(Tank!$F$46)=0,Input!C83,C83/F$99*G$99)),C83,IF(SUM(Tank!C$50:H$50)+SUM(Tank!$F$46)=0,Input!C83,IF(L95=X$1,G$98,C83/F$99*G$99))) -> 0 | P95: 0 | Q95: 0 | R95: 0 | S95: 0 | T95: 0 | U95: 0 | X95: =IF(ISERROR('T203'!$B95),"",IF('T203'!$B95="","",'T203'!$B95)) -> A16022 | Y95: =IF(ISERROR('T203'!$K95),"",IF('T203'!$K95="","",'T203'!$K95)) -> A11516 | Z95: 95 | AA95: =IF(ISERROR('T203'!$L95),"",IF('T203'!$L95="","",'T203'!$L95)) ->  | AB95: 1 | AP95: SN-TSF | AQ95: 0 | AZ95: 163 | BD95: 5 | BF95: Warren
A96: 7 | C96: =IF(ISERROR(B96),0,IF(COUNTIF(B$90:B96,B96)>1,0,B96)) -> 0 | G96: =100-Summary!S31*100 -> 100 | L96: 0 | M96: Agg 8 | N96: =IF(ISERROR(IF(SUM(Tank!C$50:H$50)+SUM(Tank!$F$46)=0,Input!C84,C84/F$99*G$99)),C84,IF(SUM(Tank!C$50:H$50)+SUM(Tank!$F$46)=0,Input!C84,IF(L96=X$1,G$98,C84/F$99*G$99))) -> 0 | P96: 0 | Q96: 0 | R96: 0 | S96: 0 | T96: 0 | U96: 0 | X96: =IF(ISERROR('T203'!$B96),"",IF('T203'!$B96="","",'T203'!$B96)) -> A16502 | Y96: =IF(ISERROR('T203'!$K96),"",IF('T203'!$K96="","",'T203'!$K96)) -> A11518 | Z96: 96 | AA96: =IF(ISERROR('T203'!$L96),"",IF('T203'!$L96="","",'T203'!$L96)) ->  | AB96: 1 | AP96: SP | AQ96: 0 | AZ96: 165 | BD96: 5 | BF96: Washington
A97: 8 | C97: =IF(ISERROR(B97),0,IF(COUNTIF(B$90:B97,B97)>1,0,B97)) -> 0 | F97: JMF | G97: As Produced | M97: RAM | N97: =IF(ISERROR(IF(SUM(Tank!C$50:H$50)=0,C85,100-F94)),C85,IF(SUM(Tank!C$50:H$50)=0,C85,100-F94)) -> 15.60717376 | P97: =((OFFSET($A$65,MATCH(P$88,$A$66:$A$70,0),$A98)-OFFSET($A$65,MATCH(Q$88,$A$66:$A$70,0),$A98))*($Q85/100)) -> 2.407625332 | Q97: 1.805718999 | R97: 1.504765833 | S97: 1.504765833 | T97: 0.1614273192 | U97: 0.3871158733 | X97: =IF(ISERROR('T203'!$B97),"",IF('T203'!$B97="","",'T203'!$B97)) -> A16506 | Y97: =IF(ISERROR('T203'!$K97),"",IF('T203'!$K97="","",'T203'!$K97)) -> A12004 | Z97: 97 | AA97: =IF(ISERROR('T203'!$L97),"",IF('T203'!$L97="","",'T203'!$L97)) -> 1-21 | AB97: 1 | AP97: SRTS | AQ97: 0 | AZ97: 169 | BD97: 5 | BF97: Wayne
A98: 9 | C98: =IF(ISERROR(B98),0,IF(COUNTIF(B$90:B98,B98)>1,0,B98)) -> 0 | E98: % BHF | F98: =SUMIF(B47:I47,X1,B58:I58) -> 0 | G98: =Tank!F46/Tank!B37*100 -> 0 | N98: =SUM(N89:N97) -> 100 | P98: =SUM(P89:P97) -> 21.75077381 | Q98: =SUM(Q89:Q97) -> 11.96202131 | R98: 6.266094724 | S98: 4.764936874 | U98: =100/SUM(U89:U97) -> 43.98355068 | X98: =IF(ISERROR('T203'!$B98),"",IF('T203'!$B98="","",'T203'!$B98)) -> A16508 | Y98: =IF(ISERROR('T203'!$K98),"",IF('T203'!$K98="","",'T203'!$K98)) -> A12008 | Z98: 98 | AA98: =IF(ISERROR('T203'!$L98),"",IF('T203'!$L98="","",'T203'!$L98)) -> 1-11 | AB98: 1 | AP98: SRTS-S | AQ98: 0 | AZ98: 173 | BD98: 1 | BF98: Webster
E99: % Non BHF | F99: =IF(SUM(P39:P40)+F98=0,100,100-C85-F98) -> 85 | G99: =F94-G98 -> 84.39282624 | X99: =IF(ISERROR('T203'!$B99),"",IF('T203'!$B99="","",'T203'!$B99)) -> A16510 | Y99: =IF(ISERROR('T203'!$K99),"",IF('T203'!$K99="","",'T203'!$K99)) -> A12502 | Z99: 99 | AA99: =IF(ISERROR('T203'!$L99),"",IF('T203'!$L99="","",'T203'!$L99)) ->  | AB99: 1 | AP99: SRTS-U | AQ99: 0 | AZ99: 175 | BD99: 2 | BF99: Winnebago
A100: =IF(C33="3/8",1,IF(C33="1/2",3,IF(C33="3/4",6,IF(C33="1",8,1)))) -> 3 | X100: =IF(ISERROR('T203'!$B100),"",IF('T203'!$B100="","",'T203'!$B100)) -> A17008 | Y100: =IF(ISERROR('T203'!$K100),"",IF('T203'!$K100="","",'T203'!$K100)) -> A12508 | Z100: 100 | AA100: =IF(ISERROR('T203'!$L100),"",IF('T203'!$L100="","",'T203'!$L100)) ->  | AB100: 1 | AP100: STA | AQ100: 0 | AZ100: 182 | BD100: 2 | BF100: Winneshiek
X101: =IF(ISERROR('T203'!$B101),"",IF('T203'!$B101="","",'T203'!$B101)) -> A17012 | Y101: =IF(ISERROR('T203'!$K101),"",IF('T203'!$K101="","",'T203'!$K101)) -> A12514 | Z101: 101 | AA101: =IF(ISERROR('T203'!$L101),"",IF('T203'!$L101="","",'T203'!$L101)) ->  | AB101: 1 | AP101: STP-A | AQ101: 0 | AZ101: 183 | BD101: 3 | BF101: Woodbury
X102: =IF(ISERROR('T203'!$B102),"",IF('T203'!$B102="","",'T203'!$B102)) -> A17020 | Y102: =IF(ISERROR('T203'!$K102),"",IF('T203'!$K102="","",'T203'!$K102)) -> A12516 | Z102: 102 | AA102: =IF(ISERROR('T203'!$L102),"",IF('T203'!$L102="","",'T203'!$L102)) ->  | AB102: 1 | AP102: STP-E | AQ102: 0 | AZ102: 187 | BD102: 2 | BF102: Worth
X103: =IF(ISERROR('T203'!$B103),"",IF('T203'!$B103="","",'T203'!$B103)) -> A17024 | Y103: =IF(ISERROR('T203'!$K103),"",IF('T203'!$K103="","",'T203'!$K103)) -> A12518 | Z103: 103 | AA103: =IF(ISERROR('T203'!$L103),"",IF('T203'!$L103="","",'T203'!$L103)) ->  | AB103: 1 | AP103: STP-ES | AQ103: 0 | AZ103: 188 | BD103: 2 | BF103: Wright
X104: =IF(ISERROR('T203'!$B104),"",IF('T203'!$B104="","",'T203'!$B104)) -> A17506 | Y104: =IF(ISERROR('T203'!$K104),"",IF('T203'!$K104="","",'T203'!$K104)) -> A12520 | Z104: 104 | AA104: =IF(ISERROR('T203'!$L104),"",IF('T203'!$L104="","",'T203'!$L104)) ->  | AB104: 1 | AP104: STP-ES-E | AQ104: 0 | AZ104: 191
A105: By: Danny Steenhard, John Hinrichsen, & Scott Schram | X105: =IF(ISERROR('T203'!$B105),"",IF('T203'!$B105="","",'T203'!$B105)) -> A17512 | Y105: =IF(ISERROR('T203'!$K105),"",IF('T203'!$K105="","",'T203'!$K105)) -> A12522 | Z105: 105 | AA105: =IF(ISERROR('T203'!$L105),"",IF('T203'!$L105="","",'T203'!$L105)) ->  | AB105: 1 | AP105: STPN | AQ105: 0 | AZ105: 192
A106: Users acknowledge all information contained within is accurate and was obtained in accordance with the rights and responsibilities associated with the technicians' certification. | X106: =IF(ISERROR('T203'!$B106),"",IF('T203'!$B106="","",'T203'!$B106)) -> A17514 | Y106: =IF(ISERROR('T203'!$K106),"",IF('T203'!$K106="","",'T203'!$K106)) -> A13502 | Z106: 106 | AA106: =IF(ISERROR('T203'!$L106),"",IF('T203'!$L106="","",'T203'!$L106)) ->  | AB106: 1 | AP106: STP-S | AQ106: 0 | AZ106: 196
X107: =IF(ISERROR('T203'!$B107),"",IF('T203'!$B107="","",'T203'!$B107)) -> A17518 | Y107: =IF(ISERROR('T203'!$K107),"",IF('T203'!$K107="","",'T203'!$K107)) -> A13504 | Z107: 107 | AA107: =IF(ISERROR('T203'!$L107),"",IF('T203'!$L107="","",'T203'!$L107)) ->  | AB107: 1 | AP107: STP-S-TS | AQ107: 0 | AZ107: 202
X108: =IF(ISERROR('T203'!$B108),"",IF('T203'!$B108="","",'T203'!$B108)) -> A17520 | Y108: =IF(ISERROR('T203'!$K108),"",IF('T203'!$K108="","",'T203'!$K108)) -> A13506 | Z108: 108 | AA108: =IF(ISERROR('T203'!$L108),"",IF('T203'!$L108="","",'T203'!$L108)) ->  | AB108: 1 | AP108: STP-U | AQ108: 0 | AZ108: 210
X109: =IF(ISERROR('T203'!$B109),"",IF('T203'!$B109="","",'T203'!$B109)) -> A18506 | Y109: =IF(ISERROR('T203'!$K109),"",IF('T203'!$K109="","",'T203'!$K109)) -> A13508 | Z109: 109 | AA109: =IF(ISERROR('T203'!$L109),"",IF('T203'!$L109="","",'T203'!$L109)) ->  | AB109: 1 | AP109: TCSP | AQ109: 0 | AZ109: 212
X110: =IF(ISERROR('T203'!$B110),"",IF('T203'!$B110="","",'T203'!$B110)) -> A18514 | Y110: =IF(ISERROR('T203'!$K110),"",IF('T203'!$K110="","",'T203'!$K110)) -> A14510 | Z110: 110 | AA110: =IF(ISERROR('T203'!$L110),"",IF('T203'!$L110="","",'T203'!$L110)) ->  | AB110: 1 | AP110: TJ | AQ110: 0 | AZ110: 218
X111: =IF(ISERROR('T203'!$B111),"",IF('T203'!$B111="","",'T203'!$B111)) -> A18526 | Y111: =IF(ISERROR('T203'!$K111),"",IF('T203'!$K111="","",'T203'!$K111)) -> A14514 | Z111: 111 | AA111: =IF(ISERROR('T203'!$L111),"",IF('T203'!$L111="","",'T203'!$L111)) ->  | AB111: 1 | AP111: TR | AQ111: 0 | AZ111: 220
X112: =IF(ISERROR('T203'!$B112),"",IF('T203'!$B112="","",'T203'!$B112)) -> A18528 | Y112: =IF(ISERROR('T203'!$K112),"",IF('T203'!$K112="","",'T203'!$K112)) -> A14516 | Z112: 112 | AA112: =IF(ISERROR('T203'!$L112),"",IF('T203'!$L112="","",'T203'!$L112)) ->  | AB112: 1 | AP112: TSF | AQ112: 0 | AZ112: 224
X113: =IF(ISERROR('T203'!$B113),"",IF('T203'!$B113="","",'T203'!$B113)) -> A18530 | Y113: =IF(ISERROR('T203'!$K113),"",IF('T203'!$K113="","",'T203'!$K113)) -> A14518 | Z113: 113 | AA113: =IF(ISERROR('T203'!$L113),"",IF('T203'!$L113="","",'T203'!$L113)) ->  | AB113: 1 | AP113: UST | AQ113: 0 | AZ113: 235
X114: =IF(ISERROR('T203'!$B114),"",IF('T203'!$B114="","",'T203'!$B114)) -> A18534 | Y114: =IF(ISERROR('T203'!$K114),"",IF('T203'!$K114="","",'T203'!$K114)) -> A15008 | Z114: 114 | AA114: =IF(ISERROR('T203'!$L114),"",IF('T203'!$L114="","",'T203'!$L114)) -> 25 | AB114: 1 | AP114: U-STEP | AQ114: 0 | AZ114: 254
X115: =IF(ISERROR('T203'!$B115),"",IF('T203'!$B115="","",'T203'!$B115)) -> A18536 | Y115: =IF(ISERROR('T203'!$K115),"",IF('T203'!$K115="","",'T203'!$K115)) -> A16004 | Z115: 115 | AA115: =IF(ISERROR('T203'!$L115),"",IF('T203'!$L115="","",'T203'!$L115)) -> 1-4 | AB115: 1 | AZ115: 275
X116: =IF(ISERROR('T203'!$B116),"",IF('T203'!$B116="","",'T203'!$B116)) -> A19006 | Y116: =IF(ISERROR('T203'!$K116),"",IF('T203'!$K116="","",'T203'!$K116)) -> A16006 | Z116: 116 | AA116: =IF(ISERROR('T203'!$L116),"",IF('T203'!$L116="","",'T203'!$L116)) -> 4 | AB116: 1 | AZ116: 280
X117: =IF(ISERROR('T203'!$B117),"",IF('T203'!$B117="","",'T203'!$B117)) -> A19008 | Y117: =IF(ISERROR('T203'!$K117),"",IF('T203'!$K117="","",'T203'!$K117)) -> A16010 | Z117: 117 | AA117: =IF(ISERROR('T203'!$L117),"",IF('T203'!$L117="","",'T203'!$L117)) ->  | AB117: 1 | AZ117: 281
X118: =IF(ISERROR('T203'!$B118),"",IF('T203'!$B118="","",'T203'!$B118)) -> A19504 | Y118: =IF(ISERROR('T203'!$K118),"",IF('T203'!$K118="","",'T203'!$K118)) -> A16012 | Z118: 118 | AA118: =IF(ISERROR('T203'!$L118),"",IF('T203'!$L118="","",'T203'!$L118)) -> 1-7 | AB118: 1 | AZ118: 296
X119: =IF(ISERROR('T203'!$B119),"",IF('T203'!$B119="","",'T203'!$B119)) -> A19508 | Y119: =IF(ISERROR('T203'!$K119),"",IF('T203'!$K119="","",'T203'!$K119)) -> A16022 | Z119: 119 | AA119: =IF(ISERROR('T203'!$L119),"",IF('T203'!$L119="","",'T203'!$L119)) -> 1 | AB119: 1 | AZ119: 316
X120: =IF(ISERROR('T203'!$B120),"",IF('T203'!$B120="","",'T203'!$B120)) -> A19512 | Y120: =IF(ISERROR('T203'!$K120),"",IF('T203'!$K120="","",'T203'!$K120)) -> A16502 | Z120: 120 | AA120: =IF(ISERROR('T203'!$L120),"",IF('T203'!$L120="","",'T203'!$L120)) ->  | AB120: 1 | AZ120: 330
X121: =IF(ISERROR('T203'!$B121),"",IF('T203'!$B121="","",'T203'!$B121)) -> A19514 | Y121: =IF(ISERROR('T203'!$K121),"",IF('T203'!$K121="","",'T203'!$K121)) -> A16506 | Z121: 121 | AA121: =IF(ISERROR('T203'!$L121),"",IF('T203'!$L121="","",'T203'!$L121)) ->  | AB121: 1 | AZ121: 331
X122: =IF(ISERROR('T203'!$B122),"",IF('T203'!$B122="","",'T203'!$B122)) -> A19516 | Y122: =IF(ISERROR('T203'!$K122),"",IF('T203'!$K122="","",'T203'!$K122)) -> A16508 | Z122: 122 | AA122: =IF(ISERROR('T203'!$L122),"",IF('T203'!$L122="","",'T203'!$L122)) ->  | AB122: 1 | AZ122: 333
X123: =IF(ISERROR('T203'!$B123),"",IF('T203'!$B123="","",'T203'!$B123)) -> A19518 | Y123: =IF(ISERROR('T203'!$K123),"",IF('T203'!$K123="","",'T203'!$K123)) -> A16510 | Z123: 123 | AA123: =IF(ISERROR('T203'!$L123),"",IF('T203'!$L123="","",'T203'!$L123)) ->  | AB123: 1 | AZ123: 342
X124: =IF(ISERROR('T203'!$B124),"",IF('T203'!$B124="","",'T203'!$B124)) -> A19520 | Y124: =IF(ISERROR('T203'!$K124),"",IF('T203'!$K124="","",'T203'!$K124)) -> A17008 | Z124: 124 | AA124: =IF(ISERROR('T203'!$L124),"",IF('T203'!$L124="","",'T203'!$L124)) -> 1-8 | AB124: 1 | AZ124: 346
X125: =IF(ISERROR('T203'!$B125),"",IF('T203'!$B125="","",'T203'!$B125)) -> A19522 | Y125: =IF(ISERROR('T203'!$K125),"",IF('T203'!$K125="","",'T203'!$K125)) -> A17012 | Z125: 125 | AA125: =IF(ISERROR('T203'!$L125),"",IF('T203'!$L125="","",'T203'!$L125)) -> 3 | AB125: 1 | AZ125: 368
X126: =IF(ISERROR('T203'!$B126),"",IF('T203'!$B126="","",'T203'!$B126)) -> A19524 | Y126: =IF(ISERROR('T203'!$K126),"",IF('T203'!$K126="","",'T203'!$K126)) -> A17012 | Z126: 126 | AA126: =IF(ISERROR('T203'!$L126),"",IF('T203'!$L126="","",'T203'!$L126)) -> 1-3 | AB126: 1 | AZ126: 370
X127: =IF(ISERROR('T203'!$B127),"",IF('T203'!$B127="","",'T203'!$B127)) -> A20002 | Y127: =IF(ISERROR('T203'!$K127),"",IF('T203'!$K127="","",'T203'!$K127)) -> A17020 | Z127: 127 | AA127: =IF(ISERROR('T203'!$L127),"",IF('T203'!$L127="","",'T203'!$L127)) -> 7 | AB127: 1 | AZ127: 376
X128: =IF(ISERROR('T203'!$B128),"",IF('T203'!$B128="","",'T203'!$B128)) -> A21506 | Y128: =IF(ISERROR('T203'!$K128),"",IF('T203'!$K128="","",'T203'!$K128)) -> A17020 | Z128: 128 | AA128: =IF(ISERROR('T203'!$L128),"",IF('T203'!$L128="","",'T203'!$L128)) -> 7-9 | AB128: 1 | AZ128: 380
X129: =IF(ISERROR('T203'!$B129),"",IF('T203'!$B129="","",'T203'!$B129)) -> A21516 | Y129: =IF(ISERROR('T203'!$K129),"",IF('T203'!$K129="","",'T203'!$K129)) -> A17020 | Z129: 129 | AA129: =IF(ISERROR('T203'!$L129),"",IF('T203'!$L129="","",'T203'!$L129)) -> 8-9 | AB129: 1 | AZ129: 415
X130: =IF(ISERROR('T203'!$B130),"",IF('T203'!$B130="","",'T203'!$B130)) -> A21518 | Y130: =IF(ISERROR('T203'!$K130),"",IF('T203'!$K130="","",'T203'!$K130)) -> A17024 | Z130: 130 | AA130: =IF(ISERROR('T203'!$L130),"",IF('T203'!$L130="","",'T203'!$L130)) -> 1-12 | AB130: =IF(AND(AA130="",Y130<>Y129),0,1) -> 1 | AZ130: 421
X131: =IF(ISERROR('T203'!$B131),"",IF('T203'!$B131="","",'T203'!$B131)) -> A21522 | Y131: =IF(ISERROR('T203'!$K131),"",IF('T203'!$K131="","",'T203'!$K131)) -> A17506 | Z131: 131 | AA131: =IF(ISERROR('T203'!$L131),"",IF('T203'!$L131="","",'T203'!$L131)) ->  | AB131: 1 | AZ131: 431
X132: =IF(ISERROR('T203'!$B132),"",IF('T203'!$B132="","",'T203'!$B132)) -> A21526 | Y132: =IF(ISERROR('T203'!$K132),"",IF('T203'!$K132="","",'T203'!$K132)) -> A17512 | Z132: 132 | AA132: =IF(ISERROR('T203'!$L132),"",IF('T203'!$L132="","",'T203'!$L132)) ->  | AB132: 1 | AZ132: 438
X133: =IF(ISERROR('T203'!$B133),"",IF('T203'!$B133="","",'T203'!$B133)) -> A21528 | Y133: =IF(ISERROR('T203'!$K133),"",IF('T203'!$K133="","",'T203'!$K133)) -> A17514 | Z133: =ROW(Y133) -> 133 | AA133: =IF(ISERROR('T203'!$L133),"",IF('T203'!$L133="","",'T203'!$L133)) ->  | AB133: 1 | AZ133: 460
X134: =IF(ISERROR('T203'!$B134),"",IF('T203'!$B134="","",'T203'!$B134)) -> A21530 | Y134: =IF(ISERROR('T203'!$K134),"",IF('T203'!$K134="","",'T203'!$K134)) -> A17518 | Z134: 134 | AA134: =IF(ISERROR('T203'!$L134),"",IF('T203'!$L134="","",'T203'!$L134)) ->  | AB134: 1 | AZ134: 480
X135: =IF(ISERROR('T203'!$B135),"",IF('T203'!$B135="","",'T203'!$B135)) -> A21532 | Y135: =IF(ISERROR('T203'!$K135),"",IF('T203'!$K135="","",'T203'!$K135)) -> A17520 | Z135: 135 | AA135: =IF(ISERROR('T203'!$L135),"",IF('T203'!$L135="","",'T203'!$L135)) ->  | AB135: 1 | AZ135: 534
X136: =IF(ISERROR('T203'!$B136),"",IF('T203'!$B136="","",'T203'!$B136)) -> A21534 | Y136: =IF(ISERROR('T203'!$K136),"",IF('T203'!$K136="","",'T203'!$K136)) -> A18506 | Z136: 136 | AA136: =IF(ISERROR('T203'!$L136),"",IF('T203'!$L136="","",'T203'!$L136)) ->  | AB136: 1 | AZ136: 680
X137: =IF(ISERROR('T203'!$B137),"",IF('T203'!$B137="","",'T203'!$B137)) -> A21536 | Y137: =IF(ISERROR('T203'!$K137),"",IF('T203'!$K137="","",'T203'!$K137)) -> A18514 | Z137: 137 | AA137: =IF(ISERROR('T203'!$L137),"",IF('T203'!$L137="","",'T203'!$L137)) ->  | AB137: 1 | AZ137: 922
X138: =IF(ISERROR('T203'!$B138),"",IF('T203'!$B138="","",'T203'!$B138)) -> A22002 | Y138: =IF(ISERROR('T203'!$K138),"",IF('T203'!$K138="","",'T203'!$K138)) -> A18526 | Z138: 138 | AA138: =IF(ISERROR('T203'!$L138),"",IF('T203'!$L138="","",'T203'!$L138)) ->  | AB138: 1 | AZ138: 926
X139: =IF(ISERROR('T203'!$B139),"",IF('T203'!$B139="","",'T203'!$B139)) -> A22004 | Y139: =IF(ISERROR('T203'!$K139),"",IF('T203'!$K139="","",'T203'!$K139)) -> A18528 | Z139: 139 | AA139: =IF(ISERROR('T203'!$L139),"",IF('T203'!$L139="","",'T203'!$L139)) ->  | AB139: 1 | AZ139: 930
X140: =IF(ISERROR('T203'!$B140),"",IF('T203'!$B140="","",'T203'!$B140)) -> A22008 | Y140: =IF(ISERROR('T203'!$K140),"",IF('T203'!$K140="","",'T203'!$K140)) -> A18530 | Z140: 140 | AA140: =IF(ISERROR('T203'!$L140),"",IF('T203'!$L140="","",'T203'!$L140)) ->  | AB140: 1 | AZ140: 934
X141: =IF(ISERROR('T203'!$B141),"",IF('T203'!$B141="","",'T203'!$B141)) -> A22012 | Y141: =IF(ISERROR('T203'!$K141),"",IF('T203'!$K141="","",'T203'!$K141)) -> A18534 | Z141: 141 | AA141: =IF(ISERROR('T203'!$L141),"",IF('T203'!$L141="","",'T203'!$L141)) ->  | AB141: 1 | AZ141: 946
X142: =IF(ISERROR('T203'!$B142),"",IF('T203'!$B142="","",'T203'!$B142)) -> A22014 | Y142: =IF(ISERROR('T203'!$K142),"",IF('T203'!$K142="","",'T203'!$K142)) -> A18536 | Z142: 142 | AA142: =IF(ISERROR('T203'!$L142),"",IF('T203'!$L142="","",'T203'!$L142)) ->  | AB142: 1 | AZ142: 965
X143: =IF(ISERROR('T203'!$B143),"",IF('T203'!$B143="","",'T203'!$B143)) -> A22018 | Y143: =IF(ISERROR('T203'!$K143),"",IF('T203'!$K143="","",'T203'!$K143)) -> A19006 | Z143: 143 | AA143: =IF(ISERROR('T203'!$L143),"",IF('T203'!$L143="","",'T203'!$L143)) -> 9-10 | AB143: 1
X144: =IF(ISERROR('T203'!$B144),"",IF('T203'!$B144="","",'T203'!$B144)) -> A22024 | Y144: =IF(ISERROR('T203'!$K144),"",IF('T203'!$K144="","",'T203'!$K144)) -> A19008 | Z144: 144 | AA144: =IF(ISERROR('T203'!$L144),"",IF('T203'!$L144="","",'T203'!$L144)) ->  | AB144: 1
X145: =IF(ISERROR('T203'!$B145),"",IF('T203'!$B145="","",'T203'!$B145)) -> A22032 | Y145: =IF(ISERROR('T203'!$K145),"",IF('T203'!$K145="","",'T203'!$K145)) -> A19504 | Z145: 145 | AA145: =IF(ISERROR('T203'!$L145),"",IF('T203'!$L145="","",'T203'!$L145)) ->  | AB145: 1
X146: =IF(ISERROR('T203'!$B146),"",IF('T203'!$B146="","",'T203'!$B146)) -> A22038 | Y146: =IF(ISERROR('T203'!$K146),"",IF('T203'!$K146="","",'T203'!$K146)) -> A19508 | Z146: 146 | AA146: =IF(ISERROR('T203'!$L146),"",IF('T203'!$L146="","",'T203'!$L146)) ->  | AB146: 1
X147: =IF(ISERROR('T203'!$B147),"",IF('T203'!$B147="","",'T203'!$B147)) -> A22040 | Y147: =IF(ISERROR('T203'!$K147),"",IF('T203'!$K147="","",'T203'!$K147)) -> A19512 | Z147: 147 | AA147: =IF(ISERROR('T203'!$L147),"",IF('T203'!$L147="","",'T203'!$L147)) ->  | AB147: 1
X148: =IF(ISERROR('T203'!$B148),"",IF('T203'!$B148="","",'T203'!$B148)) -> A22042 | Y148: =IF(ISERROR('T203'!$K148),"",IF('T203'!$K148="","",'T203'!$K148)) -> A19514 | Z148: 148 | AA148: =IF(ISERROR('T203'!$L148),"",IF('T203'!$L148="","",'T203'!$L148)) ->  | AB148: 1
X149: =IF(ISERROR('T203'!$B149),"",IF('T203'!$B149="","",'T203'!$B149)) -> A22060 | Y149: =IF(ISERROR('T203'!$K149),"",IF('T203'!$K149="","",'T203'!$K149)) -> A19516 | Z149: 149 | AA149: =IF(ISERROR('T203'!$L149),"",IF('T203'!$L149="","",'T203'!$L149)) ->  | AB149: 1
X150: =IF(ISERROR('T203'!$B150),"",IF('T203'!$B150="","",'T203'!$B150)) -> A22062 | Y150: =IF(ISERROR('T203'!$K150),"",IF('T203'!$K150="","",'T203'!$K150)) -> A19518 | Z150: 150 | AA150: =IF(ISERROR('T203'!$L150),"",IF('T203'!$L150="","",'T203'!$L150)) ->  | AB150: 1
X151: =IF(ISERROR('T203'!$B151),"",IF('T203'!$B151="","",'T203'!$B151)) -> A22068 | Y151: =IF(ISERROR('T203'!$K151),"",IF('T203'!$K151="","",'T203'!$K151)) -> A19520 | Z151: 151 | AA151: =IF(ISERROR('T203'!$L151),"",IF('T203'!$L151="","",'T203'!$L151)) ->  | AB151: 1
X152: =IF(ISERROR('T203'!$B152),"",IF('T203'!$B152="","",'T203'!$B152)) -> A22070 | Y152: =IF(ISERROR('T203'!$K152),"",IF('T203'!$K152="","",'T203'!$K152)) -> A19522 | Z152: 152 | AA152: =IF(ISERROR('T203'!$L152),"",IF('T203'!$L152="","",'T203'!$L152)) ->  | AB152: 1
X153: =IF(ISERROR('T203'!$B153),"",IF('T203'!$B153="","",'T203'!$B153)) -> A22072 | Y153: =IF(ISERROR('T203'!$K153),"",IF('T203'!$K153="","",'T203'!$K153)) -> A19524 | Z153: 153 | AA153: =IF(ISERROR('T203'!$L153),"",IF('T203'!$L153="","",'T203'!$L153)) ->  | AB153: 1
X154: =IF(ISERROR('T203'!$B154),"",IF('T203'!$B154="","",'T203'!$B154)) -> A22074 | Y154: =IF(ISERROR('T203'!$K154),"",IF('T203'!$K154="","",'T203'!$K154)) -> A20002 | Z154: 154 | AA154: =IF(ISERROR('T203'!$L154),"",IF('T203'!$L154="","",'T203'!$L154)) -> 25A-25E | AB154: 1
X155: =IF(ISERROR('T203'!$B155),"",IF('T203'!$B155="","",'T203'!$B155)) -> A22084 | Y155: =IF(ISERROR('T203'!$K155),"",IF('T203'!$K155="","",'T203'!$K155)) -> A21506 | Z155: 155 | AA155: =IF(ISERROR('T203'!$L155),"",IF('T203'!$L155="","",'T203'!$L155)) ->  | AB155: 1
X156: =IF(ISERROR('T203'!$B156),"",IF('T203'!$B156="","",'T203'!$B156)) -> A22090 | Y156: =IF(ISERROR('T203'!$K156),"",IF('T203'!$K156="","",'T203'!$K156)) -> A21516 | Z156: 156 | AA156: =IF(ISERROR('T203'!$L156),"",IF('T203'!$L156="","",'T203'!$L156)) ->  | AB156: 1
X157: =IF(ISERROR('T203'!$B157),"",IF('T203'!$B157="","",'T203'!$B157)) -> A22510 | Y157: =IF(ISERROR('T203'!$K157),"",IF('T203'!$K157="","",'T203'!$K157)) -> A21518 | Z157: 157 | AA157: =IF(ISERROR('T203'!$L157),"",IF('T203'!$L157="","",'T203'!$L157)) ->  | AB157: 1
X158: =IF(ISERROR('T203'!$B158),"",IF('T203'!$B158="","",'T203'!$B158)) -> A22512 | Y158: =IF(ISERROR('T203'!$K158),"",IF('T203'!$K158="","",'T203'!$K158)) -> A21522 | Z158: 158 | AA158: =IF(ISERROR('T203'!$L158),"",IF('T203'!$L158="","",'T203'!$L158)) ->  | AB158: 1
X159: =IF(ISERROR('T203'!$B159),"",IF('T203'!$B159="","",'T203'!$B159)) -> A22514 | Y159: =IF(ISERROR('T203'!$K159),"",IF('T203'!$K159="","",'T203'!$K159)) -> A21526 | Z159: 159 | AA159: =IF(ISERROR('T203'!$L159),"",IF('T203'!$L159="","",'T203'!$L159)) ->  | AB159: 1
X160: =IF(ISERROR('T203'!$B160),"",IF('T203'!$B160="","",'T203'!$B160)) -> A22518 | Y160: =IF(ISERROR('T203'!$K160),"",IF('T203'!$K160="","",'T203'!$K160)) -> A21528 | Z160: 160 | AA160: =IF(ISERROR('T203'!$L160),"",IF('T203'!$L160="","",'T203'!$L160)) ->  | AB160: 1
X161: =IF(ISERROR('T203'!$B161),"",IF('T203'!$B161="","",'T203'!$B161)) -> A22520 | Y161: =IF(ISERROR('T203'!$K161),"",IF('T203'!$K161="","",'T203'!$K161)) -> A21530 | Z161: 161 | AA161: =IF(ISERROR('T203'!$L161),"",IF('T203'!$L161="","",'T203'!$L161)) ->  | AB161: 1
X162: =IF(ISERROR('T203'!$B162),"",IF('T203'!$B162="","",'T203'!$B162)) -> A22522 | Y162: =IF(ISERROR('T203'!$K162),"",IF('T203'!$K162="","",'T203'!$K162)) -> A21532 | Z162: 162 | AA162: =IF(ISERROR('T203'!$L162),"",IF('T203'!$L162="","",'T203'!$L162)) ->  | AB162: 1
X163: =IF(ISERROR('T203'!$B163),"",IF('T203'!$B163="","",'T203'!$B163)) -> A23002 | Y163: =IF(ISERROR('T203'!$K163),"",IF('T203'!$K163="","",'T203'!$K163)) -> A21534 | Z163: 163 | AA163: =IF(ISERROR('T203'!$L163),"",IF('T203'!$L163="","",'T203'!$L163)) ->  | AB163: 1
X164: =IF(ISERROR('T203'!$B164),"",IF('T203'!$B164="","",'T203'!$B164)) -> A23004 | Y164: =IF(ISERROR('T203'!$K164),"",IF('T203'!$K164="","",'T203'!$K164)) -> A21536 | Z164: 164 | AA164: =IF(ISERROR('T203'!$L164),"",IF('T203'!$L164="","",'T203'!$L164)) ->  | AB164: 1
X165: =IF(ISERROR('T203'!$B165),"",IF('T203'!$B165="","",'T203'!$B165)) -> A23006 | Y165: =IF(ISERROR('T203'!$K165),"",IF('T203'!$K165="","",'T203'!$K165)) -> A22002 | Z165: 165 | AA165: =IF(ISERROR('T203'!$L165),"",IF('T203'!$L165="","",'T203'!$L165)) -> 1-11 | AB165: 1
X166: =IF(ISERROR('T203'!$B166),"",IF('T203'!$B166="","",'T203'!$B166)) -> A23010 | Y166: =IF(ISERROR('T203'!$K166),"",IF('T203'!$K166="","",'T203'!$K166)) -> A22002 | Z166: 166 | AA166: =IF(ISERROR('T203'!$L166),"",IF('T203'!$L166="","",'T203'!$L166)) -> 3-11 | AB166: 1
X167: =IF(ISERROR('T203'!$B167),"",IF('T203'!$B167="","",'T203'!$B167)) -> A23012 | Y167: =IF(ISERROR('T203'!$K167),"",IF('T203'!$K167="","",'T203'!$K167)) -> A22004 | Z167: 167 | AA167: =IF(ISERROR('T203'!$L167),"",IF('T203'!$L167="","",'T203'!$L167)) -> 6-9 | AB167: 1
X168: =IF(ISERROR('T203'!$B168),"",IF('T203'!$B168="","",'T203'!$B168)) -> A23016 | Y168: =IF(ISERROR('T203'!$K168),"",IF('T203'!$K168="","",'T203'!$K168)) -> A22004 | Z168: 168 | AA168: =IF(ISERROR('T203'!$L168),"",IF('T203'!$L168="","",'T203'!$L168)) -> 1-9 | AB168: 1
X169: =IF(ISERROR('T203'!$B169),"",IF('T203'!$B169="","",'T203'!$B169)) -> A23026 | Y169: =IF(ISERROR('T203'!$K169),"",IF('T203'!$K169="","",'T203'!$K169)) -> A22008 | Z169: 169 | AA169: =IF(ISERROR('T203'!$L169),"",IF('T203'!$L169="","",'T203'!$L169)) -> 2-8 | AB169: 1
X170: =IF(ISERROR('T203'!$B170),"",IF('T203'!$B170="","",'T203'!$B170)) -> A23502 | Y170: =IF(ISERROR('T203'!$K170),"",IF('T203'!$K170="","",'T203'!$K170)) -> A22012 | Z170: 170 | AA170: =IF(ISERROR('T203'!$L170),"",IF('T203'!$L170="","",'T203'!$L170)) -> 4B-6 | AB170: 1
X171: =IF(ISERROR('T203'!$B171),"",IF('T203'!$B171="","",'T203'!$B171)) -> A23504 | Y171: =IF(ISERROR('T203'!$K171),"",IF('T203'!$K171="","",'T203'!$K171)) -> A22012 | Z171: 171 | AA171: =IF(ISERROR('T203'!$L171),"",IF('T203'!$L171="","",'T203'!$L171)) -> 2-6 | AB171: 1
X172: =IF(ISERROR('T203'!$B172),"",IF('T203'!$B172="","",'T203'!$B172)) -> A23506 | Y172: =IF(ISERROR('T203'!$K172),"",IF('T203'!$K172="","",'T203'!$K172)) -> A22014 | Z172: 172 | AA172: =IF(ISERROR('T203'!$L172),"",IF('T203'!$L172="","",'T203'!$L172)) -> 1-7 | AB172: 1
X173: =IF(ISERROR('T203'!$B173),"",IF('T203'!$B173="","",'T203'!$B173)) -> A23508 | Y173: =IF(ISERROR('T203'!$K173),"",IF('T203'!$K173="","",'T203'!$K173)) -> A22014 | Z173: 173 | AA173: =IF(ISERROR('T203'!$L173),"",IF('T203'!$L173="","",'T203'!$L173)) -> 1-12 | AB173: 1
X174: =IF(ISERROR('T203'!$B174),"",IF('T203'!$B174="","",'T203'!$B174)) -> A23510 | Y174: =IF(ISERROR('T203'!$K174),"",IF('T203'!$K174="","",'T203'!$K174)) -> A22018 | Z174: 174 | AA174: =IF(ISERROR('T203'!$L174),"",IF('T203'!$L174="","",'T203'!$L174)) ->  | AB174: 1
X175: =IF(ISERROR('T203'!$B175),"",IF('T203'!$B175="","",'T203'!$B175)) -> A23514 | Y175: =IF(ISERROR('T203'!$K175),"",IF('T203'!$K175="","",'T203'!$K175)) -> A22024 | Z175: 175 | AA175: =IF(ISERROR('T203'!$L175),"",IF('T203'!$L175="","",'T203'!$L175)) -> 1-2 | AB175: 1
X176: =IF(ISERROR('T203'!$B176),"",IF('T203'!$B176="","",'T203'!$B176)) -> A23516 | Y176: =IF(ISERROR('T203'!$K176),"",IF('T203'!$K176="","",'T203'!$K176)) -> A22032 | Z176: 176 | AA176: =IF(ISERROR('T203'!$L176),"",IF('T203'!$L176="","",'T203'!$L176)) -> 1-6 | AB176: 1
X177: =IF(ISERROR('T203'!$B177),"",IF('T203'!$B177="","",'T203'!$B177)) -> A24512 | Y177: =IF(ISERROR('T203'!$K177),"",IF('T203'!$K177="","",'T203'!$K177)) -> A22038 | Z177: 177 | AA177: =IF(ISERROR('T203'!$L177),"",IF('T203'!$L177="","",'T203'!$L177)) -> 2B-6 | AB177: 1
X178: =IF(ISERROR('T203'!$B178),"",IF('T203'!$B178="","",'T203'!$B178)) -> A25510 | Y178: =IF(ISERROR('T203'!$K178),"",IF('T203'!$K178="","",'T203'!$K178)) -> A22040 | Z178: 178 | AA178: =IF(ISERROR('T203'!$L178),"",IF('T203'!$L178="","",'T203'!$L178)) -> 1-4 | AB178: 1
X179: =IF(ISERROR('T203'!$B179),"",IF('T203'!$B179="","",'T203'!$B179)) -> A25514 | Y179: =IF(ISERROR('T203'!$K179),"",IF('T203'!$K179="","",'T203'!$K179)) -> A22042 | Z179: 179 | AA179: =IF(ISERROR('T203'!$L179),"",IF('T203'!$L179="","",'T203'!$L179)) -> 1-10 | AB179: 1
X180: =IF(ISERROR('T203'!$B180),"",IF('T203'!$B180="","",'T203'!$B180)) -> A25516 | Y180: =IF(ISERROR('T203'!$K180),"",IF('T203'!$K180="","",'T203'!$K180)) -> A22060 | Z180: 180 | AA180: =IF(ISERROR('T203'!$L180),"",IF('T203'!$L180="","",'T203'!$L180)) -> 2-5 | AB180: 1
X181: =IF(ISERROR('T203'!$B181),"",IF('T203'!$B181="","",'T203'!$B181)) -> A25518 | Y181: =IF(ISERROR('T203'!$K181),"",IF('T203'!$K181="","",'T203'!$K181)) -> A22060 | Z181: 181 | AA181: =IF(ISERROR('T203'!$L181),"",IF('T203'!$L181="","",'T203'!$L181)) -> 1-5 | AB181: 1
X182: =IF(ISERROR('T203'!$B182),"",IF('T203'!$B182="","",'T203'!$B182)) -> A26004 | Y182: =IF(ISERROR('T203'!$K182),"",IF('T203'!$K182="","",'T203'!$K182)) -> A22062 | Z182: 182 | AA182: =IF(ISERROR('T203'!$L182),"",IF('T203'!$L182="","",'T203'!$L182)) -> 6-10 | AB182: 1
X183: =IF(ISERROR('T203'!$B183),"",IF('T203'!$B183="","",'T203'!$B183)) -> A26006 | Y183: =IF(ISERROR('T203'!$K183),"",IF('T203'!$K183="","",'T203'!$K183)) -> A22068 | Z183: 183 | AA183: =IF(ISERROR('T203'!$L183),"",IF('T203'!$L183="","",'T203'!$L183)) -> 1-8 | AB183: 1
X184: =IF(ISERROR('T203'!$B184),"",IF('T203'!$B184="","",'T203'!$B184)) -> A26502 | Y184: =IF(ISERROR('T203'!$K184),"",IF('T203'!$K184="","",'T203'!$K184)) -> A22070 | Z184: 184 | AA184: =IF(ISERROR('T203'!$L184),"",IF('T203'!$L184="","",'T203'!$L184)) -> 1-3 | AB184: 1
X185: =IF(ISERROR('T203'!$B185),"",IF('T203'!$B185="","",'T203'!$B185)) -> A27002 | Y185: =IF(ISERROR('T203'!$K185),"",IF('T203'!$K185="","",'T203'!$K185)) -> A22072 | Z185: 185 | AA185: =IF(ISERROR('T203'!$L185),"",IF('T203'!$L185="","",'T203'!$L185)) -> 3-4 | AB185: 1
X186: =IF(ISERROR('T203'!$B186),"",IF('T203'!$B186="","",'T203'!$B186)) -> A27008 | Y186: =IF(ISERROR('T203'!$K186),"",IF('T203'!$K186="","",'T203'!$K186)) -> A22072 | Z186: 186 | AA186: =IF(ISERROR('T203'!$L186),"",IF('T203'!$L186="","",'T203'!$L186)) -> 1 | AB186: 1
X187: =IF(ISERROR('T203'!$B187),"",IF('T203'!$B187="","",'T203'!$B187)) -> A28008 | Y187: =IF(ISERROR('T203'!$K187),"",IF('T203'!$K187="","",'T203'!$K187)) -> A22074 | Z187: 187 | AA187: =IF(ISERROR('T203'!$L187),"",IF('T203'!$L187="","",'T203'!$L187)) -> 1-2 | AB187: 1
X188: =IF(ISERROR('T203'!$B188),"",IF('T203'!$B188="","",'T203'!$B188)) -> A28012 | Y188: =IF(ISERROR('T203'!$K188),"",IF('T203'!$K188="","",'T203'!$K188)) -> A22084 | Z188: 188 | AA188: =IF(ISERROR('T203'!$L188),"",IF('T203'!$L188="","",'T203'!$L188)) -> 6-9 | AB188: 1
X189: =IF(ISERROR('T203'!$B189),"",IF('T203'!$B189="","",'T203'!$B189)) -> A28014 | Y189: =IF(ISERROR('T203'!$K189),"",IF('T203'!$K189="","",'T203'!$K189)) -> A22090 | Z189: 189 | AA189: =IF(ISERROR('T203'!$L189),"",IF('T203'!$L189="","",'T203'!$L189)) -> S1C-S1D | AB189: 1
X190: =IF(ISERROR('T203'!$B190),"",IF('T203'!$B190="","",'T203'!$B190)) -> A28016 | Y190: =IF(ISERROR('T203'!$K190),"",IF('T203'!$K190="","",'T203'!$K190)) -> A22090 | Z190: 190 | AA190: =IF(ISERROR('T203'!$L190),"",IF('T203'!$L190="","",'T203'!$L190)) -> S1B | AB190: 1
X191: =IF(ISERROR('T203'!$B191),"",IF('T203'!$B191="","",'T203'!$B191)) -> A28020 | Y191: =IF(ISERROR('T203'!$K191),"",IF('T203'!$K191="","",'T203'!$K191)) -> A22090 | Z191: 191 | AA191: =IF(ISERROR('T203'!$L191),"",IF('T203'!$L191="","",'T203'!$L191)) -> S1B-S1D | AB191: 1
X192: =IF(ISERROR('T203'!$B192),"",IF('T203'!$B192="","",'T203'!$B192)) -> A28030 | Y192: =IF(ISERROR('T203'!$K192),"",IF('T203'!$K192="","",'T203'!$K192)) -> A22090 | Z192: 192 | AA192: =IF(ISERROR('T203'!$L192),"",IF('T203'!$L192="","",'T203'!$L192)) -> G4 | AB192: 1
X193: =IF(ISERROR('T203'!$B193),"",IF('T203'!$B193="","",'T203'!$B193)) -> A28038 | Y193: =IF(ISERROR('T203'!$K193),"",IF('T203'!$K193="","",'T203'!$K193)) -> A22510 | Z193: 193 | AA193: =IF(ISERROR('T203'!$L193),"",IF('T203'!$L193="","",'T203'!$L193)) ->  | AB193: 1
X194: =IF(ISERROR('T203'!$B194),"",IF('T203'!$B194="","",'T203'!$B194)) -> A28040 | Y194: =IF(ISERROR('T203'!$K194),"",IF('T203'!$K194="","",'T203'!$K194)) -> A22512 | Z194: 194 | AA194: =IF(ISERROR('T203'!$L194),"",IF('T203'!$L194="","",'T203'!$L194)) ->  | AB194: =IF(AND(AA194="",Y194<>Y193),0,1) -> 1
X195: =IF(ISERROR('T203'!$B195),"",IF('T203'!$B195="","",'T203'!$B195)) -> A28042 | Y195: =IF(ISERROR('T203'!$K195),"",IF('T203'!$K195="","",'T203'!$K195)) -> A22514 | Z195: 195 | AA195: =IF(ISERROR('T203'!$L195),"",IF('T203'!$L195="","",'T203'!$L195)) ->  | AB195: 1
X196: =IF(ISERROR('T203'!$B196),"",IF('T203'!$B196="","",'T203'!$B196)) -> A28044 | Y196: =IF(ISERROR('T203'!$K196),"",IF('T203'!$K196="","",'T203'!$K196)) -> A22518 | Z196: 196 | AA196: =IF(ISERROR('T203'!$L196),"",IF('T203'!$L196="","",'T203'!$L196)) ->  | AB196: 1
X197: =IF(ISERROR('T203'!$B197),"",IF('T203'!$B197="","",'T203'!$B197)) -> A28052 | Y197: =IF(ISERROR('T203'!$K197),"",IF('T203'!$K197="","",'T203'!$K197)) -> A22520 | Z197: =ROW(Y197) -> 197 | AA197: =IF(ISERROR('T203'!$L197),"",IF('T203'!$L197="","",'T203'!$L197)) ->  | AB197: 1
X198: =IF(ISERROR('T203'!$B198),"",IF('T203'!$B198="","",'T203'!$B198)) -> A28058 | Y198: =IF(ISERROR('T203'!$K198),"",IF('T203'!$K198="","",'T203'!$K198)) -> A22522 | Z198: 198 | AA198: =IF(ISERROR('T203'!$L198),"",IF('T203'!$L198="","",'T203'!$L198)) ->  | AB198: 1
X199: =IF(ISERROR('T203'!$B199),"",IF('T203'!$B199="","",'T203'!$B199)) -> A28504 | Y199: =IF(ISERROR('T203'!$K199),"",IF('T203'!$K199="","",'T203'!$K199)) -> A23002 | Z199: 199 | AA199: =IF(ISERROR('T203'!$L199),"",IF('T203'!$L199="","",'T203'!$L199)) -> 1-2 | AB199: 1
X200: =IF(ISERROR('T203'!$B200),"",IF('T203'!$B200="","",'T203'!$B200)) -> A28510 | Y200: =IF(ISERROR('T203'!$K200),"",IF('T203'!$K200="","",'T203'!$K200)) -> A23004 | Z200: 200 | AA200: =IF(ISERROR('T203'!$L200),"",IF('T203'!$L200="","",'T203'!$L200)) -> 1-2 | AB200: 1
... 792 more rows

Sheet RAM
B1: =CONCATENATE("COMBINED RECYCLED ASPHALT MATERIALS (RAM) (",Input!C31,")") -> COMBINED RECYCLED ASPHALT MATERIALS (RAM) (4BD11-18) | T1: =IF(S23="","",IF(S23<99.9,S2+0.2,IF(S23<100,S2+0.1,IF(S23>100.1,S2-0.2,IF(S23>100,S2-0.1,S2))))) -> 
S2: =IF(SUM(S9:S20)=0,"",MAX(S9:S20)) ->  | T2: =IF(S23="","",IF(S3<(S2/2),T1,IF(S23<100,MAX(S9:S20)+0.1,IF(S23>100,MAX(S9:S20)-0.1,S2)))) ->  | U2: =IF(K12="","",IF(N16="",100,100-O15)) ->  | V2: =IF($K12="","",IF(N16="",0,IF(S9="",$T1,IF(S9=$S2,$T2,IF(S9=$S3,$T3,IF(S9=$S4,$T4,IF(S9=$S5,$T5,IF(S9=$S6,$T6,S9)))))))) -> 
B3: Aggregate Type | F3: Friction Type (Best in blend) | H3: RAP Source | J3: %RAM in Total Aggregate | N3: RAS Source | P3: =B37 -> Tons of Dry RAM Used Today (Totalizer) | S3: =IF(SUM(S9:S20)=0,"",LARGE(S9:S20,2)) ->  | T3: =IF(S23="","",IF(T23<99.95,LARGE(S9:S20,2)+0.1,IF(T23>100.05,LARGE(S9:S20,2)-0.1,S3))) ->  | U3: =IF(U2="","",U2-V2) ->  | V3: =IF($K12="","",IF(N17="",0,IF(S10="",$T1,IF(S10=$S2,$T2,IF(S10=$S3,$T3,IF(S10=$S4,$T4,IF(S10=$S5,$T5,IF(S10=$S6,$T6,S10)))))))) -> 
B4: Al2O3 | C4: Description | E4: A or B | S4: =IF(SUM(S9:S20)=0,"",LARGE(S9:S20,3)) ->  | T4: =IF(S23="","",IF(U23<99.95,LARGE(S9:S20,3)+0.1,IF(U23>100.05,LARGE(S9:S20,3)-0.1,S4))) ->  | U4: =IF(U3="","",U3-V3) ->  | V4: =IF($K12="","",IF(N18="",0,IF(S11="",$T1,IF(S11=$S2,$T2,IF(S11=$S3,$T3,IF(S11=$S4,$T4,IF(S11=$S5,$T5,IF(S11=$S6,$T6,S11)))))))) -> 
B5: =K41 ->  | C5: =IF(AND(SUM(D31:H31)>0,I31>0),"RAP/RAS",IF(AND(I31=0,SUM(D31:H31)>0),IF(OR(CONCATENATE(D39,L37,E39,M37,F39,N37,H39)="",CONCATENATE(D39,L37,E39,M37,F39,N37,H39)="/"),"RAP","RAP"),IF(AND(SUM(D31:H31)=0,I31>0),IF(I39="","RAS",I39),""))) -> RAP | E5: =K42 -> A | F5: =IF(ISERROR(IF(AND(K49<>"",K49>0),2,IF(AND(K50<>"",K50>0),3,IF(AND(K51<>"",K51>0),4,"")))),"",IF(AND(K49<>"",K49>0),2,IF(AND(K50<>"",K50>0),3,IF(AND(K51<>"",K51>0),4,"")))) -> 2 | H5: =IF(SUM(D31:I31)=0,"",CONCATENATE(D40,IF(E40<>"",CONCATENATE("/",E40),E40),IF(F40<>"",CONCATENATE("/",F40),F40),IF(H40<>"",CONCATENATE("/",H40),H40))) -> Fremont Co. | J5: =IF(OR(K43<>100,(Input!J58+Input!K58)=0,(Input!J58+Input!K58)=""),"",IF(SUM(D31:I31)=0,"",IF(AND(SUM(I31)>0,SUM(D31:H31)>0),CONCATENATE(ROUND(SUM(D31:H31)/100*(Input!J58+Input!K58),1),"% RAP/",ROUND(SUM(I31)/100*(Input!J58+Input!K58),1),"% RAS (",ROUND(Input!J45,1),"% AC)"),IF(AND(SUM(I31)=0,SUM(D31:H31)>0),CONCATENATE(IF(ROUND(SUM(D31)/100*(Input!J58+Input!K58),1)>0,ROUND(SUM(D31)/100*(Input!J58+Input!K58),1),""),IF(ROUND(SUM(D31)/100*(Input!J58+Input!K58),1)>0,"% ",""),IF(ROUND(SUM(D31)/100*(Input!J58+Input!K58),1)>0,D255,""),IF(E255<>"",CONCATENATE(IF(ROUND(SUM(D31)/100*(Input!J58+Input!K58),1)>0,"/",""),IF(ROUND(SUM(E31)/100*(Input!J58+Input!K58),1)>0,ROUND(SUM(E31)/100*(Input!J58+Input!K58),1),""),IF(ROUND(SUM(E31)/100*(Input!J58+Input!K58),1)>0,"% ",""),IF(ROUND(SUM(E31)/100*(Input!J58+Input!K58),1)>0,E255,""))," RAP"),IF(F255<>"",CONCATENATE(IF(ROUND(SUM(E31)/100*(Input!J58+Input!K58),1)>0,"/",""),ROUND(SUM(F31)/100*(Input!J58+Input!K58),1),"% ",F255),""),IF(H255<>"",CONCATENATE("/",ROUND(SUM(H31)/100*(Input!J58+Input!K58),1),"% ",H255),"")," (",ROUND(Input!J45,2)," % AC)"),CONCATENATE(ROUND(SUM(I31)/100*(Input!J58+Input!K58),1)," % RAS (",ROUND(Input!J45,1)," % AC)"))))) -> 15% ABC1-50 RAP (4.22 % AC) | P5: =SUM(D37:I37) -> 0 | S5: =IF(SUM(S9:S20)=0,"",LARGE(S9:S20,4)) ->  | T5: =IF(S23="","",IF(V23<99.95,LARGE(S9:S20,4)+0.1,IF(V23>100.05,LARGE(S9:S20,4)-0.1,S5))) ->  | V5: =IF($K12="","",IF(N19="",0,IF(S12="",$T1,IF(S12=$S2,$T2,IF(S12=$S3,$T3,IF(S12=$S4,$T4,IF(S12=$S5,$T5,IF(S12=$S6,$T6,S12)))))))) -> 
S6: =IF(SUM(S9:S20)=0,"",LARGE(S9:S20,5)) ->  | T6: =IF(S23="","",IF(W23<99.95,S6+0.1,IF(W23>100.05,S6-0.1,S6))) ->  | V6: =IF($K12="","",IF(N20="",0,IF(S13="",$T1,IF(S13=$S2,$T2,IF(S13=$S3,$T3,IF(S13=$S4,$T4,IF(S13=$S5,$T5,IF(S13=$S6,$T6,S13)))))))) -> 
B7: Combined Gradation | H7: % Passing | K7: Sieve Size (in.) | O7: Gsb | P7: Abs. | Q7: FAA | S7: =IF(K12="","","Raw % Ret.") ->  | V7: =IF($K12="","",IF(N21="",0,IF(S14="",$T1,IF(S14=$S2,$T2,IF(S14=$S3,$T3,IF(S14=$S4,$T4,IF(S14=$S5,$T5,IF(S14=$S6,$T6,S14)))))))) -> 
B8: 1 1/2" | C8: 1" | D8: 3/4" | E8: 1/2" | F8: 3/8" | H8: #4 | I8: #8 | J8: #16 | K8: #30 | L8: #50 | M8: #100 | N8: #200 | V8: =IF($K12="","",IF(N22="",0,IF(S15="",$T1,IF(S15=$S2,$T2,IF(S15=$S3,$T3,IF(S15=$S4,$T4,IF(S15=$S5,$T5,IF(S15=$S6,$T6,S15)))))))) -> 
B9: =IF(K43<>100,"",IF(SUM($D31:$I31)=0,"",D61)) -> 100 | C9: =IF(K43<>100,"",IF(SUM($D31:$I31)=0,"",E61)) -> 100 | D9: =IF(K43<>100,"",IF(SUM($D31:$I31)=0,"",F61)) -> 100 | E9: =IF(K43<>100,"",IF(SUM($D31:$I31)=0,"",H61)) -> 95 | F9: =IF(K43<>100,"",IF(SUM($D31:$I31)=0,"",I61)) -> 88 | H9: =IF(K43<>100,"",IF(SUM($D31:$I31)=0,"",J61)) -> 68 | I9: =IF(K43<>100,"",IF(SUM($D31:$I31)=0,"",K61)) -> 52 | J9: =IF(K43<>100,"",IF(SUM($D31:$I31)=0,"",L61)) -> 40 | K9: =IF(K43<>100,"",IF(SUM($D31:$I31)=0,"",M61)) -> 30 | L9: =IF(K43<>100,"",IF(SUM($D31:$I31)=0,"",N61)) -> 20 | M9: =IF(K43<>100,"",IF(SUM($D31:$I31)=0,"",O61)) -> 14 | N9: =IF(K43<>100,"",IF(SUM($D31:$I31)=0,"",P61)) -> 11.6 | O9: =IF(K43<>100,"",IF(OR(ISERROR(K45),K45=""),"",K45)) -> 2.574 | P9: =IF(K43<>100,"",IF(OR(ISERROR(K46),K46=""),"",K46)) -> 1.38 | Q9: =IF(K43<>100,"",IF(OR(ISERROR(K47),K47=""),"",K47)) -> 41.7 | S9: =IF($K12="","",ROUND((N16/$K12)*100,1)) ->  | V9: =IF($K12="","",IF(N23="",0,IF(S16="",$T1,IF(S16=$S2,$T2,IF(S16=$S3,$T3,IF(S16=$S4,$T4,IF(S16=$S5,$T5,IF(S16=$S6,$T6,S16)))))))) -> 
S10: =IF($K12="","",ROUND((N17/$K12)*100,1)) ->  | V10: =IF($K12="","",IF(N24="",0,IF(S17="",$T1,IF(S17=$S2,$T2,IF(S17=$S3,$T3,IF(S17=$S4,$T4,IF(S17=$S5,$T5,IF(S17=$S6,$T6,S17)))))))) -> 
B11: Apparent Agg. Specific Gravity (Gsa) | I11: SIEVE ANALYSIS | M11: SIEVE ANALYSIS | S11: =IF($K12="","",ROUND((N18/$K12)*100,1)) ->  | V11: =IF($K12="","",IF(N25="",0,IF(S18="",$T1,IF(S18=$S2,$T2,IF(S18=$S3,$T3,IF(S18=$S4,$T4,IF(S18=$S5,$T5,IF(S18=$S6,$T6,S18)))))))) -> 
B12: Wt. Sample | I12: Wt. Sample | M12: Split sample method | S12: =IF($K12="","",ROUND((N19/$K12)*100,1)) ->  | V12: =IF($K12="","",IF(N26="",0,IF(S19="",$T1,IF(S19=$S2,$T2,IF(S19=$S3,$T3,IF(S19=$S4,$T4,IF(S19=$S5,$T5,IF(S19=$S6,$T6,S19)))))))) -> 
B13: Wt. pyc & water & sample | I13: Washed Weight | M13: Sieve | O13: % | P13: % | Q13: Final | S13: =IF($K12="","",ROUND((N20/$K12)*100,1)) ->  | V13: =IF($K12="","",IF(N27="",0,IF(S20="",$T1,IF(S20=$S2,$T2,IF(S20=$S3,$T3,IF(S20=$S4,$T4,IF(S20=$S5,$T5,IF(S20=$S6,$T6,S20)))))))) -> 
B14: Wt. pyc & water @ test temp | M14: ( in. ) | N14: WT. | O14: Ret. | P14: Pass | Q14: Grad. | S14: =IF($K12="","",ROUND((N21/$K12)*100,1)) -> 
B15: Test Temp. deg F | I15: Compressed Angularity | M15: 1 1/2" | P15: =IF($K$12="","",U2) ->  | Q15: =P15 ->  | S15: =IF($K12="","",ROUND((N22/$K12)*100,1)) -> 
B16: Gsa | F16: =IF(F12="","",IF(F13="","",IF(F14="","",IF(F15="","",VLOOKUP(F15,#REF!,2)*F12/(F12+F14-F13))))) ->  | I16: Compaction | K16: mm | M16: 1" | O16: =IF(V2="","",V2) ->  | P16: =IF($K$12="","",U3) ->  | Q16: =IF(P16="","",IF(P16>10,ROUND(P16,0),ROUND(P16,1))) ->  | S16: =IF($K12="","",ROUND((N23/$K12)*100,1)) ->  | U16: =IF(S23="","",(100-S23)/(100)) ->  | V16: =IF(S23="","",(S23-100)/100) -> 
I17: 600 kPa | M17: 3/4" | O17: =IF(V3="","",V3) ->  | S17: =IF($K12="","",ROUND((N24/$K12)*100,1)) -> 
B18: Gsb & %Abs | E18: + # 8 | F18: - # 8 | I18: Comp. FAA | K18: =IF(K17=0,"",IF(F28="","",IF(E22="","",((((F30-K17)-(F28/E22))/(F30-K17))*100)))) ->  | M18: 1/2" | S18: =IF($K12="","",ROUND((N25/$K12)*100,1)) -> 
B19: Wt. SSD Material | H19: =IF(F19="","",IF(F20="","",(F19-F20)*100/F20)) ->  | I19: Comp. Index | K19: =IF(K17="","",SLOPE(S27:S30,T27:T30)) ->  | M19: 3/8" | S19: =IF($K12="","",ROUND((N26/$K12)*100,1)) -> 
B20: Wt. Dry Material | H20: =IF(E19="","",IF(E20="","",(E19-E20)*100/E20)) ->  | M20: #4 | S20: =IF($K12="","",ROUND(((N27+N28)/$K12)*100,1)) -> 
B21: % Abs. | E21: =IF(H19="",IF(H20="","",H20),IF(H20="",H19,((E19+F19)-(E20+F20))*100/(E20+F20))) ->  | F21: =IF(F19="",IF(F20="","",F20),IF(F20="",F19,((D19+E19)-(D20+E20))*100/(D20+E20))) ->  | M21: #8
B22: Gsb | E22: =IF(F16="","",IF(E21="","",F16/(1+E21*F16*0.01))) ->  | M22: #16 | T22: =IF(T2="","",T2-S2) ->  | U22: =IF(T3="","",T3-S3) ->  | V22: =IF(T4="","",T4-S4) ->  | W22: =IF(T5="","",T5-S5) ->  | X22: =IF(T6="","",T6-S6) -> 
I23: Definition of Comp. Index | M23: #30 | S23: =IF(SUM(S9:S20)=0,"",ROUND(SUM(S9:S20),1)) ->  | T23: =IF(S23="","",S23+T22) ->  | U23: =IF(T23="","",T23+U22) ->  | V23: =IF(U23="","",U23+V22) ->  | W23: =IF(V23="","",V23+W22) ->  | X23: =IF(W23="","",W23+X22) -> 
B24: Fine Aggregate Angularity | F24: Method A | I24: RAM | M24: #50
I25: % RAM Binder | K25: =IF(OR(ISERROR(K44),K44=0,K44=""),"",K44) -> 4.22 | M25: #100
B26: Wt. in cylinder | M26: #200 | Q26: =IF(P26="","",IF(P26>10,ROUND(P26,1),ROUND(P26,1))) ->  | S26: Compressed Angularity
B27: Wt. in cylinder | I27: HOME | M27: Pan | O27: =IF(V13="","",V13) ->  | S27: 1e-06 | T27: 0
B28: Average wt. in cylinder | F28: =IF(F26="","",IF(F27="","",IF(SUM(F26:H27)=0,"",AVERAGE(F26:H27)))) ->  | M28: Wash | N28: =IF(K12="","",K12-K13) ->  | S28: 30
B29: Fine Agg. Angularity | F29: =IF(F30="","",IF(SUM(F26:F27)=0,"",IF(E22="","",(F30-((F26+F27)/2)/E22)*100/F30))) ->  | L29: =IF(K12="","",IF(S23<99.49,"",IF(S23<100,"Percent Retained Corrected by adding",IF(S23=100,"No Correction Required",IF(S23<100.51,"Percent Retained Corrected by subtracting",""))))) ->  | M29: Total | N29: =IF(K13="","",SUM(N15:N28)) ->  | O29: =IF(SUM(O15:O28)=0,"",SUM(O15:O28)) ->  | S29: 60
B30: Cylinder's Calibrated Volume (mL) | L30: =IF(K12="","",IF(S23<99.49,"Out of Tolerance Allready Corrected by .5%",IF(S23<100,U16,IF(S23=100,"100.0%",IF(S23<100.51,V16,"Out of Tolerance Already Corrected by .5%"))))) ->  | M30: Check | N30: =IF(N29="","",ROUND(N29/K12*100,2)) ->  | S30: 90 | T30: =K17 -> 0
B31: As-Built RAM Blend | D31: =IF(Tank!$T$58=1,D43,IF(SUM($D37:$I37)=0,D43,100*D37/SUM($D37:$I37))) -> 100 | E31: =IF(Tank!$T$58=1,E43,IF(SUM($D37:$I37)=0,E43,100*E37/SUM($D37:$I37))) -> 0 | F31: =IF(Tank!$T$58=1,F43,IF(SUM($D37:$I37)=0,F43,100*F37/SUM($D37:$I37))) -> 0 | H31: =IF(Tank!$T$58=1,H43,IF(SUM($D37:$I37)=0,H43,100*H37/SUM($D37:$I37))) -> 0 | I31: =IF(Tank!$T$58=1,I43,IF(SUM($D37:$I37)=0,I43,100*I37/SUM($D37:$I37))) -> 0
D32: =Z88 -> 1 | E32: =AA88 -> 0 | F32: =AB88 -> 0 | H32: =AC88 -> 0 | I32: =AD88 -> 0
H33: Are all RAMs fed on the SAME Belt? | K33: =Tank!T58 -> 1 | AE33: Cessford (Legrand)
D34: =IF(D45>0,100*D32/D45,"") -> 38.85003885 | E34: =IF(E45>0,100*E32/E45,"") ->  | F34: =IF(F45>0,100*F32/F45,"") ->  | H34: =IF(H45>0,100*H32/H45,"") ->  | I34: =IF(I45>0,100*I32/I45,"") ->  | AE34: Concrete Materials (SF)
B35: =Input!K38 -> L-5 | D35: =IF(D31=0,0,1) -> 1 | E35: =IF(E31=0,0,1) -> 0 | F35: =IF(F31=0,0,1) -> 0 | H35: =IF(H31=0,0,1) -> 0 | I35: =IF(I31=0,0,1) -> 0 | AE35: Dem-Con
C36: (As Produced %) → | D36: =CONCATENATE("RAP #1 (",TEXT(D31/100,"0.0%"),")") -> RAP #1 (100.0%) | E36: =CONCATENATE("RAP #2 (",TEXT(E31/100,"0.0%"),")") -> RAP #2 (0.0%) | F36: =CONCATENATE("RAP #3 (",TEXT(F31/100,"0.0%"),")") -> RAP #3 (0.0%) | H36: =CONCATENATE("RAP #4 (",TEXT(H31/100,"0.0%"),")") -> RAP #4 (0.0%) | I36: =CONCATENATE("RAS (",TEXT(I31/100,"0.0%"),")") -> RAS (0.0%) | J36: =IF(Tank!$T$58=1,"Total RAM Tons","") -> Total RAM Tons | R36: Classified | AE36: Des Moines County RSWC
B37: =IF(Tank!$T$59="Yes",IF(Tank!AB4=2,"Mg's of Dry RAM Used Today (Totalizer)","Tons of Dry RAM Used Today (Totalizer)"),IF(Tank!AB4=2,"Mg's of Dry RAM Used Today (Totalizer)","Tons of Dry RAM Used Today (Totalizer)")) -> Tons of Dry RAM Used Today (Totalizer) | J37: 224.83 | K37: =Input!Q1 -> 100000000 | L37: =IF(E40="","","/") ->  | M37: =IF(F40="","","/") ->  | N37: =IF(H40="","","/") ->  | R37: Certified | AE37: DMASWA (Dubuque)
B38: DOT ABC Number | D38: ABC1-50 | K38: RAP #1 | L38: RAP #2 | M38: RAP #3 | N38: RAP #4 | O38: RAS | R38: Unclassified | AE38: RAS Suppliers (Marion)
B39: RAP Type | D39: Classified | K39: =IF(SUM(D31)=0,"",IF(D39="Classified",100,IF(D39="Certified",IF(AND(K37<=300000,Input!$Q$1="Surface"),10,IF(OR(AND(K37>300000,Input!$Q$1="Surface"),AND(K37>=3000000,Input!$Q$1="Intermediate")),0,20)),IF(AND(K37<=300000,Input!$Q$1="Surface"),0,IF(OR(AND(K37>300000,Input!$Q$1="Surface"),AND(K37>=3000000,Input!$Q$1="Intermediate")),0,10))))) -> 100 | L39: =IF(SUM(E31)=0,"",IF(E39="Classified",100,IF(E39="Certified",IF(AND(K37<=300000,Input!$Q$1="Surface"),10,IF(OR(AND(K37>300000,Input!$Q$1="Surface"),AND(K37>=3000000,Input!$Q$1="Intermediate")),0,20)),IF(AND(K37<=300000,Input!$Q$1="Surface"),0,IF(OR(AND(K37>300000,Input!$Q$1="Surface"),AND(K37>=3000000,Input!$Q$1="Intermediate")),0,10))))) ->  | M39: =IF(SUM(F31)=0,"",IF(F39="Classified",100,IF(F39="Certified",IF(AND(K37<=300000,Input!$Q$1="Surface"),10,IF(OR(AND(K37>300000,Input!$Q$1="Surface"),AND(K37>=3000000,Input!$Q$1="Intermediate")),0,20)),IF(AND(K37<=300000,Input!$Q$1="Surface"),0,IF(OR(AND(K37>300000,Input!$Q$1="Surface"),AND(K37>=3000000,Input!$Q$1="Intermediate")),0,10))))) ->  | N39: =IF(SUM(G31)=0,"",IF(G39="Classified",100,IF(G39="Certified",IF(AND(K37<=300000,Input!$Q$1="Surface"),10,IF(OR(AND(K37>300000,Input!$Q$1="Surface"),AND(K37>=3000000,Input!$Q$1="Intermediate")),0,20)),IF(AND(K37<=300000,Input!$Q$1="Surface"),0,IF(OR(AND(K37>300000,Input!$Q$1="Surface"),AND(K37>=3000000,Input!$Q$1="Intermediate")),0,10))))) ->  | O39: =IF(SUM(I31)=0,101,5) -> 101 | P39: =IF(ROUND(D31*(Input!J58+Input!K58)/100,1)>K39,1,0) -> 0 | Q39: =IF(ROUND(E31*(Input!J58+Input!K58)/100,1)>L39,1,0) -> 0 | R39: =IF(ROUND(F31*(Input!J58+Input!K58)/100,1)>M39,1,0) -> 0 | S39: =IF(ROUND(H31*(Input!J58+Input!K58)/100,1)>N39,1,0) -> 0 | T39: =IF(ROUND(I31*(Input!J58+Input!K58)/100,1)>O39,1,0) -> 0 | AE39: MWA (DSM)
B40: Original Source or Mix Design # | D40: Fremont Co. | K40: Combined | AE40: Plymouth Co. SWA
B41: =IF(Input!BS4<36,"","Al2O3") ->  | K41: =IF(OR(ISERROR(MAX(D41:H41)),MAX(D41:H41)<=0),"",MAX(IF(D31:H31>0,D41:H41))) ->  | AE41: R2R (Cedar Rapids)
B42: A or B | D42: A | K42: =IF(AND(D42="",E42="",F42="",H42=""),"",IF(OR(AND(D31>0,OR(D42="B",D41>Settings!$B$81)),AND(E31>0,OR(E42="B",RAM!E41>Settings!$B$81)),AND(F31>0,OR(F42="B",RAM!F41>Settings!$B$81)),AND(H31>0,OR(H42="B",RAM!H41>Settings!$B$81))),"B","A")) -> A | AD42: A | AE42: R2R (Newton)
B43: Design % of total RAM Blend | D43: 100 | K43: =IF(AND(D31="",I31=""),"",SUM(D31:I31)) -> 100 | L43: <Must = 100 | AD43: B | AE43: R2R (Waterloo)
B44: Pb (DOT Results) | D44: 4.22 | K44: =IF(AND(D44="",I44=""),"",SUM(((D44*D31)+(E44*E31)+(F44*F31)+(H44*H31)+(I31*AC79))/100)) -> 4.22 | AE44: R2R (WDM)
B45: Gsb | D45: 2.574 | I45: =IF(I$31>0,100/(Z83/Z80+AA83/AA80+AB83/AB80+AD80/AD83),"") ->  | K45: =IF(SUM(D35:I35)=0,"",ROUND(100/SUMIF(D35:I35,1,D34:I34),3)) -> 2.574 | AE45: R2R (Omaha)
B46: % Abs | D46: 1.38 | I46: =IF(SUM(I31=0),"",((Z81*Z83+AA83*AA81)/100)/0.55) ->  | K46: =IF(SUM(D31:I31)=0,"",SUM(((SUM(D46)*D32)+(SUM(E46)*E32)+(SUM(F46)*F32)+(SUM(H46)*H32)+(SUM(I46)*I32)))) -> 1.38 | AE46: Scott County
B47: FAA | D47: 41.7 | I47: =IF(I$31>0,45,"") ->  | K47: =IF(ISERROR(IF(J61="","",P72)),"",IF(J61="","",P72)) -> 41.7 | AE47: Other
B48: % of -4 that is Type 2 | I48: =IF(I$31>0,0,"") ->  | K48: =IF(ISERROR(0.5*AD48),"",0.5*AD48) -> 0 | L48: 50% Credit (Classified only) | T48: =IF(D$39<>"Classified",0,D48) -> 0 | U48: 0 | V48: 0 | X48: =IF(H$39<>"Classified",0,H48) -> 0 | AD48: =IF(OR(J61="",J61=0),"",((((J56)*(D32)*(T48/100))+((J57)*(E32)*(U48/100))+((J58)*(F32)*(V48/100))+((SUM(J60))*(I32)*(SUM(I48)/100))+((J59)*(H32)*(X48/100)))*100)/J61) -> 0 | AE48: =IF(OR(J79="",J79=0),"",((((J75)*(D32)*(T48/100))+((J76)*(E32)*(U48/100))+((J77)*(F32)*(V48/100))+((J78)*(H32)*(X48/100)))*100)/J79) -> 0
B49: % of +4 that is Type 2 | D49: 12 | I49: =IF(I$31>0,0,"") ->  | K49: =IF(ISERROR(0.5*AD49),"",0.5*AD49) -> 6 | L49: 50% Credit (Classified only) | T49: 12 | U49: 0 | V49: 0 | X49: =IF(H$39<>"Classified",0,H49) -> 0 | AD49: =IF(ISERROR(IF(J62="","",((((100-J56)*(D32)*(T49/100))+((100-J57)*(E32)*(U49/100))+((100-J58)*(F32)*(V49/100))+((100-SUM(J60))*(SUM(I32)/100)*(SUM(I49)/100))+((100-J59)*(H32)*(X49/100)))*100)/J62)),"",IF(J62="","",((((100-J56)*(D32)*(T49/100))+((100-J57)*(E32)*(U49/100))+((100-J58)*(F32)*(V49/100))+((100-SUM(J60))*(SUM(I32)/100)*(SUM(I49)/100))+((100-J59)*(H32)*(X49/100)))*100)/J62)) -> 12 | AE49: =IF(ISERROR(IF(J80="","",((((100-J75)*(D32)*(T49/100))+((100-J76)*(E32)*(U49/100))+((100-J77)*(F32)*(V49/100))+((100-J78)*(H32)*(X49/100)))*100)/J80)),"",IF(J80="","",((((100-J75)*(D32)*(T49/100))+((100-J76)*(E32)*(U49/100))+((100-J77)*(F32)*(V49/100))+((100-J78)*(H32)*(X49/100)))*100)/J80)) -> 12
B50: % of +4 that is Type 3 | I50: =IF(I$31>0,0,"") ->  | K50: =IF(ISERROR(0.5*AD50),"",0.5*AD50) -> 0 | L50: 50% Credit (Classified only) | T50: 0 | U50: 0 | V50: 0 | X50: =IF(H$39<>"Classified",0,H50) -> 0 | AD50: =IF(ISERROR(IF(J62="","",((((100-J56)*(D32)*(T50/100))+((100-J57)*(E32)*(U50/100))+((100-J58)*(F32)*(V50/100))+((100-SUM(J60))*SUM(I32)*(SUM(I50)/100))+((100-J59)*(H32)*(X50/100)))*100)/J62)),"",IF(J62="","",((((100-J56)*(D32)*(T50/100))+((100-J57)*(E32)*(U50/100))+((100-J58)*(F32)*(V50/100))+((100-SUM(J60))*SUM(I32)*(SUM(I50)/100))+((100-J59)*(H32)*(X50/100)))*100)/J62)) -> 0 | AE50: =IF(ISERROR(IF(J80="","",((((100-J75)*(D32)*(T50/100))+((100-J76)*(E32)*(U50/100))+((100-J77)*(F32)*(V50/100))+((100-J78)*(H32)*(X50/100)))*100)/J80)),"",IF(J80="","",((((100-J75)*(D32)*(T50/100))+((100-J76)*(E32)*(U50/100))+((100-J77)*(F32)*(V50/100))+((100-J78)*(H32)*(X50/100)))*100)/J80)) -> 0
B51: % of +4 that is Type 4 | D51: 22.8 | I51: =IF(I$31>0,AA83,"") ->  | K51: =IF(SUM(D51:I51)=0,"",IF(ISERROR(IF(J62="","",((((100-J56)*(D32)*(T51/100))+((100-J57)*(E32)*(U51/100))+((100-J58)*(F32)*(V51/100))+((100-SUM(J60))*(I32)*(SUM(I51)/100))+((100-J59)*(H32)*(X51/100)))*100)/J62)),"",IF((IF(J62="","",((((100-J56)*(D32)*(T51/100))+((100-J57)*(E32)*(U51/100))+((100-J58)*(F32)*(V51/100))+((100-SUM(J60))*(I32)*(SUM(I51)/100))+((100-J59)*(H32)*(X51/100)))*100)/J62)+(AD49-K49)+(AD50-K50))>100,100,IF(ISERROR(IF(J62="","",((((100-J56)*(D32)*(T51/100))+((100-J57)*(E32)*(U51/100))+((100-J58)*(F32)*(V51/100))+((100-SUM(J60))*(I32)*(SUM(I51)/100))+((100-J59)*(H32)*(X51/100)))*100)/J62)+(AD49-K49)+(AD50-K50)),"",IF(J62="","",((((100-J56)*(D32)*(T51/100))+((100-J57)*(E32)*(U51/100))+((100-J58)*(F32)*(V51/100))+((100-SUM(J60))*(I32)*(SUM(I51)/100))+((100-J59)*(H32)*(X51/100)))*100)/J62))))) -> 22.8 | T51: 22.8 | U51: 0 | V51: 0 | X51: =IF(H$39<>"Classified",0,H51) -> 0 | AE51: =IF(ISERROR(IF(J80="","",((((100-J75)*(D32)*(T51/100))+((100-J76)*(E32)*(U51/100))+((100-J77)*(F32)*(V51/100))+((100-J78)*(H32)*(X51/100)))*100)/J80)),"",IF(J80="","",((((100-J75)*(D32)*(T51/100))+((100-J76)*(E32)*(U51/100))+((100-J77)*(F32)*(V51/100))+((100-J78)*(H32)*(X51/100)))*100)/J80)) -> 22.8
B52: % Crushed | D52: 85 | I52: =IF(I$31>0,50,"") ->  | K52: =IF(COUNT(D52:I52)=0,0,SUM(((T52*D32)+(U52*E32)+(V52*F32)+(X52*H32)+(SUM(I52)*I32)))) -> 85 | L52: 100% Credit (Classified only) | T52: =IF(D$39<>"Classified",IF(AND(Input!$BS$4>=33,RAM!D$39="Certified",RAM!D$41>0,RAM!D$41<=Settings!$B$81),MIN(D52,100-RAM!$K56),0),D52) -> 85 | U52: =IF(E$39<>"Classified",IF(AND(Input!$BS$4>=33,RAM!E$39="Certified",RAM!E$41>0,RAM!E$41<=Settings!$B$81),MIN(E52,100-RAM!$K57),0),E52) -> 0 | V52: =IF(F$39<>"Classified",IF(AND(Input!$BS$4>=33,RAM!F$39="Certified",RAM!F$41>0,RAM!F$41<=Settings!$B$81),MIN(F52,100-RAM!$K58),0),F52) -> 0 | X52: =IF(H$39<>"Classified",IF(AND(Input!$BS$4>=33,RAM!H$39="Certified",RAM!H$41>0,RAM!H$41<=Settings!$B$81),MIN(H52,100-RAM!$K59),0),H52) -> 0
B53: % Limestone | I53: =IF(I$31>0,0,"") ->  | K53: =IF(COUNT(D53:I53)=0,"",SUM(((D53*D32)+(E53*E32)+(F53*F32)+(H53*H32)+(SUM(I53)*I32)))) ->  | T53: 0
H54: RAM Extracted Aggregate Gradation % Passing
D55: 1 1/2" | E55: 1" | F55: 3/4" | H55: 1/2" | I55: 3/8" | J55: #4 | K55: #8 | L55: #16 | M55: #30 | N55: #50 | O55: #100 | P55: #200
B56: RAP #1 | D56: 100 | E56: 100 | F56: 100 | H56: 95 | I56: 88 | J56: 68 | K56: 52 | L56: 40 | M56: 30 | N56: 20 | O56: 14 | P56: 11.6
B57: RAP #2
B58: RAP #3
B59: RAP #4
B60: RAS | D60: =IF(AND($I$44>0,$I$31>0),100,"") ->  | E60: =IF(AND($I$44>0,$I$31>0),100,"") ->  | F60: =IF(AND($I$44>0,$I$31>0),100,"") ->  | H60: =IF(AND($I$44>0,$I$31>0),100,"") ->  | I60: =IF(AND($I$44>0,$I$31>0),100,"") ->  | J60: =IF(AND($I$44>0,$I$31>0),95,"") ->  | K60: =IF(AND($I$44>0,$I$31>0),85,"") ->  | L60: =IF(AND($I$44>0,$I$31>0),70,"") ->  | M60: =IF(AND($I$44>0,$I$31>0),50,"") ->  | N60: =IF(AND($I$44>0,$I$31>0),45,"") ->  | O60: =IF(AND($I$44>0,$I$31>0),35,"") ->  | P60: =IF(AND($I$44>0,$I$31>0),25,"") -> 
B61: Combined | D61: =IF(AND(D56="",D60=""),"",(D56*($D31/100))+(D57*($E31/100))+(D58*($F31/100))+(D59*($H31/100))+(SUM(D60)*($I31/100))) -> 100 | E61: =IF(AND(E56="",E60=""),"",(E56*($D31/100))+(E57*($E31/100))+(E58*($F31/100))+(E59*($H31/100))+(SUM(E60)*($I31/100))) -> 100 | F61: =IF(AND(F56="",F60=""),"",(F56*($D31/100))+(F57*($E31/100))+(F58*($F31/100))+(F59*($H31/100))+(SUM(F60)*($I31/100))) -> 100 | H61: =IF(AND(H56="",H60=""),"",(H56*($D31/100))+(H57*($E31/100))+(H58*($F31/100))+(H59*($H31/100))+(SUM(H60)*($I31/100))) -> 95 | I61: 88 | J61: 68 | K61: 52 | L61: 40 | M61: 30 | N61: 20 | O61: 14 | P61: 11.6
J62: =IF(AND(J56="",J60=""),"",((100-J56)*(D32))+((100-J57)*(E32))+((100-J58)*(F32))+((100-SUM(J60))*(I32))+((100-J59)*(H32))) -> 32
D63: =IF(AND(D56="",D60=""),"",(D56*($D32))+(D57*($E32))+(D58*($F32))+(D59*($H32))+(SUM(D60)*($I32))) -> 100 | E63: =IF(AND(E56="",E60=""),"",(E56*($D32))+(E57*($E32))+(E58*($F32))+(E59*($H32))+(SUM(E60)*($I32))) -> 100 | F63: =IF(AND(F56="",F60=""),"",(F56*($D32))+(F57*($E32))+(F58*($F32))+(F59*($H32))+(SUM(F60)*($I32))) -> 100 | H63: =IF(AND(H56="",H60=""),"",(H56*($D32))+(H57*($E32))+(H58*($F32))+(H59*($H32))+(SUM(H60)*($I32))) -> 95 | I63: 88 | J63: 68 | K63: 52 | L63: 40 | M63: 30 | N63: 20 | O63: 14 | P63: 11.6
K64: #4 | L64: #8 | M64: #16 | N64: #30 | P64: =((J56-K56)*(U80/100))+((J57-K57)*(U81/100))+((J58-K58)*(U82/100))+((J59-K59)*(U83/100)) -> 16 | Q64: =((K56-L56)*($D32))+((K57-L57)*($E32))+((K58-L58)*($F32))+((K59-L59)*($H32)) -> 12 | R64: =((L56-M56)*($D32))+((L57-M57)*($E32))+((L58-M58)*($F32))+((L59-M59)*($H32)) -> 10 | S64: =((M56-N56)*($D32))+((M57-N57)*($E32))+((M58-N58)*($F32))+((M59-N59)*($H32)) -> 10 | T64: =SUM(P64:S64) -> 48
J65: % Ret | K65: =((J56-K56)*($D32))+((J57-K57)*($E32))+((J58-K58)*($F32))+((J59-K59)*($H32))+(SUM($J60)-SUM($K60))*(I32) -> 16 | L65: =((K56-L56)*($D32))+((K57-L57)*($E32))+((K58-L58)*($F32))+((K59-L59)*($H32))+(SUM($K60)-SUM($L60))*(I32) -> 12 | M65: =((L56-M56)*($D32))+((L57-M57)*($E32))+((L58-M58)*($F32))+((L59-M59)*($H32))+(SUM($L60)-SUM($M60))*(I32) -> 10 | N65: =((M56-N56)*($D32))+((M57-N57)*($E32))+((M58-N58)*($F32))+((M59-N59)*($H32))+(SUM($M60)-SUM($N60))*(I32) -> 10 | O65: =SUM(K65:N65) -> 48
K66: =IF(OR(K$65=0),0,$D32*(J56-K56)) -> 16 | L66: =IF(OR(L$65=0),0,$D32*(K56-L56)) -> 12 | M66: =IF(OR(M$65=0),0,$D32*(L56-M56)) -> 10 | N66: =IF(OR(N$65=0),0,$D32*(M56-N56)) -> 10 | O66: =IF(O$65>0,SUM(K66:N66)/O$65,"") -> 1 | P66: =IF(OR($D47="",O66="",$D47=0),"",(O66/$D47)*100) -> 2.398081535 | Q66: =IF(OR($P$64=0),0,$D$32*(J75-K75)) -> 16 | R66: =IF(OR($Q$64=0),0,$E32*(K75-L75)) -> 0 | S66: =IF(OR($R$64=0),0,$F32*(L75-M75)) -> 0 | T66: =IF(OR($T$64=0),0,$H$32*(M75-N75)) -> 0 | U66: =IF(P$64>0,SUM(Q66:T66)/P$64,"") -> 1 | V66: =IF(OR($D47="",U66="",$D47=0),"",(U66/$D47)*100) -> 2.398081535
C67: =SUM(D67:I67) -> 0 | D67: =IF(AND(D31>0,SUM(D44)=0),1,0) -> 0 | E67: 0 | F67: 0 | G67: 0 | H67: 0 | I67: 0 | K67: =IF(OR(K$65=0),0,$E32*(J57-K57)) -> 0 | L67: =IF(OR(L$65=0),0,$E32*(K57-L57)) -> 0 | M67: =IF(OR(M$65=0),0,$E32*(L57-M57)) -> 0 | N67: =IF(OR(N$65=0),0,$E32*(M57-N57)) -> 0 | O67: =IF(O$65>0,SUM(K67:N67)/O$65,"") -> 0 | P67: =IF(OR($E47="",O67="",$E47=0),"",(O67/$E47)*100) ->  | Q67: =IF(OR($P$64=0),0,$D32*(J76-K76)) -> 0 | R67: =IF(OR($Q$64=0),0,$E32*(K76-L76)) -> 0 | S67: =IF(OR($R$64=0),0,$F32*(L76-M76)) -> 0 | T67: =IF(OR($T$64=0),0,$H$32*(M76-N76)) -> 0 | U67: =IF(P$64>0,SUM(Q67:T67)/P$64,"") -> 0 | V67: =IF(OR($E47="",U67="",$E47=0),"",(U67/$E47)*100) -> 
K68: =IF(OR(K$65=0),0,$F$32*(J58-K58)) -> 0 | L68: =IF(OR(L$65=0),0,$F$32*(K58-L58)) -> 0 | M68: =IF(OR(M$65=0),0,$F$32*(L58-M58)) -> 0 | N68: =IF(OR(N$65=0),0,$F$32*(M58-N58)) -> 0 | O68: =IF(O$65>0,SUM(K68:N68)/O$65,"") -> 0 | P68: =IF(OR(O68="",$F47="",O68=0),"",(O68/$F47)*100) ->  | Q68: =IF(OR($P$64=0),0,$D32*(J77-K77)) -> 0 | R68: =IF(OR($Q$64=0),0,$E32*(K77-L77)) -> 0 | S68: =IF(OR($R$64=0),0,$F32*(L77-M77)) -> 0 | T68: =IF(OR($T$64=0),0,$H$32*(M77-N77)) -> 0 | U68: =IF(P$64>0,SUM(Q68:T68)/P$64,"") -> 0 | V68: =IF(OR($F47="",U68="",$F47=0),"",(U68/$F47)*100) -> 
K69: =IF(OR(K$65=0),0,$H32*(J59-K59)) -> 0 | L69: =IF(OR(L$65=0),0,$H32*(K59-L59)) -> 0 | M69: =IF(OR(M$65=0),0,$H32*(L59-M59)) -> 0 | N69: =IF(OR(N$65=0),0,$H32*(M59-N59)) -> 0 | O69: =IF(O$65>0,SUM(K69:N69)/O$65,"") -> 0 | P69: =IF(OR(O69="",$H47="",O69=0),"",(O69/$H47)*100) ->  | Q69: =IF(OR($P$64=0),0,$D32*(J78-K78)) -> 0 | R69: =IF(OR($Q$64=0),0,$E32*(K78-L78)) -> 0 | S69: =IF(OR($R$64=0),0,$F32*(L78-M78)) -> 0 | T69: =IF(OR($T$64=0),0,$H$32*(M78-N78)) -> 0 | U69: =IF(P$64>0,SUM(Q69:T69)/P$64,"") -> 0 | V69: =IF(OR($H47="",U69="",$H47=0),"",(U69/$H47)*100) -> 
K70: =IF(K$65=0,0,$I32*(SUM(J60)-SUM(K60))) -> 0 | L70: =IF(L$65=0,0,$I32*(SUM(K60)-SUM(L60))) -> 0 | M70: =IF(M$65=0,0,$I32*(SUM(L60)-SUM(M60))) -> 0 | N70: =IF(N$65=0,0,$I32*(SUM(M60)-SUM(N60))) -> 0 | O70: =IF(O$65>0,SUM(K70:N70)/O$65,"") -> 0 | P70: =IF(OR(O70="",$I47="",O70=0),"",(O70/$I47)*100) ->  | Q70: =IF(OR($P$64=0),0,$D32*(J79-K79)) -> 16
P71: =IF(AND(P66="",P70=""),"",SUM(P66:P70)) -> 2.398081535 | Q71: =IF(AND(V66=""),"",SUM(V66:V69)) -> 2.398081535
P72: =IF(P71="","",100/P71) -> 41.7 | Q72: =IF(Q71="","",100/Q71) -> 41.7
C74: RAP % in RAM blend | D74: =SUM(D31:H31) -> 100
D75: =D56 -> 100 | E75: =E56 -> 100 | F75: 100 | H75: 95 | I75: 88 | J75: 68 | K75: 52 | L75: 40 | M75: 30 | N75: 20 | O75: 14 | P75: 11.6 | Y75: 1.51 | AA75: Gsb of cellulose fibers
D76: =D57 -> 0 | E76: 0 | F76: 0 | H76: 0 | I76: 0 | J76: 0 | K76: 0 | L76: 0 | M76: 0 | N76: 0 | O76: 0 | P76: 0 | Y76: 2.5 | AA76: Gsb of glass fibers
D77: 0 | E77: 0 | F77: 0 | H77: 0 | I77: 0 | J77: 0 | K77: 0 | L77: 0 | M77: 0 | N77: 0 | O77: 0 | P77: 0
D78: 0 | E78: 0 | F78: 0 | H78: 0 | I78: 0 | J78: 0 | K78: 0 | L78: 0 | M78: 0 | N78: 0 | O78: 0 | P78: 0 | Q78: RAP | Z78: Fibers | AA78: Granulars | AB78: Uneffective Grit | AC78: Active AC | AD78: Filler
C79: Combined RAP | D79: =IF(AND(D56="",D60=""),"",(D56*($D31/100))+(D57*($E31/100))+(D58*($F31/100))+(D59*($H31/100)))/$D$74*100 -> 100 | E79: =IF(AND(E56="",E60=""),"",(E56*($D31/100))+(E57*($E31/100))+(E58*($F31/100))+(E59*($H31/100)))/$D$74*100 -> 100 | F79: =IF(AND(F56="",F60=""),"",(F56*($D31/100))+(F57*($E31/100))+(F58*($F31/100))+(F59*($H31/100)))/$D$74*100 -> 100 | H79: =IF(AND(H56="",H60=""),"",(H56*($D31/100))+(H57*($E31/100))+(H58*($F31/100))+(H59*($H31/100)))/$D$74*100 -> 95 | I79: 88 | J79: 68 | K79: 52 | L79: 40 | M79: 30 | N79: 20 | O79: 14 | P79: 11.6 | Q79: Combined | R79: Proportion | S79: Binder | T79: Agg | U79: RAP Weighted | V79: Agg Weighted | W79: Gsb | X79: Abs | Y79: Content | Z79: =Settings!B52 -> 5 | AA79: =100-AC79-Z79-AB79-AD79 -> 82.5 | AB79: =I44-AC79 -> 0 | AC79: =Z84*I44 -> 0 | AD79: =Settings!B51 -> 12.5
B80: Pb (DOT Results) | D80: =IF(AND(D44="",I44=""),"",SUM(((D44*D31)+(E44*E31)+(F44*F31)+(H44*H31)))/100)/D74*100 -> 4.22 | J80: =IF(AND(J75="",J60=""),"",((100-J75)*(D32))+((100-J76)*(E32))+((100-J77)*(F32))+((100-J78)*(H32))) -> 32 | Q80: 1 | R80: =Z87 -> 95.78 | S80: =D44 -> 4.22 | T80: =100-S80 -> 95.78 | U80: =IF(R$84=0,0,R80/R$84*100) -> 100 | V80: =U80*T80/100 -> 95.78 | W80: =IF(SUM(D45)>0,D45,0.00001) -> 2.574 | X80: =D46 -> 1.38 | Y80: Gsb | Z80: 1.51 | AA80: 2.64 | AB80: 1.04 | AC80: 1.04 | AD80: 2.7
B81: Gsb | D81: =IF(ISERROR(IF(SUM(D35:H35)=0,"",ROUND(100/SUMIF(D35:H35,1,D34:H34),3))),"",IF(SUM(D35:H35)=0,"",ROUND(100/SUMIF(D35:H35,1,D34:H34),3)/(D74/100))) -> 2.574 | Q81: 2 | R81: =AA87 -> 0 | S81: =E44 -> 0 | T81: =100-S81 -> 100 | U81: =IF(R$84=0,0,R81/R$84*100) -> 0 | V81: =U81*T81/100 -> 0 | W81: =IF(SUM(E45)>0,E45,0.00001) -> 1e-05 | X81: =E46 -> 0 | Y81: Pba | Z81: =8*Z80 -> 12.08 | AA81: 1 | AB81: 0 | AC81: 0 | AD81: 0
B82: % Abs | D82: =IF(ISERROR(IF(SUM(D31:H31)=0,"",SUM(((SUM(D46)*D32)+(SUM(E46)*E32)+(SUM(F46)*F32)+(SUM(H46)*H32))))/D74*100),"",IF(SUM(D31:H31)=0,"",SUM(((SUM(D46)*D32)+(SUM(E46)*E32)+(SUM(F46)*F32)+(SUM(H46)*H32))))/D74*100) -> 1.38 | Q82: 3 | R82: =AB87 -> 0 | S82: =F44 -> 0 | T82: =100-S82 -> 100 | U82: =IF(R$84=0,0,R82/R$84*100) -> 0 | V82: =U82*T82/100 -> 0 | W82: =IF(SUM(F45)>0,F45,0.00001) -> 1e-05 | X82: =F46 -> 0 | Y82: Solids | Z82: =Z79+AA79+AB79+AD79 -> 100
B83: FAA | D83: =IF(ISERROR(IF(ISERROR(IF(J79="","",Q72)),"",IF(J79="","",Q72))),"",IF(ISERROR(IF(J79="","",Q72)),"",IF(J79="","",Q72))) -> 41.7 | Q83: 4 | R83: =AC87 -> 0 | S83: =H44 -> 0 | T83: =100-S83 -> 100 | U83: =IF(R$84=0,0,R83/R$84*100) -> 0 | V83: =U83*T83/100 -> 0 | W83: =IF(SUM(H45)>0,H45,0.00001) -> 1e-05 | X83: =H46 -> 0 | Y83: Pro-rated content | Z83: =Z79/$Z82*100 -> 5 | AA83: =AA79/$Z82*100 -> 82.5 | AB83: =AB79/$Z82*100 -> 0 | AD83: =AD79/$Z82*100 -> 12.5
B84: % of -4 that is Type 2 | D84: =IF(ISERROR(0.5*AE48),"",0.5*AE48) -> 0 | Q84: Combined | R84: =SUM(R80:R83) -> 95.78 | S84: =(S80*U80+S81*U81+S82*U82+S83*U83)/100 -> 4.22 | U84: =SUM(U80:U83) -> 100 | V84: =SUM(V80:V83) -> 95.78 | W84: =100/(SUM(U80/W80)+SUM(U81/W81)+SUM(U82/W82)+SUM(U83/W83)) -> 2.574 | X84: =(X80*U80+X81*U81+X82*U82+X83*U83)/U84 -> 1.38 | Y84: UF | Z84: =Settings!B50 -> 0.67
B85: % of +4 that is Type 2 | D85: =IF(ISERROR(0.5*AE49),"",0.5*AE49) -> 6 | Y85: Agg+AC | Z85: =AC79+AA79 -> 82.5
B86: % of +4 that is Type 3 | D86: =IF(ISERROR(0.5*AE50),"",0.5*AE50) -> 0 | Y86: RAP Agg | Z86: =100-D44 -> 95.78 | AA86: =100-E44 -> 100 | AB86: =100-F44 -> 100 | AC86: =100-H44 -> 100 | AE86: Total
B87: % of +4 that is Type 4 | D87: =IF(ISERROR(1*AE51),"",1*AE51) -> 22.8 | Y87: RAP Agg in RAM | Z87: =Z86*D31/100 -> 95.78 | AA87: =AA86*E31/100 -> 0 | AB87: =AB86*F31/100 -> 0 | AC87: =AC86*H31/100 -> 0 | AE87: =SUM(Z87:AC87) -> 95.78 | AF87: RAP
B88: % Crushed | D88: =IF(ISERROR(IF(COUNT(T52:X52)=0,"",SUM(((T52*D32)+(U52*E32)+(V52*F32)+(X52*H32))))*D74/100),"",IF(COUNT(T52:X52)=0,"",SUM(((T52*D32)+(U52*E32)+(V52*F32)+(X52*H32))))) -> 85 | Y88: RAP Agg pro-rated | Z88: =Z87/($AE87+$AE88) -> 1 | AA88: =AA87/($AE87+$AE88) -> 0 | AB88: =AB87/($AE87+$AE88) -> 0 | AC88: =AC87/($AE87+$AE88) -> 0 | AD88: =AE88/(AE88+AE87) -> 0 | AE88: =AA79*I31/100 -> 0 | AF88: RAS
R90: If RAS were taken out | Y90: Gse | Z90: =Z80/(1-Z80*Z81/(100*$AB$80)) -> 1.831173798 | AA90: =AA80/(1-AA80*AA81/(100*$AB$80)) -> 2.708760852 | AB90: =AB80/(1-AB80*AB81/(100*$AB$80)) -> 1.04 | AC90: =AC80/(1-AC80*AC81/(100*$AB$80)) -> 1.04 | AD90: =AD80/(1-AD80*AD81/(100*$AB$80)) -> 2.7
R91: Virgin Agg Adjustment for RAP only
R92: Agg | S92: Proportion | T92: Weighted | U92: Adj for binder | V92: Gsb | W92: Abs | Y92: Virtual Gmm calcs
R93: 1 | S93: =Input!B58 -> 14 | T93: =S93/S$101*100 -> 14 | U93: =T93*T$106/T$105 -> 14.08918454 | V93: =IF(SUM(Input!B52)>0,Input!B52,0.00001) -> 2.641 | W93: =IF(SUM(Input!B53)>0,Input!B53,0.00001) -> 0.6 | Y93: RAS Gse | Z93: =100/(Z79/Z90+AA79/AA90+AB79/AB90+AC79/AC90+AD79/AD90) -> 2.644323931
R94: 2 | S94: =Input!C58 -> 42 | T94: 42 | U94: 42.26755361 | V94: =IF(SUM(Input!C52)>0,Input!C52,0.00001) -> 2.587 | W94: =IF(SUM(Input!C53)>0,Input!C53,0.00001) -> 1.89 | Y94: Virtual AC total | Z94: =Input!C38 -> 4.8
R95: 3 | S95: =Input!D58 -> 19 | T95: 19 | U95: 19.12103616 | V95: =IF(SUM(Input!D52)>0,Input!D52,0.00001) -> 2.639 | W95: =IF(SUM(Input!D53)>0,Input!D53,0.00001) -> 0.8 | Y95: Fibers | Z95: =Z79*I31/100*(Input!J58+Input!K58)/100 -> 0
R96: 4 | S96: =Input!E58 -> 10 | T96: 10 | U96: 10.06370324 | V96: =IF(SUM(Input!E52)>0,Input!E52,0.00001) -> 2.61 | W96: =IF(SUM(Input!E53)>0,Input!E53,0.00001) -> 0.98 | Y96: RAS Agg | Z96: =AA79*I31/100*(Input!J58+Input!K58)/100 -> 0
R97: 5 | S97: =Input!F58 -> 0 | T97: 0 | U97: 0 | V97: =IF(SUM(Input!F52)>0,Input!F52,0.00001) -> 1e-05 | W97: =IF(SUM(Input!F53)>0,Input!F53,0.00001) -> 1e-05 | Y97: Uneffective AC | Z97: =AB79*I31/100*(Input!J58+Input!K58)/100 -> 0
R98: 6 | S98: =Input!G58 -> 0 | T98: 0 | U98: 0 | V98: =IF(SUM(Input!G52)>0,Input!G52,0.00001) -> 1e-05 | W98: =IF(SUM(Input!G53)>0,Input!G53,0.00001) -> 1e-05 | Y98: Effective AC | Z98: =AC79*I31/100*(Input!J58+Input!K58)/100 -> 0
R99: 7 | S99: =Input!H58 -> 0 | T99: 0 | U99: 0 | V99: =IF(SUM(Input!H52)>0,Input!H52,0.00001) -> 1e-05 | W99: =IF(SUM(Input!H53)>0,Input!H53,0.00001) -> 1e-05 | Y99: Talc | Z99: =AD79*I31/100*(Input!J58+Input!K58)/100 -> 0
R100: RAP | S100: =(Input!J58+Input!K58)*SUM(D31:H31)/100 -> 15 | T100: 15 | U100: =T104 -> 14.45852245 | V100: =IF(ISERROR(W84),0,W84) -> 2.574 | W100: =IF(ISERROR(X84),0,X84) -> 1.38 | Y100: RAP AC | Z100: =(SUM((Input!J58+Input!K58))*SUM(D31:H31)/100)*S84/100 -> 0.633
R101: Total | S101: =SUM(S93:S100) -> 100 | T101: =SUM(T93:T100) -> 100 | U101: =SUM(U93:U100) -> 100
S103: RAP Agg | T103: =IF(T105=100,0,V84) -> 95.78 | V103: Virgin | W103: RAP
S104: % RAP Adj | T104: =100*(T100*T103/100)/(T105+T100*T103/100) -> 14.45852245 | U104: Agg
S105: % Not RAP | T105: =100-T100 -> 85
S106: CF | T106: =100-T104 -> 85.54147755
D255: =IF(SUM(D31)>0,IF(LEN(D38)>LEN(D40),D40,D38),"") -> ABC1-50 | J255: =IF(SUM(J43)>0,J38,"") -> 

Sheet Gyratory
A1: Gmb - Test Data | B1: Test A | C1: Date #1 | E1: Test B | F1: Date #2 | H1: Test C | I1: Date #3 | K1: Test D | L1: Date #4 | N1: Test E | O1: Date #5 | Q1: Test F | R1: Date #6 | T1: Test G | U1: Date #7 | W1: Test H | X1: Date #8 | Z1: Test I | AA1: Date #9 | AC1: Test J | AD1: Date #10 | AJ1: 180 | AV1: Temp C | AW1: R correction | AX1: Temp F | AY1: R correction
A2: Hot Box ID Number and Date: | B2: SU10-22A | E2: SU10-22B | H2: SU10-22C | AG2: Sample | AH2: Time Sampled | AI2: Time Tested | AJ2: Difference | AK2: 3 hrs later? | AL2: Log time diff | AM2: =TEXT(IF(AND(Input!Q9<>3,OR(SUM(AP3:AP13)=0,SUM(AR3:AR12)>0)),OFFSET(AQ2,MATCH(0,AP3:AP13,0),0),""),"0") ->  | AN2: =IF(Tank!AB10=0,0,COUNTIF(C5,"Chk Entry")+COUNTIF(F5,"Chk Entry")+COUNTIF(I5,"Chk Entry")+COUNTIF(L5,"Chk Entry")+COUNTIF(O5,"Chk Entry")+COUNTIF(R5,"Chk Entry")+COUNTIF(U5,"Chk Entry")+COUNTIF(X5,"Chk Entry")+COUNTIF(AA5,"Chk Entry")+COUNTIF(AD5,"Chk Entry")) -> 0 | AP2: LV Milepost | AS2: Route | AV2: 10 | AW2: 1.0027 | AX2: 60.5 | AY2: 1.002
A3: =IF(Tank!$AB$4=2,"Hot Box Sample Mg's.: ","Hot Box Sample Tons: ") -> Hot Box Sample Tons: | B3: =IF(AND(Sublots!$D2="",OR(C2="",C2=Input!$D$5)),"",(Sublots!$B2)) -> 295.91 | E3: =IF(AND(Sublots!$D3="",OR(F2="",F2=Input!$D$5)),"",(Sublots!$B3)) -> 639.09 | H3: =IF(AND(Sublots!$D4="",OR(I2="",I2=Input!$D$5)),"",(Sublots!$B4)) -> 1212.03 | K3: =IF(AND(Sublots!$D5="",OR(L2="",L2=Input!D5)),"",(Sublots!$B5)) ->  | N3: =IF(AND(Sublots!$D6="",OR(O2="",O2=Input!$D$5)),"",(Sublots!$B6)) ->  | Q3: =IF(AND(Sublots!$D7="",OR(R2="",R2=Input!$D$5)),"",(Sublots!$B7)) ->  | T3: =IF(AND(Sublots!$D8="",OR(U2="",U2=Input!$D$5)),"",(Sublots!$B8)) ->  | W3: =IF(AND(Sublots!$D9="",OR(X2="",X2=Input!$D$5)),"",(Sublots!$B9)) ->  | Z3: =IF(AND(Sublots!$D10="",OR(AA2="",AA2=Input!$D$5)),"",(Sublots!$B10)) ->  | AC3: =IF(AND(Sublots!$D11="",OR(AD2="",AD2=Input!$D$5)),"",(Sublots!$B11)) ->  | AG3: 1 | AH3: =IF(OFFSET($B$4,0,3*(AG3-1))="","",DATEVALUE(Input!$D$5+OFFSET($B$4,0,3*(AG3-1)))) -> 40838.39236 | AI3: =Report!AH8 -> 41240.44902 | AJ3: =IF(AI3="","",AI3-AH3) -> 402.0566551 | AK3: =HOUR(AJ3)*60+MINUTE(AJ3) -> 81 | AM3: =IF(OR(AI3<AH5,AH5=""),0,1) -> 1 | AO3: =B6 -> NB PL | AP3: =IF(OR(Input!Q$9=33,ISERROR(SEARCH("ramp",AO3))=FALSE,ISERROR(SEARCH("loop",AO3))=FALSE),1,IF(AND('Placement Record'!J55>0,'Placement Record'!M55='Placement Record'!S$66,'Placement Record'!R55<>-4,E55>0),0.01,IF('Placement Record'!M55>0,'Placement Record'!M55,0))) -> 32.80901515 | AQ3: =Report!CA8 -> SU10-22A | AR3: =IF(AQ3="",0,IF(AND(AQ3<>"",AP3<>""),0,1)) -> 0 | AS3: ='Placement Record'!D55 -> 29 | AV3: 11 | AW3: 1.0026 | AX3: 61 | AY3: 1.0019
A4: Time: | B4: 09:25:00 | E4: 10:55:00 | F4: =IF(AND(F2<>"",F2<>C2),"",IF(AND(E4<B4,B4<>"",E4<>"",OR(F2="",F2<=C2)),"Invalid Time","")) ->  | H4: 13:00:00 | I4: =IF(AND(I2<>"",I2<>F2),"",IF(AND(H4<E4,E4<>"",H4<>"",OR(I2="",I2<=F2)),"Invalid Time","")) ->  | L4: =IF(AND(L2<>"",L2<>I2),"",IF(AND(K4<H4,H4<>"",K4<>"",OR(L2="",L2<=I2)),"Invalid Time","")) ->  | O4: =IF(AND(O2<>"",O2<>L2),"",IF(AND(N4<K4,K4<>"",N4<>"",OR(O2="",O2<=L2)),"Invalid Time","")) ->  | R4: =IF(AND(R2<>"",R2<>O2),"",IF(AND(Q4<N4,N4<>"",Q4<>"",OR(R2="",R2<=O2)),"Invalid Time","")) ->  | U4: =IF(AND(U2<>"",U2<>R2),"",IF(AND(T4<Q4,Q4<>"",T4<>"",OR(U2="",U2<=R2)),"Invalid Time","")) ->  | X4: =IF(AND(X2<>"",X2<>U2),"",IF(AND(W4<T4,T4<>"",W4<>"",OR(X2="",X2<=U2)),"Invalid Time","")) ->  | AA4: =IF(AND(AA2<>"",AA2<>X2),"",IF(AND(Z4<W4,W4<>"",Z4<>"",OR(AA2="",AA2<=X2)),"Invalid Time","")) ->  | AD4: =IF(AND(AD2<>"",AD2<>AA2),"",IF(AND(AC4<Z4,Z4<>"",AC4<>"",OR(AD2="",AD2<=AA2)),"Invalid Time","")) ->  | AG4: 2 | AH4: =IF(OFFSET($B$4,0,3*(AG4-1))="","",DATEVALUE(Input!$D$5+OFFSET($B$4,0,3*(AG4-1)))) -> 40838.45486 | AI4: =Report!AH9 -> 41240.4553 | AJ4: =IF(AI4="","",AI4-AH4) -> 402.0004398 | AK4: =HOUR(AJ4)*60+MINUTE(AJ4) -> 0 | AL4: =IF(AI4=0,9999,MINUTE(AI4-AI3)+HOUR(AI4-AI3)*60) -> 9 | AM4: =IF(OR(AI4<AH6,AH6=""),0,1) -> 0 | AN4: =IF(AI4=0,9999,MINUTE(AH4-AH3)+HOUR(AH4-AH3)*60) -> 90 | AO4: =E6 -> NB Rt | AP4: =IF(OR(Input!Q$9=33,ISERROR(SEARCH("ramp",AO4))=FALSE,ISERROR(SEARCH("loop",AO4))=FALSE),1,IF(AND('Placement Record'!J56>0,'Placement Record'!M56='Placement Record'!S$66,'Placement Record'!R56<>-4,E56>0),0.01,IF('Placement Record'!M56>0,'Placement Record'!M56,0))) -> 33.14992424 | AQ4: =Report!CA9 -> SU10-22B | AR4: =IF(AQ4="",0,IF(AND(AQ4<>"",AP4<>""),0,1)) -> 0 | AS4: ='Placement Record'!D56 -> 29 | AV4: 11.5 | AW4: 1.0026 | AX4: 61.5 | AY4: 1.0019
A5: Station/MP: | B5: 372+00 | C5: =IF(B5="","",IF(OR(ISERROR(SEARCH("ramp",B6))=FALSE,ISERROR(SEARCH("loop",B6))=FALSE,ISERROR(SEARCH("int",B6))=FALSE),"",IF(ISERROR(OFFSET($AP$2,VALUE(RIGHT(C$1,1)),0)),"Chk Entry",IF(AND(B$5<>"",OR(OR(OFFSET($AP$2,VALUE(RIGHT(C$1,1)),0)>'Placement Record'!$N$13,OFFSET($AP$2,VALUE(RIGHT(C$1,1)),0)<'Placement Record'!$M$13),AND(OFFSET($AP$2,VALUE(RIGHT(C$1,1)),0)=0,'Placement Record'!$S$68>=4))),"Chk Entry",ROUND(OFFSET($AP$2,VALUE(RIGHT(C$1,1)),0),2))))) -> 32.81 | E5: 390+00 | F5: =IF(E5="","",IF(OR(ISERROR(SEARCH("ramp",E6))=FALSE,ISERROR(SEARCH("loop",E6))=FALSE,ISERROR(SEARCH("int",E6))=FALSE),"",IF(ISERROR(OFFSET($AP$2,VALUE(RIGHT(F$1,1)),0)),"Chk Entry",IF(AND(E$5<>"",OR(OR(OFFSET($AP$2,VALUE(RIGHT(F$1,1)),0)>'Placement Record'!$N$13,OFFSET($AP$2,VALUE(RIGHT(F$1,1)),0)<'Placement Record'!$M$13),AND(OFFSET($AP$2,VALUE(RIGHT(F$1,1)),0)=0,'Placement Record'!$S$68>=4))),"Chk Entry",ROUND(OFFSET($AP$2,VALUE(RIGHT(F$1,1)),0),2))))) -> 33.15 | H5: 420+00 | I5: =IF(H5="","",IF(OR(ISERROR(SEARCH("ramp",H6))=FALSE,ISERROR(SEARCH("loop",H6))=FALSE,ISERROR(SEARCH("int",H6))=FALSE),"",IF(ISERROR(OFFSET($AP$2,VALUE(RIGHT(I$1,1)),0)),"Chk Entry",IF(AND(H$5<>"",OR(OR(OFFSET($AP$2,VALUE(RIGHT(I$1,1)),0)>'Placement Record'!$N$13,OFFSET($AP$2,VALUE(RIGHT(I$1,1)),0)<'Placement Record'!$M$13),AND(OFFSET($AP$2,VALUE(RIGHT(I$1,1)),0)=0,'Placement Record'!$S$68>=4))),"Chk Entry",ROUND(OFFSET($AP$2,VALUE(RIGHT(I$1,1)),0),2))))) -> 33.72 | L5: =IF(K5="","",IF(OR(ISERROR(SEARCH("ramp",K6))=FALSE,ISERROR(SEARCH("loop",K6))=FALSE,ISERROR(SEARCH("int",K6))=FALSE),"",IF(ISERROR(OFFSET($AP$2,VALUE(RIGHT(L$1,1)),0)),"Chk Entry",IF(AND(K$5<>"",OR(OR(OFFSET($AP$2,VALUE(RIGHT(L$1,1)),0)>'Placement Record'!$N$13,OFFSET($AP$2,VALUE(RIGHT(L$1,1)),0)<'Placement Record'!$M$13),AND(OFFSET($AP$2,VALUE(RIGHT(L$1,1)),0)=0,'Placement Record'!$S$68>=4))),"Chk Entry",ROUND(OFFSET($AP$2,VALUE(RIGHT(L$1,1)),0),2))))) ->  | O5: =IF(N5="","",IF(OR(ISERROR(SEARCH("ramp",N6))=FALSE,ISERROR(SEARCH("loop",N6))=FALSE,ISERROR(SEARCH("int",N6))=FALSE),"",IF(ISERROR(OFFSET($AP$2,VALUE(RIGHT(O$1,1)),0)),"Chk Entry",IF(AND(N$5<>"",OR(OR(OFFSET($AP$2,VALUE(RIGHT(O$1,1)),0)>'Placement Record'!$N$13,OFFSET($AP$2,VALUE(RIGHT(O$1,1)),0)<'Placement Record'!$M$13),AND(OFFSET($AP$2,VALUE(RIGHT(O$1,1)),0)=0,'Placement Record'!$S$68>=4))),"Chk Entry",ROUND(OFFSET($AP$2,VALUE(RIGHT(O$1,1)),0),2))))) ->  | R5: =IF(Q5="","",IF(OR(ISERROR(SEARCH("ramp",Q6))=FALSE,ISERROR(SEARCH("loop",Q6))=FALSE,ISERROR(SEARCH("int",Q6))=FALSE),"",IF(ISERROR(OFFSET($AP$2,VALUE(RIGHT(R$1,1)),0)),"Chk Entry",IF(AND(Q$5<>"",OR(OR(OFFSET($AP$2,VALUE(RIGHT(R$1,1)),0)>'Placement Record'!$N$13,OFFSET($AP$2,VALUE(RIGHT(R$1,1)),0)<'Placement Record'!$M$13),AND(OFFSET($AP$2,VALUE(RIGHT(R$1,1)),0)=0,'Placement Record'!$S$68>=4))),"Chk Entry",ROUND(OFFSET($AP$2,VALUE(RIGHT(R$1,1)),0),2))))) ->  | U5: =IF(T5="","",IF(OR(ISERROR(SEARCH("ramp",T6))=FALSE,ISERROR(SEARCH("loop",T6))=FALSE,ISERROR(SEARCH("int",T6))=FALSE),"",IF(ISERROR(OFFSET($AP$2,VALUE(RIGHT(U$1,1)),0)),"Chk Entry",IF(AND(T$5<>"",OR(OR(OFFSET($AP$2,VALUE(RIGHT(U$1,1)),0)>'Placement Record'!$N$13,OFFSET($AP$2,VALUE(RIGHT(U$1,1)),0)<'Placement Record'!$M$13),AND(OFFSET($AP$2,VALUE(RIGHT(U$1,1)),0)=0,'Placement Record'!$S$68>=4))),"Chk Entry",ROUND(OFFSET($AP$2,VALUE(RIGHT(U$1,1)),0),2))))) ->  | X5: =IF(W5="","",IF(OR(ISERROR(SEARCH("ramp",W6))=FALSE,ISERROR(SEARCH("loop",W6))=FALSE,ISERROR(SEARCH("int",W6))=FALSE),"",IF(ISERROR(OFFSET($AP$2,VALUE(RIGHT(X$1,1)),0)),"Chk Entry",IF(AND(W$5<>"",OR(OR(OFFSET($AP$2,VALUE(RIGHT(X$1,1)),0)>'Placement Record'!$N$13,OFFSET($AP$2,VALUE(RIGHT(X$1,1)),0)<'Placement Record'!$M$13),AND(OFFSET($AP$2,VALUE(RIGHT(X$1,1)),0)=0,'Placement Record'!$S$68>=4))),"Chk Entry",ROUND(OFFSET($AP$2,VALUE(RIGHT(X$1,1)),0),2))))) ->  | AA5: =IF(Z5="","",IF(OR(ISERROR(SEARCH("ramp",Z6))=FALSE,ISERROR(SEARCH("loop",Z6))=FALSE,ISERROR(SEARCH("int",Z6))=FALSE),"",IF(ISERROR(OFFSET($AP$2,VALUE(RIGHT(AA$1,1)),0)),"Chk Entry",IF(AND(Z$5<>"",OR(OR(OFFSET($AP$2,VALUE(RIGHT(AA$1,1)),0)>'Placement Record'!$N$13,OFFSET($AP$2,VALUE(RIGHT(AA$1,1)),0)<'Placement Record'!$M$13),AND(OFFSET($AP$2,VALUE(RIGHT(AA$1,1)),0)=0,'Placement Record'!$S$68>=4))),"Chk Entry",ROUND(OFFSET($AP$2,VALUE(RIGHT(AA$1,1)),0),2))))) ->  | AD5: =IF(AC5="","",IF(OR(ISERROR(SEARCH("ramp",AC6))=FALSE,ISERROR(SEARCH("loop",AC6))=FALSE,ISERROR(SEARCH("int",AC6))=FALSE),"",IF(ISERROR(OFFSET($AP$2,VALUE(RIGHT(AD$1,2)),0)),"Chk Entry",IF(AND(AC$5<>"",OR(OR(OFFSET($AP$2,VALUE(RIGHT(AD$1,2)),0)>'Placement Record'!$N$13,OFFSET($AP$2,VALUE(RIGHT(AD$1,2)),0)<'Placement Record'!$M$13),AND(OFFSET($AP$2,VALUE(RIGHT(AD$1,2)),0)=0,'Placement Record'!$S$68>=4))),"Chk Entry",ROUND(OFFSET($AP$2,VALUE(RIGHT(AD$1,2)),0),2))))) ->  | AG5: 3 | AH5: =IF(OFFSET($B$4,0,3*(AG5-1))="","",DATEVALUE(Input!$D$5+OFFSET($B$4,0,3*(AG5-1)))) -> 40838.54167 | AI5: =Report!AH10 -> 41240.45542 | AJ5: 401.91375 | AK5: 1315 | AL5: =IF(AI5=0,9999,MINUTE(AI5-AI4)+HOUR(AI5-AI4)*60) -> 0 | AM5: =IF(OR(AI5<AH7,AH7=""),0,1) -> 0 | AN5: =IF(AI5=0,9999,MINUTE(AH5-AH4)+HOUR(AH5-AH4)*60) -> 125 | AO5: =H6 -> NB Rt | AP5: =IF(OR(Input!Q$9=33,ISERROR(SEARCH("ramp",AO5))=FALSE,ISERROR(SEARCH("loop",AO5))=FALSE),1,IF(AND('Placement Record'!J57>0,'Placement Record'!M57='Placement Record'!S$66,'Placement Record'!R57<>-4,E57>0),0.01,IF('Placement Record'!M57>0,'Placement Record'!M57,0))) -> 33.71810606 | AQ5: =Report!CA10 -> SU10-22C | AR5: 0 | AS5: ='Placement Record'!D57 -> 29 | AV5: 12 | AW5: 1.0025 | AX5: 62 | AY5: 1.0018
A6: Side/Mileage Summary Entry #: | B6: NB PL | C6: 3 | E6: NB Rt | F6: 3 | H6: NB Rt | I6: 3 | L6: Select Entry # | O6: Select Entry # | R6: Select Entry # | U6: Select Entry # | X6: Select Entry # | AA6: Select Entry # | AD6: Select Entry # | AG6: 4 | AH6: =IF(OFFSET($B$4,0,3*(AG6-1))="","",DATEVALUE(Input!$D$5+OFFSET($B$4,0,3*(AG6-1)))) ->  | AI6: =Report!AH11 -> 00:00:00 | AK6: 0 | AL6: 9999 | AM6: 0 | AN6: 9999 | AO6: =K6 -> 0 | AP6: =IF(OR(Input!Q$9=33,ISERROR(SEARCH("ramp",AO6))=FALSE,ISERROR(SEARCH("loop",AO6))=FALSE),1,IF(AND('Placement Record'!J58>0,'Placement Record'!M58='Placement Record'!S$66,'Placement Record'!R58<>-4,E58>0),0.01,IF('Placement Record'!M58>0,'Placement Record'!M58,0))) -> 0 | AQ6: =Report!CA11 ->  | AR6: 0 | AS6: ='Placement Record'!D58 ->  | AV6: 12.5 | AW6: 1.0024 | AX6: 62.5 | AY6: 1.0018
A7: =IF(Tank!$AB$4=2," Compaction Temp. °C: ","Compaction Temp. °F: ") -> Compaction Temp. °F: | B7: 280 | E7: 280 | H7: 280 | AG7: 5 | AH7: =IF(OFFSET($B$4,0,3*(AG7-1))="","",DATEVALUE(Input!$D$5+OFFSET($B$4,0,3*(AG7-1)))) ->  | AI7: =Report!AH12 -> 00:00:00 | AK7: 0 | AL7: 9999 | AM7: 0 | AN7: 9999 | AO7: =N6 -> 0 | AP7: =IF(OR(Input!Q$9=33,ISERROR(SEARCH("ramp",AO7))=FALSE,ISERROR(SEARCH("loop",AO7))=FALSE),1,IF(AND('Placement Record'!J59>0,'Placement Record'!M59='Placement Record'!S$66,'Placement Record'!R59<>-4,E59>0),0.01,IF('Placement Record'!M59>0,'Placement Record'!M59,0))) -> 0 | AQ7: =Report!CA12 ->  | AR7: 0 | AS7: ='Placement Record'!D59 ->  | AV7: 13 | AW7: 1.0023 | AX7: 63 | AY7: 1.0017
A8: Specimen ID No.: | B8: 1 | C8: 2 | E8: 1 | F8: 2 | H8: 1 | I8: 2 | AG8: 6 | AH8: =IF(OFFSET($B$4,0,3*(AG8-1))="","",DATEVALUE(Input!$D$5+OFFSET($B$4,0,3*(AG8-1)))) ->  | AI8: =Report!AH13 -> 00:00:00 | AK8: 0 | AL8: 9999 | AM8: 0 | AN8: 9999 | AO8: =Q6 -> 0 | AP8: =IF(OR(Input!Q$9=33,ISERROR(SEARCH("ramp",AO8))=FALSE,ISERROR(SEARCH("loop",AO8))=FALSE),1,IF(AND('Placement Record'!J60>0,'Placement Record'!M60='Placement Record'!S$66,'Placement Record'!R60<>-4,E60>0),0.01,IF('Placement Record'!M60>0,'Placement Record'!M60,0))) -> 0 | AQ8: =Report!CA13 ->  | AR8: 0 | AS8: ='Placement Record'!D60 ->  | AV8: 13.5 | AW8: 1.0023 | AX8: 63.5 | AY8: 1.0017
A9: Design No. of Gyrations: | B9: =Input!$C$35 -> 109 | C9: =B9 -> 109 | E9: =Input!$C$35 -> 109 | F9: =E9 -> 109 | H9: =Input!$C$35 -> 109 | I9: =H9 -> 109 | K9: =Input!$C$35 -> 109 | L9: =K9 -> 109 | N9: =Input!$C$35 -> 109 | O9: =N9 -> 109 | Q9: =Input!$C$35 -> 109 | R9: =Q9 -> 109 | T9: =Input!$C$35 -> 109 | U9: =T9 -> 109 | W9: =Input!$C$35 -> 109 | X9: =W9 -> 109 | Z9: =Input!$C$35 -> 109 | AA9: =Z9 -> 109 | AC9: =Input!$C$35 -> 109 | AD9: =AC9 -> 109 | AG9: 7 | AH9: =IF(OFFSET($B$4,0,3*(AG9-1))="","",DATEVALUE(Input!$D$5+OFFSET($B$4,0,3*(AG9-1)))) ->  | AI9: =Report!AH14 -> 00:00:00 | AK9: 0 | AL9: 9999 | AM9: 0 | AN9: 9999 | AO9: =T6 -> 0 | AP9: =IF(OR(Input!Q$9=33,ISERROR(SEARCH("ramp",AO9))=FALSE,ISERROR(SEARCH("loop",AO9))=FALSE),1,IF(AND('Placement Record'!J61>0,'Placement Record'!M61='Placement Record'!S$66,'Placement Record'!R61<>-4,E61>0),0.01,IF('Placement Record'!M61>0,'Placement Record'!M61,0))) -> 0 | AQ9: =Report!CA14 ->  | AR9: 0 | AS9: ='Placement Record'!D61 ->  | AV9: 14 | AW9: 1.0022 | AX9: 64 | AY9: 1.0016
A10: "W1", Mass In Air: | B10: 4693.8 | C10: 4693.1 | E10: 4696.7 | F10: 4693.3 | H10: 4694.2 | I10: 4691.4 | AG10: 8 | AH10: =IF(OFFSET($B$4,0,3*(AG10-1))="","",DATEVALUE(Input!$D$5+OFFSET($B$4,0,3*(AG10-1)))) ->  | AI10: =Report!AH15 -> 00:00:00 | AK10: 0 | AL10: 9999 | AM10: 0 | AN10: 9999 | AO10: =W6 -> 0 | AP10: =IF(OR(Input!Q$9=33,ISERROR(SEARCH("ramp",AO10))=FALSE,ISERROR(SEARCH("loop",AO10))=FALSE),1,IF(AND('Placement Record'!J62>0,'Placement Record'!M62='Placement Record'!S$66,'Placement Record'!R62<>-4,E62>0),0.01,IF('Placement Record'!M62>0,'Placement Record'!M62,0))) -> 0 | AQ10: =Report!CA15 ->  | AR10: 0 | AS10: ='Placement Record'!D62 ->  | AV10: 14.5 | AW10: 1.0022 | AX10: 64.5 | AY10: 1.0016
A11: "W2", Mass In Water: | B11: 2728.9 | C11: 2726 | E11: 2713.5 | F11: 2720 | H11: 2728 | I11: 2725.6 | AG11: 9 | AH11: =IF(OFFSET($B$4,0,3*(AG11-1))="","",DATEVALUE(Input!$D$5+OFFSET($B$4,0,3*(AG11-1)))) ->  | AI11: =Report!AH16 -> 00:00:00 | AK11: 0 | AL11: 9999 | AM11: 0 | AN11: 9999 | AO11: =Z6 -> 0 | AP11: =IF(OR(Input!Q$9=33,ISERROR(SEARCH("ramp",AO11))=FALSE,ISERROR(SEARCH("loop",AO11))=FALSE),1,IF(AND('Placement Record'!J63>0,'Placement Record'!M63='Placement Record'!S$66,'Placement Record'!R63<>-4,E63>0),0.01,IF('Placement Record'!M63>0,'Placement Record'!M63,0))) -> 0 | AQ11: =Report!CA16 ->  | AR11: 0 | AS11: ='Placement Record'!D63 ->  | AV11: 15 | AW11: 1.0021 | AX11: 65 | AY11: 1.0015
A12: "W3", Mass SSD: | B12: 4699 | C12: 4696.3 | E12: 4703 | F12: 4696.8 | H12: 4697.8 | I12: 4694.1 | AG12: 10 | AH12: =IF(OFFSET($B$4,0,3*(AG12-1))="","",DATEVALUE(Input!$D$5+OFFSET($B$4,0,3*(AG12-1)))) ->  | AI12: =Report!AH17 -> 00:00:00 | AK12: 0 | AL12: 9999 | AM12: 0 | AN12: 9999 | AO12: =AC6 -> 0 | AP12: =IF(OR(Input!Q$9=33,ISERROR(SEARCH("ramp",AO12))=FALSE,ISERROR(SEARCH("loop",AO12))=FALSE),1,IF(AND('Placement Record'!J64>0,'Placement Record'!M64='Placement Record'!S$66,'Placement Record'!R64<>-4,E64>0),0.01,IF('Placement Record'!M64>0,'Placement Record'!M64,0))) -> 0 | AQ12: =Report!CA17 ->  | AR12: 0 | AS12: ='Placement Record'!D64 ->  | AV12: 15.5 | AW12: 1.002 | AX12: 65.5 | AY12: 1.0015
A13: Gyratory Height @ N Initial: | B13: 128 | C13: 128.3 | E13: 129.4 | F13: 128.8 | H13: 128.5 | I13: 128.5 | AF13: =DATEVALUE(NOW()) -> 41368.43102 | AK13: =SUM(AK3:AK12) -> 1396 | AM13: 0 | AP13: =IF(OR(Input!Q$9=33,ISERROR(SEARCH("ramp",AO13))=FALSE,ISERROR(SEARCH("loop",AO13))=FALSE),1,IF(AND('Placement Record'!J65>0,'Placement Record'!M65='Placement Record'!S$66,'Placement Record'!R65<>-4,E65>0),0.01,IF('Placement Record'!M65>0,'Placement Record'!M65,0))) -> 0 | AQ13: =AQ3 -> SU10-22A | AS13: ='Placement Record'!D65 -> 0 | AV13: 16 | AW13: 1.0019 | AX13: 66 | AY13: 1.0014
A14: Gyratory Height @ N Design: | B14: 114.8 | C14: 114.9 | E14: 116 | F14: 115.2 | H14: 114.8 | I14: 114.7 | AV14: 16.5 | AW14: 1.0018 | AX14: 66.5 | AY14: 1.0014
A15: =IF(B15<>"","Gyratory Height @ N Max: ","") -> Gyratory Height @ N Max: | B15: 113.3 | C15: 113.4 | E15: 114.5 | F15: 113.6 | H15: 113.2 | I15: 113.1 | AF15: NB Rt | AK15: Time bt Entries | AL15: =IF(ISERROR(AVERAGEIF(AL4:AL12,"<9999")),0,AVERAGEIF(AL4:AL12,"<9999")) -> 4.5 | AV15: 17 | AW15: 1.0017 | AX15: 67 | AY15: 1.0013
A16: Measured Density : | B16: =ROUND(IF(B12="",0,(B10/(B12-B11))),3) -> 2.383 | C16: =ROUND(IF(C12="",0,(C10/(C12-C11))),3) -> 2.382 | E16: =ROUND(IF(E12="",0,(E10/(E12-E11))),3) -> 2.361 | F16: 2.374 | H16: 2.383 | I16: 2.383 | K16: 0 | L16: 0 | N16: =ROUND(IF(N12="",0,(N10/(N12-N11))),3) -> 0 | O16: =ROUND(IF(O12="",0,(O10/(O12-O11))),3) -> 0 | Q16: =ROUND(IF(Q12="",0,(Q10/(Q12-Q11))),3) -> 0 | R16: =ROUND(IF(R12="",0,(R10/(R12-R11))),3) -> 0 | T16: =ROUND(IF(T12="",0,(T10/(T12-T11))),3) -> 0 | U16: =ROUND(IF(U12="",0,(U10/(U12-U11))),3) -> 0 | W16: =ROUND(IF(W12="",0,(W10/(W12-W11))),3) -> 0 | X16: =ROUND(IF(X12="",0,(X10/(X12-X11))),3) -> 0 | Z16: =ROUND(IF(Z12="",0,(Z10/(Z12-Z11))),3) -> 0 | AA16: =ROUND(IF(AA12="",0,(AA10/(AA12-AA11))),3) -> 0 | AC16: =ROUND(IF(AC12="",0,(AC10/(AC12-AC11))),3) -> 0 | AD16: =ROUND(IF(AD12="",0,(AD10/(AD12-AD11))),3) -> 0 | AF16: NB Lt | AK16: Time bt Samples | AL16: =IF(ISERROR(AVERAGEIF(AN4:AN12,"<9999")),0,AVERAGEIF(AN4:AN12,"<9999")) -> 107.5 | AV16: 17.5 | AW16: 1.0017 | AX16: 67.5 | AY16: 1.0013
A17: =IF(A15="","","Height Ratio Hmax/Hdes: ") -> Height Ratio Hmax/Hdes: | B17: =ROUND(IF($A15="","",B15/B14),9) -> 0.986933798 | C17: =ROUND(IF($A15="","",C15/C14),9) -> 0.98694517 | E17: =ROUND(IF(E15="","",E15/E14),9) -> 0.987068966 | F17: =ROUND(IF(F15="","",F15/F14),9) -> 0.986111111 | H17: =ROUND(IF(H15="","",H15/H14),9) -> 0.986062718 | I17: =ROUND(IF(I15="","",I15/I14),9) -> 0.986050567 | K17: =ROUND(IF(K15="","",K15/K14),9) -> 0 | L17: =ROUND(IF(L15="","",L15/L14),9) -> 0 | N17: =ROUND(IF(N15="","",N15/N14),9) -> 0 | O17: =ROUND(IF(O15="","",O15/O14),9) -> 0 | Q17: =ROUND(IF(Q15="","",Q15/Q14),9) -> 0 | R17: =ROUND(IF(R15="","",R15/R14),9) -> 0 | T17: =ROUND(IF(T15="","",T15/T14),9) -> 0 | U17: =ROUND(IF(U15="","",U15/U14),9) -> 0 | W17: =ROUND(IF(W15="","",W15/W14),9) -> 0 | X17: =ROUND(IF(X15="","",X15/X14),9) -> 0 | Z17: =ROUND(IF(Z15="","",Z15/Z14),9) -> 0 | AA17: =ROUND(IF(AA15="","",AA15/AA14),9) -> 0 | AC17: =ROUND(IF(AC15="","",AC15/AC14),9) -> 0 | AD17: =ROUND(IF(AD15="","",AD15/AD14),9) -> 0 | AF17: SB Rt | AK17: Violation | AL17: =IF(AM13=0,0,IF(ISERROR(IF(AL15<AL16,1,0)),0,IF(AL15<AL16,1,0))) -> 0 | AV17: 18 | AW17: 1.0016 | AX17: 68 | AY17: 1.0012
A18: Corrected Density N Design: | B18: =IF(B15="",B16,ROUND(IF(B15="",B16,B16*B17),3)) -> 2.352 | C18: =IF(C15="",C16,ROUND(IF(C15="",C16,C16*C17),3)) -> 2.351 | E18: =IF(E15="",E16,ROUND(IF(E15="",E16,E16*E17),3)) -> 2.33 | F18: =IF(F15="",F16,ROUND(IF(F15="",F16,F16*F17),3)) -> 2.341 | H18: =IF(H15="",H16,ROUND(IF(H15="",H16,H16*H17),3)) -> 2.35 | I18: =IF(I15="",I16,ROUND(IF(I15="",I16,I16*I17),3)) -> 2.35 | K18: =IF(K15="",K16,ROUND(IF(K15="",K16,K16*K17),3)) -> 0 | L18: =IF(L15="",L16,ROUND(IF(L15="",L16,L16*L17),3)) -> 0 | N18: =IF(N15="",N16,ROUND(IF(N15="",N16,N16*N17),3)) -> 0 | O18: =IF(O15="",O16,ROUND(IF(O15="",O16,O16*O17),3)) -> 0 | Q18: =IF(Q15="",Q16,ROUND(IF(Q15="",Q16,Q16*Q17),3)) -> 0 | R18: =IF(R15="",R16,ROUND(IF(R15="",R16,R16*R17),3)) -> 0 | T18: =IF(T15="",T16,ROUND(IF(T15="",T16,T16*T17),3)) -> 0 | U18: =IF(U15="",U16,ROUND(IF(U15="",U16,U16*U17),3)) -> 0 | W18: =IF(W15="",W16,ROUND(IF(W15="",W16,W16*W17),3)) -> 0 | X18: =IF(X15="",X16,ROUND(IF(X15="",X16,X16*X17),3)) -> 0 | Z18: =IF(Z15="",Z16,ROUND(IF(Z15="",Z16,Z16*Z17),3)) -> 0 | AA18: =IF(AA15="",AA16,ROUND(IF(AA15="",AA16,AA16*AA17),3)) -> 0 | AC18: =IF(AC15="",AC16,ROUND(IF(AC15="",AC16,AC16*AC17),3)) -> 0 | AD18: =IF(AD15="",AD16,ROUND(IF(AD15="",AD16,AD16*AD17),3)) -> 0 | AF18: SB Lt | AK18: Avg time after test | AL18: =IF(ISERROR(AVERAGEIF(AK3:AK12,">0")/60),0,AVERAGEIF(AK3:AK12,">0")/60) -> 11.63333333 | AV18: 18.5 | AW18: 1.0015 | AX18: 68.5 | AY18: 1.0011
A19: Avg. Gyratory Density (Gmb): | C19: =IF(C12="","",ROUND(SUM(((B18+C18)/2)+(Input!$C$36)),3)) -> 2.352 | F19: =IF(F12="","",ROUND(SUM(((E18+F18)/2)+(Input!$C$36)),3)) -> 2.336 | I19: =IF(I12="","",ROUND(SUM(((H18+I18)/2)+(Input!$C$36)),3)) -> 2.35 | L19: =IF(L12="","",ROUND(SUM(((K18+L18)/2)+(Input!$C$36)),3)) ->  | O19: =IF(O12="","",ROUND(SUM(((N18+O18)/2)+(Input!$C$36)),3)) ->  | R19: =IF(R12="","",ROUND(SUM(((Q18+R18)/2)+(Input!$C$36)),3)) ->  | U19: =IF(U12="","",ROUND(SUM(((T18+U18)/2)+(Input!$C$36)),3)) ->  | X19: =IF(X12="","",ROUND(SUM(((W18+X18)/2)+(Input!$C$36)),3)) ->  | AA19: =IF(AA12="","",ROUND(SUM(((Z18+AA18)/2)+(Input!$C$36)),3)) ->  | AD19: =IF(AD12="","",ROUND(SUM(((AC18+AD18)/2)+(Input!$C$36)),3)) ->  | AF19: EB Rt | AV19: 19 | AW19: 1.0014 | AX19: 69 | AY19: 1.001
B20: =ROUND(IF(B15="","",SUM(B10/B15)/17.6715),3) -> 2.344 | C20: =ROUND(IF(C15="","",SUM(C10/C15)/17.6715),3) -> 2.342 | E20: 2.321 | F20: 2.338 | H20: 2.347 | I20: 2.347 | K20: 0 | L20: 0 | N20: 0 | O20: 0 | Q20: =ROUND(IF(Q15="","",SUM(Q10/Q15)/17.6715),3) -> 0 | R20: =ROUND(IF(R15="","",SUM(R10/R15)/17.6715),3) -> 0 | T20: =ROUND(IF(T15="","",SUM(T10/T15)/17.6715),3) -> 0 | U20: =ROUND(IF(U15="","",SUM(U10/U15)/17.6715),3) -> 0 | W20: =ROUND(IF(W15="","",SUM(W10/W15)/17.6715),3) -> 0 | X20: =ROUND(IF(X15="","",SUM(X10/X15)/17.6715),3) -> 0 | Z20: =ROUND(IF(Z15="","",SUM(Z10/Z15)/17.6715),3) -> 0 | AA20: =ROUND(IF(AA15="","",SUM(AA10/AA15)/17.6715),3) -> 0 | AC20: =ROUND(IF(AC15="","",SUM(AC10/AC15)/17.6715),3) -> 0 | AD20: =ROUND(IF(AD15="","",SUM(AD10/AD15)/17.6715),3) -> 0 | AF20: EB Lt | AV20: 19.5 | AW20: 1.0013 | AX20: 69.5 | AY20: 1.001
A21: Gmm - Test Data | AF21: WB Rt | AV21: 20 | AW21: 1.0012 | AX21: 70 | AY21: 1.0009
A22: Pycnometer No.: | AF22: WB Lt | AI22: Select Entry # | AJ22: Primary Routes | AV22: 20.5 | AW22: 1.0011 | AX22: 70.5 | AY22: 1.0009
A23: Mass; Container & Sample: | C23: 2020 | F23: 2020 | I23: 2020 | AF23: Intrsxn A | AI23: ='Placement Record'!T102 -> 1 | AJ23: ='Placement Record'!U102 -> 29 | AV23: 21 | AW23: 1.0009 | AX23: 71 | AY23: 1.0008
A24: Mass; Container: | AF24: Intrsxn B | AI24: ='Placement Record'!T103 -> 3 | AJ24: ='Placement Record'!U103 -> 34 | AV24: 21.5 | AW24: 1.0008 | AX24: 71.5 | AY24: 1.0008
A25: "W", Sample Mass: | C25: =IF(C23="","",(C23-C24)) -> 2020 | F25: =IF(F23="","",(F23-F24)) -> 2020 | I25: =IF(I23="","",(I23-I24)) -> 2020 | L25: =IF(L23="","",(L23-L24)) ->  | O25: =IF(O23="","",(O23-O24)) ->  | R25: =IF(R23="","",(R23-R24)) ->  | U25: =IF(U23="","",(U23-U24)) ->  | X25: =IF(X23="","",(X23-X24)) ->  | AA25: =IF(AA23="","",(AA23-AA24)) ->  | AD25: =IF(AD23="","",(AD23-AD24)) ->  | AF25: Intrsxn C | AI25: ='Placement Record'!T104 -> 4 | AV25: 22 | AW25: 1.0007 | AX25: 72 | AY25: 1.0007
A26: "W1", Mass Pyc. & H2O @ Test Temp.: | C26: 7199.6 | F26: 7199.6 | I26: 7199.6 | AF26: Intrsxn D | AI26: ='Placement Record'!T105 ->  | AV26: 22.5 | AW26: 1.0006 | AX26: 72.5 | AY26: 1.0006
A27: Total Mass: | C27: =IF(C26="",0,SUM(C25:C26)) -> 9219.6 | F27: =IF(F26="",0,SUM(F25:F26)) -> 9219.6 | I27: =IF(I26="",0,SUM(I25:I26)) -> 9219.6 | L27: =IF(L26="",0,SUM(L25:L26)) -> 0 | O27: =IF(O26="",0,SUM(O25:O26)) -> 0 | R27: =IF(R26="",0,SUM(R25:R26)) -> 0 | U27: =IF(U26="",0,SUM(U25:U26)) -> 0 | X27: =IF(X26="",0,SUM(X25:X26)) -> 0 | AA27: =IF(AA26="",0,SUM(AA25:AA26)) -> 0 | AD27: =IF(AD26="",0,SUM(AD25:AD26)) -> 0 | AF27: Loop A | AI27: ='Placement Record'!T106 ->  | AV27: 23 | AW27: 1.0005 | AX27: 73 | AY27: 1.0005
A28: "W2", Mass Pyc. & Water & Sample: | C28: 8398.4 | F28: 8394.2 | I28: 8392.8 | AF28: Loop B | AI28: ='Placement Record'!T107 ->  | AV28: 23.5 | AW28: 1.0004 | AX28: 73.5 | AY28: 1.0005
A29: Mass Displaced Water: | C29: =IF(C28="",0,SUM(C27-C28)) -> 821.2 | F29: =IF(F28="",0,SUM(F27-F28)) -> 825.4 | I29: =IF(I28="",0,SUM(I27-I28)) -> 826.8 | L29: =IF(L28="",0,SUM(L27-L28)) -> 0 | O29: =IF(O28="",0,SUM(O27-O28)) -> 0 | R29: =IF(R28="",0,SUM(R27-R28)) -> 0 | U29: =IF(U28="",0,SUM(U27-U28)) -> 0 | X29: =IF(X28="",0,SUM(X27-X28)) -> 0 | AA29: =IF(AA28="",0,SUM(AA27-AA28)) -> 0 | AD29: =IF(AD28="",0,SUM(AD27-AD28)) -> 0 | AF29: Loop C | AI29: ='Placement Record'!T108 ->  | AV29: 24 | AW29: 1.0003 | AX29: 74 | AY29: 1.0004
A30: =IF(Tank!$AB$4=2,"Test Temperature Of Water (°C):","Test Temperature Of Water (°F):") -> Test Temperature Of Water (°F): | B30: =IF(AND(C$30<>"",OR(AND(LEFT(RIGHT($A$30,3),1)="F",C$30<60),AND(LEFT(RIGHT($A$30,3),1)="C",C$30>50))),"Check units","") ->  | C30: 77 | E30: =IF(AND(F$30<>"",OR(AND(LEFT(RIGHT($A$30,3),1)="F",F$30<60),AND(LEFT(RIGHT($A$30,3),1)="C",F$30>50))),"Check units","") ->  | F30: 77 | H30: =IF(AND(I$30<>"",OR(AND(LEFT(RIGHT($A$30,3),1)="F",I$30<60),AND(LEFT(RIGHT($A$30,3),1)="C",I$30>50))),"Check units","") ->  | I30: 77 | K30: =IF(AND(L$30<>"",OR(AND(LEFT(RIGHT($A$30,3),1)="F",L$30<60),AND(LEFT(RIGHT($A$30,3),1)="C",L$30>50))),"Check units","") ->  | N30: =IF(AND(O$30<>"",OR(AND(LEFT(RIGHT($A$30,3),1)="F",O$30<60),AND(LEFT(RIGHT($A$30,3),1)="C",O$30>50))),"Check units","") ->  | Q30: =IF(AND(R$30<>"",OR(AND(LEFT(RIGHT($A$30,3),1)="F",R$30<60),AND(LEFT(RIGHT($A$30,3),1)="C",R$30>50))),"Check units","") ->  | T30: =IF(AND(U$30<>"",OR(AND(LEFT(RIGHT($A$30,3),1)="F",U$30<60),AND(LEFT(RIGHT($A$30,3),1)="C",U$30>50))),"Check units","") ->  | W30: =IF(AND(X$30<>"",OR(AND(LEFT(RIGHT($A$30,3),1)="F",X$30<60),AND(LEFT(RIGHT($A$30,3),1)="C",X$30>50))),"Check units","") ->  | Z30: =IF(AND(AA$30<>"",OR(AND(LEFT(RIGHT($A$30,3),1)="F",AA$30<60),AND(LEFT(RIGHT($A$30,3),1)="C",AA$30>50))),"Check units","") ->  | AC30: =IF(AND(AD$30<>"",OR(AND(LEFT(RIGHT($A$30,3),1)="F",AD$30<60),AND(LEFT(RIGHT($A$30,3),1)="C",AD$30>50))),"Check units","") ->  | AF30: Loop D | AI30: ='Placement Record'!T109 ->  | AV30: 24.5 | AW30: 1.0002 | AX30: 74.5 | AY30: 1.0004
A31: R Multiplier ( chart ): | C31: =IF(C30="",0,IF(Tank!$AB$4=2,VLOOKUP(C30,$AV$2:$AW$76,2),VLOOKUP(C30,$AX$2:$AY$101,2))) -> 1 | F31: =IF(F30="",0,IF(Tank!$AB$4=2,VLOOKUP(F30,$AV$2:$AW$76,2),VLOOKUP(F30,$AX$2:$AY$101,2))) -> 1 | I31: =IF(I30="",0,IF(Tank!$AB$4=2,VLOOKUP(I30,$AV$2:$AW$76,2),VLOOKUP(I30,$AX$2:$AY$101,2))) -> 1 | L31: =IF(L30="",0,IF(Tank!$AB$4=2,VLOOKUP(L30,$AV$2:$AW$76,2),VLOOKUP(L30,$AX$2:$AY$101,2))) -> 0 | O31: =IF(O30="",0,IF(Tank!$AB$4=2,VLOOKUP(O30,$AV$2:$AW$76,2),VLOOKUP(O30,$AX$2:$AY$101,2))) -> 0 | R31: =IF(R30="",0,IF(Tank!$AB$4=2,VLOOKUP(R30,$AV$2:$AW$76,2),VLOOKUP(R30,$AX$2:$AY$101,2))) -> 0 | U31: =IF(U30="",0,IF(Tank!$AB$4=2,VLOOKUP(U30,$AV$2:$AW$76,2),VLOOKUP(U30,$AX$2:$AY$101,2))) -> 0 | X31: =IF(X30="",0,IF(Tank!$AB$4=2,VLOOKUP(X30,$AV$2:$AW$76,2),VLOOKUP(X30,$AX$2:$AY$101,2))) -> 0 | AA31: =IF(AA30="",0,IF(Tank!$AB$4=2,VLOOKUP(AA30,$AV$2:$AW$76,2),VLOOKUP(AA30,$AX$2:$AY$101,2))) -> 0 | AD31: =IF(AD30="",0,IF(Tank!$AB$4=2,VLOOKUP(AD30,$AV$2:$AW$76,2),VLOOKUP(AD30,$AX$2:$AY$101,2))) -> 0 | AF31: Loop E | AI31: ='Placement Record'!T110 ->  | AV31: 25 | AW31: 1 | AX31: 75 | AY31: 1.0003
A32: (Gmm): | C32: =ROUND(IF(C31="",0,SUM(C25*C31)/(C29)),3) -> 2.46 | F32: =ROUND(IF(F31="",0,SUM(F25*F31)/(F29)),3) -> 2.447 | I32: =ROUND(IF(I31="",0,SUM(I25*I31)/(I29)),3) -> 2.443 | L32: =ROUND(IF(L31="",0,SUM(L25*L31)/(L29)),3) -> 0 | O32: =ROUND(IF(O31="",0,SUM(O25*O31)/(O29)),3) -> 0 | R32: =ROUND(IF(R31="",0,SUM(R25*R31)/(R29)),3) -> 0 | U32: =ROUND(IF(U31="",0,SUM(U25*U31)/(U29)),3) -> 0 | X32: =ROUND(IF(X31="",0,SUM(X25*X31)/(X29)),3) -> 0 | AA32: =ROUND(IF(AA31="",0,SUM(AA25*AA31)/(AA29)),3) -> 0 | AD32: =ROUND(IF(AD31="",0,SUM(AD25*AD31)/(AD29)),3) -> 0 | AF32: Loop F | AI32: ='Placement Record'!T111 ->  | AV32: 25.5 | AW32: 0.9999 | AX32: 75.5 | AY32: 1.0002
AF33: Loop G | AI33: ='Placement Record'!T112 ->  | AV33: 26 | AW33: 0.9997 | AX33: 76 | AY33: 1.0001
A34: Pa - Test Data: | C34: =ROUND(IF(C32="",0,SUM(C32-C19)/C32)*(100),1) -> 4.4 | F34: =ROUND(IF(F32="",0,SUM(F32-F19)/F32)*(100),1) -> 4.5 | I34: =ROUND(IF(I32="",0,SUM(I32-I19)/I32)*(100),1) -> 3.8 | L34: =ROUND(IF(L32="",0,SUM(L32-L19)/L32)*(100),1) -> 0 | O34: =ROUND(IF(O32="",0,SUM(O32-O19)/O32)*(100),1) -> 0 | R34: =ROUND(IF(R32="",0,SUM(R32-R19)/R32)*(100),1) -> 0 | U34: =ROUND(IF(U32="",0,SUM(U32-U19)/U32)*(100),1) -> 0 | X34: =ROUND(IF(X32="",0,SUM(X32-X19)/X32)*(100),1) -> 0 | AA34: =ROUND(IF(AA32="",0,SUM(AA32-AA19)/AA32)*(100),1) -> 0 | AD34: =ROUND(IF(AD32="",0,SUM(AD32-AD19)/AD32)*(100),1) -> 0 | AF34: Loop H | AI34: ='Placement Record'!T113 ->  | AV34: 26.5 | AW34: 0.9996 | AX34: 76.5 | AY34: 1.0001
A35: Gyratory Slope: | B35: =IF(B14="","",B105) -> 13.515 | C35: =IF(C14="","",C105) -> 13.38 | E35: =IF(E14="","",E105) -> 13.653 | F35: 13.248 | H35: 13.118 | I35: 12.865 | Q35: =IF(Q14="","",Q105) ->  | R35: =IF(R14="","",R105) ->  | T35: =IF(T14="","",T105) ->  | U35: =IF(U14="","",U105) ->  | W35: =IF(W14="","",W105) ->  | X35: =IF(X14="","",X105) ->  | Z35: =IF(Z14="","",Z105) ->  | AA35: =IF(AA14="","",AA105) ->  | AC35: =IF(AC14="","",AC105) ->  | AD35: =IF(AD14="","",AD105) ->  | AF35: Ramp A | AI35: ='Placement Record'!T114 ->  | AV35: 27 | AW35: 0.9995 | AX35: 77 | AY35: 1
A36: Average Slope: | C36: =IF(Input!C35=50,"",ROUND(IF(C35="","",((B35+C35)/2)),2)) -> 13.45 | F36: =IF(Input!$C$35=50,"",ROUND(IF(F35="","",((E35+F35)/2)),2)) -> 13.45 | I36: =IF(Input!$C$35=50,"",ROUND(IF(I35="","",((H35+I35)/2)),2)) -> 12.99 | L36: =IF(Input!$C$35=50,"",ROUND(IF(L35="","",((K35+L35)/2)),2)) -> 0 | O36: =IF(Input!$C$35=50,"",ROUND(IF(O35="","",((N35+O35)/2)),2)) -> 0 | R36: =IF(Input!$C$35=50,"",ROUND(IF(R35="","",((Q35+R35)/2)),2)) -> 0 | U36: =IF(Input!$C$35=50,"",ROUND(IF(U35="","",((T35+U35)/2)),2)) -> 0 | X36: =IF(Input!$C$35=50,"",ROUND(IF(X35="","",((W35+X35)/2)),2)) -> 0 | AA36: =IF(Input!$C$35=50,"",ROUND(IF(AA35="","",((Z35+AA35)/2)),2)) -> 0 | AD36: =IF(Input!$C$35=50,"",ROUND(IF(AD35="","",((AC35+AD35)/2)),2)) -> 0 | AF36: Ramp B | AG36: mp_only | AH36: ='Placement Record'!A96 -> FALSE | AI36: ='Placement Record'!T115 ->  | AV36: 27.5 | AW36: 0.9994 | AX36: 77.5 | AY36: 1
A37: % Gmm @ N Ini. & N Max.: | B37: =ROUND(IF(C13="","",((((B100+C100)/2)/C32)*100)),2) -> 85.67 | C37: =ROUND(IF(C15="","",((((B16+C16)/2)/C32)*100)),2) -> 96.85 | E37: =ROUND(IF(F13="","",((((E100+F100)/2)/F32)*100)),2) -> 85.47 | F37: =ROUND(IF(F15="","",((((E16+F16)/2)/F32)*100)),2) -> 96.75 | H37: =ROUND(IF(I13="","",((((H100+I100)/2)/I32)*100)),2) -> 85.9 | I37: =ROUND(IF(I15="","",((((H16+I16)/2)/I32)*100)),2) -> 97.54 | K37: =ROUND(IF(L13="","",((((K100+L100)/2)/L32)*100)),2) -> 0 | L37: =ROUND(IF(L15="","",((((K16+L16)/2)/L32)*100)),2) -> 0 | N37: =ROUND(IF(O13="","",((((N100+O100)/2)/O32)*100)),2) -> 0 | O37: =ROUND(IF(O15="","",((((N16+O16)/2)/O32)*100)),2) -> 0 | Q37: =ROUND(IF(R13="","",((((Q100+R100)/2)/R32)*100)),2) -> 0 | R37: =ROUND(IF(R15="","",((((Q16+R16)/2)/R32)*100)),2) -> 0 | T37: =ROUND(IF(U13="","",((((T100+U100)/2)/U32)*100)),2) -> 0 | U37: =ROUND(IF(U15="","",((((T16+U16)/2)/U32)*100)),2) -> 0 | W37: =ROUND(IF(X13="","",((((W100+X100)/2)/X32)*100)),2) -> 0 | X37: =ROUND(IF(X15="","",((((W16+X16)/2)/X32)*100)),2) -> 0 | Z37: =ROUND(IF(AA13="","",((((Z100+AA100)/2)/AA32)*100)),2) -> 0 | AA37: =ROUND(IF(AA15="","",((((Z16+AA16)/2)/AA32)*100)),2) -> 0 | AC37: =ROUND(IF(AD13="","",((((AC100+AD100)/2)/AD32)*100)),2) -> 0 | AD37: =ROUND(IF(AD15="","",((((AC16+AD16)/2)/AD32)*100)),2) -> 0 | AF37: Ramp C | AG37: =SUM(C36,F36,I36,L36,O36,R36,U36,X36,AA36,AD36) -> 39.89 | AI37: ='Placement Record'!T116 ->  | AV37: 28 | AW37: 0.9992 | AX37: 78 | AY37: 0.9999
A38: Time Results are Logged | B38: 2012-11-27T10:46:35 | E38: 2012-11-27T10:55:38 | H38: 2012-11-27T10:55:48 | AF38: Ramp D | AI38: ='Placement Record'!T117 ->  | AV38: 28.5 | AW38: 0.9991 | AX38: 78.5 | AY38: 0.9998
A39: Compact to Ndesign | AF39: Ramp E | AI39: ='Placement Record'!T118 ->  | AV39: 29 | AW39: 0.9989 | AX39: 79 | AY39: 0.9997
A40: =Tank!A43 ->  | AF40: Ramp F | AI40: ='Placement Record'!T119 ->  | AV40: 29.5 | AW40: 0.9988 | AX40: 79.5 | AY40: 0.9997
AF41: Ramp G | AI41: ='Placement Record'!T120 ->  | AV41: 30 | AW41: 0.9986 | AX41: 80 | AY41: 0.9996
A42: Theoretical % AC for specimen | B42: =IF(ISERROR(C32),"",IF(C32="","",100*ROUND((ROUND(SUM('Film VMA'!$N$14*Tank!$E$7),3)-ROUND(Gyratory!C32*Tank!$E$7,3))/(ROUND('Film VMA'!$N$14*Gyratory!C32,3)-ROUND(Gyratory!C32*Tank!$E$7,3)),4))) -> 4.68 | E42: =IF(ISERROR(F32),"",IF(F32="","",100*ROUND((ROUND(SUM('Film VMA'!$N$14*Tank!$E$7),3)-ROUND(Gyratory!F32*Tank!$E$7,3))/(ROUND('Film VMA'!$N$14*Gyratory!F32,3)-ROUND(Gyratory!F32*Tank!$E$7,3)),4))) -> 5.04 | H42: =IF(ISERROR(I32),"",IF(I32="","",100*ROUND((ROUND(SUM('Film VMA'!$N$14*Tank!$E$7),3)-ROUND(Gyratory!I32*Tank!$E$7,3))/(ROUND('Film VMA'!$N$14*Gyratory!I32,3)-ROUND(Gyratory!I32*Tank!$E$7,3)),4))) -> 5.15 | K42: =IF(ISERROR(L32),"",IF(L32="","",100*ROUND((ROUND(SUM('Film VMA'!$N$14*Tank!$E$7),3)-ROUND(Gyratory!L32*Tank!$E$7,3))/(ROUND('Film VMA'!$N$14*Gyratory!L32,3)-ROUND(Gyratory!L32*Tank!$E$7,3)),4))) ->  | N42: =IF(ISERROR(O32),"",IF(O32="","",100*ROUND((ROUND(SUM('Film VMA'!$N$14*Tank!$E$7),3)-ROUND(Gyratory!O32*Tank!$E$7,3))/(ROUND('Film VMA'!$N$14*Gyratory!O32,3)-ROUND(Gyratory!O32*Tank!$E$7,3)),4))) ->  | Q42: =IF(ISERROR(R32),"",IF(R32="","",100*ROUND((ROUND(SUM('Film VMA'!$N$14*Tank!$E$7),3)-ROUND(Gyratory!R32*Tank!$E$7,3))/(ROUND('Film VMA'!$N$14*Gyratory!R32,3)-ROUND(Gyratory!R32*Tank!$E$7,3)),4))) ->  | T42: =IF(ISERROR(U32),"",IF(U32="","",100*ROUND((ROUND(SUM('Film VMA'!$N$14*Tank!$E$7),3)-ROUND(Gyratory!U32*Tank!$E$7,3))/(ROUND('Film VMA'!$N$14*Gyratory!U32,3)-ROUND(Gyratory!U32*Tank!$E$7,3)),4))) ->  | W42: =IF(ISERROR(X32),"",IF(X32="","",100*ROUND((ROUND(SUM('Film VMA'!$N$14*Tank!$E$7),3)-ROUND(Gyratory!X32*Tank!$E$7,3))/(ROUND('Film VMA'!$N$14*Gyratory!X32,3)-ROUND(Gyratory!X32*Tank!$E$7,3)),4))) ->  | Z42: =IF(ISERROR(AA32),"",IF(AA32="","",100*ROUND((ROUND(SUM('Film VMA'!$N$14*Tank!$E$7),3)-ROUND(Gyratory!AA32*Tank!$E$7,3))/(ROUND('Film VMA'!$N$14*Gyratory!AA32,3)-ROUND(Gyratory!AA32*Tank!$E$7,3)),4))) ->  | AC42: =IF(ISERROR(AD32),"",IF(AD32="","",100*ROUND((ROUND(SUM('Film VMA'!$N$14*Tank!$E$7),3)-ROUND(Gyratory!AD32*Tank!$E$7,3))/(ROUND('Film VMA'!$N$14*Gyratory!AD32,3)-ROUND(Gyratory!AD32*Tank!$E$7,3)),4))) ->  | AF42: Ramp H | AI42: ='Placement Record'!T121 ->  | AV42: 30.5 | AW42: 0.9985 | AX42: 80.5 | AY42: 0.9995
A43: =IF(Tank!AB4=2,10,60) -> 60 | AF43: Rest Area | AI43: ='Placement Record'!T122 ->  | AV43: 31 | AW43: 0.9983 | AX43: 81 | AY43: 0.9994
A44: =IF(Tank!AB4=2,55,130) -> 130 | AF44: Trail | AI44: ='Placement Record'!T123 ->  | AV44: 31.5 | AW44: 0.9982 | AX44: 81.5 | AY44: 0.9993
AF45: Shldr Out | AI45: ='Placement Record'!T124 ->  | AV45: 32 | AW45: 0.998 | AX45: 82 | AY45: 0.9992
AF46: Shldr In | AI46: ='Placement Record'!T125 ->  | AV46: 32.5 | AW46: 0.9979 | AX46: 82.5 | AY46: 0.9992
AF47: Widening (NB) | AI47: ='Placement Record'!T126 ->  | AV47: 33 | AW47: 0.9976 | AX47: 83 | AY47: 0.9991
AF48: Widening (SB) | AI48: ='Placement Record'!T127 -> 0 | AV48: 33.5 | AW48: 0.9975 | AX48: 83.5 | AY48: 0.999
AF49: Widening (EB) | AI49: ='Placement Record'!T128 -> 0 | AV49: 34 | AW49: 0.9973 | AX49: 84 | AY49: 0.9989
AF50: Widening (WB) | AI50: ='Placement Record'!T129 -> 0 | AV50: 34.5 | AW50: 0.9972 | AX50: 84.5 | AY50: 0.9989
AI51: ='Placement Record'!T130 -> 0 | AV51: 35 | AW51: 0.997 | AX51: 85 | AY51: 0.9988
AI52: ='Placement Record'!T131 -> 0 | AV52: 35.5 | AW52: 0.9968 | AX52: 85.5 | AY52: 0.9987
AI53: ='Placement Record'!T132 -> 0 | AV53: 36 | AW53: 0.9966 | AX53: 86 | AY53: 0.9986
AI54: ='Placement Record'!T133 -> 0 | AV54: 36.5 | AW54: 0.9965 | AX54: 86.5 | AY54: 0.9985
AI55: ='Placement Record'!T134 -> 0 | AV55: 37 | AW55: 0.9963 | AX55: 87 | AY55: 0.9984
AI56: ='Placement Record'!T135 -> 0 | AV56: 37.5 | AW56: 0.9961 | AX56: 87.5 | AY56: 0.9984
AI57: ='Placement Record'!T136 -> 0 | AV57: 38 | AW57: 0.9959 | AX57: 88 | AY57: 0.9983
AI58: ='Placement Record'!T137 -> 0 | AV58: 38.5 | AW58: 0.9957 | AX58: 88.5 | AY58: 0.9982
AV59: 39 | AW59: 0.9955 | AX59: 89 | AY59: 0.9981
AV60: 39.5 | AW60: 0.9954 | AX60: 89.5 | AY60: 0.998
AV61: 40 | AW61: 0.9952 | AX61: 90 | AY61: 0.9979
AV62: =1+AV61 -> 41 | AW62: 0.9948 | AX62: 91 | AY62: 0.9977
AV63: 42 | AW63: 0.9944 | AX63: 92 | AY63: 0.9975
AV64: 43 | AW64: 0.994 | AX64: 93 | AY64: 0.9974
AV65: 44 | AW65: 0.9936 | AX65: 94 | AY65: 0.9972
AV66: 45 | AW66: 0.9932 | AX66: 95 | AY66: 0.997
AV67: 46 | AW67: 0.9927 | AX67: 96 | AY67: 0.9968
AV68: 47 | AW68: 0.9923 | AX68: 97 | AY68: 0.9966
AV69: 48 | AW69: 0.9919 | AX69: 98 | AY69: 0.9964
AV70: 49 | AW70: 0.9914 | AX70: 99 | AY70: 0.9962
AV71: 50 | AW71: 0.991 | AX71: 100 | AY71: 0.996
AV72: 51 | AW72: 0.9905 | AX72: 101 | AY72: 0.9958
AV73: =1+AV72 -> 52 | AW73: 0.99 | AX73: 102 | AY73: 0.9956
AV74: =1+AV73 -> 53 | AW74: 0.9896 | AX74: 103 | AY74: 0.9954
AV75: =1+AV74 -> 54 | AW75: 0.9891 | AX75: 104 | AY75: 0.9952
AV76: =1+AV75 -> 55 | AW76: 0.9886 | AX76: 105 | AY76: 0.9949
AX77: 106 | AY77: 0.9947
AX78: 107 | AY78: 0.9945
AX79: 108 | AY79: 0.9943
AX80: 109 | AY80: 0.9941
AX81: 110 | AY81: 0.9938
AX82: 111 | AY82: 0.9936
AX83: 112 | AY83: 0.9934
AX84: 113 | AY84: 0.9932
AX85: 114 | AY85: 0.9929
AX86: 115 | AY86: 0.9927
AX87: 116 | AY87: 0.9924
AX88: 117 | AY88: 0.9922
AX89: 118 | AY89: 0.992
AX90: 119 | AY90: 0.9917
AX91: 120 | AY91: 0.9915
AX92: 121 | AY92: 0.9912
AX93: 122 | AY93: 0.991
AX94: 123 | AY94: 0.9907
AX95: 124 | AY95: 0.9905
AX96: 125 | AY96: 0.9902
AX97: 126 | AY97: 0.9899
AX98: 127 | AY98: 0.9897
A99: Gmb @ Ninitial | B99: =ROUND(IF(B$13="","",SUM(B$10/B$13)/17.6715),3) -> 2.075 | C99: =ROUND(IF(C$10="","",SUM(C$10/C$13)/17.6715),3) -> 2.07 | E99: =ROUND(IF(E$13="","",SUM(E$10/E$13)/17.6715),3) -> 2.054 | F99: =ROUND(IF(F$10="","",SUM(F$10/F$13)/17.6715),3) -> 2.062 | H99: =ROUND(IF(H$13="","",SUM(H$10/H$13)/17.6715),3) -> 2.067 | I99: =ROUND(IF(I$10="","",SUM(I$10/I$13)/17.6715),3) -> 2.066 | K99: =ROUND(IF(K$13="","",SUM(K$10/K$13)/17.6715),3) -> 0 | L99: =ROUND(IF(L$10="","",SUM(L$10/L$13)/17.6715),3) -> 0 | N99: =ROUND(IF(N$13="","",SUM(N$10/N$13)/17.6715),3) -> 0 | O99: =ROUND(IF(O$10="","",SUM(O$10/O$13)/17.6715),3) -> 0 | Q99: =ROUND(IF(Q$13="","",SUM(Q$10/Q$13)/17.6715),3) -> 0 | R99: =ROUND(IF(R$10="","",SUM(R$10/R$13)/17.6715),3) -> 0 | T99: =ROUND(IF(T$13="","",SUM(T$10/T$13)/17.6715),3) -> 0 | U99: =ROUND(IF(U$10="","",SUM(U$10/U$13)/17.6715),3) -> 0 | W99: =ROUND(IF(W$13="","",SUM(W$10/W$13)/17.6715),3) -> 0 | X99: =ROUND(IF(X$10="","",SUM(X$10/X$13)/17.6715),3) -> 0 | Z99: =ROUND(IF(Z$13="","",SUM(Z$10/Z$13)/17.6715),3) -> 0 | AA99: =ROUND(IF(AA$10="","",SUM(AA$10/AA$13)/17.6715),3) -> 0 | AC99: =ROUND(IF(AC$13="","",SUM(AC$10/AC$13)/17.6715),3) -> 0 | AD99: =ROUND(IF(AD$10="","",SUM(AD$10/AD$13)/17.6715),3) -> 0 | AX99: 128 | AY99: 0.9894
A100: Gmb @ Ninitial corrected | B100: =IF(B13="","",ROUND(IF(B15="",SUM(B16/B101)*B99,SUM(B16/B20)*B99),3)) -> 2.11 | C100: =IF(C13="","",ROUND(IF(C15="",SUM(C16/C101)*C99,SUM(C16/C20)*C99),3)) -> 2.105 | E100: =IF(E13="","",ROUND(IF(E15="",SUM(E16/E101)*E99,SUM(E16/E20)*E99),3)) -> 2.089 | F100: =IF(F13="","",ROUND(IF(F15="",SUM(F16/F101)*F99,SUM(F16/F20)*F99),3)) -> 2.094 | H100: =IF(H13="","",ROUND(IF(H15="",SUM(H16/H101)*H99,SUM(H16/H20)*H99),3)) -> 2.099 | I100: =IF(I13="","",ROUND(IF(I15="",SUM(I16/I101)*I99,SUM(I16/I20)*I99),3)) -> 2.098 | K100: =IF(K13="","",ROUND(IF(K15="",SUM(K16/K101)*K99,SUM(K16/K20)*K99),3)) ->  | L100: =IF(L13="","",ROUND(IF(L15="",SUM(L16/L101)*L99,SUM(L16/L20)*L99),3)) ->  | N100: =IF(N13="","",ROUND(IF(N15="",SUM(N16/N101)*N99,SUM(N16/N20)*N99),3)) ->  | O100: =IF(O13="","",ROUND(IF(O15="",SUM(O16/O101)*O99,SUM(O16/O20)*O99),3)) ->  | Q100: =IF(Q13="","",ROUND(IF(Q15="",SUM(Q16/Q101)*Q99,SUM(Q16/Q20)*Q99),3)) ->  | R100: =IF(R13="","",ROUND(IF(R15="",SUM(R16/R101)*R99,SUM(R16/R20)*R99),3)) ->  | T100: =IF(T13="","",ROUND(IF(T15="",SUM(T16/T101)*T99,SUM(T16/T20)*T99),3)) ->  | U100: =IF(U13="","",ROUND(IF(U15="",SUM(U16/U101)*U99,SUM(U16/U20)*U99),3)) ->  | W100: =IF(W13="","",ROUND(IF(W15="",SUM(W16/W101)*W99,SUM(W16/W20)*W99),3)) ->  | X100: =IF(X13="","",ROUND(IF(X15="",SUM(X16/X101)*X99,SUM(X16/X20)*X99),3)) ->  | Z100: =IF(Z13="","",ROUND(IF(Z15="",SUM(Z16/Z101)*Z99,SUM(Z16/Z20)*Z99),3)) ->  | AA100: =IF(AA13="","",ROUND(IF(AA15="",SUM(AA16/AA101)*AA99,SUM(AA16/AA20)*AA99),3)) ->  | AC100: =IF(AC13="","",ROUND(IF(AC15="",SUM(AC16/AC101)*AC99,SUM(AC16/AC20)*AC99),3)) ->  | AD100: =IF(AD13="","",ROUND(IF(AD15="",SUM(AD16/AD101)*AD99,SUM(AD16/AD20)*AD99),3)) ->  | AX100: 129 | AY100: 0.9892
A101: Gmb @ Ndesign | B101: =ROUND(IF(B$10="","",IF(B15="",B102,SUM(B$10/B$14)/17.6715)),3) -> 2.314 | C101: =ROUND(IF(C$10="","",IF(C15="",C102,SUM(C$10/C$14)/17.6715)),3) -> 2.311 | E101: =ROUND(IF(E$10="","",IF(E15="",E102,SUM(E$10/E$14)/17.6715)),3) -> 2.291 | F101: =ROUND(IF(F$10="","",IF(F15="",F102,SUM(F$10/F$14)/17.6715)),3) -> 2.305 | H101: =ROUND(IF(H$10="","",IF(H15="",H102,SUM(H$10/H$14)/17.6715)),3) -> 2.314 | I101: =ROUND(IF(I$10="","",IF(I15="",I102,SUM(I$10/I$14)/17.6715)),3) -> 2.315 | K101: =ROUND(IF(K$10="","",IF(K15="",K102,SUM(K$10/K$14)/17.6715)),3) -> 0 | L101: =ROUND(IF(L$10="","",IF(L15="",L102,SUM(L$10/L$14)/17.6715)),3) -> 0 | N101: =ROUND(IF(N$10="","",IF(N15="",N102,SUM(N$10/N$14)/17.6715)),3) -> 0 | O101: =ROUND(IF(O$10="","",IF(O15="",O102,SUM(O$10/O$14)/17.6715)),3) -> 0 | Q101: =ROUND(IF(Q$10="","",IF(Q15="",Q102,SUM(Q$10/Q$14)/17.6715)),3) -> 0 | R101: =ROUND(IF(R$10="","",IF(R15="",R102,SUM(R$10/R$14)/17.6715)),3) -> 0 | T101: =ROUND(IF(T$10="","",IF(T15="",T102,SUM(T$10/T$14)/17.6715)),3) -> 0 | U101: =ROUND(IF(U$10="","",IF(U15="",U102,SUM(U$10/U$14)/17.6715)),3) -> 0 | W101: =ROUND(IF(W$10="","",IF(W15="",W102,SUM(W$10/W$14)/17.6715)),3) -> 0 | X101: =ROUND(IF(X$10="","",IF(X15="",X102,SUM(X$10/X$14)/17.6715)),3) -> 0 | Z101: =ROUND(IF(Z$10="","",IF(Z15="",Z102,SUM(Z$10/Z$14)/17.6715)),3) -> 0 | AA101: =ROUND(IF(AA$10="","",IF(AA15="",AA102,SUM(AA$10/AA$14)/17.6715)),3) -> 0 | AC101: =ROUND(IF(AC$10="","",IF(AC15="",AC102,SUM(AC$10/AC$14)/17.6715)),3) -> 0 | AD101: =ROUND(IF(AD$10="","",IF(AD15="",AD102,SUM(AD$10/AD$14)/17.6715)),3) -> 0 | AX101: 130 | AY101: 0.989
A102: Gmb @ Ndesign corrected | B102: =ROUND(IF(B15="",B16,SUM(B16/B20)*B101),3) -> 2.353 | C102: =ROUND(IF(C15="",C16,SUM(C16/C20)*C101),3) -> 2.35 | E102: =ROUND(IF(E15="",E16,SUM(E16/E20)*E101),3) -> 2.33 | F102: =ROUND(IF(F15="",F16,SUM(F16/F20)*F101),3) -> 2.34 | H102: =ROUND(IF(H15="",H16,SUM(H16/H20)*H101),3) -> 2.349 | I102: =ROUND(IF(I15="",I16,SUM(I16/I20)*I101),3) -> 2.351 | K102: =ROUND(IF(K15="",K16,SUM(K16/K20)*K101),3) -> 0 | L102: =ROUND(IF(L15="",L16,SUM(L16/L20)*L101),3) -> 0 | N102: =ROUND(IF(N15="",N16,SUM(N16/N20)*N101),3) -> 0 | O102: =ROUND(IF(O15="",O16,SUM(O16/O20)*O101),3) -> 0 | Q102: =ROUND(IF(Q15="",Q16,SUM(Q16/Q20)*Q101),3) -> 0 | R102: =ROUND(IF(R15="",R16,SUM(R16/R20)*R101),3) -> 0 | T102: =ROUND(IF(T15="",T16,SUM(T16/T20)*T101),3) -> 0 | U102: =ROUND(IF(U15="",U16,SUM(U16/U20)*U101),3) -> 0 | W102: =ROUND(IF(W15="",W16,SUM(W16/W20)*W101),3) -> 0 | X102: =ROUND(IF(X15="",X16,SUM(X16/X20)*X101),3) -> 0 | Z102: =ROUND(IF(Z15="",Z16,SUM(Z16/Z20)*Z101),3) -> 0 | AA102: =ROUND(IF(AA15="",AA16,SUM(AA16/AA20)*AA101),3) -> 0 | AC102: =ROUND(IF(AC15="",AC16,SUM(AC16/AC20)*AC101),3) -> 0 | AD102: =ROUND(IF(AD15="",AD16,SUM(AD16/AD20)*AD101),3) -> 0
A103: (gmbdesign/gmm) - (gmbinitial/gmm) | B103: =ROUND(IF(C$32="","",(B102/C$32-B100/C$32)),3) -> 0.099 | C103: =ROUND(IF(C$32="","",(C102/C$32-C100/C$32)),3) -> 0.1 | E103: =ROUND(IF(F$32="","",(E102/F$32-E100/F$32)),3) -> 0.098 | F103: =ROUND(IF(F$32="","",(F102/F$32-F100/F$32)),3) -> 0.101 | H103: =ROUND(IF(I$32="","",(H102/I$32-H100/I$32)),3) -> 0.102 | I103: =ROUND(IF(I$32="","",(I102/I$32-I100/I$32)),3) -> 0.104 | K103: =ROUND(IF(L$32="","",(K102/L$32-K100/L$32)),3) -> 0 | L103: =ROUND(IF(L$32="","",(L102/L$32-L100/L$32)),3) -> 0 | N103: =ROUND(IF(O$32="","",(N102/O$32-N100/O$32)),3) -> 0 | O103: =ROUND(IF(O$32="","",(O102/O$32-O100/O$32)),3) -> 0 | Q103: =ROUND(IF(R$32="","",(Q102/R$32-Q100/R$32)),3) -> 0 | R103: =ROUND(IF(R$32="","",(R102/R$32-R100/R$32)),3) -> 0 | T103: =ROUND(IF(U$32="","",(T102/U$32-T100/U$32)),3) -> 0 | U103: =ROUND(IF(U$32="","",(U102/U$32-U100/U$32)),3) -> 0 | W103: =ROUND(IF(X$32="","",(W102/X$32-W100/X$32)),3) -> 0 | X103: =ROUND(IF(X$32="","",(X102/X$32-X100/X$32)),3) -> 0 | Z103: =ROUND(IF(AA$32="","",(Z102/AA$32-Z100/AA$32)),3) -> 0 | AA103: =ROUND(IF(AA$32="","",(AA102/AA$32-AA100/AA$32)),3) -> 0 | AC103: =ROUND(IF(AD$32="","",(AC102/AD$32-AC100/AD$32)),3) -> 0 | AD103: =ROUND(IF(AD$32="","",(AD102/AD$32-AD100/AD$32)),3) -> 0
A104: Pill height factor | B104: =IF(B103="","",IF(B15="",VLOOKUP(Input!$C$35,$B$108:$C$114,2),VLOOKUP(Input!$C$35,$F$108:$H$114,2))) -> 1.338 | C104: =IF(C103="","",IF(C15="",VLOOKUP(Input!$C$35,$B$108:$C$114,2),VLOOKUP(Input!$C$35,$F$108:$H$114,2,TRUE))) -> 1.338 | E104: =IF(E103="","",IF(E15="",VLOOKUP(Input!$C$35,$B$108:$C$114,2),VLOOKUP(Input!$C$35,$F$108:$H$114,2))) -> 1.338 | F104: =IF(F103="","",IF(F15="",VLOOKUP(Input!$C$35,$B$108:$C$114,2),VLOOKUP(Input!$C$35,$F$108:$H$114,2,TRUE))) -> 1.338 | H104: =IF(H103="","",IF(H15="",VLOOKUP(Input!$C$35,$B$108:$C$114,2),VLOOKUP(Input!$C$35,$F$108:$H$114,2))) -> 1.338 | I104: =IF(I103="","",IF(I15="",VLOOKUP(Input!$C$35,$B$108:$C$114,2),VLOOKUP(Input!$C$35,$F$108:$H$114,2,TRUE))) -> 1.338 | K104: =IF(K103="","",IF(K15="",VLOOKUP(Input!$C$35,$B$108:$C$114,2),VLOOKUP(Input!$C$35,$F$108:$H$114,2))) ->  | L104: =IF(L103="","",IF(L15="",VLOOKUP(Input!$C$35,$B$108:$C$114,2),VLOOKUP(Input!$C$35,$F$108:$H$114,2,TRUE))) ->  | N104: =IF(N103="","",IF(N15="",VLOOKUP(Input!$C$35,$B$108:$C$114,2),VLOOKUP(Input!$C$35,$F$108:$H$114,2))) ->  | O104: =IF(O103="","",IF(O15="",VLOOKUP(Input!$C$35,$B$108:$C$114,2),VLOOKUP(Input!$C$35,$F$108:$H$114,2,TRUE))) ->  | Q104: =IF(Q103="","",IF(Q15="",VLOOKUP(Input!$C$35,$B$108:$C$114,2),VLOOKUP(Input!$C$35,$F$108:$H$114,2))) ->  | R104: =IF(R103="","",IF(R15="",VLOOKUP(Input!$C$35,$B$108:$C$114,2),VLOOKUP(Input!$C$35,$F$108:$H$114,2,TRUE))) ->  | T104: =IF(T103="","",IF(T15="",VLOOKUP(Input!$C$35,$B$108:$C$114,2),VLOOKUP(Input!$C$35,$F$108:$H$114,2))) ->  | U104: =IF(U103="","",IF(U15="",VLOOKUP(Input!$C$35,$B$108:$C$114,2),VLOOKUP(Input!$C$35,$F$108:$H$114,2,TRUE))) ->  | W104: =IF(W103="","",IF(W15="",VLOOKUP(Input!$C$35,$B$108:$C$114,2),VLOOKUP(Input!$C$35,$F$108:$H$114,2))) ->  | X104: =IF(X103="","",IF(X15="",VLOOKUP(Input!$C$35,$B$108:$C$114,2),VLOOKUP(Input!$C$35,$F$108:$H$114,2,TRUE))) ->  | Z104: =IF(Z103="","",IF(Z15="",VLOOKUP(Input!$C$35,$B$108:$C$114,2),VLOOKUP(Input!$C$35,$F$108:$H$114,2))) ->  | AA104: =IF(AA103="","",IF(AA15="",VLOOKUP(Input!$C$35,$B$108:$C$114,2),VLOOKUP(Input!$C$35,$F$108:$H$114,2,TRUE))) ->  | AC104: =IF(AC103="","",IF(AC15="",VLOOKUP(Input!$C$35,$B$108:$C$114,2),VLOOKUP(Input!$C$35,$F$108:$H$114,2))) ->  | AD104: =IF(AD103="","",IF(AD15="",VLOOKUP(Input!$C$35,$B$108:$C$114,2),VLOOKUP(Input!$C$35,$F$108:$H$114,2,TRUE))) -> 
A105: slope=Log gyrations/unit change in density | B105: =IF(B103="","",ROUND(B104/B103,3)) -> 13.515 | C105: =IF(C103="","",ROUND(C104/C103,3)) -> 13.38 | E105: =IF(E103="","",ROUND(E104/E103,3)) -> 13.653 | F105: =IF(F103="","",ROUND(F104/F103,3)) -> 13.248 | H105: =IF(H103="","",ROUND(H104/H103,3)) -> 13.118 | I105: =IF(I103="","",ROUND(I104/I103,3)) -> 12.865 | K105: =IF(K103="","",ROUND(K104/K103,3)) ->  | L105: =IF(L103="","",ROUND(L104/L103,3)) ->  | N105: =IF(N103="","",ROUND(N104/N103,3)) ->  | O105: =IF(O103="","",ROUND(O104/O103,3)) ->  | Q105: =IF(Q103="","",ROUND(Q104/Q103,3)) ->  | R105: =IF(R103="","",ROUND(R104/R103,3)) ->  | T105: =IF(T103="","",ROUND(T104/T103,3)) ->  | U105: =IF(U103="","",ROUND(U104/U103,3)) ->  | W105: =IF(W103="","",ROUND(W104/W103,3)) ->  | X105: =IF(X103="","",ROUND(X104/X103,3)) ->  | Z105: =IF(Z103="","",ROUND(Z104/Z103,3)) ->  | AA105: =IF(AA103="","",ROUND(AA104/AA103,3)) ->  | AC105: =IF(AC103="","",ROUND(AC104/AC103,3)) ->  | AD105: =IF(AD103="","",ROUND(AD104/AD103,3)) -> 
B107: Ndesign | C107: Log(Ndes)-Log(Nini) | G107: Log(Nmax)-Log(Nini)
B108: 68 | C108: 0.9874 | F108: 68 | G108: 1.172
B109: 76 | C109: 1.0357 | F109: 76 | G109: 1.223
B110: 86 | C110: 1.0894 | F110: 86 | G110: 1.282
B111: 96 | C111: 1.0792 | F111: 96 | G111: 1.279
B112: 109 | C112: 1.1343 | F112: 109 | G112: 1.338
B113: 126 | C113: 1.1461 | F113: 126 | G113: 1.356
B114: 142 | C114: 1.198 | F114: 142 | G114: 1.413

Sheet Sublots
A1: =IF(AND(Tank!Q54>Input!$D$7,S13>1),IF(Tank!$AB$4=2,"Mg's. Produced For The Day: ","Tons Produced For The Day: "),IF(Tank!$AB$4=2,"Expected Mg's. Produced For The Day: ","Expected Tons Produced For The Day: ")) -> Expected Tons Produced For The Day: | B1: =IF(Input!$D$7="","",Input!$D$7) -> 1500 | D1: =IF(OR(B1="",Tank!AT7>0),"",IF(S14="No","",CONCATENATE(IF(G8="","","*"),IF(S13>1,"Expected production exceeded requiring additional sample(s). ",""),IF(S13>1,TEXT(S11,"0"),TEXT(S10,"0"))," samples required for ",IF(S13>1,CONCATENATE(TEXT(Tank!Q54,"0")," tons of mix placed."),CONCATENATE(TEXT(Input!$D$7,"0")," tons of mix estimated."))," Enter sublots for ",IF(S13>1,TEXT(S11,"0"),TEXT(S10,"0"))," sample(s)."))) ->  | L1: Cumulative Tons
A2: =IF(D2="","",IF(Tank!$AB$4=2,CONCATENATE(VLOOKUP(COUNT(D$1:D2),$N$2:$O$11,2,FALSE)," Hot Box Sample Megagrams",IF(SUM(M9)>0," (*from silo'd mix)",""),":"),CONCATENATE(VLOOKUP(COUNT(D$1:D2),$N$2:$O$11,2,FALSE)," Hot Box Sample Tons",IF(SUM(M9)>0," (*from silo'd mix)",""),":"))) -> First Hot Box Sample Tons: | B2: 295.91 | C2: -- | D2: =IF(B1<100,B1,IF(SUM(Input!J12)>0,MIN(SUM(Input!J12),B1),IF(OR(S$15="No",ROW(B2)-1<=S$10),IF(ROW(B2)-1<S$10,ROUND((Input!$D$7)/(S$10),0),IF(ROW(B2)-1=S$10,Input!$D$7,"")),IF(ROW(B2)-1<S$11,ROUND((Report!N$40-Input!$D$7)/(S$13),0),IF(ROW(B2)-1=S$11,Report!N$40,""))))) -> 500 | E2: =IF(D2="","",IF(Tank!$AB$4=2,CONCATENATE(VLOOKUP(ROW(D2)-1,$N$2:$O$11,2,FALSE)," Sublot (megagrams)"),CONCATENATE(VLOOKUP(ROW(D2)-1,$N$2:$O$11,2,FALSE)," Sublot (tons)"))) -> First Sublot (tons) | G2: Production, tons | J2: # of Sublots | L2: =D2 -> 500 | M2: # of Sublots | N2: 1 | O2: First
A3: =IF(OR(D3="",A2=""),"",IF(Tank!$AB$4=2,CONCATENATE(VLOOKUP(COUNT(D$1:D3),$N$2:$O$11,2,FALSE)," Hot Box Sample Megagrams: "),CONCATENATE(VLOOKUP(COUNT(D$1:D3),$N$2:$O$11,2,FALSE)," Hot Box Sample Tons: "))) -> Second Hot Box Sample Tons: | B3: 639.09 | C3: =IF(D3="","","--") -> -- | D3: =IF(OR(S$15="No",ROW(B3)-1<=S$10),IF(ROW(B3)-1<S$10,IF(M$9>0,ROUND(K$11,0),ROUND((Input!$D$7)/(S$10),0)),IF(ROW(B3)-1=S$10,Input!$D$7-SUM(D$2:D2),"")),IF(ROW(B3)-1<S$11,ROUND((Report!N$40-Input!$D$7)/(S$13),0),IF(ROW(B3)-1=S$11,Report!N$40-SUM(D$2:D2),""))) -> 500 | E3: =IF(D3="","",IF(Tank!$AB$4=2,CONCATENATE(VLOOKUP(ROW(D3)-1,$N$2:$O$11,2,FALSE)," Sublot (megagrams)"),CONCATENATE(VLOOKUP(ROW(D3)-1,$N$2:$O$11,2,FALSE)," Sublot (tons)"))) -> Second Sublot (tons) | G3: 101 | H3: to | I3: 500 | J3: 1 | L3: =IF(A3="","",IF(OR(Report!AJ$1=TRUE,Report!AI$1=TRUE),99999,D3+L2)) -> 1000 | M3: =J3 -> 1 | N3: 2 | O3: Second
A4: =IF(OR(A3="",D4=""),"",IF(Tank!$AB$4=2,CONCATENATE(VLOOKUP(COUNT(D$1:D4),$N$2:$O$11,2,FALSE)," Hot Box Sample Megagrams: "),CONCATENATE(VLOOKUP(COUNT(D$1:D4),$N$2:$O$11,2,FALSE)," Hot Box Sample Tons: "))) -> Third Hot Box Sample Tons: | B4: 1212.03 | C4: =IF(D4="","","--") -> -- | D4: =IF(OR(S$15="No",ROW(B4)-1<=S$10),IF(ROW(B4)-1<S$10,IF(M$9>0,ROUND(K$11,0),ROUND((Input!$D$7)/(S$10),0)),IF(ROW(B4)-1=S$10,Input!$D$7-SUM(D$2:D3),"")),IF(ROW(B4)-1<S$11,ROUND((Report!N$40-Input!$D$7)/(S$13),0),IF(ROW(B4)-1=S$11,Report!N$40-SUM(D$2:D3),""))) -> 500 | E4: =IF(D4="","",IF(Tank!$AB$4=2,CONCATENATE(VLOOKUP(ROW(D4)-1,$N$2:$O$11,2,FALSE)," Sublot (megagrams)"),CONCATENATE(VLOOKUP(ROW(D4)-1,$N$2:$O$11,2,FALSE)," Sublot (tons)"))) -> Third Sublot (tons) | G4: 501 | H4: to | I4: 1250 | J4: 2 | L4: =IF(A4="","",IF(OR(Report!AJ$1=TRUE,Report!AI$1=TRUE),99999,D4+L3)) -> 1500 | M4: =J4 -> 2 | N4: 3 | O4: Third
A5: =IF(D5="","",IF(Tank!$AB$4=2,CONCATENATE(VLOOKUP(COUNT(D$1:D5),$N$2:$O$11,2,FALSE)," Hot Box Sample Megagrams: "),CONCATENATE(VLOOKUP(COUNT(D$1:D5),$N$2:$O$11,2,FALSE)," Hot Box Sample Tons: "))) ->  | D5: =IF(OR(S$15="No",ROW(B5)-1<=S$10),IF(ROW(B5)-1<S$10,IF(M$9>0,ROUND(K$11,0),ROUND((Input!$D$7)/(S$10),0)),IF(ROW(B5)-1=S$10,Input!$D$7-SUM(D$2:D4),"")),IF(ROW(B5)-1<S$11,ROUND((Report!N$40-Input!$D$7)/(S$13),0),IF(ROW(B5)-1=S$11,Report!N$40-SUM(D$2:D4),""))) ->  | E5: =IF(D5="","",IF(Tank!$AB$4=2,CONCATENATE(VLOOKUP(ROW(D5)-1,$N$2:$O$11,2,FALSE)," Sublot (megagrams)"),CONCATENATE(VLOOKUP(ROW(D5)-1,$N$2:$O$11,2,FALSE)," Sublot (tons)"))) ->  | G5: 1251 | H5: to | I5: 2000 | J5: 3 | L5: =IF(A5="","",IF(OR(Report!AJ$1=TRUE,Report!AI$1=TRUE),99999,D5+L4)) ->  | M5: =J5 -> 3 | N5: 4 | O5: Fourth
A6: =IF(D6="","",IF(Tank!$AB$4=2,CONCATENATE(VLOOKUP(COUNT(D$1:D6),$N$2:$O$11,2,FALSE)," Hot Box Sample Megagrams: "),CONCATENATE(VLOOKUP(COUNT(D$1:D6),$N$2:$O$11,2,FALSE)," Hot Box Sample Tons: "))) ->  | D6: =IF(OR(S$15="No",ROW(B6)-1<=S$10),IF(ROW(B6)-1<S$10,IF(M$9>0,ROUND(K$11,0),ROUND((Input!$D$7)/(S$10),0)),IF(ROW(B6)-1=S$10,Input!$D$7-SUM(D$2:D5),"")),IF(ROW(B6)-1<S$11,ROUND((Report!N$40-Input!$D$7)/(S$13),0),IF(ROW(B6)-1=S$11,Report!N$40-SUM(D$2:D5),""))) ->  | E6: =IF(D6="","",IF(Tank!$AB$4=2,CONCATENATE(VLOOKUP(ROW(D6)-1,$N$2:$O$11,2,FALSE)," Sublot (megagrams)"),CONCATENATE(VLOOKUP(ROW(D6)-1,$N$2:$O$11,2,FALSE)," Sublot (tons)"))) ->  | G6: 2001 | H6: to | I6: 4500 | J6: 4 | L6: =IF(A6="","",IF(OR(Report!AJ$1=TRUE,Report!AI$1=TRUE),99999,D6+L5)) ->  | M6: =J6 -> 4 | N6: 5 | O6: Fifth
A7: =IF(D7="","",IF(Tank!$AB$4=2,CONCATENATE(VLOOKUP(COUNT(D$1:D7),$N$2:$O$11,2,FALSE)," Hot Box Sample Megagrams: "),CONCATENATE(VLOOKUP(COUNT(D$1:D7),$N$2:$O$11,2,FALSE)," Hot Box Sample Tons: "))) ->  | D7: =IF(OR(S$15="No",ROW(B7)-1<=S$10),IF(ROW(B7)-1<S$10,IF(M$9>0,ROUND(K$11,0),ROUND((Input!$D$7)/(S$10),0)),IF(ROW(B7)-1=S$10,Input!$D$7-SUM(D$2:D6),"")),IF(ROW(B7)-1<S$11,ROUND((Report!N$40-Input!$D$7)/(S$13),0),IF(ROW(B7)-1=S$11,Report!N$40-SUM(D$2:D6),""))) ->  | E7: =IF(D7="","",IF(Tank!$AB$4=2,CONCATENATE(VLOOKUP(ROW(D7)-1,$N$2:$O$11,2,FALSE)," Sublot (megagrams)"),CONCATENATE(VLOOKUP(ROW(D7)-1,$N$2:$O$11,2,FALSE)," Sublot (tons)"))) ->  | G7: > | I7: 4500 | J7: 5 | L7: =IF(A7="","",IF(OR(Report!AJ$1=TRUE,Report!AI$1=TRUE),99999,D7+L6)) ->  | M7: =J7 -> 5 | N7: 6 | O7: Sixth | R7: Sublots based on 2303 production | S7: =IF(Tank!Q54>I$6,M$7,IF(Tank!Q54>I$5,M$6,IF(Tank!Q54>I$4,M$5,IF(Tank!Q54>I$3,M$4,M$3)))) -> 3
A8: =IF(D8="","",IF(Tank!$AB$4=2,CONCATENATE(VLOOKUP(COUNT(D$1:D8),$N$2:$O$11,2,FALSE)," Hot Box Sample Megagrams: "),CONCATENATE(VLOOKUP(COUNT(D$1:D8),$N$2:$O$11,2,FALSE)," Hot Box Sample Tons: "))) ->  | D8: =IF(OR(S$15="No",ROW(B8)-1<=S$10),IF(ROW(B8)-1<S$10,IF(M$9>0,ROUND(K$11,0),ROUND((Input!$D$7)/(S$10),0)),IF(ROW(B8)-1=S$10,Input!$D$7-SUM(D$2:D7),"")),IF(ROW(B8)-1<S$11,ROUND((Report!N$40-Input!$D$7)/(S$13),0),IF(ROW(B8)-1=S$11,Report!N$40-SUM(D$2:D7),""))) ->  | E8: =IF(D8="","",IF(Tank!$AB$4=2,CONCATENATE(VLOOKUP(ROW(D8)-1,$N$2:$O$11,2,FALSE)," Sublot (megagrams)"),CONCATENATE(VLOOKUP(ROW(D8)-1,$N$2:$O$11,2,FALSE)," Sublot (tons)"))) ->  | G8: =IF(OR(SUM(S9)>S8,SUM(S9)>S7),"*Alternate sampling plan has been indicated and overrides that shown in the table above","") ->  | L8: =IF(A8="","",IF(OR(Report!AJ$1=TRUE,Report!AI$1=TRUE),99999,D8+L7)) ->  | N8: 7 | O8: Seventh | R8: Sublots per 2303 | S8: =IF(B1<100,0,IF(B1>I$6,M$7,IF(B1>I$5,M$6,IF(B1>I$4,M$5,IF(B1>I$3,M$4,M$3))))) -> 3
A9: =IF(D9="","",IF(Tank!$AB$4=2,CONCATENATE(VLOOKUP(COUNT(D$1:D9),$N$2:$O$11,2,FALSE)," Hot Box Sample Megagrams: "),CONCATENATE(VLOOKUP(COUNT(D$1:D9),$N$2:$O$11,2,FALSE)," Hot Box Sample Tons: "))) ->  | D9: =IF(OR(S$15="No",ROW(B9)-1<=S$10),IF(ROW(B9)-1<S$10,IF(M$9>0,ROUND(K$11,0),ROUND((Input!$D$7)/(S$10),0)),IF(ROW(B9)-1=S$10,Input!$D$7-SUM(D$2:D8),"")),IF(ROW(B9)-1<S$11,ROUND((Report!N$40-Input!$D$7)/(S$13),0),IF(ROW(B9)-1=S$11,Report!N$40-SUM(D$2:D8),""))) ->  | E9: =IF(D9="","",IF(Tank!$AB$4=2,CONCATENATE(VLOOKUP(ROW(D9)-1,$N$2:$O$11,2,FALSE)," Sublot (megagrams)"),CONCATENATE(VLOOKUP(ROW(D9)-1,$N$2:$O$11,2,FALSE)," Sublot (tons)"))) ->  | L9: =IF(A9="","",IF(OR(Report!AJ$1=TRUE,Report!AI$1=TRUE),99999,D9+L8)) ->  | M9: =IF(AND(Input!J12<>"",SUM(Input!J12)<B1),1,0) -> 0 | N9: 8 | O9: Eighth | R9: Increased Sublots | S9: =IF(Input!$Q$29>10,10,Input!$Q$29) -> 
A10: =IF(D10="","",IF(Tank!$AB$4=2,CONCATENATE(VLOOKUP(COUNT(D$1:D10),$N$2:$O$11,2,FALSE)," Hot Box Sample Megagrams: "),CONCATENATE(VLOOKUP(COUNT(D$1:D10),$N$2:$O$11,2,FALSE)," Hot Box Sample Tons: "))) ->  | D10: =IF(OR(S$15="No",ROW(B10)-1<=S$10),IF(ROW(B10)-1<S$10,IF(M$9>0,ROUND(K$11,0),ROUND((Input!$D$7)/(S$10),0)),IF(ROW(B10)-1=S$10,Input!$D$7-SUM(D$2:D9),"")),IF(ROW(B10)-1<S$11,ROUND((Report!N$40-Input!$D$7)/(S$13),0),IF(ROW(B10)-1=S$11,Report!N$40-SUM(D$2:D9),""))) ->  | E10: =IF(D10="","",IF(Tank!$AB$4=2,CONCATENATE(VLOOKUP(ROW(D10)-1,$N$2:$O$11,2,FALSE)," Sublot (megagrams)"),CONCATENATE(VLOOKUP(ROW(D10)-1,$N$2:$O$11,2,FALSE)," Sublot (tons)"))) ->  | L10: =IF(A10="","",IF(OR(Report!AJ$1=TRUE,Report!AI$1=TRUE),99999,D10+L9)) ->  | N10: 9 | O10: Ninth | R10: Required sublots (estimated) | S10: =MAX(S8:S9) -> 3
A11: =IF(D11="","",IF(Tank!$AB$4=2,CONCATENATE(VLOOKUP(COUNT(D$1:D11),$N$2:$O$11,2,FALSE)," Hot Box Sample Megagrams: "),CONCATENATE(VLOOKUP(COUNT(D$1:D11),$N$2:$O$11,2,FALSE)," Hot Box Sample Tons: "))) ->  | D11: =IF(OR(S$15="No",ROW(B11)-1<=S$10),IF(ROW(B11)-1<S$10,IF(M$9>0,ROUND(K$11,0),ROUND((Input!$D$7)/(S$10),0)),IF(ROW(B11)-1=S$10,Input!$D$7-SUM(D$2:D10),"")),IF(ROW(B11)-1<S$11,ROUND((Report!N$40-Input!$D$7)/(S$13),0),IF(ROW(B11)-1=S$11,Report!N$40-SUM(D$2:D10),""))) ->  | E11: =IF(D11="","",IF(Tank!$AB$4=2,CONCATENATE(VLOOKUP(ROW(D11)-1,$N$2:$O$11,2,FALSE)," Sublot (megagrams)"),CONCATENATE(VLOOKUP(ROW(D11)-1,$N$2:$O$11,2,FALSE)," Sublot (tons)"))) ->  | G11: =IF(M9>0,"* Articles 1106.01, A and B invoked.","") ->  | K11: =(B1-D2)/(S16-1) -> 500 | L11: =IF(A11="","",IF(OR(Report!AJ$1=TRUE,Report!AI$1=TRUE),99999,D11+L10)) ->  | N11: 10 | O11: Tenth | R11: Required sublots (production) | S11: =MAX(S7,S9) -> 3
L12: =IF(A12="","",IF(OR(Report!AJ$1=TRUE,Report!AI$1=TRUE),99999,D12+L11)) -> 
L13: =IF(A13="","",IF(OR(Report!AJ$1=TRUE,Report!AI$1=TRUE),99999,D13+L12)) ->  | R13: Deficient # samples | S13: =S11-S10 -> 0
L14: =IF(A14="","",IF(OR(Report!AJ$1=TRUE,Report!AI$1=TRUE),99999,D14+L13)) ->  | R14: deficient sublots? | S14: =IF(S13>1,IF(COUNT(B2:B11)<S11,"Yes","No"),IF(AND(COUNT(B2:B11)<S10,(Input!$D$7-Tank!Q54)<0),"Yes","No")) -> No | T14: for increased plans, if produced more than 500 below what was estimated then its ok
L15: =IF(A15="","",IF(OR(Report!AJ$1=TRUE,Report!AI$1=TRUE),99999,D15+L14)) ->  | R15: deficient samples? | S15: =IF(S13>1,"Yes","No") -> No
R16: Required samples master | S16: =IF(S15="Yes",S11,IF(AND((Input!$D$7-Tank!Q54)>=0),IF(S9>0,S10,S7),S10)) -> 3

Sheet Tank
C1: Iowa Department of Transportation | L1: H | W1: Antistrip Dose | X1: Select Bid Item | Y1: Placement | AA1: Active Bid Item= | AB1: =IF(ISERROR(MATCH(AB40,AX2:AX6,0)),1,IF(MATCH(AB40,AX2:AX6,0)>AB2,1,MATCH(AB40,AX2:AX6,0))) -> 1 | AC1: Bid Item | AD1: Units | AE1: Units Input q17 | AF1: Quantity TypeT26 | AG1: Pay Type | AH1: compaction | AI1: Plan Quantity | AJ1: Placement | AK1: Bid Item Formatted | AL1: Tons on Road | AM1: Silo'd Mix on road | AN1: New Mix on Road | AO1: Bid Item Valid | AP1: Plan Quantity valid | AQ1: Thick Cores Valid | AR1: SY | AS1: Patch? | AT1: Small Quantitiy? | AU1: Drive Lane? | AV1: Multiple Entries of Bid Item with PWL? | AW1: Project Number
C2: Highway Division-Office of Materials | W2: 0 | X2: =CONCATENATE('Bid Items'!A1," (",'Bid Items'!B1,")") -> 2102-230100 (SPECIAL BACKFILL MATERIAL) | Y2: =Input!AE30 -> Surface (Travel Lane) | AA2: Total Bid Items with Quantities | AB2: =COUNTIF(B37:B41,">0") -> 5 | AC2: =IF(A37="Select Bid Item","",A37) -> 2303-0042500 (HMA (3M ESAL) INTERMEDIATE, 1/2") | AD2: =OFFSET('Bid Items'!D$1,MATCH(AC2,'Bid Items'!F$1:F$285,0)-1,0) -> English | AE2: =IF(AC2="","",IF(AD2="English",1,2)) -> 1 | AF2: =IF(AC2="","",OFFSET('Bid Items'!E$1,MATCH(AC2,'Bid Items'!F$1:F$285,0)-1,0)) -> 1 | AG2: =IF(AF2=1,"Weight",IF(AF2=2,"Area",IF(AF2=3,"LF","Count"))) -> Weight | AH2: =IF(AC2="","",IF(OR(K37="Class I",K37="Class I (Non-PWL)"),1,2)) -> 1 | AI2: =IF(D37="",0,IF(OR(AF2=1,AF2>=3),D37,IF(Tank!$AB$4=1,145*D37/12*E37*9/2000,0.9071847*D37*R$46*145*E37*R$47/2000))) -> 310.3 | AJ2: =IF(C37="","",C37) -> Ramps (Non-high speed) | AK2: =AD8 -> 2303-0042500 3M int 1/2in (HMA) | AL2: =B37/IF(Tank!$AB$4=2,1000,2000) -> 174.55 | AM2: =IF(AL2>Q$33,Q$33,AL2) -> 0 | AN2: =AL2-AM2 -> 174.55 | AO2: =IF(AC2="",0,IF(ISERROR(MATCH(AC2,X$2:X$286,0)),1,0)) -> 0 | AP2: =IF(OR(AC2="",AS2=1),0,IF(AI2=0,1,0)) -> 0 | AQ2: =IF(AND(AF2=2,AH2=1,Report!AJ$1=0,Report!AI$1=0,Report!AK$1<Settings!$B$65,AR2>Settings!B$57),1,0) -> 0 | AR2: =Summary!O40 -> 10233.5 | AS2: =IF(AND(ISERROR(SEARCH("patch",AC2))=FALSE,ISERROR(SEARCH("patch",AJ2))=FALSE),1,0) -> 0 | AT2: =IF(OR(AC2="",AND(AI2=0,AS2=0)),0,IF(OR(AS2=1,LEFT(AC2,3)="EWO",AF2>=3),1,IF(AND(Input!$BS$4<39,Input!$Q$9=1),IF(OR(AJ2=Input!AG$30,AJ2=Input!AG$31,AJ2=Input!AG$32,AJ2=Input!AI$30,AJ2=Input!AI$31,AJ2=Input!AI$32,AJ2=Input!AI$33,AJ2=Input!AG$36,AJ2=Input!AG$37),0,IF(Tank!AI2<=Settings!B$54,1,0)),IF(Tank!AI2<=Settings!B$54,1,0)))) -> 0 | AU2: =IF(AND(AH2=1,ISERROR(SEARCH("travel",AJ2))=FALSE),1,0) -> 0 | AV2: =IF(AK2="",0,IF(L37="PWL",IF(AND(COUNTIFS(AK$2:AK$6,AK2)>1,COUNTIFS(AK$2:AK$6,AK2,L37:L41,"<>PWL")>0),1,0),0)) -> 0 | AW2: =I37 -> IMX-029-2(60)32--02-65 | AX2: =IF(ISERROR(CONCATENATE(AW2,AK2)),"",CONCATENATE(AK2,"\",AW2)) -> 2303-0042500 3M int 1/2in (HMA)\IMX-029-2(60)32--02-65
C3: Tank Stick for Asphalt Materials | W3: 0.25 | X3: =CONCATENATE('Bid Items'!A2," (",'Bid Items'!B2,")") -> 2102-0425070 (SPECIAL BACKFILL MATERIAL) | Y3: =Input!AE31 -> Intermediate (Travel Lane) | AA3: Quantity Type | AB3: =IF(OFFSET(AF1,AB1,0)="",1,OFFSET(AF1,AB1,0)) -> 1 | AC3: =IF(A38="Select Bid Item","",A38) -> 2303-0063502 (HMA (30M ESAL) SURF, 1/2", FRIC L-2) | AD3: =OFFSET('Bid Items'!D$1,MATCH(AC3,'Bid Items'!F$1:F$285,0)-1,0) -> English | AE3: =IF(AC3="","",IF(AD3="English",1,2)) -> 1 | AF3: =IF(AC3="","",OFFSET('Bid Items'!E$1,MATCH(AC3,'Bid Items'!F$1:F$285,0)-1,0)) -> 1 | AG3: =IF(AF3=1,"Weight",IF(AF3=2,"Area",IF(AF3=3,"LF","Count"))) -> Weight | AH3: =IF(AC3="","",IF(OR(K38="Class I",K38="Class I (Non-PWL)"),1,2)) -> 1 | AI3: =IF(D38="",0,IF(OR(AF3=1,AF3>=3),D38,IF(Tank!$AB$4=1,145*D38/12*E38*9/2000,0.9071847*D38*R$46*145*E38*R$47/2000))) -> 11297.2 | AJ3: =IF(C38="","",C38) -> Surface (Travel Lane) | AK3: =AE8 -> 2303-0063502 30M Surf 1/2in L-2 (HMA) | AL3: =B38/IF(Tank!$AB$4=2,1000,2000) -> 1002.58 | AM3: =IF(AL3>Q$33-SUM(AM$2:AM2),Q$33-SUM(AM$2:AM2),AL3) -> 0 | AN3: =AL3-AM3 -> 1002.58 | AO3: =IF(AC3="",0,IF(ISERROR(MATCH(AC3,X$2:X$286,0)),1,0)) -> 0 | AP3: =IF(OR(AC3="",AS3=1),0,IF(AI3=0,1,0)) -> 0 | AQ3: =IF(AND(AF3=2,AH3=1,Report!AJ$1=0,Report!AI$1=0,Report!AK$1<Settings!$B$65,AR3>Settings!B$57),1,0) -> 0 | AR3: =AR2 -> 10233.5 | AS3: =IF(AND(ISERROR(SEARCH("patch",AC3))=FALSE,ISERROR(SEARCH("patch",AJ3))=FALSE),1,0) -> 0 | AT3: =IF(OR(AC3="",AND(AI3=0,AS3=0)),0,IF(OR(AS3=1,LEFT(AC3,3)="EWO",AF3>=3),1,IF(AND(Input!$BS$4<39,Input!$Q$9=1),IF(OR(AJ3=Input!AG$30,AJ3=Input!AG$31,AJ3=Input!AG$32,AJ3=Input!AI$30,AJ3=Input!AI$31,AJ3=Input!AI$32,AJ3=Input!AI$33,AJ3=Input!AG$36,AJ3=Input!AG$37),0,IF(Tank!AI3<=Settings!B$54,1,0)),IF(Tank!AI3<=Settings!B$54,1,0)))) -> 0 | AU3: =IF(AND(AH3=1,ISERROR(SEARCH("travel",AJ3))=FALSE),1,0) -> 1 | AV3: =IF(AK3="",0,IF(L38="PWL",IF(AND(COUNTIFS(AK$2:AK$6,AK3)>1,COUNTIFS(AK$2:AK$6,AK3,J38:J42,"<>PWL")>0),1,0),0)) -> 1 | AW3: =I38 -> IMX-029-2(60)32--02-65 | AX3: =IF(ISERROR(CONCATENATE(AW3,AK3)),"",CONCATENATE(AK3,"\",AW3)) -> 2303-0063502 30M Surf 1/2in L-2 (HMA)\IMX-029-2(60)32--02-65
A4: Plant Report No.: | B4: =Input!Q42 -> 3 | D4: Date: | E4: =Input!D5 -> 2011-10-22 | N4: =IF(AND(B45<M6),CONCATENATE("*Total Pounds of mix wasted should be ",TEXT(M6,"0,0")," + ",TEXT(B45,"0,0")),"") ->  | W4: 0.5 | X4: =CONCATENATE('Bid Items'!A3," (",'Bid Items'!B3,")") -> 2122-121150 (PAVED SHLD, HMA, 150 MM) | Y4: =Input!AE32 -> Base (Travel Lane) | AA4: Units | AB4: =IF(OFFSET(AE1,AB1,0)="",1,OFFSET(AE1,AB1,0)) -> 1 | AC4: =IF(A39="Select Bid Item","",A39) -> 2122-5500080 (PAVED SHLD, HMA, 8") | AD4: =OFFSET('Bid Items'!D$1,MATCH(AC4,'Bid Items'!F$1:F$285,0)-1,0) -> English | AE4: =IF(AC4="","",IF(AD4="English",1,2)) -> 1 | AF4: =IF(AC4="","",OFFSET('Bid Items'!E$1,MATCH(AC4,'Bid Items'!F$1:F$285,0)-1,0)) -> 2 | AG4: Area | AH4: =IF(AC4="","",IF(OR(K39="Class I",K39="Class I (Non-PWL)"),1,2)) -> 2 | AI4: =IF(D39="",0,IF(OR(AF4=1,AF4>=3),D39,IF(Tank!$AB$4=1,145*D39/12*E39*9/2000,0.9071847*D39*R$46*145*E39*R$47/2000))) -> 132.675 | AJ4: =IF(C39="","",C39) -> Shoulder | AK4: =AF8 -> 2122-5500080 Paved Shld 8in (HMA) | AL4: =B39/IF(Tank!$AB$4=2,1000,2000) -> 23.06 | AM4: =IF(AL4>Q$33-SUM(AM$2:AM3),Q$33-SUM(AM$2:AM3),AL4) -> 0 | AN4: =AL4-AM4 -> 23.06 | AO4: 0 | AP4: =IF(OR(AC4="",AS4=1),0,IF(AI4=0,1,0)) -> 0 | AQ4: =IF(AND(AF4=2,AH4=1,Report!AJ$1=0,Report!AI$1=0,Report!AK$1<Settings!$B$65,AR4>Settings!B$57),1,0) -> 0 | AR4: =AR3 -> 10233.5 | AS4: =IF(AND(ISERROR(SEARCH("patch",AC4))=FALSE,ISERROR(SEARCH("patch",AJ4))=FALSE),1,0) -> 0 | AT4: =IF(OR(AC4="",AND(AI4=0,AS4=0)),0,IF(OR(AS4=1,LEFT(AC4,3)="EWO",AF4>=3),1,IF(AND(Input!$BS$4<39,Input!$Q$9=1),IF(OR(AJ4=Input!AG$30,AJ4=Input!AG$31,AJ4=Input!AG$32,AJ4=Input!AI$30,AJ4=Input!AI$31,AJ4=Input!AI$32,AJ4=Input!AI$33,AJ4=Input!AG$36,AJ4=Input!AG$37),0,IF(Tank!AI4<=Settings!B$54,1,0)),IF(Tank!AI4<=Settings!B$54,1,0)))) -> 1 | AU4: =IF(AND(AH4=1,ISERROR(SEARCH("travel",AJ4))=FALSE),1,0) -> 0 | AV4: =IF(AK4="",0,IF(L39="PWL",IF(AND(COUNTIFS(AK$2:AK$6,AK4)>1,COUNTIFS(AK$2:AK$6,AK4,J39:J43,"<>PWL")>0),1,0),0)) -> 0 | AW4: IMX-029-2(62)33--02-65 | AX4: 2122-5500080 Paved Shld 8in (HMA)\IMX-029-2(62)33--02-65
A5: Project: | B5: =Input!Q41 -> IMX-029-2(60)32--02-65 | D5: Contractor: | E5: =Input!D10 -> ACME | W5: 0.75 | X5: =CONCATENATE('Bid Items'!A4," (",'Bid Items'!B4,")") -> 2122-121200 (PAVED SHLD, HMA, 200 MM) | Y5: =Input!AE33 -> Shoulder | AA5: Compaction | AB5: =IF(OFFSET(AH1,AB1,0)="",1,OFFSET(AH1,AB1,0)) -> 1 | AC5: =IF(A40="Select Bid Item","",A40) -> 2122-5500080 (PAVED SHLD, HMA, 8") | AD5: =OFFSET('Bid Items'!D$1,MATCH(AC5,'Bid Items'!F$1:F$285,0)-1,0) -> English | AE5: =IF(AC5="","",IF(AD5="English",1,2)) -> 1 | AF5: =IF(AC5="","",OFFSET('Bid Items'!E$1,MATCH(AC5,'Bid Items'!F$1:F$285,0)-1,0)) -> 2 | AG5: Area | AH5: =IF(AC5="","",IF(OR(K40="Class I",K40="Class I (Non-PWL)"),1,2)) -> 2 | AI5: =IF(D40="",0,IF(OR(AF5=1,AF5>=3),D40,IF(Tank!$AB$4=1,145*D40/12*E40*9/2000,0.9071847*D40*R$46*145*E40*R$47/2000))) -> 49.59 | AJ5: =IF(C40="","",C40) -> Shoulder | AK5: =AG8 -> 2122-5500080 Paved Shld 8in (HMA) | AL5: =B40/IF(Tank!$AB$4=2,1000,2000) -> 22.29 | AM5: =IF(AL5>Q$33-SUM(AM$2:AM4),Q$33-SUM(AM$2:AM4),AL5) -> 0 | AN5: =AL5-AM5 -> 22.29 | AO5: 0 | AP5: =IF(OR(AC5="",AS5=1),0,IF(AI5=0,1,0)) -> 0 | AQ5: =IF(AND(AF5=2,AH5=1,Report!AJ$1=0,Report!AI$1=0,Report!AK$1<Settings!$B$65,AR5>Settings!B$57),1,0) -> 0 | AR5: =AR4 -> 10233.5 | AS5: =IF(AND(ISERROR(SEARCH("patch",AC5))=FALSE,ISERROR(SEARCH("patch",AJ5))=FALSE),1,0) -> 0 | AT5: =IF(OR(AC5="",AND(AI5=0,AS5=0)),0,IF(OR(AS5=1,LEFT(AC5,3)="EWO",AF5>=3),1,IF(AND(Input!$BS$4<39,Input!$Q$9=1),IF(OR(AJ5=Input!AG$30,AJ5=Input!AG$31,AJ5=Input!AG$32,AJ5=Input!AI$30,AJ5=Input!AI$31,AJ5=Input!AI$32,AJ5=Input!AI$33,AJ5=Input!AG$36,AJ5=Input!AG$37),0,IF(Tank!AI5<=Settings!B$54,1,0)),IF(Tank!AI5<=Settings!B$54,1,0)))) -> 1 | AU5: =IF(AND(AH5=1,ISERROR(SEARCH("travel",AJ5))=FALSE),1,0) -> 0 | AV5: =IF(AK5="",0,IF(L40="PWL",IF(AND(COUNTIFS(AK$2:AK$6,AK5)>1,COUNTIFS(AK$2:AK$6,AK5,J40:J44,"<>PWL")>0),1,0),0)) -> 0 | AW5: IMX-029-2(63)34--02-65 | AX5: 2122-5500080 Paved Shld 8in (HMA)\IMX-029-2(63)34--02-65
A6: Placement: | B6: =Report!S20 -> Ramps (Non-high speed) | D6: Binder Grade: | E6: =Input!C40 -> 70-22 | X6: =CONCATENATE('Bid Items'!A5," (",'Bid Items'!B5,")") -> 2122-121210 (PAVED SHLD, HMA, 210 MM) | Y6: =Input!AE34 -> Bridge Approach | AA6: Any Class I PWL items? | AB6: =IF(COUNTIFS(K37:K41,"Class I",C37:C41,CONCATENATE("<>",Input!AI33))=0,"no","yes") -> yes | AC6: =IF(A41="Select Bid Item","",A41) -> 2303-0063502 (HMA (30M ESAL) SURF, 1/2", FRIC L-2) | AD6: =OFFSET('Bid Items'!D$1,MATCH(AC6,'Bid Items'!F$1:F$285,0)-1,0) -> English | AE6: =IF(AC6="","",IF(AD6="English",1,2)) -> 1 | AF6: =IF(AC6="","",OFFSET('Bid Items'!E$1,MATCH(AC6,'Bid Items'!F$1:F$285,0)-1,0)) -> 1 | AG6: Weight | AH6: =IF(AC6="","",IF(OR(K41="Class I",K41="Class I (Non-PWL)"),1,2)) -> 1 | AI6: =IF(D41="",0,IF(OR(AF6=1,AF6>=3),D41,IF(Tank!$AB$4=1,145*D41/12*E41*9/2000,0.9071847*D41*R$46*145*E41*R$47/2000))) -> 895.8 | AJ6: =IF(C41="","",C41) -> Surface (Travel Lane) | AK6: =AH8 -> 2303-0063502 30M Surf 1/2in L-2 (HMA) | AL6: =B41/IF(Tank!$AB$4=2,1000,2000) -> 279.49 | AM6: =IF(AL6>Q$33-SUM(AM$2:AM5),Q$33-SUM(AM$2:AM5),AL6) -> 0 | AN6: =AL6-AM6 -> 279.49 | AO6: 0 | AP6: =IF(OR(AC6="",AS6=1),0,IF(AI6=0,1,0)) -> 0 | AQ6: =IF(AND(AF6=2,AH6=1,Report!AJ$1=0,Report!AI$1=0,Report!AK$1<Settings!$B$65,AR6>Settings!B$57),1,0) -> 0 | AR6: =AR5 -> 10233.5 | AS6: =IF(AND(ISERROR(SEARCH("patch",AC6))=FALSE,ISERROR(SEARCH("patch",AJ6))=FALSE),1,0) -> 0 | AT6: =IF(OR(AC6="",AND(AI6=0,AS6=0)),0,IF(OR(AS6=1,LEFT(AC6,3)="EWO",AF6>=3),1,IF(AND(Input!$BS$4<39,Input!$Q$9=1),IF(OR(AJ6=Input!AG$30,AJ6=Input!AG$31,AJ6=Input!AG$32,AJ6=Input!AI$30,AJ6=Input!AI$31,AJ6=Input!AI$32,AJ6=Input!AI$33,AJ6=Input!AG$36,AJ6=Input!AG$37),0,IF(Tank!AI6<=Settings!B$54,1,0)),IF(Tank!AI6<=Settings!B$54,1,0)))) -> 0 | AU6: =IF(AND(AH6=1,ISERROR(SEARCH("travel",AJ6))=FALSE),1,0) -> 1 | AV6: =IF(AK6="",0,IF(L41="PWL",IF(AND(COUNTIFS(AK$2:AK$6,AK6)>1,COUNTIFS(AK$2:AK$6,AK6,J41:J45,"<>PWL")>0),1,0),0)) -> 1 | AW6: IMX-029-1(81)33--02-65 | AX6: 2303-0063502 30M Surf 1/2in L-2 (HMA)\IMX-029-1(81)33--02-65
A7: Supplier Tank: | B7: 1 | D7: Binder Sp. Gr. (Gb): | E7: 1.04 | G7: Anti-Strip Name | X7: =CONCATENATE('Bid Items'!A6," (",'Bid Items'!B6,")") -> 2122-121220 (PAVED SHLD, HMA, 220 MM) | Y7: =Input!AE35 -> Gore/Fillet | AA7: Any Area items? | AB7: =IF(COUNTIF(AF2:AF6,2)=0,"no","yes") -> yes | AO7: =SUM(AO2:AO6) -> 0 | AP7: =SUM(AP2:AP6) -> 0 | AQ7: =SUM(AQ2:AQ6) -> 0 | AS7: =SUM(AS2:AS6) -> 0 | AT7: =SUM(AT2:AT6) -> 2 | AU7: =SUM(AU2:AU6) -> 2 | AV7: =SUM(AV2:AV6) -> 2
A8: Supplier: | B8: Flint Hills Resources, LP (Omaha, NE) | G8: Anti-Strip Dose (%) | X8: =CONCATENATE('Bid Items'!A7," (",'Bid Items'!B7,")") -> 2122-121230 (PAVED SHLD, HMA, 230 MM) | Y8: =Input!AE36 -> Guard Rail | AA8: All small quantities | AB8: =IF(SUM(AT7)=AB2,"Yes","No") -> No | AD8: =IF(AD9="","",IF(ISERROR(IF(AND(Input!$T$39=2,Input!$T$39=2),CONCATENATE(IF(Input!$K$31="","",(AD9))," (HMA)"),CONCATENATE(IF(Input!$K$31="","",AD9)," (HMA)"))),"",IF(AND(Input!$T$39=2,Input!$T$39=2),CONCATENATE(IF(Input!$K$31="","",(SUBSTITUTE(AD9,"#","/")))," (HMA)"),CONCATENATE(IF(Input!$K$31="","",SUBSTITUTE(AD9,"#","/"))," (HMA)")))) -> 2303-0042500 3M int 1/2in (HMA) | AE8: =IF(AE9="","",IF(ISERROR(IF(AND(Input!$T$39=2,Input!$T$39=2),CONCATENATE(IF(Input!$K$31="","",(AE9))," (HMA)"),CONCATENATE(IF(Input!$K$31="","",AE9)," (HMA)"))),"",IF(AND(Input!$T$39=2,Input!$T$39=2),CONCATENATE(IF(Input!$K$31="","",(SUBSTITUTE(AE9,"#","/")))," (HMA)"),CONCATENATE(IF(Input!$K$31="","",SUBSTITUTE(AE9,"#","/"))," (HMA)")))) -> 2303-0063502 30M Surf 1/2in L-2 (HMA) | AF8: =IF(AF9="","",IF(ISERROR(IF(AND(Input!$T$39=2,Input!$T$39=2),CONCATENATE(IF(Input!$K$31="","",(AF9))," (HMA)"),CONCATENATE(IF(Input!$K$31="","",AF9)," (HMA)"))),"",IF(AND(Input!$T$39=2,Input!$T$39=2),CONCATENATE(IF(Input!$K$31="","",(SUBSTITUTE(AF9,"#","/")))," (HMA)"),CONCATENATE(IF(Input!$K$31="","",SUBSTITUTE(AF9,"#","/"))," (HMA)")))) -> 2122-5500080 Paved Shld 8in (HMA) | AG8: =IF(AG9="","",IF(ISERROR(IF(AND(Input!$T$39=2,Input!$T$39=2),CONCATENATE(IF(Input!$K$31="","",(AG9))," (HMA)"),CONCATENATE(IF(Input!$K$31="","",AG9)," (HMA)"))),"",IF(AND(Input!$T$39=2,Input!$T$39=2),CONCATENATE(IF(Input!$K$31="","",(SUBSTITUTE(AG9,"#","/")))," (HMA)"),CONCATENATE(IF(Input!$K$31="","",SUBSTITUTE(AG9,"#","/"))," (HMA)")))) -> 2122-5500080 Paved Shld 8in (HMA) | AH8: =IF(AH9="","",IF(ISERROR(IF(AND(Input!$T$39=2,Input!$T$39=2),CONCATENATE(IF(Input!$K$31="","",(AH9))," (HMA)"),CONCATENATE(IF(Input!$K$31="","",AH9)," (HMA)"))),"",IF(AND(Input!$T$39=2,Input!$T$39=2),CONCATENATE(IF(Input!$K$31="","",(SUBSTITUTE(AH9,"#","/")))," (HMA)"),CONCATENATE(IF(Input!$K$31="","",SUBSTITUTE(AH9,"#","/"))," (HMA)")))) -> 2303-0063502 30M Surf 1/2in L-2 (HMA) | AI8: =IF(AI9="","",IF(ISERROR(IF(AND(Input!$T$39=2,Input!$T$39=2),CONCATENATE(IF(Input!$K$31="","",(AI9))," (HMA)"),CONCATENATE(IF(Input!$K$31="","",AI9)," (HMA)"))),"",IF(AND(Input!$T$39=2,Input!$T$39=2),CONCATENATE(IF(Input!$K$31="","",(SUBSTITUTE(AI9,"#","/")))," (HMA)"),CONCATENATE(IF(Input!$K$31="","",SUBSTITUTE(AI9,"#","/"))," (HMA)")))) -> 2102-230100 Special Backfill Material (HMA)
A9: Tank No.: | B9: 1 | C9: 2 | D9: 3 | E9: 4 | X9: =CONCATENATE('Bid Items'!A8," (",'Bid Items'!B8,")") -> 2122-121240 (PAVED SHLD, HMA, 240 MM) | Y9: =Input!AE37 -> Leveling | AA9: Active Small Quantity | AB9: =OFFSET(AT1,AB1,0) -> 0 | AD9: =SUBSTITUTE(TRIM(AD30),"In","in") -> 2303-0042500 3M int 1#2in | AE9: 2303-0063502 30M Surf 1#2in L-2 | AF9: 2122-5500080 Paved Shld 8in | AG9: 2122-5500080 Paved Shld 8in | AH9: 2303-0063502 30M Surf 1#2in L-2 | AI9: 2102-230100 Special Backfill Material
A10: Starting Time: | M10: T-104 Innage (% of Capacity) (C): | N10: =IF(B12="",0,(L54)) -> 0 | O10: =IF(C12="",0,(M54)) -> 0 | P10: =IF(D12="",0,(N54)) -> 0 | Q10: =IF(E12="",0,(O54)) -> 0 | X10: =CONCATENATE('Bid Items'!A9," (",'Bid Items'!B9,")") -> 2122-121250 (PAVED SHLD, HMA, 250 MM) | Y10: =Input!AE38 -> Institutional roadway | Z10: IF(Input!Q9=3,0,IF(OR(AND(AB23="PWL",AB3=2),AND(AB37=1,OR(AND(COUNTBLANK(Input!D27)=1,Input!D27=""),Input!D27>0))),1,0)) | AA10: Milepost Needed | AB10: 0 | AD10: =AC2 -> 2303-0042500 (HMA (3M ESAL) INTERMEDIATE, 1/2") | AE10: =AC3 -> 2303-0063502 (HMA (30M ESAL) SURF, 1/2", FRIC L-2) | AF10: =AC4 -> 2122-5500080 (PAVED SHLD, HMA, 8") | AG10: =AC5 -> 2122-5500080 (PAVED SHLD, HMA, 8") | AH10: =AC6 -> 2303-0063502 (HMA (30M ESAL) SURF, 1/2", FRIC L-2) | AI10: =R53 -> 2102-230100 (SPECIAL BACKFILL MATERIAL)
A11: =IF(Tank!AB4=2,"Tank Capacity ( Liters ):","Tank Capacity (Gallons):") -> Tank Capacity (Gallons): | B11: 10000 | M11: ASTM D4311 Correction | N11: =IF(B14="",0,IF($E$7<0.966,NA(),ROUND(IF(Tank!$AB$4=2,1.0095-0.00063341*B14+0.00000014571*B14^2,1.0211-0.0003549*B14+0.000000044988*B14^2),4))) -> 0.9187 | O11: =IF(C14="",0,IF($E$7<0.966,NA(),ROUND(IF(Tank!$AB$4=2,1.0095-0.00063341*C14+0.00000014571*C14^2,1.0211-0.0003549*C14+0.000000044988*C14^2),4))) -> 0 | P11: =IF(D14="",0,IF($E$7<0.966,NA(),ROUND(IF(Tank!$AB$4=2,1.0095-0.00063341*D14+0.00000014571*D14^2,1.0211-0.0003549*D14+0.000000044988*D14^2),4))) -> 0 | Q11: =IF(E14="",0,IF($E$7<0.966,NA(),ROUND(IF(Tank!$AB$4=2,1.0095-0.00063341*E14+0.00000014571*E14^2,1.0211-0.0003549*E14+0.000000044988*E14^2),4))) -> 0 | X11: =CONCATENATE('Bid Items'!A10," (",'Bid Items'!B10,")") -> 2122-121260 (PAVED SHLD, HMA, 260 MM) | Y11: =Input!AE39 -> Irregular Compaction Area | AA11: # Bid Items Selected | AB11: =5-COUNTIF(AK2:AK6,"") -> 5 | AC11: HMA | AD11: =SUBSTITUTE(UPPER(AD10),$AC11,"") -> 2303-0042500 ( (3M ESAL) INTERMEDIATE, 1/2") | AE11: 2303-0063502 ( (30M ESAL) SURF, 1/2", FRIC L-2) | AF11: =SUBSTITUTE(UPPER(AF10),$AC11,"") -> 2122-5500080 (PAVED SHLD, , 8") | AG11: 2122-5500080 (PAVED SHLD, , 8") | AH11: 2303-0063502 ( (30M ESAL) SURF, 1/2", FRIC L-2) | AI11: 2102-230100 (SPECIAL BACKFILL MATERIAL)
A12: Outage (% of Diameter): | M12: Corrected Liters: | N12: =ROUND(IF(B13="",SUM(B11*(N10/100)*N11),SUM(B13*N11)),0) -> 5948 | O12: =ROUND(IF(C13="",SUM(C11*(O10/100)*O11),SUM(C13*O11)),0) -> 0 | P12: =ROUND(IF(D13="",SUM(D11*(P10/100)*P11),SUM(D13*P11)),0) -> 0 | Q12: =ROUND(IF(E13="",SUM(E11*(Q10/100)*Q11),SUM(E13*Q11)),0) -> 0 | X12: =CONCATENATE('Bid Items'!A11," (",'Bid Items'!B11,")") -> 2122-121270 (PAVED SHLD, HMA, 270 MM) | Y12: =Input!AE40 -> On-site Detour | AA12: #Placements selected | AB12: =5-COUNTIF(AJ2:AJ6,"") -> 5 | AC12: ESAL | AD12: 2303-0042500 ( (3M ) INTERMEDIATE, 1/2") | AE12: 2303-0063502 ( (30M ) SURF, 1/2", FRIC L-2) | AF12: 2122-5500080 (PAVED SHLD, , 8") | AG12: 2122-5500080 (PAVED SHLD, , 8") | AH12: 2303-0063502 ( (30M ) SURF, 1/2", FRIC L-2) | AI12: 2102-230100 (SPECIAL BACKFILL MATERIAL)
A13: =IF(Tank!AB4=2,"Direct Reading ( Liters ):","Direct Reading (Gallons):") -> Direct Reading (Gallons): | B13: 6474 | M13: =ROUND(IF(B17="","",SUM(B16/B17)),0) -> 17371 | X13: =CONCATENATE('Bid Items'!A12," (",'Bid Items'!B12,")") -> 2122-121280 (PAVED SHLD, HMA, 280 MM) | Y13: =Input!AE41 -> Patching | AA13: #Plan quantities entered | AB13: =COUNTIF(AI2:AI6,">0") -> 5 | AC13: , | AD13: 2303-0042500 ( (3M ) INTERMEDIATE 1/2") | AE13: 2303-0063502 ( (30M ) SURF 1/2" FRIC L-2) | AF13: 2122-5500080 (PAVED SHLD 8") | AG13: 2122-5500080 (PAVED SHLD 8") | AH13: 2303-0063502 ( (30M ) SURF 1/2" FRIC L-2) | AI13: 2102-230100 (SPECIAL BACKFILL MATERIAL)
A14: =IF(Tank!AB4=2,"Beginning Temp. °C:","Beginning Temp. °F:") -> Beginning Temp. °F: | B14: 300 | M14: =ROUND(IF(C17="","",SUM(C16/C17)),0) -> 0 | X14: =CONCATENATE('Bid Items'!A13," (",'Bid Items'!B13,")") -> 2122-121290 (PAVED SHLD, HMA, 290 MM) | Y14: =Input!AE42 -> Ramps (High speed) | AA14: #Prices entered | AB14: =COUNTIF(F37:F41,">0") -> 5 | AC14: ) | AD14: 2303-0042500 ( (3M INTERMEDIATE 1/2") | AE14: 2303-0063502 ( (30M SURF 1/2" FRIC L-2) | AF14: 2122-5500080 (PAVED SHLD 8") | AG14: 2122-5500080 (PAVED SHLD 8") | AH14: 2303-0063502 ( (30M SURF 1/2" FRIC L-2) | AI14: 2102-230100 (SPECIAL BACKFILL MATERIAL)
A15: =IF(Tank!AB4=2,"Beginning Corrected Liters:","Beginning Corrected Gallons:") -> Beginning Corrected Gallons: | B15: =IF(N12="",0,SUM(N12+O12+P12+Q12)) -> 5948 | M15: =ROUND(IF(D17="","",SUM(D16/D17)),0) -> 0 | X15: =CONCATENATE('Bid Items'!A14," (",'Bid Items'!B14,")") -> 2122-121300 (PAVED SHLD, HMA, 300 MM) | Y15: =Input!AE43 -> Ramps (Non-high speed) | AA15: Active Bid Item Name | AB15: =OFFSET(AK1,AB1,0) -> 2303-0042500 3M int 1/2in (HMA) | AC15: ( | AD15: 2303-0042500 3M INTERMEDIATE 1/2") | AE15: 2303-0063502 30M SURF 1/2" FRIC L-2) | AF15: 2122-5500080 PAVED SHLD 8") | AG15: 2122-5500080 PAVED SHLD 8") | AH15: 2303-0063502 30M SURF 1/2" FRIC L-2) | AI15: 2102-230100 SPECIAL BACKFILL MATERIAL)
A16: =IF(Tank!AB4=2,"Total Kilograms Binder Added During Day:","Total Pounds Binder Added During Day:") -> Total Pounds Binder Added During Day: | B16: 150400.11 | M16: =ROUND(IF(E17="","",SUM(E16/E17)),0) -> 0 | X16: =CONCATENATE('Bid Items'!A15," (",'Bid Items'!B15,")") -> 2122-121320 (PAVED SHLD, HMA, 320 MM) | Y16: =Input!AE44 -> Recreational Trail | AA16: Active Bid Item Tons | AB16: =OFFSET(Summary!A25,0,Tank!AB1) -> 174.55 | AC16: / | AD16: =SUBSTITUTE(UPPER(AD15),$AC16,"#") -> 2303-0042500 3M INTERMEDIATE 1#2") | AE16: 2303-0063502 30M SURF 1#2" FRIC L-2) | AF16: 2122-5500080 PAVED SHLD 8") | AG16: 2122-5500080 PAVED SHLD 8") | AH16: 2303-0063502 30M SURF 1#2" FRIC L-2) | AI16: 2102-230100 SPECIAL BACKFILL MATERIAL)
A17: =IF(Tank!AB4=2,"Kilograms/Liter:","Pounds/Gallon:") -> Pounds/Gallon: | B17: 8.658 | M17: Tank Capacity (Liters) (L): | N17: =(B11) -> 10000 | O17: =(C11) -> 0 | P17: =(D11) -> 0 | Q17: =(E11) -> 0 | X17: =CONCATENATE('Bid Items'!A16," (",'Bid Items'!B16,")") -> 2122-5070330 (PATCHES BY COUNT (REPAIR)) | Y17: =Input!AE45 -> Rest Area | AA17: Active Tons of RAP | AB17: =OFFSET(Summary!A37,0,Tank!AB1)+OFFSET(Summary!A39,0,Tank!AB1) -> 26.06056027 | AC17: BASE INT OR SURFACE | AD17: =SUBSTITUTE(UPPER(AD16),$AC17,AJ$2) -> 2303-0042500 3M INTERMEDIATE 1#2") | AE17: =SUBSTITUTE(UPPER(AE16),$AC17,AJ$3) -> 2303-0063502 30M SURF 1#2" FRIC L-2) | AF17: =SUBSTITUTE(UPPER(AF16),$AC17,AJ$4) -> 2122-5500080 PAVED SHLD 8") | AG17: =SUBSTITUTE(UPPER(AG16),$AC17,AJ$5) -> 2122-5500080 PAVED SHLD 8") | AH17: =SUBSTITUTE(UPPER(AH16),$AC17,AJ$6) -> 2303-0063502 30M SURF 1#2" FRIC L-2) | AI17: =SUBSTITUTE(UPPER(AI16),$AC17,AJ$2) -> 2102-230100 SPECIAL BACKFILL MATERIAL)
A18: =IF(Tank!AB4=2,"Added Corrected Liters:","Added Corrected Gallons:") -> Added Corrected Gallons: | B18: =IF(B17="",0,SUM(M13:M16)) -> 17371 | M18: T-104 Innage (% of Capacity) (N): | N18: =IF(B20="",0,L65) -> 0 | O18: =IF(C20="",0,M65) -> 0 | P18: =IF(D20="",0,N65) -> 0 | Q18: =IF(E20="",0,O65) -> 0 | X18: =CONCATENATE('Bid Items'!A17," (",'Bid Items'!B17,")") -> 2122-5500060 (PAVED SHLD, HMA, 6") | Y18: =Input!AE46 -> Strengthening | AA18: Active Tons of RAP Binder | AB18: =OFFSET(Summary!A28,0,Tank!AB1)+OFFSET(Summary!A31,0,Tank!AB1) -> 1.099755643 | AC18: INT OR SURFACE | AD18: =SUBSTITUTE(UPPER(AD17),$AC18,AJ2) -> 2303-0042500 3M INTERMEDIATE 1#2") | AE18: =SUBSTITUTE(UPPER(AE17),$AC18,AJ3) -> 2303-0063502 30M SURF 1#2" FRIC L-2) | AF18: =SUBSTITUTE(UPPER(AF17),$AC18,AJ4) -> 2122-5500080 PAVED SHLD 8") | AG18: =SUBSTITUTE(UPPER(AG17),$AC18,AJ5) -> 2122-5500080 PAVED SHLD 8") | AH18: =SUBSTITUTE(UPPER(AH17),$AC18,AJ6) -> 2303-0063502 30M SURF 1#2" FRIC L-2) | AI18: =SUBSTITUTE(UPPER(AI17),$AC18,AJ2) -> 2102-230100 SPECIAL BACKFILL MATERIAL)
A19: Ending Time: | M19: ASTM D4311 Correction | N19: =IF(B22="",0,IF($E$7<0.966,NA(),ROUND(IF(Tank!$AB$4=2,1.0095-0.00063341*B22+0.00000014571*B22^2,1.0211-0.0003549*B22+0.000000044988*B22^2),4))) -> 0.9187 | O19: =IF(C22="",0,IF($E$7<0.966,NA(),ROUND(IF(Tank!$AB$4=2,1.0095-0.00063341*C22+0.00000014571*C22^2,1.0211-0.0003549*C22+0.000000044988*C22^2),4))) -> 0 | P19: =IF(D22="",0,IF($E$7<0.966,NA(),ROUND(IF(Tank!$AB$4=2,1.0095-0.00063341*D22+0.00000014571*D22^2,1.0211-0.0003549*D22+0.000000044988*D22^2),4))) -> 0 | Q19: =IF(E22="",0,IF($E$7<0.966,NA(),ROUND(IF(Tank!$AB$4=2,1.0095-0.00063341*E22+0.00000014571*E22^2,1.0211-0.0003549*E22+0.000000044988*E22^2),4))) -> 0 | X19: =CONCATENATE('Bid Items'!A18," (",'Bid Items'!B18,")") -> 2122-5500080 (PAVED SHLD, HMA, 8") | Y19: =Input!AE47 -> Temporary Cross-over | AA19: Active Tons of RAS | AB19: =OFFSET(Summary!A38,0,Tank!AB1)+OFFSET(Summary!A40,0,Tank!AB1) -> 0 | AC19: NO SPCL | AD19: =SUBSTITUTE(UPPER(AD18),$AC19,"") -> 2303-0042500 3M INTERMEDIATE 1#2") | AE19: 2303-0063502 30M SURF 1#2" FRIC L-2) | AF19: =SUBSTITUTE(UPPER(AF18),$AC19,"") -> 2122-5500080 PAVED SHLD 8") | AG19: 2122-5500080 PAVED SHLD 8") | AH19: 2303-0063502 30M SURF 1#2" FRIC L-2) | AI19: 2102-230100 SPECIAL BACKFILL MATERIAL)
A20: Outage (% of Diameter): | X20: =CONCATENATE('Bid Items'!A19," (",'Bid Items'!B19,")") -> 2122-5500085 (PAVED SHLD, HMA, 8.5") | Y20: =Input!AE48 -> Temporary Pavement | AA20: Active Tons of RAS Binder | AB20: =OFFSET(Summary!A29,0,Tank!AB1)+OFFSET(Summary!A32,0,Tank!AB1) -> 0 | AC20: FRIC | AD20: 2303-0042500 3M INTERMEDIATE 1#2") | AE20: 2303-0063502 30M SURF 1#2" L-2) | AF20: 2122-5500080 PAVED SHLD 8") | AG20: 2122-5500080 PAVED SHLD 8") | AH20: 2303-0063502 30M SURF 1#2" L-2) | AI20: 2102-230100 SPECIAL BACKFILL MATERIAL)
A21: =IF(Tank!AB4=2,"Direct Reading ( Liters ):","Direct Reading (Gallons):") -> Direct Reading (Gallons): | B21: 8957 | X21: =CONCATENATE('Bid Items'!A20," (",'Bid Items'!B20,")") -> 2122-5500090 (PAVED SHLD, HMA, 9") | Y21: =Input!AE49 -> Turning Lane | AA21: Active Tons of Virgin | AB21: =OFFSET(Summary!A27,0,Tank!AB1) -> 7.57191242 | AC21: REQ | AD21: 2303-0042500 3M INTERMEDIATE 1#2") | AE21: 2303-0063502 30M SURF 1#2" L-2) | AF21: 2122-5500080 PAVED SHLD 8") | AG21: 2122-5500080 PAVED SHLD 8") | AH21: 2303-0063502 30M SURF 1#2" L-2) | AI21: 2102-230100 SPECIAL BACKFILL MATERIAL)
A22: =IF(Tank!AB4=2,"Ending Temp. °C:","Ending Temp. °F:") -> Ending Temp. °F: | B22: 300 | Q22: % Total Binder in Silo'd Mix | R22: =B32+B33+B31 -> 0 | X22: =CONCATENATE('Bid Items'!A21," (",'Bid Items'!B21,")") -> 2122-5500095 (PAVED SHLD, HMA, 9.5") | Y22: =Input!AE50 -> Wedge | AA22: #Thicknesses entered | AB22: =COUNTIF(E37:E41,">0") -> 2 | AC22: NO SL | AD22: 2303-0042500 3M INTERMEDIATE 1#2") | AE22: 2303-0063502 30M SURF 1#2" L-2) | AF22: 2122-5500080 PAVED SHLD 8") | AG22: 2122-5500080 PAVED SHLD 8") | AH22: 2303-0063502 30M SURF 1#2" L-2) | AI22: 2102-230100 SPECIAL BACKFILL MATERIAL)
A23: =IF(Tank!AB4=2,"Ending Corrected Liters:","Ending Corrected Gallons:") -> Ending Corrected Gallons: | B23: =IF(M23="",0,SUM(M23+N23+O23+P23)) -> 8229 | L23: Corrected Liters: | M23: =ROUND(IF(B21="",SUM(N17*(N18/100)*N19),SUM(B21*N19)),0) -> 8229 | N23: =ROUND(IF(C21="",SUM(O17*(O18/100)*O19),SUM(C21*O19)),0) -> 0 | O23: =ROUND(IF(D21="",SUM(P17*(P18/100)*P19),SUM(D21*P19)),0) -> 0 | P23: =ROUND(IF(E21="",SUM(Q17*(Q18/100)*Q19),SUM(E21*Q19)),0) -> 0 | Q23: =M29/IF(Tank!$AB$4=2,1000,2000) -> 0 | R23: <tons virgin binder in silo | X23: =CONCATENATE('Bid Items'!A22," (",'Bid Items'!B22,")") -> 2122-5500100 (PAVED SHLD, HMA, 10") | Y23: =Input!AE51 -> Widening (Travel lane) | AA23: Active LV Acceptance | AB23: =IF(AND(AB27>0,AB27<>AB2,AB34>0),"PWL",OFFSET(L36,AB1,0)) -> PWL | AC23: FRICTION | AD23: 2303-0042500 3M INTERMEDIATE 1#2") | AE23: 2303-0063502 30M SURF 1#2" L-2) | AF23: 2122-5500080 PAVED SHLD 8") | AG23: 2122-5500080 PAVED SHLD 8") | AH23: 2303-0063502 30M SURF 1#2" L-2) | AI23: 2102-230100 SPECIAL BACKFILL MATERIAL)
A24: =IF(Tank!AB4=2,"Total Kilograms Of Binder Used Today:","Total Pounds Of Binder Used Today:") -> Total Pounds Of Binder Used Today: | B24: =IF(D26="",ROUND(IF(M24="",0,(SUM(M24*B17))),0),D26) -> 130649 | D24: =IF(Tank!AB4=2,"Total Kilograms Of Binder Used","Total Pounds Of Binder Used") -> Total Pounds Of Binder Used | L24: Total Liters AC: | M24: =IF($B$23="",0,SUM(($B$15+$B$18)-($B$23))) -> 15090 | P24: Tons of Total Binder in Silo | Q24: =((B31+B32+B33)/100*B30)/IF(Tank!$AB$4=2,1000,2000) -> 0 | X24: =CONCATENATE('Bid Items'!A23," (",'Bid Items'!B23,")") -> 2122-5500105 (PAVED SHLD, HMA, 10.5") | Y24: =Input!AE52 -> Widening (Non-travel lane) | AA24: # Bid items w/o Report # | AB24: =AB2-COUNTIF(H37:H41,">0") -> 0 | AC24: FRIC | AD24: 2303-0042500 3M INTERMEDIATE 1#2") | AE24: 2303-0063502 30M SURF 1#2" L-2) | AF24: 2122-5500080 PAVED SHLD 8") | AG24: 2122-5500080 PAVED SHLD 8") | AH24: 2303-0063502 30M SURF 1#2" L-2) | AI24: 2102-230100 SPECIAL BACKFILL MATERIAL)
D25: By Flow Meter or Batch Totals | P25: Tons of Agg in Silo | Q25: =Q33-Q23 -> 0 | X25: =CONCATENATE('Bid Items'!A24," (",'Bid Items'!B24,")") -> 2122-5500110 (PAVED SHLD, HMA, 11") | Y25: =Input!AE53 -> Other Non-Travel Lane | AA25: # Irregular Area Items | AB25: =COUNTIF(M$37:M$41,"*Irregular Area") -> 1 | AC25: WEDGE LEVELING OR STRENGTHENING | AD25: =SUBSTITUTE(UPPER(AD24),$AC25,"LEVELING COURSE") -> 2303-0042500 3M INTERMEDIATE 1#2") | AE25: 2303-0063502 30M SURF 1#2" L-2) | AF25: 2122-5500080 PAVED SHLD 8") | AG25: 2122-5500080 PAVED SHLD 8") | AH25: 2303-0063502 30M SURF 1#2" L-2) | AI25: 2102-230100 SPECIAL BACKFILL MATERIAL)
L26: AC Silo'd | M26: =ROUND(IF(B46="",0,SUM(B46*(B24/B29))),20) -> 0 | P26: Tons of RAP in Silo | Q26: =H32*Q25/100 -> 0 | X26: =CONCATENATE('Bid Items'!A25," (",'Bid Items'!B25,")") -> 2122-5500115 (PAVED SHLD, HMA, 11.5") | Y26: =Input!AE54 -> 0 | AA26: # Moving AAD | AB26: =COUNTIF(L$37:L$41,"Moving AAD") -> 0 | AC26: COMMERCIALINCLUDES ASPHALT BINDERAS PER PLAN | AD26: =SUBSTITUTE(UPPER(AD25),$AC26,CONCATENATE("Commtl ",AJ2)) -> 2303-0042500 3M INTERMEDIATE 1#2") | AE26: =SUBSTITUTE(UPPER(AE25),$AC26,CONCATENATE("Commtl ",AJ3)) -> 2303-0063502 30M SURF 1#2" L-2) | AF26: =SUBSTITUTE(UPPER(AF25),$AC26,CONCATENATE("Commtl ",AJ4)) -> 2122-5500080 PAVED SHLD 8") | AG26: =SUBSTITUTE(UPPER(AG25),$AC26,CONCATENATE("Commtl ",AJ5)) -> 2122-5500080 PAVED SHLD 8") | AH26: =SUBSTITUTE(UPPER(AH25),$AC26,CONCATENATE("Commtl ",AJ6)) -> 2303-0063502 30M SURF 1#2" L-2) | AI26: =SUBSTITUTE(UPPER(AI25),$AC26,CONCATENATE("Commtl ",AJ2)) -> 2102-230100 SPECIAL BACKFILL MATERIAL)
L27: AC Pounds Wasted: | M27: =ROUND(IF(B45="",0,SUM(B45*(B24/B29))),20) -> 339.2286172 | P27: Tons of RAS in Silo | Q27: =H33/100*Q25 -> 0 | X27: =CONCATENATE('Bid Items'!A26," (",'Bid Items'!B26,")") -> 2122-5500120 (PAVED SHLD, HMA, 12") | Y27: =Input!AE55 -> 0 | AA27: #PWL for LV | AB27: =COUNTIF(L$37:L$41,"PWL") -> 3 | AC27: " | AD27: =SUBSTITUTE(UPPER(AD26),$AC27,"in") -> 2303-0042500 3M INTERMEDIATE 1#2in) | AE27: 2303-0063502 30M SURF 1#2in L-2) | AF27: 2122-5500080 PAVED SHLD 8in) | AG27: 2122-5500080 PAVED SHLD 8in) | AH27: 2303-0063502 30M SURF 1#2in L-2) | AI27: 2102-230100 SPECIAL BACKFILL MATERIAL)
A28: Mix Production | L28: AC Misc | M28: =ROUND(IF(F45="",0,SUM(F45*(B24/B29))),20) -> 0 | P28: Tons of RAP binder in Silo | Q28: =B32/100*B30/IF(Tank!$AB$4=2,1000,2000) -> 0 | R28: =IF(ISERROR(B32/H32),0,B32/H32) -> 0 | S28: %AC | T28: binder=liquid/solid | X28: =CONCATENATE('Bid Items'!A27," (",'Bid Items'!B27,")") -> 2122-5500125 (PAVED SHLD, HMA, 12.5") | Y28: =Input!AE56 -> 0 | AA28: # Current Bid Item Replicates | AB28: =COUNTIF(AX2:AX6,AB40) -> 1 | AC28: PCC | AD28: =SUBSTITUTE(UPPER(AD27),$AC28,"") -> 2303-0042500 3M INTERMEDIATE 1#2IN) | AE28: 2303-0063502 30M SURF 1#2IN L-2) | AF28: 2122-5500080 PAVED SHLD 8IN) | AG28: 2122-5500080 PAVED SHLD 8IN) | AH28: 2303-0063502 30M SURF 1#2IN L-2) | AI28: 2102-230100 SPECIAL BACKFILL MATERIAL)
B29: 3011760 | C29: =CONCATENATE("=Total ",IF(Tank!$AB$4=2,"Kilograms","Pounds")," Of Mix Made Today") -> =Total Pounds Of Mix Made Today | L29: Pounds AC In Silo | M29: =ROUND(IF(B30="",0,SUM(B30*(B31/100))),20) -> 0 | P29: Tons of RAS Binder in Silo | Q29: =B33/100*B30/IF(Tank!$AB$4=2,1000,2000) -> 0 | R29: =IF(ISERROR(B33/H33),0,B33/H33) -> 0 | S29: %AC | X29: =CONCATENATE('Bid Items'!A28," (",'Bid Items'!B28,")") -> 2122-7450080 (SHLD STRENGTHEN, OPTIONAL HMA/PCC, 8") | AA29: Plant Report Violation | AB29: =IF(AND(AB28>1,COUNTIF(Tank!H37:H41,Input!Q42)<>Tank!AB28),1,0) -> 0 | AC29: INTERMEDIATE | AD29: =SUBSTITUTE(SUBSTITUTE(UPPER(AD28),$AC29,"INT"),")","") -> 2303-0042500 3M INT 1#2IN | AE29: 2303-0063502 30M SURF 1#2IN L-2 | AF29: 2122-5500080 PAVED SHLD 8IN | AG29: 2122-5500080 PAVED SHLD 8IN | AH29: 2303-0063502 30M SURF 1#2IN L-2 | AI29: 2102-230100 SPECIAL BACKFILL MATERIAL
A30: =IF(B30>0,"QC/QA will include an additional box from silo'd mix","") ->  | C30: =IF(Tank!AB4=2,"=Total Kilograms Of Mix Used in Silo from Prior Production","=Total Pounds Of Mix Used in Silo from Prior Production") -> =Total Pounds Of Mix Used in Silo from Prior Production | Q30: =IF(B30="","",IF(OR(AND(B32<>"",H32=""),AND(B33<>"",H33=""),B31="",AND(B32="",H32<>""),AND(B33="",H33<>"")),"Missing Info from Silo'd Mix in Tank Sheet","")) ->  | T30: 10*x*(solid-liquid) | X30: =CONCATENATE('Bid Items'!A29," (",'Bid Items'!B29,")") -> 2122-801200 (SHLD STRENGTHEN OPTIONAL HMA/PCC 200 MM) | AA30: Mix Price Violation | AB30: =IF(AND(AB28>1,COUNTIF(F37:F41,Input!Q46)<>Tank!AB28),1,0) -> 0 | AD30: =SUBSTITUTE(TRIM(PROPER(AD29)),"Mm","mm") -> 2303-0042500 3M Int 1#2In | AE30: 2303-0063502 30M Surf 1#2In L-2 | AF30: 2122-5500080 Paved Shld 8In | AG30: 2122-5500080 Paved Shld 8In | AH30: 2303-0063502 30M Surf 1#2In L-2 | AI30: 2102-230100 Special Backfill Material
C31: =Virgin Binder Content (%) from Prior Production in Silo | L31: =T58 -> 1 | M31: *Mix used on this bid item | P31: Contribution of Silo'd Virgin Binder used today | Q31: =G58-ROUND(SUM((B24)/(B29))*100,2) -> 0 | X31: =CONCATENATE('Bid Items'!A30," (",'Bid Items'!B30,")") -> 2212-100200 (PATCH FULL-DEPTH REPAIR) | AA31: Plan Thickness Violation | AB31: 0
C32: =RAP Binder (%) Added in Silo'd Mix | I32: Actual % RAP in Silo'd Mix | M32: *Mix NOT used on this bid item | X32: =CONCATENATE('Bid Items'!A31," (",'Bid Items'!B31,")") -> 2212-100322 (PATCH, PARTIAL-DEPTH REPAIR, HMA) | AA32: Plan Quantity Violation | AB32: =IF(AND(AB28>1,COUNTIF(D37:D41,Input!Q45)<>Tank!AB28),1,0) -> 0
C33: =RAS Binder (%) Added in Silo'd Mix | I33: Actual % RAS in Silo'd Mix | M33: 1 | N33: 1 | Q33: =B30/IF(Tank!$AB$4=2,1000,2000) -> 0 | X33: =CONCATENATE('Bid Items'!A32," (",'Bid Items'!B32,")") -> 2212-100601 (HMA SURF PATCH) | AA33: Current Bid Item placement replicate | AB33: =COUNTIFS(AX2:AX6,AB40,C37:C41,Input!Q43) -> 1
C34: =Target % AC in Silo'd Mix | M34: FALSE | X34: =CONCATENATE('Bid Items'!A33," (",'Bid Items'!B33,")") -> 2212-5070310 (PATCH, FULL-DEPTH REPAIR) | AA34: All or None Trigger | AB34: =IF(AND(AB27>0,AB26>0,AV7>0),1,0) -> 0
A35: Distribution of Today's Mix | P35: =2000*C50/B29 -> 0.1493014052 | X35: =CONCATENATE('Bid Items'!A34," (",'Bid Items'!B34,")") -> 2212-5070322 (PATCH, PARTIAL-DEPTH REPAIR, HMA) | AA35: Active Irregular? | AB35: =IF(OFFSET(M36,AB1,0)="*Irregular Area",1,0) -> 1
A36: =CONCATENATE("Bid Item (In Order of Placement) ") -> Bid Item (In Order of Placement) | B36: =CONCATENATE("Quantity Placed (",IF(Tank!AB4=2,"Kgs","Pounds"),")") -> Quantity Placed (Pounds) | C36: Today's Placement | D36: Bid Item Plan Quantity | E36: =IF(Tank!AB7="yes",IF(Tank!$AB$4=1,"Plan Thickness (in)","Plan Thickness (mm)"),"") -> Plan Thickness (in) | F36: Contract Mix Price | G36: Contract Binder Price | H36: Plant Report Number | I36: Project Number | J36: Mix Pay Units | K36: Field Voids (FV) Acceptance | L36: Lab Voids (LV) Acceptance | P36: =Summary!S29*Tank!P35 -> 0.006300519298 | X36: =CONCATENATE('Bid Items'!A35," (",'Bid Items'!B35,")") -> 2212-5075001 (HMA SURF PATCH) | AA36: Active Patch? | AB36: =IF(OFFSET(AS1,AB1,0)=1,1,0) -> 0
A37: 2303-0042500 (HMA (3M ESAL) INTERMEDIATE, 1/2") | B37: 349100 | C37: Ramps (Non-high speed) | D37: 310.3 | F37: 41.5 | G37: 572 | H37: 3 | I37: IMX-029-2(60)32--02-65 | J37: =IF(ISERROR(IF(AF2=1,IF(AD2="English","Tons","MGs"),IF(AF2=2,IF(AD2="English","SY","SM"),IF(AF2=3,"LF",IF(AD2="English","COUNT",""))))),"",IF(AF2=1,IF(AD2="English","Tons","MGs"),IF(AF2=2,IF(AD2="English","SY","SM"),IF(AF2=3,"LF","COUNT")))) -> Tons | K37: =IF(OR(A37="",A37="Select Bid Item",C37=""),"",IF(ISERROR(MATCH(C37,Input!AF$30:AF$37,0))=FALSE,"Class II",IF(Input!K$31=Input!BO$60,"Class II",IF(ISERROR(MATCH(C37,Input!AI$30:AI$33,0))=FALSE,"Class I",IF(ISERROR(MATCH(C37,Input!AG$30:AG$41,0))=FALSE,IF(Input!$BS$4>=22,"Class I (Non-PWL)","Class I"),IF(AND(Input!$BS$4>=22,AT2>0),"Class I (Non-PWL)","Class I")))))) -> Class I | L37: =IF(OR(A37="",A37="Select Bid Item",C37=""),"",IF(AT2>0,"Cert",IF(AND(Input!$V$19,Input!$W$19),"Moving AAD",IF(ISERROR(MATCH(C37,Input!AJ$30:AJ$41,0))=FALSE,IF(AND(Input!Q$9=1,C37=Input!AE$33,Input!$BS$4<36),"PWL",IF(Input!$BS$4>=22,"Moving AAD","PWL")),"PWL")))) -> PWL | M37: =IF(C37="","",IF(AND(OR(L37="PWL",AND(L37="Moving AAD",AB$38>0)),OR(AND(AG2<>"Area",IF(AE2=2,2.20462*B37,B37)<=Settings!B$55*2000),AND(AG2="Area",Input!$BS$4<36,OFFSET(Summary!$H$40,0,ROW(N37)-ROW(N$36))<=IF(AE2=1,Settings!$C$56,Settings!$D$56))),ISERROR(MATCH(C37,Input!AK$30:AK$36,0))=FALSE),IF(AND(C37=Input!AE$33,Input!Q$9=1),"","*Irregular Area"),IF(AND(AB$34>0,L37="Moving AAD"),"PWL",""))) -> *Irregular Area | N37: =OR(AND(AB$3=1,AL2>Settings!B$55),AND(AB$3=2,$AB$4=1,AR2>Settings!B$56),AND(AB$3=2,$AB$4=2,AL2>Settings!D$56),AB$25<>AB$2) -> TRUE | X37: =CONCATENATE('Bid Items'!A36," (",'Bid Items'!B36,")") -> 2213-103000 (BASE WIDENING, HMA) | AA37: Active Class I PWL Compaction | AB37: =IF(OFFSET(K36,AB1,0)="Class I",1,0) -> 1 | AY37: =OR(AND(AB$3=1,AL2>Settings!B$55),AND(AB$3=2,$AB$4=1,AR2>Settings!B$56),AND(AB$3=2,$AB$4=2,AL2>Settings!D$56),AB$25<>AB$2) -> TRUE
A38: 2303-0063502 (HMA (30M ESAL) SURF, 1/2", FRIC L-2) | B38: 2005160 | C38: Surface (Travel Lane) | D38: 11297.2 | F38: 39.5 | G38: 572 | H38: 10 | I38: IMX-029-2(60)32--02-65 | J38: =IF(ISERROR(IF(AF3=1,IF(AD3="English","Tons","MGs"),IF(AF3=2,IF(AD3="English","SY","SM"),IF(AF3=3,"LF",IF(AD3="English","COUNT",""))))),"",IF(AF3=1,IF(AD3="English","Tons","MGs"),IF(AF3=2,IF(AD3="English","SY","SM"),IF(AF3=3,"LF","COUNT")))) -> Tons | K38: =IF(OR(A38="",A38="Select Bid Item",C38=""),"",IF(ISERROR(MATCH(C38,Input!AF$30:AF$37,0))=FALSE,"Class II",IF(Input!K$31=Input!BO$60,"Class II",IF(ISERROR(MATCH(C38,Input!AI$30:AI$33,0))=FALSE,"Class I",IF(ISERROR(MATCH(C38,Input!AG$30:AG$41,0))=FALSE,IF(Input!$BS$4>=22,"Class I (Non-PWL)","Class I"),IF(AND(Input!$BS$4>=22,AT3>0),"Class I (Non-PWL)","Class I")))))) -> Class I | L38: =IF(OR(A38="",A38="Select Bid Item",C38=""),"",IF(AT3>0,"Cert",IF(AND(Input!$V$19,Input!$W$19),"Moving AAD",IF(ISERROR(MATCH(C38,Input!AJ$30:AJ$41,0))=FALSE,IF(AND(Input!Q$9=1,C38=Input!AE$33,Input!$BS$4<36),"PWL",IF(Input!$BS$4>=22,"Moving AAD","PWL")),"PWL")))) -> PWL | M38: =IF(C38="","",IF(AND(OR(L38="PWL",AND(L38="Moving AAD",AB$38>0)),OR(AND(AG3<>"Area",IF(AE3=2,2.20462*B38,B38)<=Settings!B$55*2000),AND(AG3="Area",Input!$BS$4<36,OFFSET(Summary!$H$40,0,ROW(N38)-ROW(N$36))<=IF(AE3=1,Settings!$C$56,Settings!$D$56))),ISERROR(MATCH(C38,Input!AK$30:AK$36,0))=FALSE),IF(AND(C38=Input!AE$33,Input!Q$9=1),"","*Irregular Area"),IF(AND(AB$34>0,L38="Moving AAD"),"PWL",""))) ->  | N38: =OR(AND(AB$3=1,AL3>Settings!B$55),AND(AB$3=2,$AB$4=1,AR3>Settings!B$56),AND(AB$3=2,$AB$4=2,AL3>Settings!D$56),AB$25<>AB$2) -> TRUE | X38: =CONCATENATE('Bid Items'!A37," (",'Bid Items'!B37,")") -> 2213-104075 (BASE WIDENING, 75 MM HMA) | AA38: Past PWL Placement | AB38: 0
A39: 2122-5500080 (PAVED SHLD, HMA, 8") | B39: 46120 | C39: Shoulder | D39: 305 | E39: 8 | F39: 28.5 | H39: 3 | I39: IMX-029-2(62)33--02-65 | J39: SY | K39: =IF(OR(A39="",A39="Select Bid Item",C39=""),"",IF(ISERROR(MATCH(C39,Input!AF$30:AF$37,0))=FALSE,"Class II",IF(Input!K$31=Input!BO$60,"Class II",IF(ISERROR(MATCH(C39,Input!AI$30:AI$33,0))=FALSE,"Class I",IF(ISERROR(MATCH(C39,Input!AG$30:AG$41,0))=FALSE,IF(Input!$BS$4>=22,"Class I (Non-PWL)","Class I"),IF(AND(Input!$BS$4>=22,AT4>0),"Class I (Non-PWL)","Class I")))))) -> Class II | L39: =IF(OR(A39="",A39="Select Bid Item",C39=""),"",IF(AT4>0,"Cert",IF(AND(Input!$V$19,Input!$W$19),"Moving AAD",IF(ISERROR(MATCH(C39,Input!AJ$30:AJ$41,0))=FALSE,IF(AND(Input!Q$9=1,C39=Input!AE$33,Input!$BS$4<36),"PWL",IF(Input!$BS$4>=22,"Moving AAD","PWL")),"PWL")))) -> Cert | M39: =IF(C39="","",IF(AND(OR(L39="PWL",AND(L39="Moving AAD",AB$38>0)),OR(AND(AG4<>"Area",IF(AE4=2,2.20462*B39,B39)<=Settings!B$55*2000),AND(AG4="Area",Input!$BS$4<36,OFFSET(Summary!$H$40,0,ROW(N39)-ROW(N$36))<=IF(AE4=1,Settings!$C$56,Settings!$D$56))),ISERROR(MATCH(C39,Input!AK$30:AK$36,0))=FALSE),IF(AND(C39=Input!AE$33,Input!Q$9=1),"","*Irregular Area"),IF(AND(AB$34>0,L39="Moving AAD"),"PWL",""))) ->  | N39: =OR(AND(AB$3=1,AL4>Settings!B$55),AND(AB$3=2,$AB$4=1,AR4>Settings!B$56),AND(AB$3=2,$AB$4=2,AL4>Settings!D$56),AB$25<>AB$2) -> TRUE | X39: =CONCATENATE('Bid Items'!A38," (",'Bid Items'!B38,")") -> 2213-104100 (BASE WIDENING, 100 MM HMA) | AA39: Active EWO? | AB39: =IF(LEFT(AB15,3)="EWO",1,0) -> 0
A40: 2122-5500080 (PAVED SHLD, HMA, 8") | B40: 44580 | C40: Shoulder | D40: 114 | E40: 8 | F40: 29.5 | G40: 572 | H40: 2 | I40: IMX-029-2(63)34--02-65 | J40: SY | K40: =IF(OR(A40="",A40="Select Bid Item",C40=""),"",IF(ISERROR(MATCH(C40,Input!AF$30:AF$37,0))=FALSE,"Class II",IF(Input!K$31=Input!BO$60,"Class II",IF(ISERROR(MATCH(C40,Input!AI$30:AI$33,0))=FALSE,"Class I",IF(ISERROR(MATCH(C40,Input!AG$30:AG$41,0))=FALSE,IF(Input!$BS$4>=22,"Class I (Non-PWL)","Class I"),IF(AND(Input!$BS$4>=22,AT5>0),"Class I (Non-PWL)","Class I")))))) -> Class II | L40: =IF(OR(A40="",A40="Select Bid Item",C40=""),"",IF(AT5>0,"Cert",IF(AND(Input!$V$19,Input!$W$19),"Moving AAD",IF(ISERROR(MATCH(C40,Input!AJ$30:AJ$41,0))=FALSE,IF(AND(Input!Q$9=1,C40=Input!AE$33,Input!$BS$4<36),"PWL",IF(Input!$BS$4>=22,"Moving AAD","PWL")),"PWL")))) -> Cert | M40: =IF(C40="","",IF(AND(OR(L40="PWL",AND(L40="Moving AAD",AB$38>0)),OR(AND(AG5<>"Area",IF(AE5=2,2.20462*B40,B40)<=Settings!B$55*2000),AND(AG5="Area",Input!$BS$4<36,OFFSET(Summary!$H$40,0,ROW(N40)-ROW(N$36))<=IF(AE5=1,Settings!$C$56,Settings!$D$56))),ISERROR(MATCH(C40,Input!AK$30:AK$36,0))=FALSE),IF(AND(C40=Input!AE$33,Input!Q$9=1),"","*Irregular Area"),IF(AND(AB$34>0,L40="Moving AAD"),"PWL",""))) ->  | N40: =OR(AND(AB$3=1,AL5>Settings!B$55),AND(AB$3=2,$AB$4=1,AR5>Settings!B$56),AND(AB$3=2,$AB$4=2,AL5>Settings!D$56),AB$25<>AB$2) -> TRUE | X40: =CONCATENATE('Bid Items'!A39," (",'Bid Items'!B39,")") -> 2213-104110 (BASE WIDENING, 110 MM HMA) | AA40: Active PN/Bid Item Combo | AB40: =CONCATENATE(Report!T4,"\",Report!C2) -> 2303-0042500 3M int 1/2in (HMA)\IMX-029-2(60)32--02-65
A41: 2303-0063502 (HMA (30M ESAL) SURF, 1/2", FRIC L-2) | B41: 558980 | C41: Surface (Travel Lane) | D41: 895.8 | F41: 40 | G41: 572 | H41: 4 | I41: IMX-029-1(81)33--02-65 | J41: Tons | K41: =IF(OR(A41="",A41="Select Bid Item",C41=""),"",IF(ISERROR(MATCH(C41,Input!AF$30:AF$37,0))=FALSE,"Class II",IF(Input!K$31=Input!BO$60,"Class II",IF(ISERROR(MATCH(C41,Input!AI$30:AI$33,0))=FALSE,"Class I",IF(ISERROR(MATCH(C41,Input!AG$30:AG$41,0))=FALSE,IF(Input!$BS$4>=22,"Class I (Non-PWL)","Class I"),IF(AND(Input!$BS$4>=22,AT6>0),"Class I (Non-PWL)","Class I")))))) -> Class I | L41: =IF(OR(A41="",A41="Select Bid Item",C41=""),"",IF(AT6>0,"Cert",IF(AND(Input!$V$19,Input!$W$19),"Moving AAD",IF(ISERROR(MATCH(C41,Input!AJ$30:AJ$41,0))=FALSE,IF(AND(Input!Q$9=1,C41=Input!AE$33,Input!$BS$4<36),"PWL",IF(Input!$BS$4>=22,"Moving AAD","PWL")),"PWL")))) -> PWL | M41: =IF(C41="","",IF(AND(OR(L41="PWL",AND(L41="Moving AAD",AB$38>0)),OR(AND(AG6<>"Area",IF(AE6=2,2.20462*B41,B41)<=Settings!B$55*2000),AND(AG6="Area",Input!$BS$4<36,OFFSET(Summary!$H$40,0,ROW(N41)-ROW(N$36))<=IF(AE6=1,Settings!$C$56,Settings!$D$56))),ISERROR(MATCH(C41,Input!AK$30:AK$36,0))=FALSE),IF(AND(C41=Input!AE$33,Input!Q$9=1),"","*Irregular Area"),IF(AND(AB$34>0,L41="Moving AAD"),"PWL",""))) ->  | N41: =OR(AND(AB$3=1,AL6>Settings!B$55),AND(AB$3=2,$AB$4=1,AR6>Settings!B$56),AND(AB$3=2,$AB$4=2,AL6>Settings!D$56),AB$25<>AB$2) -> TRUE | X41: =CONCATENATE('Bid Items'!A40," (",'Bid Items'!B40,")") -> 2213-104120 (BASE WIDENING, 120 MM HMA) | AA41: Binder Price Violation | AB41: =IF(AND(AB28>1,COUNTIF(G37:G41,Input!Q38)<>Tank!AB28),1,0) -> 0
A42: =CONCATENATE("Total Placed (should = ",TEXT(B29-B45-B46+B30,"0,0.00"),")") -> Total Placed (should = 3,003,940.00) | B42: =SUM(B37:B41) -> 3003940 | G42: =IF(AB2=0,"",CONCATENATE(IF(J37="","",IF(AND(COUNTIF(AE2:AE6,AE2)<>AB2,COUNT(AE2:AE6)=AB2,J38<>"",J37<>""),"Multiple units are specified. Be sure to verify that entries on all sheets reflect the proper units for the active bid item. ",IF(AB4=1,"English units specified. ","Metric units specified. "))),IF(AB11<AB2,"*Error. Please select a bid item for all quantities placed.",IF(AB12<AB2,"*Error. Please select placement for all bid items placed.",IF(AND(AB22=0,AB7="yes"),"*Error. Please enter plan thickness for items paid by area.",IF(AB13<AB2,"*Error. Please enter plan quantities for each bid item placed.",IF(AND(COUNTIF(L37:L41,"PWL")>0,COUNTIF(L37:L41,"PWL")<>AB2,Input!$BS$4>=22),CONCATENATE("*All box samples today will be applied to ",IF(COUNTIF(L37:L41,"PWL")>1,"all PWL LV lots ","the PWL LV lot "),"per 2303.03, D, 3, b, 3, ix, b. "),""))))),IF(AND(AB28>1,AB33=AB28),"If repeating a bid item selection, choose a unique placement. ",""),IF(AB29>0,"*Error. All bid item's for a single project should have the same plant report #. ",""),IF(AB30>0,"Bid items' bid price should be consistent. ",""),IF(AB31>0,"Bid items' plan thickness should be consistent. ",""),IF(AB32>0,"Bid items' plan quantity should be consistent. ",""),IF(AB26>0,"Lab Voids tests for Moving AAD placement may be included in a PWL lot if any portion of this mixture bid item is placed in a PWL area throughout the project. ",""),IF(AND(COUNTIF(J37:J41,"Class I")>0,COUNTIF(J37:J41,"Class I")<>AB2),"*All cores today will be applied to the PWL calcs for the FV lot.",""))) -> English units specified. | X42: =CONCATENATE('Bid Items'!A41," (",'Bid Items'!B41,")") -> 2213-104130 (BASE WIDENING, 130 MM HMA) | AA42: Units text | AB42: =IF(AB4="",IF(Input!T26=1,"Mg's","Sq M"),IF(Input!T26=1,"Tons","SY")) -> Tons
A43: =IF(AND(AB27>0,AB27<>AB2,Input!$BS$4>=22,B42>0),CONCATENATE("*All box samples today will be applied to ",IF(AB27>1,"all PWL LV lots ","the PWL LV lot "),"per 2303.03, D, 3, b, 3, ix, b. "),"") ->  | X43: =CONCATENATE('Bid Items'!A42," (",'Bid Items'!B42,")") -> 2213-104140 (BASE WIDENING, 140 MM HMA) | AA43: Active SY Field Voids | AB43: =IF(OFFSET(AF1,AB1,0)=2,"yes","no") -> no
B44: =CONCATENATE("Quantity Not Placed (",IF(Tank!AB4=2,"Kgs","Pounds"),")") -> Quantity Not Placed (Pounds) | L44: =50-B12 -> 50 | M44: =50-C12 -> 50 | N44: =50-D12 -> 50 | O44: =50-E12 -> 50 | X44: =CONCATENATE('Bid Items'!A43," (",'Bid Items'!B43,")") -> 2213-104150 (BASE WIDENING, 150 MM HMA) | AA44: Any Class I Items? | AB44: =IF(COUNTIF(AH2:AH6,1)>0,"yes","no") -> yes
B45: 7820 | C45: =Wasted | G45: =CONCATENATE("Quantity Deducted from Field Voids (",IF(Tank!AB4=2,"Kgs","Pounds"),")") -> Quantity Deducted from Field Voids (Pounds) | X45: =CONCATENATE('Bid Items'!A44," (",'Bid Items'!B44,")") -> 2213-104160 (BASE WIDENING, 160 MM HMA)
C46: =Silo'd | G46: =CONCATENATE("Bag House Fines (",IF(Tank!AB4=2,"Kgs","Pounds"),")") -> Bag House Fines (Pounds) | L46: =SQRT(2500-(L44*L44)) -> 0 | M46: =SQRT(2500-(M44*M44)) -> 0 | N46: =SQRT(2500-(N44*N44)) -> 0 | O46: =SQRT(2500-(O44*O44)) -> 0 | R46: =10.76391 -> 10.76391 | S46: sf/sm | X46: =CONCATENATE('Bid Items'!A45," (",'Bid Items'!B45,")") -> 2213-104170 (BASE WIDENING, 170 MM HMA) | AA46: =Settings!A83 -> Asphalt Binder Suppliers
A47: =IF(B47>B29,"*Can't be greater than the amount produced today.","") ->  | B47: =B46+B45 -> 7820 | C47: =CONCATENATE("= Total Quantity Not Placed (",IF(Tank!AB4=2,"Kgs","Pounds"),")") -> = Total Quantity Not Placed (Pounds) | L47: =L44/50 -> 1 | M47: =M44/50 -> 1 | N47: =N44/50 -> 1 | O47: =O44/50 -> 1 | R47: =0.00328083 -> 0.00328083 | S47: mm/ft | X47: =CONCATENATE('Bid Items'!A46," (",'Bid Items'!B46,")") -> 2213-104180 (BASE WIDENING, 180 MM HMA) | AA47: =Settings!A84 -> Asphalt Materials, Inc. (Cicero, IL)
A48: Recycled Asphalt Materials Used | L48: =ACOS(L47)*180/PI() -> 0 | M48: =ACOS(M47)*180/PI() -> 0 | N48: =ACOS(N47)*180/PI() -> 0 | X48: =CONCATENATE('Bid Items'!A47," (",'Bid Items'!B47,")") -> 2213-104190 (BASE WIDENING, 190 MM HMA) | AA48: =Settings!A85 -> Barton Enterprises (Newport, MN)
C49: =IF(Tank!$T$59="Yes",IF(Tank!AB4=2,"Mg's of Dry RAM Used Today (Totalizer)","Tons of Dry RAM Used Today (Totalizer)"),IF(Tank!AB4=2,"Mg's of Dry RAP Used Today (Totalizer)","Tons of Dry RAP Used Today (Totalizer)")) -> Tons of Dry RAM Used Today (Totalizer) | F49: =IF(Tank!$T$59="Yes","",IF(Tank!AB4=2,"Mg's of Dry RAS Used Today (Totalizer)","Tons of Dry RAS Used Today (Totalizer)")) ->  | L49: =360-(2*L48) -> 360 | M49: =360-(2*M48) -> 360 | N49: =360-(2*N48) -> 360 | Q49: quantity placed | R49: =B29-B45-B46+B30 -> 3003940 | X49: =CONCATENATE('Bid Items'!A48," (",'Bid Items'!B48,")") -> 2213-104200 (BASE WIDENING, 200 MM HMA) | AA49: =Settings!A86 -> Bituminous Matr'l & Supply (Des Moines, IA)
C50: =IF(T58=1,RAM!J37,SUM(RAM!D37:I37)) -> 224.83 | F50: =RAM!I37 -> 0 | L50: =L49/360 -> 1 | M50: =M49/360 -> 1 | N50: =N49/360 -> 1 | X50: =CONCATENATE('Bid Items'!A49," (",'Bid Items'!B49,")") -> 2213-104210 (BASE WIDENING, 210 MM HMA) | AA50: =Settings!A87 -> Bituminous Matr'l & Supply (Tama, IA)
L51: =2500*PI()*L50 -> 7853.981634 | M51: =2500*PI()*M50 -> 7853.981634 | N51: =2500*PI()*N50 -> 7853.981634 | X51: =CONCATENATE('Bid Items'!A50," (",'Bid Items'!B50,")") -> 2213-104220 (BASE WIDENING, 220 MM HMA) | AA51: =Settings!A88 -> BKEP Materials LLC (Grand Island, NE)
A52: Total Usage | L52: =0.5*L44*L46 -> 0 | M52: =0.5*M44*M46 -> 0 | N52: =0.5*N44*N46 -> 0 | O52: =0.5*O44*O46 -> 0 | P52: Import Units | Q52: 1 | R52: Import Type | T52: Import Thick | X52: =CONCATENATE('Bid Items'!A51," (",'Bid Items'!B51,")") -> 2213-104230 (BASE WIDENING, 230 MM HMA) | AA52: =Settings!A89 -> Border Chemical Co. (Winnipeg, Manitoba)
A53: Mix | C53: Binder | L53: =L51+(2*L52) -> 7853.981634 | M53: =M51+(2*M52) -> 7853.981634 | N53: =N51+(2*N52) -> 7853.981634 | O53: =R47+(2*O52) -> 0.00328083 | P53: Old Bid Item | R53: =IF(Q52=1,IF(S52=1,OFFSET('Bid Items'!F1,MATCH(Q53,'Bid Items'!H:H,0)-1,0),OFFSET('Bid Items'!F1,MATCH(Q53,'Bid Items'!J:J,0)-1,0)),IF(S52=1,OFFSET('Bid Items'!F1,MATCH(Q53,'Bid Items'!G:G,0)-1,0),OFFSET('Bid Items'!F1,MATCH(Q53,'Bid Items'!I:I,0)-1,0))) -> 2102-230100 (SPECIAL BACKFILL MATERIAL) | X53: =CONCATENATE('Bid Items'!A52," (",'Bid Items'!B52,")") -> 2213-104240 (BASE WIDENING, 240 MM HMA) | AA53: =Settings!A90 -> Bit Mat Products (South Bend, IN)
A54: =IF(Tank!$AB$4=2,"Net Mg's Of Mix Produced Today =","Net Tons Of Mix Produced Today =") -> Net Tons Of Mix Produced Today = | B54: =IF(B$24="",0,SUM(B29)/IF(AB4=2,1000,2000)) -> 1505.88 | L54: =100*(L53/(PI()*2500)) -> 100 | M54: =100*(M53/(PI()*2500)) -> 100 | N54: =100*(N53/(PI()*2500)) -> 100 | O54: =100*(O53/(PI()*2500)) -> 4.177282496e-05 | P54: Tons of New Mix on Road Today | Q54: =ROUND(IF(B24="",0,(B42-B30)/IF(Tank!$AB$4=2,1000,2000)),2) -> 1501.97 | X54: =CONCATENATE('Bid Items'!A53," (",'Bid Items'!B53,")") -> 2213-104250 (BASE WIDENING, 250 MM HMA) | AA54: =Settings!A91 -> BP Products North America Inc (Bartlett, IL)
A55: =IF(Tank!$AB$4=2,"+Net Mg's Of Silo'd Mix from Prior Production =","+Net Tons Of Silo'd Mix from Prior Production =") -> +Net Tons Of Silo'd Mix from Prior Production = | B55: =Q33 -> 0 | F55: =IF(Tank!$AB$4=2,"Net Mg's Of RAS Binder Used On Road =","Net Tons Of RAS Binder Used On Road =") -> Net Tons Of RAS Binder Used On Road = | G55: =Summary!G32+Summary!G29 -> 0 | Q55: =B29-B45-B46+B30 -> 3003940 | X55: =CONCATENATE('Bid Items'!A54," (",'Bid Items'!B54,")") -> 2213-104260 (BASE WIDENING, 260 MM HMA) | AA55: =Settings!A92 -> BP Products North America Inc (Chicago, IL)
A56: =IF(Tank!$AB$4=2,"-Net Mg's Of Mix Wasted Today =","-Net Tons Of Mix Wasted Today =") -> -Net Tons Of Mix Wasted Today = | B56: =IF(B$24="",0,SUM(B45)/IF(Tank!$AB$4=2,1000,2000)) -> 3.91 | F56: =IF(Tank!$AB$4=2,"Net Mg's Of RAP Binder Used On Road =","Net Tons Of RAP Binder Used On Road =") -> Net Tons Of RAP Binder Used On Road = | G56: =Summary!G31+Summary!G28 -> 9.46319097 | L56: =50-B20 -> 50 | M56: =50-C20 -> 50 | N56: =50-D20 -> 50 | O56: =50-E20 -> 50 | S56: Preblend | T56: Yes | X56: =CONCATENATE('Bid Items'!A55," (",'Bid Items'!B55,")") -> 2213-104270 (BASE WIDENING, 270 MM HMA) | AA56: =Settings!A93 -> BP Products North America Inc (Whiting, IN)
A57: =IF(Tank!$AB$4=2,"-Net Mg's Of Mix Silo'd Today =","-Net Tons Of Mix Silo'd Today =") -> -Net Tons Of Mix Silo'd Today = | B57: =IF(B$24="",0,SUM(B46)/IF(Tank!$AB$4=2,1000,2000)) -> 0 | F57: =IF(Tank!$AB$4=2,"Net Mg's Of Virgin Binder Used On Road =","Net Tons Of Virgin Binder Used On Road =") -> Net Tons Of Virgin Binder Used On Road = | G57: =ROUND(IF(B24="",0,SUM(B24-M27-M26-IF(OR(M33=2),M28,0))/IF(Tank!AB4=2,1000,2000)),200) -> 65.15488569 | L57: =SQRT(2500-(L56*L56)) -> 0 | M57: =SQRT(2500-(M56*M56)) -> 0 | N57: =SQRT(2500-(N56*N56)) -> 0 | O57: =SQRT(2500-(O56*O56)) -> 0 | T57: No | X57: =CONCATENATE('Bid Items'!A56," (",'Bid Items'!B56,")") -> 2213-104280 (BASE WIDENING, 280 MM HMA) | AA57: =Settings!A94 -> Calumet Specialty Product Partners (Rhinelander, WI)
A58: =IF(Tank!$AB$4=2,"-Net Mg's Of Today's Mix Used On Road =","-Net Tons Of Mix Used On Road =") -> -Net Tons Of Mix Used On Road = | B58: =ROUND(IF(B24="",0,(B42)/IF(Tank!$AB$4=2,1000,2000)),2) -> 1501.97 | C58: =IF(B59<>0,"Error","") ->  | F58: =IF($D$26="","Pct Virgin Binder By Tank Stick =","Percent Virgin Binder By Totalizer =") -> Pct Virgin Binder By Tank Stick = | G58: =ROUND(IF(B29="",0,SUM((B24)/(B29)*100)),2) -> 4.34 | H58: =IF(ISERROR(G58),"Missing Info","") ->  | L58: =L56/50 -> 1 | M58: =M56/50 -> 1 | N58: =N56/50 -> 1 | O58: =O56/50 -> 1 | S58: Choice | T58: 1 | X58: =CONCATENATE('Bid Items'!A57," (",'Bid Items'!B57,")") -> 2213-8200000 (BASE WIDENING, HMA) | AA58: =Settings!A95 -> Calumet Specialty Product Partners (Superior, WI)
A59: Balance = | B59: =ROUND(B54+B55-B56-B57-B58,2) -> 0 | L59: =ACOS(L58)*180/PI() -> 0 | M59: =ACOS(M58)*180/PI() -> 0 | N59: =ACOS(N58)*180/PI() -> 0 | O59: =ACOS(O58)*180/PI() -> 0 | S59: Text | T59: =IF(T58=1,"Yes","No") -> Yes | X59: =CONCATENATE('Bid Items'!A58," (",'Bid Items'!B58,")") -> 2213-8201030 (BASE WIDENING, 3" HMA) | AA59: =Settings!A96 -> Calumet Specialty Product Partners (Crookston, MN)
L60: =360-(2*L59) -> 360 | M60: =360-(2*M59) -> 360 | N60: =360-(2*N59) -> 360 | O60: =360-(2*O59) -> 360 | X60: =CONCATENATE('Bid Items'!A59," (",'Bid Items'!B59,")") -> 2213-8201040 (BASE WIDENING, 4" HMA) | AA60: =Settings!A97 -> CHS (Laurel, MT)
L61: =L60/360 -> 1 | M61: =M60/360 -> 1 | N61: =N60/360 -> 1 | O61: =O60/360 -> 1 | X61: =CONCATENATE('Bid Items'!A60," (",'Bid Items'!B60,")") -> 2213-8201045 (BASE WIDENING, 4.5" HMA) | AA61: =Settings!A98 -> CHS (Grand Forks, ND)
L62: =2500*PI()*L61 -> 7853.981634 | M62: =2500*PI()*M61 -> 7853.981634 | N62: =2500*PI()*N61 -> 7853.981634 | O62: =2500*PI()*O61 -> 7853.981634 | X62: =CONCATENATE('Bid Items'!A61," (",'Bid Items'!B61,")") -> 2213-8201050 (BASE WIDENING, 5" HMA) | AA62: =Settings!A99 -> CHS (Mandan, ND)
L63: =0.5*L56*L57 -> 0 | M63: =0.5*M56*M57 -> 0 | N63: =0.5*N56*N57 -> 0 | O63: =0.5*O56*O57 -> 0 | X63: =CONCATENATE('Bid Items'!A62," (",'Bid Items'!B62,")") -> 2213-8201055 (BASE WIDENING, 5.5" HMA) | AA63: =Settings!A100 -> CHS (Hardin, MT)
L64: =L62+(2*L63) -> 7853.981634 | M64: =M62+(2*M63) -> 7853.981634 | N64: =N62+(2*N63) -> 7853.981634 | O64: =O62+(2*O63) -> 7853.981634 | X64: =CONCATENATE('Bid Items'!A63," (",'Bid Items'!B63,")") -> 2213-8201060 (BASE WIDENING, 6" HMA) | AA64: =Settings!A101 -> ConocoPhillips Company (Forestview, IL)
L65: =100*(L64/(PI()*2500)) -> 100 | M65: =100*(M64/(PI()*2500)) -> 100 | N65: =100*(N64/(PI()*2500)) -> 100 | O65: =100*(O64/(PI()*2500)) -> 100 | X65: =CONCATENATE('Bid Items'!A64," (",'Bid Items'!B64,")") -> 2213-8201065 (BASE WIDENING, 6.5" HMA) | AA65: =Settings!A102 -> ConocoPhillips Company (Kansas City, MO.)
X66: =CONCATENATE('Bid Items'!A65," (",'Bid Items'!B65,")") -> 2213-8201070 (BASE WIDENING, 7" HMA) | AA66: =Settings!A103 -> ConocoPhillips Company (Roxanna, IL)
X67: =CONCATENATE('Bid Items'!A66," (",'Bid Items'!B66,")") -> 2213-8201075 (BASE WIDENING, 7.5" HMA) | AA67: =Settings!A104 -> Const Resources Mgmt Inc (Gladstone, MI)
X68: =CONCATENATE('Bid Items'!A67," (",'Bid Items'!B67,")") -> 2213-8201080 (BASE WIDENING, 8" HMA) | AA68: =Settings!A105 -> Const Resources Mgmt Inc (Milwaukee, WI)
X69: =CONCATENATE('Bid Items'!A68," (",'Bid Items'!B68,")") -> 2213-8201085 (BASE WIDENING, 8.5" HMA) | AA69: =Settings!A106 -> Const Resources Mgmt Inc (Waukesha, WI)
X70: =CONCATENATE('Bid Items'!A69," (",'Bid Items'!B69,")") -> 2213-8201090 (BASE WIDENING, 9" HMA) | AA70: =Settings!A107 -> Const Resources Mgmt Inc (Green Bay, WI)
X71: =CONCATENATE('Bid Items'!A70," (",'Bid Items'!B70,")") -> 2213-8201095 (BASE WIDENING, 9.5" HMA) | AA71: =Settings!A108 -> Exxon Mobil (Billings, MT)
X72: =CONCATENATE('Bid Items'!A71," (",'Bid Items'!B71,")") -> 2213-8201100 (BASE WIDENING, 10" HMA) | AA72: =Settings!A109 -> Flint Hills Resources, LP (Davenport, IA)
X73: =CONCATENATE('Bid Items'!A72," (",'Bid Items'!B72,")") -> 2213-8201105 (BASE WIDENING, 10.5" HMA) | AA73: =Settings!A110 -> Flint Hills Resources, LP (Omaha, NE)
X74: =CONCATENATE('Bid Items'!A73," (",'Bid Items'!B73,")") -> 2213-8201110 (BASE WIDENING, 11" HMA) | AA74: =Settings!A111 -> Flint Hills Resources, LP (Rosemount, MN)
X75: =CONCATENATE('Bid Items'!A74," (",'Bid Items'!B74,")") -> 2303-0000100 (HMA COMMERCIAL MIX (INCL ASPH BINDER)) | AA75: =Settings!A112 -> Flint Hills Resources, LP (Green Bay, WI)
X76: =CONCATENATE('Bid Items'!A75," (",'Bid Items'!B75,")") -> 2303-000100 (HMA COMMERCIAL MIX (INCL ASPH BINDER)) | AA76: =Settings!A113 -> Flint Hills Resources, LP (West Fargo, ND)
X77: =CONCATENATE('Bid Items'!A76," (",'Bid Items'!B76,")") -> 2303-0001000 (HMA WEDGE/LEVEL/STRENGTH) | AA77: =Settings!A114 -> Flint Hills Resources, LP (Stevens Point, WI)
X78: =CONCATENATE('Bid Items'!A77," (",'Bid Items'!B77,")") -> 2303-001000 (HMA WEDGE/LEVEL/STRENGTH) | AA78: =Settings!A115 -> Flint Hills Resources, LP (Marshall, MN)
X79: =CONCATENATE('Bid Items'!A78," (",'Bid Items'!B78,")") -> 2303-0013380 (HMA (100K ESAL) B-I-S, 3/8", NO FRIC) | AA79: =Settings!A116 -> Flint Hills Resources, LP (Dubuque, IA)
X80: =CONCATENATE('Bid Items'!A79," (",'Bid Items'!B79,")") -> 2303-0013500 (HMA (100K ESAL) B-I-S, 1/2", NO FRIC) | AA80: =Settings!A117 -> Flint Hills Resources, LP (Savage, MN)
X81: =CONCATENATE('Bid Items'!A80," (",'Bid Items'!B80,")") -> 2303-0013750 (HMA (100K ESAL) B-I-S, 3/4", NO FRIC) | AA81: =Settings!A118 -> Flint Hills Resources, LP (Algona, IA)
X82: =CONCATENATE('Bid Items'!A81," (",'Bid Items'!B81,")") -> 2303-0021500 (HMA (300K ESAL) BASE, 1/2") | AA82: =Settings!A119 -> Flint Hills Resources, LP (Omaha, NE)
X83: =CONCATENATE('Bid Items'!A82," (",'Bid Items'!B82,")") -> 2303-0021750 (HMA (300K ESAL) BASE, 3/4") | AA83: =Settings!A120 -> Frontier Ref Inc (Cheyenne, WY)
X84: =CONCATENATE('Bid Items'!A83," (",'Bid Items'!B83,")") -> 2303-0023380 (HMA (300K ESAL) I-S, 3/8", NO FRIC) | AA84: =Settings!A121 -> H G Meigs LLC (Abbotsford, WI)
X85: =CONCATENATE('Bid Items'!A84," (",'Bid Items'!B84,")") -> 2303-0023500 (HMA (300K ESAL) I-S, 1/2", NO FRIC) | AA85: =Settings!A122 -> H G Meigs LLC (Portage, WI)
X86: =CONCATENATE('Bid Items'!A85," (",'Bid Items'!B85,")") -> 2303-0023750 (HMA (300K ESAL) I-S, 3/4", NO FRIC) | AA86: =Settings!A123 -> Husky Energy (Calgary, Alberta)
X87: =CONCATENATE('Bid Items'!A86," (",'Bid Items'!B86,")") -> 2303-0031500 (HMA (1M ESAL) BASE, 1/2") | AA87: =Settings!A124 -> Husky Oil (Saskatoon, SASK)
X88: =CONCATENATE('Bid Items'!A87," (",'Bid Items'!B87,")") -> 2303-0031750 (HMA (1M ESAL) BASE, 3/4") | AA88: =Settings!A125 -> Interstate Asphalt Corp. (Peoria, IL)
X89: =CONCATENATE('Bid Items'!A88," (",'Bid Items'!B88,")") -> 2303-0032500 (HMA (1M ESAL) INTERMEDIATE, 1/2") | AA89: =Settings!A126 -> Interstate Asphalt Corp- Ameripan (Chicago, IL)
X90: =CONCATENATE('Bid Items'!A89," (",'Bid Items'!B89,")") -> 2303-0032750 (HMA (1M ESAL) INTERMEDIATE, 3/4") | AA90: =Settings!A127 -> Interstate Asphalt Corp- Bell (Chicago, IL)
X91: =CONCATENATE('Bid Items'!A90," (",'Bid Items'!B90,")") -> 2303-0033380 (HMA (1M ESAL) SURF, 3/8", NO FRIC) | AA91: =Settings!A128 -> Jebro, Inc. (Corson, SD)
X92: =CONCATENATE('Bid Items'!A91," (",'Bid Items'!B91,")") -> 2303-0033382 (HMA (1M ESAL) SURF, 3/8", FRIC L-2) | AA92: =Settings!A129 -> Jebro, Inc. (Sioux City, IA)
X93: =CONCATENATE('Bid Items'!A92," (",'Bid Items'!B92,")") -> 2303-0033383 (HMA (1M ESAL) SURF, 3/8", FRIC L-3) | AA93: =Settings!A130 -> Marathon Ashland Petroleum LLC (Utica, IL)
X94: =CONCATENATE('Bid Items'!A93," (",'Bid Items'!B93,")") -> 2303-0033384 (HMA (1M ESAL) SURF, 3/8", FRIC L-4) | AA94: =Settings!A131 -> McAsphalt Ind LTD (Thunder Bay, Ontario)
X95: =CONCATENATE('Bid Items'!A94," (",'Bid Items'!B94,")") -> 2303-0033500 (HMA (1M ESAL) SURF, 1/2", NO FRIC) | AA95: =Settings!A132 -> McAsphalt Ind LTD (Winnipeg, Manitoba)
X96: =CONCATENATE('Bid Items'!A95," (",'Bid Items'!B95,")") -> 2303-0033502 (HMA (1M ESAL) SURF, 1/2", FRIC L-2) | AA96: =Settings!A133 -> Midwest Industrial Asphalt (LaCrosse, WI)
X97: =CONCATENATE('Bid Items'!A96," (",'Bid Items'!B96,")") -> 2303-0033503 (HMA (1M ESAL) SURF, 1/2", FRIC L-3) | AA97: =Settings!A134 -> Monarch Oil (Omaha, NE)
X98: =CONCATENATE('Bid Items'!A97," (",'Bid Items'!B97,")") -> 2303-0033504 (HMA (1M ESAL) SURF, 1/2", FRIC L-4) | AA98: =Settings!A135 -> Moose Jaw Asphalt, Inc (Moose Jaw, Sask)
X99: =CONCATENATE('Bid Items'!A98," (",'Bid Items'!B98,")") -> 2303-0041500 (HMA (3M ESAL) BASE, 1/2") | AA99: =Settings!A136 -> Northwest Asphalt Products, Inc. (Milwaukee, WI)
X100: =CONCATENATE('Bid Items'!A99," (",'Bid Items'!B99,")") -> 2303-0041750 (HMA (3M ESAL) BASE, 3/4") | AA100: =Settings!A137 -> Pioneer Oil Co. (Billings, MT)
X101: =CONCATENATE('Bid Items'!A100," (",'Bid Items'!B100,")") -> 2303-0042380 (HMA (3M ESAL) INTERMEDIATE, 3/8") | AA101: =Settings!A138 -> Pounders Emulsions (Yorkton, SASK)
X102: =CONCATENATE('Bid Items'!A101," (",'Bid Items'!B101,")") -> 2303-0042500 (HMA (3M ESAL) INTERMEDIATE, 1/2") | AA102: =Settings!A139 -> Seneca Petroleum, Co. (Portage, IN)
X103: =CONCATENATE('Bid Items'!A102," (",'Bid Items'!B102,")") -> 2303-0042750 (HMA (3M ESAL) INTERMEDIATE, 3/4") | AA103: =Settings!A140 -> Seneca Petroleum, Co. (Lemont, IL)
X104: =CONCATENATE('Bid Items'!A103," (",'Bid Items'!B103,")") -> 2303-0043380 (HMA (3M ESAL) SURF, 3/8", NO FRIC) | AA104: =Settings!A141 -> Sinclair Oil Corp. (Casper, WY)
X105: =CONCATENATE('Bid Items'!A104," (",'Bid Items'!B104,")") -> 2303-0043500 (HMA (3M ESAL) SURF, 1/2", NO FRIC) | AA105: =Settings!A142 -> St. Paul Park Refinery Co. LLC (St. Paul Park, MN)
X106: =CONCATENATE('Bid Items'!A105," (",'Bid Items'!B105,")") -> 2303-0043502 (HMA (3M ESAL) SURF, 1/2", FRIC L-2) | AA106: =Settings!A143 -> Texpar Energy LLC (Davenport, IA)
X107: =CONCATENATE('Bid Items'!A106," (",'Bid Items'!B106,")") -> 2303-0043503 (HMA (3M ESAL) SURF, 1/2", FRIC L-3) | AA107: =Settings!A144 -> Texpar Energy LLC (Rochester, MN)
X108: =CONCATENATE('Bid Items'!A107," (",'Bid Items'!B107,")") -> 2303-0043504 (HMA (3M ESAL) SURF, 1/2", FRIC L-4) | AA108: =Settings!A145 -> Tri County Paving, Inc (DeForest, WI)
X109: =CONCATENATE('Bid Items'!A108," (",'Bid Items'!B108,")") -> 2303-0043750 (HMA (3M ESAL) SURF, 3/4", NO FRIC) | AA109: =Settings!A146 -> Westway Terminal Company, Inc (St Paul, MN)
X110: =CONCATENATE('Bid Items'!A109," (",'Bid Items'!B109,")") -> 2303-0051500 (HMA (10M ESAL) BASE, 1/2") | AA110: =Settings!A147 -> 0
X111: =CONCATENATE('Bid Items'!A110," (",'Bid Items'!B110,")") -> 2303-0051750 (HMA (10M ESAL) BASE, 3/4") | AA111: =Settings!A148 -> 0
X112: =CONCATENATE('Bid Items'!A111," (",'Bid Items'!B111,")") -> 2303-0051990 (HMA (10M ESAL) BASE, 1") | AA112: =Settings!A149 -> 0
X113: =CONCATENATE('Bid Items'!A112," (",'Bid Items'!B112,")") -> 2303-0052500 (HMA (10M ESAL) INTERMEDIATE, 1/2") | AA113: =Settings!A150 -> 0
X114: =CONCATENATE('Bid Items'!A113," (",'Bid Items'!B113,")") -> 2303-0052750 (HMA (10M ESAL) INTERMEDIATE, 3/4") | AA114: =Settings!A151 -> 0
X115: =CONCATENATE('Bid Items'!A114," (",'Bid Items'!B114,")") -> 2303-0053500 (HMA (10M ESAL) SURF, 1/2", NO FRIC) | AA115: =Settings!A152 -> 0
X116: =CONCATENATE('Bid Items'!A115," (",'Bid Items'!B115,")") -> 2303-0053502 (HMA (10M ESAL) SURF, 1/2", FRIC L-2)
X117: =CONCATENATE('Bid Items'!A116," (",'Bid Items'!B116,")") -> 2303-0053503 (HMA (10M ESAL) SURF, 1/2", FRIC L-3)
X118: =CONCATENATE('Bid Items'!A117," (",'Bid Items'!B117,")") -> 2303-0053504 (HMA (10M ESAL) SURF, 1/2", FRIC L-4)
X119: =CONCATENATE('Bid Items'!A118," (",'Bid Items'!B118,")") -> 2303-0053753 (HMA (10M ESAL) SURF, 3/4", FRIC L-3)
X120: =CONCATENATE('Bid Items'!A119," (",'Bid Items'!B119,")") -> 2303-0061380 (HMA (30M ESAL) BASE, 3/8")
X121: =CONCATENATE('Bid Items'!A120," (",'Bid Items'!B120,")") -> 2303-0061500 (HMA (30M ESAL) BASE, 1/2")
X122: =CONCATENATE('Bid Items'!A121," (",'Bid Items'!B121,")") -> 2303-0061750 (HMA (30M ESAL) BASE, 3/4")
X123: =CONCATENATE('Bid Items'!A122," (",'Bid Items'!B122,")") -> 2303-0061990 (HMA (30M ESAL) BASE, 1")
X124: =CONCATENATE('Bid Items'!A123," (",'Bid Items'!B123,")") -> 2303-0062500 (HMA (30M ESAL) INTERMEDIATE, 1/2")
X125: =CONCATENATE('Bid Items'!A124," (",'Bid Items'!B124,")") -> 2303-0062750 (HMA (30M ESAL) INTERMEDIATE, 3/4")
X126: =CONCATENATE('Bid Items'!A125," (",'Bid Items'!B125,")") -> 2303-0063502 (HMA (30M ESAL) SURF, 1/2", FRIC L-2)
X127: =CONCATENATE('Bid Items'!A126," (",'Bid Items'!B126,")") -> 2303-0063503 (HMA (30M ESAL) SURF, 1/2", FRIC L-3)
X128: =CONCATENATE('Bid Items'!A127," (",'Bid Items'!B127,")") -> 2303-0063752 (HMA (30M ESAL) SURF, 3/4", FRIC L-2)
X129: =CONCATENATE('Bid Items'!A128," (",'Bid Items'!B128,")") -> 2303-0063753 (HMA (30M ESAL) SURF, 3/4", FRIC L-3)
X130: =CONCATENATE('Bid Items'!A129," (",'Bid Items'!B129,")") -> 2303-0071750 (HMA (100M ESAL) BASE, 3/4")
X131: =CONCATENATE('Bid Items'!A130," (",'Bid Items'!B130,")") -> 2303-0071990 (HMA (100M ESAL) BASE, 1")
X132: =CONCATENATE('Bid Items'!A131," (",'Bid Items'!B131,")") -> 2303-0072500 (HMA (100M ESAL) INTERMEDIATE, 1/2")
X133: =CONCATENATE('Bid Items'!A132," (",'Bid Items'!B132,")") -> 2303-0073502 (HMA (100M ESAL) SURF, 1/2", FRIC L-2)
X134: =CONCATENATE('Bid Items'!A133," (",'Bid Items'!B133,")") -> 2303-0101000 (HMA WEDGE/LEVEL/STRENGTH)
X135: =CONCATENATE('Bid Items'!A134," (",'Bid Items'!B134,")") -> 2303-0113380 (HMA (100K ESAL) B-I-S, 3/8", NO FRIC)
X136: =CONCATENATE('Bid Items'!A135," (",'Bid Items'!B135,")") -> 2303-0113500 (HMA (100K ESAL) B-I-S, 1/2", NO FRIC)
X137: =CONCATENATE('Bid Items'!A136," (",'Bid Items'!B136,")") -> 2303-0121500 (HMA (300K ESAL) BASE, 1/2")
X138: =CONCATENATE('Bid Items'!A137," (",'Bid Items'!B137,")") -> 2303-0121750 (HMA (300K ESAL) BASE, 3/4")
X139: =CONCATENATE('Bid Items'!A138," (",'Bid Items'!B138,")") -> 2303-0122380 (HMA (300K ESAL) I-S, 3/8", NO FRIC)
X140: =CONCATENATE('Bid Items'!A139," (",'Bid Items'!B139,")") -> 2303-0122500 (HMA (300K ESAL) I-S, 1/2", NO FRIC)
X141: =CONCATENATE('Bid Items'!A140," (",'Bid Items'!B140,")") -> 2303-013090 (HMA (100K ESAL) B-I-S, 9.5 MM, NO FRIC)
X142: =CONCATENATE('Bid Items'!A141," (",'Bid Items'!B141,")") -> 2303-013120 (HMA (100K ESAL) B-I-S,12.5 MM, NO FRIC)
X143: =CONCATENATE('Bid Items'!A142," (",'Bid Items'!B142,")") -> 2303-0131500 (HMA (1M ESAL) BASE, 1/2")
X144: =CONCATENATE('Bid Items'!A143," (",'Bid Items'!B143,")") -> 2303-0131750 (HMA (1M ESAL) BASE, 3/4")
X145: =CONCATENATE('Bid Items'!A144," (",'Bid Items'!B144,")") -> 2303-013190 (HMA (100K ESAL) B-I-S,19 MM, NO FRIC)
X146: =CONCATENATE('Bid Items'!A145," (",'Bid Items'!B145,")") -> 2303-0132500 (HMA (1M ESAL) INTERMEDIATE, 1/2")
X147: =CONCATENATE('Bid Items'!A146," (",'Bid Items'!B146,")") -> 2303-0132750 (HMA (1M ESAL) INTERMEDIATE, 3/4")
X148: =CONCATENATE('Bid Items'!A147," (",'Bid Items'!B147,")") -> 2303-0133380 (HMA (1M ESAL) SURF, 3/8", NO FRIC)
X149: =CONCATENATE('Bid Items'!A148," (",'Bid Items'!B148,")") -> 2303-0133384 (HMA (1M ESAL) SURF, 3/8", FRIC L-4)
X150: =CONCATENATE('Bid Items'!A149," (",'Bid Items'!B149,")") -> 2303-0133500 (HMA (1M ESAL) SURF, 1/2", NO FRIC)
X151: =CONCATENATE('Bid Items'!A150," (",'Bid Items'!B150,")") -> 2303-0133504 (HMA (1M ESAL) SURF, 1/2", FRIC L-4)
X152: =CONCATENATE('Bid Items'!A151," (",'Bid Items'!B151,")") -> 2303-0141750 (HMA (3M ESAL) BASE, 3/4")
X153: =CONCATENATE('Bid Items'!A152," (",'Bid Items'!B152,")") -> 2303-0142500 (HMA (3M ESAL) INTERMEDIATE, 1/2")
X154: =CONCATENATE('Bid Items'!A153," (",'Bid Items'!B153,")") -> 2303-0142750 (HMA (3M ESAL) INTERMEDIATE, 3/4")
X155: =CONCATENATE('Bid Items'!A154," (",'Bid Items'!B154,")") -> 2303-0143500 (HMA (3M ESAL) SURF, 1/2", NO FRIC)
X156: =CONCATENATE('Bid Items'!A155," (",'Bid Items'!B155,")") -> 2303-0143503 (HMA (3M ESAL) SURF, 1/2", FRIC L-3)
X157: =CONCATENATE('Bid Items'!A156," (",'Bid Items'!B156,")") -> 2303-0143504 (HMA (3M ESAL) SURF, 1/2", FRIC L-4)
X158: =CONCATENATE('Bid Items'!A157," (",'Bid Items'!B157,")") -> 2303-0143750 (HMA (3M ESAL) SURF, 3/4", NO FRIC)
X159: =CONCATENATE('Bid Items'!A158," (",'Bid Items'!B158,")") -> 2303-021120 (HMA (300K ESAL) BASE, 12.5 MM)
X160: =CONCATENATE('Bid Items'!A159," (",'Bid Items'!B159,")") -> 2303-021190 (HMA (300K ESAL) BASE, 19 MM)
X161: =CONCATENATE('Bid Items'!A160," (",'Bid Items'!B160,")") -> 2303-023090 (HMA (300K ESAL) I-S, 9.5 MM, NO FRIC)
X162: =CONCATENATE('Bid Items'!A161," (",'Bid Items'!B161,")") -> 2303-023120 (HMA (300K ESAL) I-S, 12.5 MM, NO FRIC)
X163: =CONCATENATE('Bid Items'!A162," (",'Bid Items'!B162,")") -> 2303-023190 (HMA (300K ESAL) I-S, 19 MM, NO FRIC)
X164: =CONCATENATE('Bid Items'!A163," (",'Bid Items'!B163,")") -> 2303-031120 (HMA (1M ESAL) BASE, 12.5 MM)
X165: =CONCATENATE('Bid Items'!A164," (",'Bid Items'!B164,")") -> 2303-031190 (HMA (1M ESAL) BASE, 19 MM)
X166: =CONCATENATE('Bid Items'!A165," (",'Bid Items'!B165,")") -> 2303-032120 (HMA (1M ESAL) INTERMEDIATE, 12.5 MM)
X167: =CONCATENATE('Bid Items'!A166," (",'Bid Items'!B166,")") -> 2303-032190 (HMA (1M ESAL) INTERMEDIATE, 19 MM)
X168: =CONCATENATE('Bid Items'!A167," (",'Bid Items'!B167,")") -> 2303-033090 (HMA (1M ESAL) SURF, 9.5 MM, NO FRIC)
X169: =CONCATENATE('Bid Items'!A168," (",'Bid Items'!B168,")") -> 2303-033092 (HMA (1M ESAL) SURF, 9.5 MM, FRIC L-2)
X170: =CONCATENATE('Bid Items'!A169," (",'Bid Items'!B169,")") -> 2303-033093 (HMA (1M ESAL) SURF, 9.5 MM, FRIC L-3)
X171: =CONCATENATE('Bid Items'!A170," (",'Bid Items'!B170,")") -> 2303-033094 (HMA (1M ESAL) SURF, 9.5 MM, FRIC L-4)
X172: =CONCATENATE('Bid Items'!A171," (",'Bid Items'!B171,")") -> 2303-033120 (HMA (1M ESAL) SURF, 12.5 MM, NO FRIC)
X173: =CONCATENATE('Bid Items'!A172," (",'Bid Items'!B172,")") -> 2303-033122 (HMA (1M ESAL) SURF, 12.5 MM, FRIC L-2)
X174: =CONCATENATE('Bid Items'!A173," (",'Bid Items'!B173,")") -> 2303-033123 (HMA (1M ESAL) SURF, 12.5 MM, FRIC L-3)
X175: =CONCATENATE('Bid Items'!A174," (",'Bid Items'!B174,")") -> 2303-033124 (HMA (1M ESAL) SURF, 12.5 MM, FRIC L-4)
X176: =CONCATENATE('Bid Items'!A175," (",'Bid Items'!B175,")") -> 2303-041120 (HMA (3M ESAL) BASE, 12.5 MM)
X177: =CONCATENATE('Bid Items'!A176," (",'Bid Items'!B176,")") -> 2303-041190 (HMA (3M ESAL) BASE, 19 MM)
X178: =CONCATENATE('Bid Items'!A177," (",'Bid Items'!B177,")") -> 2303-042090 (HMA (3M ESAL) INTERMEDIATE, 9.5 MM)
X179: =CONCATENATE('Bid Items'!A178," (",'Bid Items'!B178,")") -> 2303-042120 (HMA (3M ESAL) INTERMEDIATE, 12.5 MM)
X180: =CONCATENATE('Bid Items'!A179," (",'Bid Items'!B179,")") -> 2303-042190 (HMA (3M ESAL) INTERMEDIATE, 19 MM)
X181: =CONCATENATE('Bid Items'!A180," (",'Bid Items'!B180,")") -> 2303-043090 (HMA (3M ESAL) SURF, 9.5 MM, NO FRIC)
X182: =CONCATENATE('Bid Items'!A181," (",'Bid Items'!B181,")") -> 2303-043120 (HMA (3M ESAL) SURF, 12.5 MM, NO FRIC)
X183: =CONCATENATE('Bid Items'!A182," (",'Bid Items'!B182,")") -> 2303-043122 (HMA (3M ESAL) SURF, 12.5 MM, FRIC L-2)
X184: =CONCATENATE('Bid Items'!A183," (",'Bid Items'!B183,")") -> 2303-043123 (HMA (3M ESAL) SURF, 12.5 MM, FRIC L-3)
X185: =CONCATENATE('Bid Items'!A184," (",'Bid Items'!B184,")") -> 2303-043124 (HMA (3M ESAL) SURF, 12.5 MM, FRIC L-4)
X186: =CONCATENATE('Bid Items'!A185," (",'Bid Items'!B185,")") -> 2303-043190 (HMA (3M ESAL) SURF, 19 MM, NO FRIC)
X187: =CONCATENATE('Bid Items'!A186," (",'Bid Items'!B186,")") -> 2303-051120 (HMA (10M ESAL) BASE, 12.5 MM)
X188: =CONCATENATE('Bid Items'!A187," (",'Bid Items'!B187,")") -> 2303-051190 (HMA (10M ESAL) BASE, 19 MM)
X189: =CONCATENATE('Bid Items'!A188," (",'Bid Items'!B188,")") -> 2303-051250 (HMA (10M ESAL) BASE, 25 MM)
X190: =CONCATENATE('Bid Items'!A189," (",'Bid Items'!B189,")") -> 2303-052120 (HMA (10M ESAL) INTERMEDIATE, 12.5 MM)
X191: =CONCATENATE('Bid Items'!A190," (",'Bid Items'!B190,")") -> 2303-052190 (HMA (10M ESAL) INTERMEDIATE, 19 MM)
X192: =CONCATENATE('Bid Items'!A191," (",'Bid Items'!B191,")") -> 2303-053120 (HMA (10M ESAL) SURF, 12.5 MM, NO FRIC)
X193: =CONCATENATE('Bid Items'!A192," (",'Bid Items'!B192,")") -> 2303-053122 (HMA (10M ESAL) SURF, 12.5 MM, FRIC L-2)
X194: =CONCATENATE('Bid Items'!A193," (",'Bid Items'!B193,")") -> 2303-053123 (HMA (10M ESAL) SURF, 12.5 MM, FRIC L-3)
X195: =CONCATENATE('Bid Items'!A194," (",'Bid Items'!B194,")") -> 2303-053124 (HMA (10M ESAL) SURF, 12.5 MM, FRIC L-4)
X196: =CONCATENATE('Bid Items'!A195," (",'Bid Items'!B195,")") -> 2303-053193 (HMA (10M ESAL) SURF, 19 MM, FRIC L-3)
X197: =CONCATENATE('Bid Items'!A196," (",'Bid Items'!B196,")") -> 2303-061090 (HMA (30M ESAL) BASE, 9.5 MM)
X198: =CONCATENATE('Bid Items'!A197," (",'Bid Items'!B197,")") -> 2303-061120 (HMA (30M ESAL) BASE, 12.5 MM)
X199: =CONCATENATE('Bid Items'!A198," (",'Bid Items'!B198,")") -> 2303-061190 (HMA (30M ESAL) BASE, 19 MM)
X200: =CONCATENATE('Bid Items'!A199," (",'Bid Items'!B199,")") -> 2303-061250 (HMA (30M ESAL) BASE, 25 MM)
... 86 more rows

Sheet Grad 1
A1: Lab. No.: | C1: CF10-22A | G1: Project | H1: =Input!$D$75 -> 0 | K1: Cold Feed | Z1: Pro-rated as a % of Agg only | AA1: %Agg in Mix | AB1: % Agg in RAM | AC1: Asphalt | AD1: Fibers | AE1: Dead AC
A2: Orig. Dry Mass: | C2: 1898.8 | G2: Date | H2: =Input!$D$5 -> 2011-10-22 | K2: Ignition Oven | X2: Virgin Material | Y2: =1-Y3-Y4-Y5 -> 0.8439282624 | Z2: =AA2/AA$6 -> 0.8495234167 | AA2: =IF(AND(Report!D50="",Report!D51="",SUM(Input!G98)=0),100,Y2) -> 0.8439282624
A3: Dry Mass Washed: | C3: 1830.5 | G3: Tons when Sampled | I3: 1 | X3: RAS | Y3: =Report!$D$51 ->  | Z3: =AA3/AA$6 -> 0 | AA3: =Y3*AB3 -> 0 | AB3: =1-AC3-AD3-AE3 -> 0.9 | AC3: =Summary!$S$30 -> 0 | AD3: =0.1 -> 0.1 | AE3: =Input!$P$40/100-'Grad 1'!AC3 -> 0
A4: =IF(Tank!$AB$4=2,"Total Minus 4.75mm (W1): ","Total Minus #4 (W1): ") -> Total Minus #4 (W1): | G4: Sample Type | I4: Cold Feed | X4: RAP | Y4: =Report!$D$50 -> 0.1560717376 | Z4: =AA4/AA$6 -> 0.1504765833 | AA4: =Y4*AB4 -> 0.1494855103 | AB4: =1-AC4 -> 0.9578 | AC4: =Summary!$S$29 -> 0.0422
